Workbook

Sheet Cell Backgrounds Description
A1: RHP Plan Update Provider Form
B4: This page provides high-level information on the various inputs that a user will find within this template.
B7: Cell Background | C7: Description
B8: Sample Text | C8: Required user input cell, that is necessary for successful completion
B9: Sample Text | C9: Pre-populated cell that a user CANNOT edit
B10: Sample Text | C10: Pre-populated cell that a user CAN edit
B11: Sample Text | C11: Optional user input cell

Sheet Provider Entry
I1: HIDE | R1: TRUE = Unhide, FALSE = Hide | S1: =CELL("address",S$4)&":"&CELL("address",S$123) -> $S$4:$S$123 | U1: Cell Dropdowns Helper ---> | AJ1: Adjusted MPT | AK1: =IF(COUNTIF($D$22:$D$27,$AL1)+COUNTIF($E$23:$E$27,$AL1)+COUNTIF($F$23:$F$27,$AL1)+COUNTIF($G$23:$G$27,$AL1)=0,1,0) -> 1 | AL1: Anderson | AM1: =IF(ROWS($AL$1:AL1)>MAX($AK$1:$AK$254),"",INDEX($AL$1:$AL$254,MATCH(ROWS($AL$1:AL1),$AK$1:$AK$254,0))) -> Anderson | AN1: Macro Inputs: | AQ1: =COUNTA($AQ$3:$AQ$10) -> 8 | AR1: Column | AT1: HIDE
C2: DY7-8 Provider RHP Plan Update Template - Provider Entry | L2: Hospital? | M2: =IF(ProvType="Hospital",TRUE,FALSE) -> TRUE | N2: RHP Selected? | O2: =RHP<>"" -> TRUE | P2: # "Lead/Both" Contact: | Q2: =COUNTIFS('Contacts-Provider'!$Y$1:$Y$9663,RHP&"_"&TPI&"_Both")+COUNTIFS('Contacts-Provider'!$Y$1:$Y$9663,RHP&"_"&TPI&"_Lead Contact") -> 2 | R2: HIDDEN NOW:-----> | S2: =COUNTIF(INDIRECT(S1,TRUE),TRUE) -> 93 | AF2: Statewide Hospital Ratio (SHR) | AG2: =AdjValuation/1999168106/AG3 -> 0.1983788259 | AH2: SHR <= 3 | AI2: =$AG$2<=3 -> TRUE | AJ2: =MIN(AdjValuation/500000,75) -> 4.876864 | AK2: =IF(COUNTIF($D$22:$D$27,$AL2)+COUNTIF($E$23:$E$27,$AL2)+COUNTIF($F$23:$F$27,$AL2)+COUNTIF($G$23:$G$27,$AL2)=0,MAX($AK$1:AK1)+1,0) -> 2 | AL2: Andrews | AM2: =IF(ROWS($AL$1:AL2)>MAX($AK$1:$AK$254),"",INDEX($AL$1:$AL$254,MATCH(ROWS($AL$1:AL2),$AK$1:$AK$254,0))) -> Andrews | AN2: WS Names Start Cell | AO2: =CELL("address",$AQ$3) -> $AQ$3 | AQ2: WS Names | AR2: Hide
L3: Physician Practice? | M3: =IF(LEFT(ProvType,3)="Phy",TRUE,FALSE) -> FALSE | N3: TPI Selected? | O3: =$D$15<>"" -> TRUE | P3: Contact Name Column#: | Q3: 16 | R3: HIDDEN BEFORE:-----> | S3: 93 | U3: Data Validation | AF3: Statewide Hospital Factor (SHF) | AG3: =INDEX('Provider Valuation and MPTs'!$G2:$G5000,MATCH(RHP&"_"&TPI,'Provider Valuation and MPTs'!$L2:$L5000,0)) -> 0.006148455284 | AH3: SHR >3, <= 10 | AI3: =AND($AG$2>3,$AG$2<=10) -> FALSE | AJ3: =MIN(AdjValuation/500000*$AG$2/3,75) -> 0.3224888514 | AK3: =IF(COUNTIF($D$22:$D$27,$AL3)+COUNTIF($E$23:$E$27,$AL3)+COUNTIF($F$23:$F$27,$AL3)+COUNTIF($G$23:$G$27,$AL3)=0,MAX($AK$1:AK2)+1,0) -> 3 | AL3: Angelina | AM3: =IF(ROWS($AL$1:AL3)>MAX($AK$1:$AK$254),"",INDEX($AL$1:$AL$254,MATCH(ROWS($AL$1:AL3),$AK$1:$AK$254,0))) -> Angelina | AN3: WS Names Count Cell | AO3: =CELL("address",$AQ$1) -> $AQ$1 | AQ3: =MID(CELL("filename",'Category B'!$B$1),FIND("]",CELL("filename",'Category B'!$B$1))+1,255) -> Category B | AR3: =SUBSTITUTE(ADDRESS(1,COLUMN('Category B'!$S$1),4),1,"") -> S
C4: Progress Indicators | I4: Deloitte Comments: | L4: CMHC? | M4: =IF(ProvType="Community Mental Health Center (CMHC)",TRUE,FALSE) -> FALSE | N4: Withdraw? | O4: =IF($C$48="Yes - Withdraw from DSRIP",TRUE,IF(C48="Do Not Withdraw from DSRIP",FALSE,"")) -> FALSE | P4: Address Column#: | Q4: 17 | S4: TRUE | U4: RHP | W4: TPI Count: | X4: =IFERROR(COUNTIF('Provider List'!$A:$A,RHP),"") -> 11 | AH4: SHR > 10, Valuation <= $15M | AI4: =AND($AG$2>10,AdjValuation<=15000000) -> FALSE | AJ4: =MIN(AdjValuation/500000*$AG$2/3,40) -> 0.3224888514 | AK4: =IF(COUNTIF($D$22:$D$27,$AL4)+COUNTIF($E$23:$E$27,$AL4)+COUNTIF($F$23:$F$27,$AL4)+COUNTIF($G$23:$G$27,$AL4)=0,MAX($AK$1:AK3)+1,0) -> 4 | AL4: Aransas | AM4: =IF(ROWS($AL$1:AL4)>MAX($AK$1:$AK$254),"",INDEX($AL$1:$AL$254,MATCH(ROWS($AL$1:AL4),$AK$1:$AK$254,0))) -> Aransas | AN4: Row Hide Unhide Range | AO4: =ROW($S1) -> 1 | AQ4: =MID(CELL("filename",'Category C Selection'!$B$1),FIND("]",CELL("filename",'Category C Selection'!$B$1))+1,255) -> Category C Selection | AR4: =SUBSTITUTE(ADDRESS(1,COLUMN('Category C Selection'!$P$1),4),1,"") -> P
L5: LHD? | M5: =IF(ProvType="Local Health Department (LHD)",TRUE,FALSE) -> FALSE | N5: Section 1 Complete? | O5: =AND(RHP<>"",D15<>"",D19<>"",D20<>"",D21<>"",D22<>"") -> TRUE | P5: City Column#: | Q5: 18 | S5: TRUE | V5: RHP_Index | X5: TPI | AH5: SHR > 10, Valuation > $15M | AI5: =AND($AG$2>10,AdjValuation>15000000) -> FALSE | AJ5: =MIN(AdjValuation/500000*$AG$2/3,75) -> 0.3224888514 | AK5: =IF(COUNTIF($D$22:$D$27,$AL5)+COUNTIF($E$23:$E$27,$AL5)+COUNTIF($F$23:$F$27,$AL5)+COUNTIF($G$23:$G$27,$AL5)=0,MAX($AK$1:AK4)+1,0) -> 5 | AL5: Archer | AM5: =IF(ROWS($AL$1:AL5)>MAX($AK$1:$AK$254),"",INDEX($AL$1:$AL$254,MATCH(ROWS($AL$1:AL5),$AK$1:$AK$254,0))) -> Archer | AN5: Row Hidden Now | AO5: =ROW($S2) -> 2 | AQ5: =MID(CELL("filename",'Category C Valuation'!$B$1),FIND("]",CELL("filename",'Category C Valuation'!$B$1))+1,255) -> Category C Valuation | AR5: =SUBSTITUTE(ADDRESS(1,COLUMN('Category C Valuation'!$Z$1),4),1,"") -> Z
C6: Section 1: Performing Provider Information | E6: =IF(O5=TRUE,"Complete","Incomplete") -> Complete | L6: TPI | M6: =IFERROR(LEFT($D$15,9),"") -> 127267603 | N6: Section 3 Complete? | O6: =OR(Withdraw=FALSE,AND(Withdraw=TRUE,C51<>"",C54<>"",C57<>"")) -> TRUE | P6: Zip Column #: | Q6: 19 | S6: TRUE | U6: 1 | V6: =IFERROR(IF(W6="","",RHP&"_"&W6),"") -> 17_1 | W6: 1 | X6: =IFERROR(IF(W6="","",INDEX('Provider List'!$B:$B,MATCH(V6,'Provider List'!$H:$H,0))&" - "&INDEX('Provider List'!$C:$C,MATCH(V6,'Provider List'!$H:$H,0))),"") -> 130982504 - Brazos Co Treasurer (Brazos County Health Departme | AF6: Physician Practice Adjusted MPT | AG6: =MIN(AdjValuation/500000,75) -> 4.876864 | AK6: =IF(COUNTIF($D$22:$D$27,$AL6)+COUNTIF($E$23:$E$27,$AL6)+COUNTIF($F$23:$F$27,$AL6)+COUNTIF($G$23:$G$27,$AL6)=0,MAX($AK$1:AK5)+1,0) -> 6 | AL6: Armstrong | AM6: =IF(ROWS($AL$1:AL6)>MAX($AK$1:$AK$254),"",INDEX($AL$1:$AL$254,MATCH(ROWS($AL$1:AL6),$AK$1:$AK$254,0))) -> Armstrong | AN6: Row Hidden Before | AO6: =ROW($S3) -> 3 | AQ6: =MID(CELL("filename",'Category C Additional Details'!$B$1),FIND("]",CELL("filename",'Category C Additional Details'!$B$1))+1,255) -> Category C Additional Details | AR6: =SUBSTITUTE(ADDRESS(1,COLUMN('Category C Additional Details'!$U$1),4),1,"") -> U
C7: Section 2: Lead Contact Information | E7: =IF(AND(O9,N33,O33,P33),"Complete","Incomplete") -> Complete | L7: RHP with additional funds? | M7: =IFERROR(INDEX('Regions with Additional Funds'!$A:$B,MATCH('Provider Entry'!$M$8,'Regions with Additional Funds'!$A:$A,0),2)>0,FALSE) -> TRUE | N7: Section 4 Complete? | O7: =AND(D61<>"",D63<>"",D65<>"") -> TRUE | P7: Email Column#: | Q7: 20 | S7: =IF(E6="Complete",TRUE,FALSE) -> TRUE | U7: 2 | V7: 17_2 | W7: =IF(W6>=$X$4,"",W6+1) -> 2 | X7: =IFERROR(IF(W7="","",INDEX('Provider List'!$B:$B,MATCH(V7,'Provider List'!$H:$H,0))&" - "&INDEX('Provider List'!$C:$C,MATCH(V7,'Provider List'!$H:$H,0))),"") -> 020860501 - College Station Medical Center | AF7: CMHC Adjusted MPT | AG7: =MIN(AdjValuation/500000,40) -> 4.876864 | AK7: =IF(COUNTIF($D$22:$D$27,$AL7)+COUNTIF($E$23:$E$27,$AL7)+COUNTIF($F$23:$F$27,$AL7)+COUNTIF($G$23:$G$27,$AL7)=0,MAX($AK$1:AK6)+1,0) -> 7 | AL7: Atascosa | AM7: =IF(ROWS($AL$1:AL7)>MAX($AK$1:$AK$254),"",INDEX($AL$1:$AL$254,MATCH(ROWS($AL$1:AL7),$AK$1:$AK$254,0))) -> Atascosa | AN7: Column Start Cell | AO7: =CELL("address",$AR$3) -> $AR$3 | AQ7: =MID(CELL("filename",'Category A Core Activities'!$C$1),FIND("]",CELL("filename",'Category A Core Activities'!$C$1))+1,255) -> Category A Core Activities | AR7: =SUBSTITUTE(ADDRESS(1,COLUMN('Category A Core Activities'!$AH$1),4),1,"") -> AH
C8: Section 3: Optional Withdrawal From DSRIP | E8: =IF(O6=TRUE,"Complete","Incomplete") -> Complete | L8: RHP # | M8: ="RHP "&RHP -> RHP 17 | N8: Section 5 Complete? | O8: =IFERROR(IF(DecreaseVal="Yes",IF(AND(C93<>"",C115="Yes"),TRUE,FALSE),IF(DecreaseVal="No",IF(AND(IncreaseVal="No",C115="Yes"),TRUE,IF(AND(IncreaseVal="Yes",C99<>"",C115="Yes"),TRUE,IF(AND(IncreaseVal="",C115="Yes"),TRUE,FALSE))))),FALSE) -> TRUE | P8: Phone # Column#: | Q8: 21 | S8: =IF(E6="Complete",TRUE,FALSE) -> TRUE | U8: 3 | V8: 17_3 | W8: =IF(W7>=$X$4,"",W7+1) -> 3 | X8: =IFERROR(IF(W8="","",INDEX('Provider List'!$B:$B,MATCH(V8,'Provider List'!$H:$H,0))&" - "&INDEX('Provider List'!$C:$C,MATCH(V8,'Provider List'!$H:$H,0))),"") -> 020841501 - Conroe Regional Medical Center | AF8: LHD Adjusted MPT | AG8: =MIN(AdjValuation/500000,20) -> 4.876864 | AJ8: Dynamic County Height | AK8: =IF(COUNTIF($D$22:$D$27,$AL8)+COUNTIF($E$23:$E$27,$AL8)+COUNTIF($F$23:$F$27,$AL8)+COUNTIF($G$23:$G$27,$AL8)=0,MAX($AK$1:AK7)+1,0) -> 8 | AL8: Austin | AM8: =IF(ROWS($AL$1:AL8)>MAX($AK$1:$AK$254),"",INDEX($AL$1:$AL$254,MATCH(ROWS($AL$1:AL8),$AK$1:$AK$254,0))) -> Austin | AN8: Password | AO8: TexasPaperReporting | AQ8: =MID(CELL("filename",'Category D'!$B$1),FIND("]",CELL("filename",'Category D'!$B$1))+1,255) -> Category D | AR8: =SUBSTITUTE(ADDRESS(1,COLUMN('Category D'!$X$1),4),1,"") -> X
C9: Section 4: Performing Provider Overview | E9: =IF(OR(O7,Withdraw),"Complete","Incomplete") -> Complete | L9: Withdraw & fill out section? | M9: =AND(Withdraw,C51<>"",C54<>"",C57<>"") -> FALSE | N9: At least one contact entered? | O9: =OR(AND(D33<>"",D34<>"",D35<>"",D36<>"",D37<>"",D39<>"",D32<>""),AND(E33<>"",E34<>"",E35<>"",E36<>"",E37<>"",E39<>"",E32<>""),AND(F33<>"",F34<>"",F35<>"",F36<>"",F37<>"",F39<>"",F32<>"")) -> TRUE | P9: Phone Ext. Column #: | Q9: 22 | S9: =IF(OR(Withdraw=TRUE,Withdraw=""),FALSE,TRUE) -> TRUE | U9: 4 | V9: 17_4 | W9: 4 | X9: =IFERROR(IF(W9="","",INDEX('Provider List'!$B:$B,MATCH(V9,'Provider List'!$H:$H,0))&" - "&INDEX('Provider List'!$C:$C,MATCH(V9,'Provider List'!$H:$H,0))),"") -> 136366507 - MHMR Authority of Brazos Valley | AF9: Hospital Adjusted MPT | AG9: =IFERROR(INDEX($AJ$2:$AJ$5,MATCH(TRUE,$AI$2:$AI$5,0)),MIN(AdjValuation/500000,75)) -> 4.876864 | AJ9: =MAX($AK$1:$AK$254) -> 253 | AK9: =IF(COUNTIF($D$22:$D$27,$AL9)+COUNTIF($E$23:$E$27,$AL9)+COUNTIF($F$23:$F$27,$AL9)+COUNTIF($G$23:$G$27,$AL9)=0,MAX($AK$1:AK8)+1,0) -> 9 | AL9: Bailey | AM9: =IF(ROWS($AL$1:AL9)>MAX($AK$1:$AK$254),"",INDEX($AL$1:$AL$254,MATCH(ROWS($AL$1:AL9),$AK$1:$AK$254,0))) -> Bailey | AN9: Worksheet Complete | AO9: =IFERROR(COUNTIFS($E$6:$E$10,"Complete")=5,FALSE) -> TRUE | AQ9: =MID(CELL("filename",'IGT Entry'!A1),FIND("]",CELL("filename",'IGT Entry'!Z1))+1,255) -> IGT Entry | AR9: =SUBSTITUTE(ADDRESS(1,COLUMN('IGT Entry'!Z1),4),1,"") -> Z
C10: Section 5: DY7-8 DSRIP Total Valuation | E10: =IF(OR(O8,Withdraw),"Complete","Incomplete") -> Complete | P10: Lead/Both Column #: | Q10: 15 | S10: =AND(E8="Complete",E9="Complete",C48<>"Yes - Withdraw from DSRIP") -> TRUE | U10: 5 | V10: 17_5 | W10: 5 | X10: =IFERROR(IF(W10="","",INDEX('Provider List'!$B:$B,MATCH(V10,'Provider List'!$H:$H,0))&" - "&INDEX('Provider List'!$C:$C,MATCH(V10,'Provider List'!$H:$H,0))),"") -> 311035501 - Montgomery County Public Health District | AK10: =IF(COUNTIF($D$22:$D$27,$AL10)+COUNTIF($E$23:$E$27,$AL10)+COUNTIF($F$23:$F$27,$AL10)+COUNTIF($G$23:$G$27,$AL10)=0,MAX($AK$1:AK9)+1,0) -> 10 | AL10: Bandera | AM10: =IF(ROWS($AL$1:AL10)>MAX($AK$1:$AK$254),"",INDEX($AL$1:$AL$254,MATCH(ROWS($AL$1:AL10),$AK$1:$AK$254,0))) -> Bandera | AN10: Withdrawing? | AO10: =IFERROR($C$48=AP10,FALSE) -> FALSE | AP10: Yes - Withdraw from DSRIP | AQ10: =MID(CELL("filename",'Summary and Certification'!$B$1),FIND("]",CELL("filename",'Summary and Certification'!$B$1))+1,255) -> Summary and Certification | AR10: =SUBSTITUTE(ADDRESS(1,COLUMN('Summary and Certification'!$AF$1),4),1,"") -> AF
S11: TRUE | U11: 6 | V11: 17_6 | W11: 6 | X11: =IFERROR(IF(W11="","",INDEX('Provider List'!$B:$B,MATCH(V11,'Provider List'!$H:$H,0))&" - "&INDEX('Provider List'!$C:$C,MATCH(V11,'Provider List'!$H:$H,0))),"") -> 135226205 - Scott & White Hospital Brenham | AK11: =IF(COUNTIF($D$22:$D$27,$AL11)+COUNTIF($E$23:$E$27,$AL11)+COUNTIF($F$23:$F$27,$AL11)+COUNTIF($G$23:$G$27,$AL11)=0,MAX($AK$1:AK10)+1,0) -> 11 | AL11: Bastrop | AM11: =IF(ROWS($AL$1:AL11)>MAX($AK$1:$AK$254),"",INDEX($AL$1:$AL$254,MATCH(ROWS($AL$1:AL11),$AK$1:$AK$254,0))) -> Bastrop
C12: =C6 -> Section 1: Performing Provider Information | S12: TRUE | U12: 7 | V12: 17_7 | W12: 7 | X12: =IFERROR(IF(W12="","",INDEX('Provider List'!$B:$B,MATCH(V12,'Provider List'!$H:$H,0))&" - "&INDEX('Provider List'!$C:$C,MATCH(V12,'Provider List'!$H:$H,0))),"") -> 127267603 - St. Joseph Regional Health Center | AK12: =IF(COUNTIF($D$22:$D$27,$AL12)+COUNTIF($E$23:$E$27,$AL12)+COUNTIF($F$23:$F$27,$AL12)+COUNTIF($G$23:$G$27,$AL12)=0,MAX($AK$1:AK11)+1,0) -> 12 | AL12: Baylor | AM12: =IF(ROWS($AL$1:AL12)>MAX($AK$1:$AK$254),"",INDEX($AL$1:$AL$254,MATCH(ROWS($AL$1:AL12),$AK$1:$AK$254,0))) -> Baylor
S13: TRUE | U13: 8 | V13: 17_8 | W13: 8 | X13: =IFERROR(IF(W13="","",INDEX('Provider List'!$B:$B,MATCH(V13,'Provider List'!$H:$H,0))&" - "&INDEX('Provider List'!$C:$C,MATCH(V13,'Provider List'!$H:$H,0))),"") -> 160630301 - St. Luke's Community Health Srvs (The Woodlands) | AK13: =IF(COUNTIF($D$22:$D$27,$AL13)+COUNTIF($E$23:$E$27,$AL13)+COUNTIF($F$23:$F$27,$AL13)+COUNTIF($G$23:$G$27,$AL13)=0,MAX($AK$1:AK12)+1,0) -> 13 | AL13: Bee | AM13: =IF(ROWS($AL$1:AL13)>MAX($AK$1:$AK$254),"",INDEX($AL$1:$AL$254,MATCH(ROWS($AL$1:AL13),$AK$1:$AK$254,0))) -> Bee
C14: RHP: | D14: 17 | I14: Data validation will be used for various types of fields (zip, email, phone). This will be present on all tabs. | S14: TRUE | U14: 9 | V14: 17_9 | W14: 9 | X14: =IFERROR(IF(W14="","",INDEX('Provider List'!$B:$B,MATCH(V14,'Provider List'!$H:$H,0))&" - "&INDEX('Provider List'!$C:$C,MATCH(V14,'Provider List'!$H:$H,0))),"") -> 198523601 - The TX A&M Unv Systm Hlth Science Cent dba Tx A&M | AK14: =IF(COUNTIF($D$22:$D$27,$AL14)+COUNTIF($E$23:$E$27,$AL14)+COUNTIF($F$23:$F$27,$AL14)+COUNTIF($G$23:$G$27,$AL14)=0,MAX($AK$1:AK13)+1,0) -> 14 | AL14: Bell | AM14: =IF(ROWS($AL$1:AL14)>MAX($AK$1:$AK$254),"",INDEX($AL$1:$AL$254,MATCH(ROWS($AL$1:AL14),$AK$1:$AK$254,0))) -> Bell
C15: TPI and Performing Provider Name: | D15: 127267603 - St. Joseph Regional Health Center | S15: TRUE | U15: 10 | V15: 17_10 | W15: 10 | X15: =IFERROR(IF(W15="","",INDEX('Provider List'!$B:$B,MATCH(V15,'Provider List'!$H:$H,0))&" - "&INDEX('Provider List'!$C:$C,MATCH(V15,'Provider List'!$H:$H,0))),"") -> 081844501 - Tri-County Behavioral Healthcare | AK15: =IF(COUNTIF($D$22:$D$27,$AL15)+COUNTIF($E$23:$E$27,$AL15)+COUNTIF($F$23:$F$27,$AL15)+COUNTIF($G$23:$G$27,$AL15)=0,MAX($AK$1:AK14)+1,0) -> 15 | AL15: Bexar | AM15: =IF(ROWS($AL$1:AL15)>MAX($AK$1:$AK$254),"",INDEX($AL$1:$AL$254,MATCH(ROWS($AL$1:AL15),$AK$1:$AK$254,0))) -> Bexar
C16: Performing Provider Type: | D16: =IFERROR(INDEX('Provider List'!D:D,MATCH(TPI,'Provider List'!B:B,0)),"") -> Hospital | S16: =AND($O$2=TRUE,$O$3=TRUE) -> TRUE | U16: 11 | V16: 17_11 | W16: 11 | X16: =IFERROR(IF(W16="","",INDEX('Provider List'!$B:$B,MATCH(V16,'Provider List'!$H:$H,0))&" - "&INDEX('Provider List'!$C:$C,MATCH(V16,'Provider List'!$H:$H,0))),"") -> 189791001 - Walker County Hosp Corp. dba Huntsville Memorial | AK16: =IF(COUNTIF($D$22:$D$27,$AL16)+COUNTIF($E$23:$E$27,$AL16)+COUNTIF($F$23:$F$27,$AL16)+COUNTIF($G$23:$G$27,$AL16)=0,MAX($AK$1:AK15)+1,0) -> 16 | AL16: Blanco | AM16: =IF(ROWS($AL$1:AL16)>MAX($AK$1:$AK$254),"",INDEX($AL$1:$AL$254,MATCH(ROWS($AL$1:AL16),$AK$1:$AK$254,0))) -> Blanco
C17: Ownership: | D17: =IFERROR(INDEX('Provider List'!E:E,MATCH(TPI,'Provider List'!B:B,0)),"") -> Private | S17: =AND($O$2=TRUE,$O$3=TRUE) -> TRUE | U17: 12 | X17: =IFERROR(IF(W17="","",INDEX('Provider List'!$B:$B,MATCH(V17,'Provider List'!$H:$H,0))&" - "&INDEX('Provider List'!$C:$C,MATCH(V17,'Provider List'!$H:$H,0))),"") ->  | AK17: =IF(COUNTIF($D$22:$D$27,$AL17)+COUNTIF($E$23:$E$27,$AL17)+COUNTIF($F$23:$F$27,$AL17)+COUNTIF($G$23:$G$27,$AL17)=0,MAX($AK$1:AK16)+1,0) -> 17 | AL17: Borden | AM17: =IF(ROWS($AL$1:AL17)>MAX($AK$1:$AK$254),"",INDEX($AL$1:$AL$254,MATCH(ROWS($AL$1:AL17),$AK$1:$AK$254,0))) -> Borden
C18: TIN: | D18: =IFERROR(INDEX('Provider List'!F:F,MATCH(TPI,'Provider List'!B:B,0)),"") -> 17412826962501 | S18: TRUE | U18: 13 | X18: =IFERROR(IF(W18="","",INDEX('Provider List'!$B:$B,MATCH(V18,'Provider List'!$H:$H,0))&" - "&INDEX('Provider List'!$C:$C,MATCH(V18,'Provider List'!$H:$H,0))),"") ->  | AK18: =IF(COUNTIF($D$22:$D$27,$AL18)+COUNTIF($E$23:$E$27,$AL18)+COUNTIF($F$23:$F$27,$AL18)+COUNTIF($G$23:$G$27,$AL18)=0,MAX($AK$1:AK17)+1,0) -> 18 | AL18: Bosque | AM18: =IF(ROWS($AL$1:AL18)>MAX($AK$1:$AK$254),"",INDEX($AL$1:$AL$254,MATCH(ROWS($AL$1:AL18),$AK$1:$AK$254,0))) -> Bosque
C19: Physical Street Address: | D19: 2801 Franciscan St | S19: TRUE | U19: 14 | X19: =IFERROR(IF(W19="","",INDEX('Provider List'!$B:$B,MATCH(V19,'Provider List'!$H:$H,0))&" - "&INDEX('Provider List'!$C:$C,MATCH(V19,'Provider List'!$H:$H,0))),"") ->  | AK19: =IF(COUNTIF($D$22:$D$27,$AL19)+COUNTIF($E$23:$E$27,$AL19)+COUNTIF($F$23:$F$27,$AL19)+COUNTIF($G$23:$G$27,$AL19)=0,MAX($AK$1:AK18)+1,0) -> 19 | AL19: Bowie | AM19: =IF(ROWS($AL$1:AL19)>MAX($AK$1:$AK$254),"",INDEX($AL$1:$AL$254,MATCH(ROWS($AL$1:AL19),$AK$1:$AK$254,0))) -> Bowie
C20: City: | D20: Bryan | S20: TRUE | U20: 15 | X20: =IFERROR(IF(W20="","",INDEX('Provider List'!$B:$B,MATCH(V20,'Provider List'!$H:$H,0))&" - "&INDEX('Provider List'!$C:$C,MATCH(V20,'Provider List'!$H:$H,0))),"") ->  | AK20: =IF(COUNTIF($D$22:$D$27,$AL20)+COUNTIF($E$23:$E$27,$AL20)+COUNTIF($F$23:$F$27,$AL20)+COUNTIF($G$23:$G$27,$AL20)=0,MAX($AK$1:AK19)+1,0) -> 20 | AL20: Brazoria | AM20: =IF(ROWS($AL$1:AL20)>MAX($AK$1:$AK$254),"",INDEX($AL$1:$AL$254,MATCH(ROWS($AL$1:AL20),$AK$1:$AK$254,0))) -> Brazoria
C21: Zip: | D21: 77802 | I21: "Additional counties" cell will allow multiple selection and display a list of the selections in the blue cell | S21: TRUE | U21: 16 | X21: =IFERROR(IF(W21="","",INDEX('Provider List'!$B:$B,MATCH(V21,'Provider List'!$H:$H,0))&" - "&INDEX('Provider List'!$C:$C,MATCH(V21,'Provider List'!$H:$H,0))),"") ->  | AK21: =IF(COUNTIF($D$22:$D$27,$AL21)+COUNTIF($E$23:$E$27,$AL21)+COUNTIF($F$23:$F$27,$AL21)+COUNTIF($G$23:$G$27,$AL21)=0,MAX($AK$1:AK20)+1,0) -> 0 | AL21: Brazos | AM21: =IF(ROWS($AL$1:AL21)>MAX($AK$1:$AK$254),"",INDEX($AL$1:$AL$254,MATCH(ROWS($AL$1:AL21),$AK$1:$AK$254,0))) -> Brewster
C22: Primary County: | D22: Brazos | S22: TRUE | U22: 17 | X22: =IFERROR(IF(W22="","",INDEX('Provider List'!$B:$B,MATCH(V22,'Provider List'!$H:$H,0))&" - "&INDEX('Provider List'!$C:$C,MATCH(V22,'Provider List'!$H:$H,0))),"") ->  | AK22: =IF(COUNTIF($D$22:$D$27,$AL22)+COUNTIF($E$23:$E$27,$AL22)+COUNTIF($F$23:$F$27,$AL22)+COUNTIF($G$23:$G$27,$AL22)=0,MAX($AK$1:AK21)+1,0) -> 21 | AL22: Brewster | AM22: =IF(ROWS($AL$1:AL22)>MAX($AK$1:$AK$254),"",INDEX($AL$1:$AL$254,MATCH(ROWS($AL$1:AL22),$AK$1:$AK$254,0))) -> Briscoe
C23: Additional counties being served (optional): | S23: TRUE | U23: 18 | X23: =IFERROR(IF(W23="","",INDEX('Provider List'!$B:$B,MATCH(V23,'Provider List'!$H:$H,0))&" - "&INDEX('Provider List'!$C:$C,MATCH(V23,'Provider List'!$H:$H,0))),"") ->  | AK23: =IF(COUNTIF($D$22:$D$27,$AL23)+COUNTIF($E$23:$E$27,$AL23)+COUNTIF($F$23:$F$27,$AL23)+COUNTIF($G$23:$G$27,$AL23)=0,MAX($AK$1:AK22)+1,0) -> 22 | AL23: Briscoe | AM23: =IF(ROWS($AL$1:AL23)>MAX($AK$1:$AK$254),"",INDEX($AL$1:$AL$254,MATCH(ROWS($AL$1:AL23),$AK$1:$AK$254,0))) -> Brooks
S24: =AND($O$2=TRUE,$O$3=TRUE,D23<>"",E23<>"",F23<>"",G23<>"") -> FALSE | U24: 19 | X24: =IFERROR(IF(W24="","",INDEX('Provider List'!$B:$B,MATCH(V24,'Provider List'!$H:$H,0))&" - "&INDEX('Provider List'!$C:$C,MATCH(V24,'Provider List'!$H:$H,0))),"") ->  | AK24: =IF(COUNTIF($D$22:$D$27,$AL24)+COUNTIF($E$23:$E$27,$AL24)+COUNTIF($F$23:$F$27,$AL24)+COUNTIF($G$23:$G$27,$AL24)=0,MAX($AK$1:AK23)+1,0) -> 23 | AL24: Brooks | AM24: =IF(ROWS($AL$1:AL24)>MAX($AK$1:$AK$254),"",INDEX($AL$1:$AL$254,MATCH(ROWS($AL$1:AL24),$AK$1:$AK$254,0))) -> Brown
S25: =AND($O$2=TRUE,$O$3=TRUE,D23<>"",E23<>"",F23<>"",G23<>"",D24<>"",E24<>"",F24<>"",G24<>"") -> FALSE | U25: 20 | X25: =IFERROR(IF(W25="","",INDEX('Provider List'!$B:$B,MATCH(V25,'Provider List'!$H:$H,0))&" - "&INDEX('Provider List'!$C:$C,MATCH(V25,'Provider List'!$H:$H,0))),"") ->  | AK25: =IF(COUNTIF($D$22:$D$27,$AL25)+COUNTIF($E$23:$E$27,$AL25)+COUNTIF($F$23:$F$27,$AL25)+COUNTIF($G$23:$G$27,$AL25)=0,MAX($AK$1:AK24)+1,0) -> 24 | AL25: Brown | AM25: =IF(ROWS($AL$1:AL25)>MAX($AK$1:$AK$254),"",INDEX($AL$1:$AL$254,MATCH(ROWS($AL$1:AL25),$AK$1:$AK$254,0))) -> Burleson
S26: =AND($O$2=TRUE,$O$3=TRUE,D23<>"",D24<>"",E23<>"",F23<>"",G23<>"",E24<>"",F24<>"",G24<>"",D25<>"",E25<>"",F25<>"",G25<>"") -> FALSE | V26: =IFERROR(IF(W26="","",RHP&"_"&W26),"") ->  | X26: =IFERROR(IF(W26="","",INDEX('Provider List'!$B:$B,MATCH(V26,'Provider List'!$H:$H,0))&" - "&INDEX('Provider List'!$C:$C,MATCH(V26,'Provider List'!$H:$H,0))),"") ->  | AK26: =IF(COUNTIF($D$22:$D$27,$AL26)+COUNTIF($E$23:$E$27,$AL26)+COUNTIF($F$23:$F$27,$AL26)+COUNTIF($G$23:$G$27,$AL26)=0,MAX($AK$1:AK25)+1,0) -> 25 | AL26: Burleson | AM26: =IF(ROWS($AL$1:AL26)>MAX($AK$1:$AK$254),"",INDEX($AL$1:$AL$254,MATCH(ROWS($AL$1:AL26),$AK$1:$AK$254,0))) -> Burnet
S27: =AND($O$2=TRUE,$O$3=TRUE,D25<>"",E23<>"",F23<>"",G23<>"",D23<>"",D24<>"",E24<>"",F24<>"",G24<>"",E25<>"",F25<>"",G25<>"",D26<>"",E26<>"",F26<>"",G26<>"") -> FALSE | X27: =IFERROR(IF(W27="","",INDEX('Provider List'!$B:$B,MATCH(V27,'Provider List'!$H:$H,0))&" - "&INDEX('Provider List'!$C:$C,MATCH(V27,'Provider List'!$H:$H,0))),"") ->  | AK27: =IF(COUNTIF($D$22:$D$27,$AL27)+COUNTIF($E$23:$E$27,$AL27)+COUNTIF($F$23:$F$27,$AL27)+COUNTIF($G$23:$G$27,$AL27)=0,MAX($AK$1:AK26)+1,0) -> 26 | AL27: Burnet | AM27: =IF(ROWS($AL$1:AL27)>MAX($AK$1:$AK$254),"",INDEX($AL$1:$AL$254,MATCH(ROWS($AL$1:AL27),$AK$1:$AK$254,0))) -> Caldwell
D28: Note: you cannot type county inputs; rather, please select your county from the dropdown menu. | S28: =AND($O$2=TRUE,$O$3=TRUE) -> TRUE | X28: =IFERROR(IF(W28="","",INDEX('Provider List'!$B:$B,MATCH(V28,'Provider List'!$H:$H,0))&" - "&INDEX('Provider List'!$C:$C,MATCH(V28,'Provider List'!$H:$H,0))),"") ->  | AK28: =IF(COUNTIF($D$22:$D$27,$AL28)+COUNTIF($E$23:$E$27,$AL28)+COUNTIF($F$23:$F$27,$AL28)+COUNTIF($G$23:$G$27,$AL28)=0,MAX($AK$1:AK27)+1,0) -> 27 | AL28: Caldwell | AM28: =IF(ROWS($AL$1:AL28)>MAX($AK$1:$AK$254),"",INDEX($AL$1:$AL$254,MATCH(ROWS($AL$1:AL28),$AK$1:$AK$254,0))) -> Calhoun
C29: =C7 -> Section 2: Lead Contact Information | S29: =$O$5=TRUE -> TRUE | X29: =IFERROR(IF(W29="","",INDEX('Provider List'!$B:$B,MATCH(V29,'Provider List'!$H:$H,0))&" - "&INDEX('Provider List'!$C:$C,MATCH(V29,'Provider List'!$H:$H,0))),"") ->  | AK29: =IF(COUNTIF($D$22:$D$27,$AL29)+COUNTIF($E$23:$E$27,$AL29)+COUNTIF($F$23:$F$27,$AL29)+COUNTIF($G$23:$G$27,$AL29)=0,MAX($AK$1:AK28)+1,0) -> 28 | AL29: Calhoun | AM29: =IF(ROWS($AL$1:AL29)>MAX($AK$1:$AK$254),"",INDEX($AL$1:$AL$254,MATCH(ROWS($AL$1:AL29),$AK$1:$AK$254,0))) -> Callahan
S30: =$O$5=TRUE -> TRUE | X30: =IFERROR(IF(W30="","",INDEX('Provider List'!$B:$B,MATCH(V30,'Provider List'!$H:$H,0))&" - "&INDEX('Provider List'!$C:$C,MATCH(V30,'Provider List'!$H:$H,0))),"") ->  | AK30: =IF(COUNTIF($D$22:$D$27,$AL30)+COUNTIF($E$23:$E$27,$AL30)+COUNTIF($F$23:$F$27,$AL30)+COUNTIF($G$23:$G$27,$AL30)=0,MAX($AK$1:AK29)+1,0) -> 29 | AL30: Callahan | AM30: =IF(ROWS($AL$1:AL30)>MAX($AK$1:$AK$254),"",INDEX($AL$1:$AL$254,MATCH(ROWS($AL$1:AL30),$AK$1:$AK$254,0))) -> Cameron
D31: Lead Contact 1 | E31: Lead Contact 2 | F31: Lead Contact 3 | S31: TRUE | X31: =IFERROR(IF(W31="","",INDEX('Provider List'!$B:$B,MATCH(V31,'Provider List'!$H:$H,0))&" - "&INDEX('Provider List'!$C:$C,MATCH(V31,'Provider List'!$H:$H,0))),"") ->  | AK31: =IF(COUNTIF($D$22:$D$27,$AL31)+COUNTIF($E$23:$E$27,$AL31)+COUNTIF($F$23:$F$27,$AL31)+COUNTIF($G$23:$G$27,$AL31)=0,MAX($AK$1:AK30)+1,0) -> 30 | AL31: Cameron | AM31: =IF(ROWS($AL$1:AL31)>MAX($AK$1:$AK$254),"",INDEX($AL$1:$AL$254,MATCH(ROWS($AL$1:AL31),$AK$1:$AK$254,0))) -> Camp
C32: Contact Name: | D32: =IF((RIGHT(D$31,1)*1)>$Q$2,"",IF(INDEX('ProvContacts-only Lead or Both'!$A$1:$Y$9903,MATCH(RHP&"_"&TPI&"_"&RIGHT(D$31,1),'ProvContacts-only Lead or Both'!$AB$1:$AB$903,0),$Q3)="","",INDEX('ProvContacts-only Lead or Both'!$A$1:$Y$9903,MATCH(RHP&"_"&TPI&"_"&RIGHT(D$31,1),'ProvContacts-only Lead or Both'!$AB$1:$AB$903,0),$Q3))) -> Tim Ottinger | E32: Reyann Davis | F32: Casey Hilbun | N32: Contact 1 finished if started? | O32: Contact 2 finished if started? | P32: Contact 3 finished if started? | S32: TRUE | X32: =IFERROR(IF(W32="","",INDEX('Provider List'!$B:$B,MATCH(V32,'Provider List'!$H:$H,0))&" - "&INDEX('Provider List'!$C:$C,MATCH(V32,'Provider List'!$H:$H,0))),"") ->  | AK32: =IF(COUNTIF($D$22:$D$27,$AL32)+COUNTIF($E$23:$E$27,$AL32)+COUNTIF($F$23:$F$27,$AL32)+COUNTIF($G$23:$G$27,$AL32)=0,MAX($AK$1:AK31)+1,0) -> 31 | AL32: Camp | AM32: =IF(ROWS($AL$1:AL32)>MAX($AK$1:$AK$254),"",INDEX($AL$1:$AL$254,MATCH(ROWS($AL$1:AL32),$AK$1:$AK$254,0))) -> Carson
C33: Street Address: | D33: =IF((RIGHT(D$31,1)*1)>$Q$2,"",IF(INDEX('ProvContacts-only Lead or Both'!$A$1:$Y$9903,MATCH(RHP&"_"&TPI&"_"&RIGHT(D$31,1),'ProvContacts-only Lead or Both'!$AB$1:$AB$903,0),$Q4)="","",INDEX('ProvContacts-only Lead or Both'!$A$1:$Y$9903,MATCH(RHP&"_"&TPI&"_"&RIGHT(D$31,1),'ProvContacts-only Lead or Both'!$AB$1:$AB$903,0),$Q4))) -> 2801 Franciscan Drive | E33: =IF((RIGHT(E$31,1)*1)>$Q$2,"",IF(INDEX('ProvContacts-only Lead or Both'!$A$1:$Y$9903,MATCH(RHP&"_"&TPI&"_"&RIGHT(E$31,1),'ProvContacts-only Lead or Both'!$AB$1:$AB$903,0),$Q4)="","",INDEX('ProvContacts-only Lead or Both'!$A$1:$Y$9903,MATCH(RHP&"_"&TPI&"_"&RIGHT(E$31,1),'ProvContacts-only Lead or Both'!$AB$1:$AB$903,0),$Q4))) -> 2801 Franciscan Drive | F33: 2801 Franciscan Drive | N33: =IF(OR(D33<>"",D34<>"",D35<>"",D36<>"",D37<>"",D38<>"",D39<>"",D32<>""),AND(D33<>"",D34<>"",D35<>"",D36<>"",D37<>"",D39<>"",D32<>""),TRUE) -> TRUE | O33: =IF(OR(E33<>"",E34<>"",E35<>"",E36<>"",E37<>"",E38<>"",E39<>"",E32<>""),AND(E33<>"",E34<>"",E35<>"",E36<>"",E37<>"",E39<>"",E32<>""),TRUE) -> TRUE | P33: =IF(OR(F33<>"",F34<>"",F35<>"",F36<>"",F37<>"",F38<>"",F39<>"",F32<>""),AND(F33<>"",F34<>"",F35<>"",F36<>"",F37<>"",F39<>"",F32<>""),TRUE) -> TRUE | S33: TRUE | X33: =IFERROR(IF(W33="","",INDEX('Provider List'!$B:$B,MATCH(V33,'Provider List'!$H:$H,0))&" - "&INDEX('Provider List'!$C:$C,MATCH(V33,'Provider List'!$H:$H,0))),"") ->  | AK33: =IF(COUNTIF($D$22:$D$27,$AL33)+COUNTIF($E$23:$E$27,$AL33)+COUNTIF($F$23:$F$27,$AL33)+COUNTIF($G$23:$G$27,$AL33)=0,MAX($AK$1:AK32)+1,0) -> 32 | AL33: Carson | AM33: =IF(ROWS($AL$1:AL33)>MAX($AK$1:$AK$254),"",INDEX($AL$1:$AL$254,MATCH(ROWS($AL$1:AL33),$AK$1:$AK$254,0))) -> Cass
C34: City: | D34: =IF((RIGHT(D$31,1)*1)>$Q$2,"",IF(INDEX('ProvContacts-only Lead or Both'!$A$1:$Y$9903,MATCH(RHP&"_"&TPI&"_"&RIGHT(D$31,1),'ProvContacts-only Lead or Both'!$AB$1:$AB$903,0),$Q5)="","",INDEX('ProvContacts-only Lead or Both'!$A$1:$Y$9903,MATCH(RHP&"_"&TPI&"_"&RIGHT(D$31,1),'ProvContacts-only Lead or Both'!$AB$1:$AB$903,0),$Q5))) -> Bryan | E34: =IF((RIGHT(E$31,1)*1)>$Q$2,"",IF(INDEX('ProvContacts-only Lead or Both'!$A$1:$Y$9903,MATCH(RHP&"_"&TPI&"_"&RIGHT(E$31,1),'ProvContacts-only Lead or Both'!$AB$1:$AB$903,0),$Q5)="","",INDEX('ProvContacts-only Lead or Both'!$A$1:$Y$9903,MATCH(RHP&"_"&TPI&"_"&RIGHT(E$31,1),'ProvContacts-only Lead or Both'!$AB$1:$AB$903,0),$Q5))) -> Bryan | F34: Bryan | S34: TRUE | X34: =IFERROR(IF(W34="","",INDEX('Provider List'!$B:$B,MATCH(V34,'Provider List'!$H:$H,0))&" - "&INDEX('Provider List'!$C:$C,MATCH(V34,'Provider List'!$H:$H,0))),"") ->  | AK34: =IF(COUNTIF($D$22:$D$27,$AL34)+COUNTIF($E$23:$E$27,$AL34)+COUNTIF($F$23:$F$27,$AL34)+COUNTIF($G$23:$G$27,$AL34)=0,MAX($AK$1:AK33)+1,0) -> 33 | AL34: Cass | AM34: =IF(ROWS($AL$1:AL34)>MAX($AK$1:$AK$254),"",INDEX($AL$1:$AL$254,MATCH(ROWS($AL$1:AL34),$AK$1:$AK$254,0))) -> Castro
C35: Zip: | D35: =IF((RIGHT(D$31,1)*1)>$Q$2,"",IF(INDEX('ProvContacts-only Lead or Both'!$A$1:$Y$9903,MATCH(RHP&"_"&TPI&"_"&RIGHT(D$31,1),'ProvContacts-only Lead or Both'!$AB$1:$AB$903,0),$Q6)="","",INDEX('ProvContacts-only Lead or Both'!$A$1:$Y$9903,MATCH(RHP&"_"&TPI&"_"&RIGHT(D$31,1),'ProvContacts-only Lead or Both'!$AB$1:$AB$903,0),$Q6))) -> 77802 | E35: =IF((RIGHT(E$31,1)*1)>$Q$2,"",IF(INDEX('ProvContacts-only Lead or Both'!$A$1:$Y$9903,MATCH(RHP&"_"&TPI&"_"&RIGHT(E$31,1),'ProvContacts-only Lead or Both'!$AB$1:$AB$903,0),$Q6)="","",INDEX('ProvContacts-only Lead or Both'!$A$1:$Y$9903,MATCH(RHP&"_"&TPI&"_"&RIGHT(E$31,1),'ProvContacts-only Lead or Both'!$AB$1:$AB$903,0),$Q6))) -> 77802 | F35: 77802 | S35: TRUE | X35: =IFERROR(IF(W35="","",INDEX('Provider List'!$B:$B,MATCH(V35,'Provider List'!$H:$H,0))&" - "&INDEX('Provider List'!$C:$C,MATCH(V35,'Provider List'!$H:$H,0))),"") ->  | AK35: =IF(COUNTIF($D$22:$D$27,$AL35)+COUNTIF($E$23:$E$27,$AL35)+COUNTIF($F$23:$F$27,$AL35)+COUNTIF($G$23:$G$27,$AL35)=0,MAX($AK$1:AK34)+1,0) -> 34 | AL35: Castro | AM35: =IF(ROWS($AL$1:AL35)>MAX($AK$1:$AK$254),"",INDEX($AL$1:$AL$254,MATCH(ROWS($AL$1:AL35),$AK$1:$AK$254,0))) -> Chambers
C36: Email: | D36: =IF((RIGHT(D$31,1)*1)>$Q$2,"",IF(INDEX('ProvContacts-only Lead or Both'!$A$1:$Y$9903,MATCH(RHP&"_"&TPI&"_"&RIGHT(D$31,1),'ProvContacts-only Lead or Both'!$AB$1:$AB$903,0),$Q7)="","",INDEX('ProvContacts-only Lead or Both'!$A$1:$Y$9903,MATCH(RHP&"_"&TPI&"_"&RIGHT(D$31,1),'ProvContacts-only Lead or Both'!$AB$1:$AB$903,0),$Q7))) -> tottinger@st-joseph.org | E36: rdavis@st-joseph.org | F36: CHilbun@st-joseph.org | S36: TRUE | X36: =IFERROR(IF(W36="","",INDEX('Provider List'!$B:$B,MATCH(V36,'Provider List'!$H:$H,0))&" - "&INDEX('Provider List'!$C:$C,MATCH(V36,'Provider List'!$H:$H,0))),"") ->  | AK36: =IF(COUNTIF($D$22:$D$27,$AL36)+COUNTIF($E$23:$E$27,$AL36)+COUNTIF($F$23:$F$27,$AL36)+COUNTIF($G$23:$G$27,$AL36)=0,MAX($AK$1:AK35)+1,0) -> 35 | AL36: Chambers | AM36: =IF(ROWS($AL$1:AL36)>MAX($AK$1:$AK$254),"",INDEX($AL$1:$AL$254,MATCH(ROWS($AL$1:AL36),$AK$1:$AK$254,0))) -> Cherokee
C37: Phone Number: | D37: =IF((RIGHT(D$31,1)*1)>$Q$2,"",IF(INDEX('ProvContacts-only Lead or Both'!$A$1:$Y$9903,MATCH(RHP&"_"&TPI&"_"&RIGHT(D$31,1),'ProvContacts-only Lead or Both'!$AB$1:$AB$903,0),$Q8)="","",INDEX('ProvContacts-only Lead or Both'!$A$1:$Y$9903,MATCH(RHP&"_"&TPI&"_"&RIGHT(D$31,1),'ProvContacts-only Lead or Both'!$AB$1:$AB$903,0),$Q8))) -> 979-776-3777 | E37: 9797742114 | F37: 9797742101 | S37: TRUE | X37: =IFERROR(IF(W37="","",INDEX('Provider List'!$B:$B,MATCH(V37,'Provider List'!$H:$H,0))&" - "&INDEX('Provider List'!$C:$C,MATCH(V37,'Provider List'!$H:$H,0))),"") ->  | AK37: =IF(COUNTIF($D$22:$D$27,$AL37)+COUNTIF($E$23:$E$27,$AL37)+COUNTIF($F$23:$F$27,$AL37)+COUNTIF($G$23:$G$27,$AL37)=0,MAX($AK$1:AK36)+1,0) -> 36 | AL37: Cherokee | AM37: =IF(ROWS($AL$1:AL37)>MAX($AK$1:$AK$254),"",INDEX($AL$1:$AL$254,MATCH(ROWS($AL$1:AL37),$AK$1:$AK$254,0))) -> Childress
C38: Phone Extension: | D38: =IF((RIGHT(D$31,1)*1)>$Q$2,"",IF(INDEX('ProvContacts-only Lead or Both'!$A$1:$Y$9903,MATCH(RHP&"_"&TPI&"_"&RIGHT(D$31,1),'ProvContacts-only Lead or Both'!$AB$1:$AB$903,0),$Q9)="","",INDEX('ProvContacts-only Lead or Both'!$A$1:$Y$9903,MATCH(RHP&"_"&TPI&"_"&RIGHT(D$31,1),'ProvContacts-only Lead or Both'!$AB$1:$AB$903,0),$Q9))) ->  | E38: =IF((RIGHT(E$31,1)*1)>$Q$2,"",IF(INDEX('ProvContacts-only Lead or Both'!$A$1:$Y$9903,MATCH(RHP&"_"&TPI&"_"&RIGHT(E$31,1),'ProvContacts-only Lead or Both'!$AB$1:$AB$903,0),$Q9)="","",INDEX('ProvContacts-only Lead or Both'!$A$1:$Y$9903,MATCH(RHP&"_"&TPI&"_"&RIGHT(E$31,1),'ProvContacts-only Lead or Both'!$AB$1:$AB$903,0),$Q9))) ->  | F38: =IF((RIGHT(F$31,1)*1)>$Q$2,"",IF(INDEX('ProvContacts-only Lead or Both'!$A$1:$Y$9903,MATCH(RHP&"_"&TPI&"_"&RIGHT(F$31,1),'ProvContacts-only Lead or Both'!$AB$1:$AB$903,0),$Q9)="","",INDEX('ProvContacts-only Lead or Both'!$A$1:$Y$9903,MATCH(RHP&"_"&TPI&"_"&RIGHT(F$31,1),'ProvContacts-only Lead or Both'!$AB$1:$AB$903,0),$Q9))) ->  | S38: TRUE | X38: =IFERROR(IF(W38="","",INDEX('Provider List'!$B:$B,MATCH(V38,'Provider List'!$H:$H,0))&" - "&INDEX('Provider List'!$C:$C,MATCH(V38,'Provider List'!$H:$H,0))),"") ->  | AK38: =IF(COUNTIF($D$22:$D$27,$AL38)+COUNTIF($E$23:$E$27,$AL38)+COUNTIF($F$23:$F$27,$AL38)+COUNTIF($G$23:$G$27,$AL38)=0,MAX($AK$1:AK37)+1,0) -> 37 | AL38: Childress | AM38: =IF(ROWS($AL$1:AL38)>MAX($AK$1:$AK$254),"",INDEX($AL$1:$AL$254,MATCH(ROWS($AL$1:AL38),$AK$1:$AK$254,0))) -> Clay
C39: Lead Contact or Both: | D39: =IF((RIGHT(D$31,1)*1)>$Q$2,"",IF(INDEX('ProvContacts-only Lead or Both'!$A$1:$Y$9903,MATCH(RHP&"_"&TPI&"_"&RIGHT(D$31,1),'ProvContacts-only Lead or Both'!$AB$1:$AB$903,0),$Q10)="","",INDEX('ProvContacts-only Lead or Both'!$A$1:$Y$9903,MATCH(RHP&"_"&TPI&"_"&RIGHT(D$31,1),'ProvContacts-only Lead or Both'!$AB$1:$AB$903,0),$Q10))) -> Both | E39: =IF((RIGHT(E$31,1)*1)>$Q$2,"",IF(INDEX('ProvContacts-only Lead or Both'!$A$1:$Y$9903,MATCH(RHP&"_"&TPI&"_"&RIGHT(E$31,1),'ProvContacts-only Lead or Both'!$AB$1:$AB$903,0),$Q10)="","",INDEX('ProvContacts-only Lead or Both'!$A$1:$Y$9903,MATCH(RHP&"_"&TPI&"_"&RIGHT(E$31,1),'ProvContacts-only Lead or Both'!$AB$1:$AB$903,0),$Q10))) -> Both | F39: Both | S39: TRUE | X39: =IFERROR(IF(W39="","",INDEX('Provider List'!$B:$B,MATCH(V39,'Provider List'!$H:$H,0))&" - "&INDEX('Provider List'!$C:$C,MATCH(V39,'Provider List'!$H:$H,0))),"") ->  | AK39: =IF(COUNTIF($D$22:$D$27,$AL39)+COUNTIF($E$23:$E$27,$AL39)+COUNTIF($F$23:$F$27,$AL39)+COUNTIF($G$23:$G$27,$AL39)=0,MAX($AK$1:AK38)+1,0) -> 38 | AL39: Clay | AM39: =IF(ROWS($AL$1:AL39)>MAX($AK$1:$AK$254),"",INDEX($AL$1:$AL$254,MATCH(ROWS($AL$1:AL39),$AK$1:$AK$254,0))) -> Cochran
C40: Please note that a contact designated "Lead Contact" will be included in the RHP Plan and on the DSRIP Provider Distribution List. A contact designated as "Both" will be included in the RHP Plan, on the DSRIP Provider Distribution List, and will be given access to the DSRIP Online Reporting System. | S40: TRUE | X40: =IFERROR(IF(W40="","",INDEX('Provider List'!$B:$B,MATCH(V40,'Provider List'!$H:$H,0))&" - "&INDEX('Provider List'!$C:$C,MATCH(V40,'Provider List'!$H:$H,0))),"") ->  | AK40: =IF(COUNTIF($D$22:$D$27,$AL40)+COUNTIF($E$23:$E$27,$AL40)+COUNTIF($F$23:$F$27,$AL40)+COUNTIF($G$23:$G$27,$AL40)=0,MAX($AK$1:AK39)+1,0) -> 39 | AL40: Cochran | AM40: =IF(ROWS($AL$1:AL40)>MAX($AK$1:$AK$254),"",INDEX($AL$1:$AL$254,MATCH(ROWS($AL$1:AL40),$AK$1:$AK$254,0))) -> Coke
S41: TRUE | X41: =IFERROR(IF(W41="","",INDEX('Provider List'!$B:$B,MATCH(V41,'Provider List'!$H:$H,0))&" - "&INDEX('Provider List'!$C:$C,MATCH(V41,'Provider List'!$H:$H,0))),"") ->  | AK41: =IF(COUNTIF($D$22:$D$27,$AL41)+COUNTIF($E$23:$E$27,$AL41)+COUNTIF($F$23:$F$27,$AL41)+COUNTIF($G$23:$G$27,$AL41)=0,MAX($AK$1:AK40)+1,0) -> 40 | AL41: Coke | AM41: =IF(ROWS($AL$1:AL41)>MAX($AK$1:$AK$254),"",INDEX($AL$1:$AL$254,MATCH(ROWS($AL$1:AL41),$AK$1:$AK$254,0))) -> Coleman
S42: TRUE | X42: =IFERROR(IF(W42="","",INDEX('Provider List'!$B:$B,MATCH(V42,'Provider List'!$H:$H,0))&" - "&INDEX('Provider List'!$C:$C,MATCH(V42,'Provider List'!$H:$H,0))),"") ->  | AK42: =IF(COUNTIF($D$22:$D$27,$AL42)+COUNTIF($E$23:$E$27,$AL42)+COUNTIF($F$23:$F$27,$AL42)+COUNTIF($G$23:$G$27,$AL42)=0,MAX($AK$1:AK41)+1,0) -> 41 | AL42: Coleman | AM42: =IF(ROWS($AL$1:AL42)>MAX($AK$1:$AK$254),"",INDEX($AL$1:$AL$254,MATCH(ROWS($AL$1:AL42),$AK$1:$AK$254,0))) -> Collin
S43: TRUE | X43: =IFERROR(IF(W43="","",INDEX('Provider List'!$B:$B,MATCH(V43,'Provider List'!$H:$H,0))&" - "&INDEX('Provider List'!$C:$C,MATCH(V43,'Provider List'!$H:$H,0))),"") ->  | AK43: =IF(COUNTIF($D$22:$D$27,$AL43)+COUNTIF($E$23:$E$27,$AL43)+COUNTIF($F$23:$F$27,$AL43)+COUNTIF($G$23:$G$27,$AL43)=0,MAX($AK$1:AK42)+1,0) -> 42 | AL43: Collin | AM43: =IF(ROWS($AL$1:AL43)>MAX($AK$1:$AK$254),"",INDEX($AL$1:$AL$254,MATCH(ROWS($AL$1:AL43),$AK$1:$AK$254,0))) -> Collingsworth
C44: =C8 -> Section 3: Optional Withdrawal From DSRIP | S44: TRUE | X44: =IFERROR(IF(W44="","",INDEX('Provider List'!$B:$B,MATCH(V44,'Provider List'!$H:$H,0))&" - "&INDEX('Provider List'!$C:$C,MATCH(V44,'Provider List'!$H:$H,0))),"") ->  | AK44: =IF(COUNTIF($D$22:$D$27,$AL44)+COUNTIF($E$23:$E$27,$AL44)+COUNTIF($F$23:$F$27,$AL44)+COUNTIF($G$23:$G$27,$AL44)=0,MAX($AK$1:AK43)+1,0) -> 43 | AL44: Collingsworth | AM44: =IF(ROWS($AL$1:AL44)>MAX($AK$1:$AK$254),"",INDEX($AL$1:$AL$254,MATCH(ROWS($AL$1:AL44),$AK$1:$AK$254,0))) -> Colorado
S45: TRUE | X45: =IFERROR(IF(W45="","",INDEX('Provider List'!$B:$B,MATCH(V45,'Provider List'!$H:$H,0))&" - "&INDEX('Provider List'!$C:$C,MATCH(V45,'Provider List'!$H:$H,0))),"") ->  | AK45: =IF(COUNTIF($D$22:$D$27,$AL45)+COUNTIF($E$23:$E$27,$AL45)+COUNTIF($F$23:$F$27,$AL45)+COUNTIF($G$23:$G$27,$AL45)=0,MAX($AK$1:AK44)+1,0) -> 44 | AL45: Colorado | AM45: =IF(ROWS($AL$1:AL45)>MAX($AK$1:$AK$254),"",INDEX($AL$1:$AL$254,MATCH(ROWS($AL$1:AL45),$AK$1:$AK$254,0))) -> Comal
C46: Please select an option below. By selecting "Yes - Withdraw from DSRIP," this organization acknowledges it understands that any DY6 DSRIP payments will be recouped as required by the DY6 Program Funding and Mechanics Protocol. This does not include recoupment of DY4-5 payments that may have occurred in DY6 due to allowable carryforward. | I46: If the box is selected, the explanation fields will appear and the provider will not be required to fill out further sections of the template. | S46: TRUE | X46: =IFERROR(IF(W46="","",INDEX('Provider List'!$B:$B,MATCH(V46,'Provider List'!$H:$H,0))&" - "&INDEX('Provider List'!$C:$C,MATCH(V46,'Provider List'!$H:$H,0))),"") ->  | AK46: =IF(COUNTIF($D$22:$D$27,$AL46)+COUNTIF($E$23:$E$27,$AL46)+COUNTIF($F$23:$F$27,$AL46)+COUNTIF($G$23:$G$27,$AL46)=0,MAX($AK$1:AK45)+1,0) -> 45 | AL46: Comal | AM46: =IF(ROWS($AL$1:AL46)>MAX($AK$1:$AK$254),"",INDEX($AL$1:$AL$254,MATCH(ROWS($AL$1:AL46),$AK$1:$AK$254,0))) -> Comanche
S47: TRUE | X47: =IFERROR(IF(W47="","",INDEX('Provider List'!$B:$B,MATCH(V47,'Provider List'!$H:$H,0))&" - "&INDEX('Provider List'!$C:$C,MATCH(V47,'Provider List'!$H:$H,0))),"") ->  | AK47: =IF(COUNTIF($D$22:$D$27,$AL47)+COUNTIF($E$23:$E$27,$AL47)+COUNTIF($F$23:$F$27,$AL47)+COUNTIF($G$23:$G$27,$AL47)=0,MAX($AK$1:AK46)+1,0) -> 46 | AL47: Comanche | AM47: =IF(ROWS($AL$1:AL47)>MAX($AK$1:$AK$254),"",INDEX($AL$1:$AL$254,MATCH(ROWS($AL$1:AL47),$AK$1:$AK$254,0))) -> Concho
C48: Do Not Withdraw from DSRIP | S48: TRUE | X48: =IFERROR(IF(W48="","",INDEX('Provider List'!$B:$B,MATCH(V48,'Provider List'!$H:$H,0))&" - "&INDEX('Provider List'!$C:$C,MATCH(V48,'Provider List'!$H:$H,0))),"") ->  | AK48: =IF(COUNTIF($D$22:$D$27,$AL48)+COUNTIF($E$23:$E$27,$AL48)+COUNTIF($F$23:$F$27,$AL48)+COUNTIF($G$23:$G$27,$AL48)=0,MAX($AK$1:AK47)+1,0) -> 47 | AL48: Concho | AM48: =IF(ROWS($AL$1:AL48)>MAX($AK$1:$AK$254),"",INDEX($AL$1:$AL$254,MATCH(ROWS($AL$1:AL48),$AK$1:$AK$254,0))) -> Cooke
S49: TRUE | X49: =IFERROR(IF(W49="","",INDEX('Provider List'!$B:$B,MATCH(V49,'Provider List'!$H:$H,0))&" - "&INDEX('Provider List'!$C:$C,MATCH(V49,'Provider List'!$H:$H,0))),"") ->  | AK49: =IF(COUNTIF($D$22:$D$27,$AL49)+COUNTIF($E$23:$E$27,$AL49)+COUNTIF($F$23:$F$27,$AL49)+COUNTIF($G$23:$G$27,$AL49)=0,MAX($AK$1:AK48)+1,0) -> 48 | AL49: Cooke | AM49: =IF(ROWS($AL$1:AL49)>MAX($AK$1:$AK$254),"",INDEX($AL$1:$AL$254,MATCH(ROWS($AL$1:AL49),$AK$1:$AK$254,0))) -> Coryell
C50: Please provide an explanation for the withdrawal | S50: =AND(Withdraw=TRUE,$O$5=TRUE) -> FALSE | X50: =IFERROR(IF(W50="","",INDEX('Provider List'!$B:$B,MATCH(V50,'Provider List'!$H:$H,0))&" - "&INDEX('Provider List'!$C:$C,MATCH(V50,'Provider List'!$H:$H,0))),"") ->  | AK50: =IF(COUNTIF($D$22:$D$27,$AL50)+COUNTIF($E$23:$E$27,$AL50)+COUNTIF($F$23:$F$27,$AL50)+COUNTIF($G$23:$G$27,$AL50)=0,MAX($AK$1:AK49)+1,0) -> 49 | AL50: Coryell | AM50: =IF(ROWS($AL$1:AL50)>MAX($AK$1:$AK$254),"",INDEX($AL$1:$AL$254,MATCH(ROWS($AL$1:AL50),$AK$1:$AK$254,0))) -> Cottle
S51: FALSE | X51: =IFERROR(IF(W51="","",INDEX('Provider List'!$B:$B,MATCH(V51,'Provider List'!$H:$H,0))&" - "&INDEX('Provider List'!$C:$C,MATCH(V51,'Provider List'!$H:$H,0))),"") ->  | AK51: =IF(COUNTIF($D$22:$D$27,$AL51)+COUNTIF($E$23:$E$27,$AL51)+COUNTIF($F$23:$F$27,$AL51)+COUNTIF($G$23:$G$27,$AL51)=0,MAX($AK$1:AK50)+1,0) -> 50 | AL51: Cottle | AM51: =IF(ROWS($AL$1:AL51)>MAX($AK$1:$AK$254),"",INDEX($AL$1:$AL$254,MATCH(ROWS($AL$1:AL51),$AK$1:$AK$254,0))) -> Crane
S52: FALSE | X52: =IFERROR(IF(W52="","",INDEX('Provider List'!$B:$B,MATCH(V52,'Provider List'!$H:$H,0))&" - "&INDEX('Provider List'!$C:$C,MATCH(V52,'Provider List'!$H:$H,0))),"") ->  | AK52: =IF(COUNTIF($D$22:$D$27,$AL52)+COUNTIF($E$23:$E$27,$AL52)+COUNTIF($F$23:$F$27,$AL52)+COUNTIF($G$23:$G$27,$AL52)=0,MAX($AK$1:AK51)+1,0) -> 51 | AL52: Crane | AM52: =IF(ROWS($AL$1:AL52)>MAX($AK$1:$AK$254),"",INDEX($AL$1:$AL$254,MATCH(ROWS($AL$1:AL52),$AK$1:$AK$254,0))) -> Crockett
C53: Please provide lessons learned in implementing DSRIP | S53: FALSE | X53: =IFERROR(IF(W53="","",INDEX('Provider List'!$B:$B,MATCH(V53,'Provider List'!$H:$H,0))&" - "&INDEX('Provider List'!$C:$C,MATCH(V53,'Provider List'!$H:$H,0))),"") ->  | AK53: =IF(COUNTIF($D$22:$D$27,$AL53)+COUNTIF($E$23:$E$27,$AL53)+COUNTIF($F$23:$F$27,$AL53)+COUNTIF($G$23:$G$27,$AL53)=0,MAX($AK$1:AK52)+1,0) -> 52 | AL53: Crockett | AM53: =IF(ROWS($AL$1:AL53)>MAX($AK$1:$AK$254),"",INDEX($AL$1:$AL$254,MATCH(ROWS($AL$1:AL53),$AK$1:$AK$254,0))) -> Crosby
S54: FALSE | X54: =IFERROR(IF(W54="","",INDEX('Provider List'!$B:$B,MATCH(V54,'Provider List'!$H:$H,0))&" - "&INDEX('Provider List'!$C:$C,MATCH(V54,'Provider List'!$H:$H,0))),"") ->  | AK54: =IF(COUNTIF($D$22:$D$27,$AL54)+COUNTIF($E$23:$E$27,$AL54)+COUNTIF($F$23:$F$27,$AL54)+COUNTIF($G$23:$G$27,$AL54)=0,MAX($AK$1:AK53)+1,0) -> 53 | AL54: Crosby | AM54: =IF(ROWS($AL$1:AL54)>MAX($AK$1:$AK$254),"",INDEX($AL$1:$AL$254,MATCH(ROWS($AL$1:AL54),$AK$1:$AK$254,0))) -> Culberson
S55: FALSE | X55: =IFERROR(IF(W55="","",INDEX('Provider List'!$B:$B,MATCH(V55,'Provider List'!$H:$H,0))&" - "&INDEX('Provider List'!$C:$C,MATCH(V55,'Provider List'!$H:$H,0))),"") ->  | AK55: =IF(COUNTIF($D$22:$D$27,$AL55)+COUNTIF($E$23:$E$27,$AL55)+COUNTIF($F$23:$F$27,$AL55)+COUNTIF($G$23:$G$27,$AL55)=0,MAX($AK$1:AK54)+1,0) -> 54 | AL55: Culberson | AM55: =IF(ROWS($AL$1:AL55)>MAX($AK$1:$AK$254),"",INDEX($AL$1:$AL$254,MATCH(ROWS($AL$1:AL55),$AK$1:$AK$254,0))) -> Dallam
C56: Please provide an explanation of the close out of DSRIP | S56: FALSE | X56: =IFERROR(IF(W56="","",INDEX('Provider List'!$B:$B,MATCH(V56,'Provider List'!$H:$H,0))&" - "&INDEX('Provider List'!$C:$C,MATCH(V56,'Provider List'!$H:$H,0))),"") ->  | AK56: =IF(COUNTIF($D$22:$D$27,$AL56)+COUNTIF($E$23:$E$27,$AL56)+COUNTIF($F$23:$F$27,$AL56)+COUNTIF($G$23:$G$27,$AL56)=0,MAX($AK$1:AK55)+1,0) -> 55 | AL56: Dallam | AM56: =IF(ROWS($AL$1:AL56)>MAX($AK$1:$AK$254),"",INDEX($AL$1:$AL$254,MATCH(ROWS($AL$1:AL56),$AK$1:$AK$254,0))) -> Dallas
S57: FALSE | X57: =IFERROR(IF(W57="","",INDEX('Provider List'!$B:$B,MATCH(V57,'Provider List'!$H:$H,0))&" - "&INDEX('Provider List'!$C:$C,MATCH(V57,'Provider List'!$H:$H,0))),"") ->  | AK57: =IF(COUNTIF($D$22:$D$27,$AL57)+COUNTIF($E$23:$E$27,$AL57)+COUNTIF($F$23:$F$27,$AL57)+COUNTIF($G$23:$G$27,$AL57)=0,MAX($AK$1:AK56)+1,0) -> 56 | AL57: Dallas | AM57: =IF(ROWS($AL$1:AL57)>MAX($AK$1:$AK$254),"",INDEX($AL$1:$AL$254,MATCH(ROWS($AL$1:AL57),$AK$1:$AK$254,0))) -> Dawson
S58: FALSE | X58: =IFERROR(IF(W58="","",INDEX('Provider List'!$B:$B,MATCH(V58,'Provider List'!$H:$H,0))&" - "&INDEX('Provider List'!$C:$C,MATCH(V58,'Provider List'!$H:$H,0))),"") ->  | AK58: =IF(COUNTIF($D$22:$D$27,$AL58)+COUNTIF($E$23:$E$27,$AL58)+COUNTIF($F$23:$F$27,$AL58)+COUNTIF($G$23:$G$27,$AL58)=0,MAX($AK$1:AK57)+1,0) -> 57 | AL58: Dawson | AM58: =IF(ROWS($AL$1:AL58)>MAX($AK$1:$AK$254),"",INDEX($AL$1:$AL$254,MATCH(ROWS($AL$1:AL58),$AK$1:$AK$254,0))) -> De Witt
C59: =C9 -> Section 4: Performing Provider Overview | S59: =AND($O$5=TRUE,Withdraw=FALSE) -> TRUE | X59: =IFERROR(IF(W59="","",INDEX('Provider List'!$B:$B,MATCH(V59,'Provider List'!$H:$H,0))&" - "&INDEX('Provider List'!$C:$C,MATCH(V59,'Provider List'!$H:$H,0))),"") ->  | AK59: =IF(COUNTIF($D$22:$D$27,$AL59)+COUNTIF($E$23:$E$27,$AL59)+COUNTIF($F$23:$F$27,$AL59)+COUNTIF($G$23:$G$27,$AL59)=0,MAX($AK$1:AK58)+1,0) -> 58 | AL59: De Witt | AM59: =IF(ROWS($AL$1:AL59)>MAX($AK$1:$AK$254),"",INDEX($AL$1:$AL$254,MATCH(ROWS($AL$1:AL59),$AK$1:$AK$254,0))) -> Deaf Smith
S60: TRUE | X60: =IFERROR(IF(W60="","",INDEX('Provider List'!$B:$B,MATCH(V60,'Provider List'!$H:$H,0))&" - "&INDEX('Provider List'!$C:$C,MATCH(V60,'Provider List'!$H:$H,0))),"") ->  | AK60: =IF(COUNTIF($D$22:$D$27,$AL60)+COUNTIF($E$23:$E$27,$AL60)+COUNTIF($F$23:$F$27,$AL60)+COUNTIF($G$23:$G$27,$AL60)=0,MAX($AK$1:AK59)+1,0) -> 59 | AL60: Deaf Smith | AM60: =IF(ROWS($AL$1:AL60)>MAX($AK$1:$AK$254),"",INDEX($AL$1:$AL$254,MATCH(ROWS($AL$1:AL60),$AK$1:$AK$254,0))) -> Delta
C61: Performing Provider Description: | D61: CHI St. Joseph Regional Health will establish an Accountable Care Organization (ACO) to care for select MLIU population. The established ACO will provide clinical care team coordination to patients in both the emergency room setting bedside and in the ambulatory setting before or after emergency utilization. The care coordination teams will work with the patients to help eliminate barriers to care, improve care transition working with their primary care givers and specialists, enhancing their health care experience, and provide coaching and education regarding chronic disease management. Potential patient candidates to the program are individuals who either have no insurance or have Medicaid and do not have an established primary care provider and present to CHI St Joseph Regional Health emergency rooms with 3 or more ER visits in the past or are utilizing the emergency room to receive care for chronic or acute ambulatory care sensitive conditions. The ACO care team will visit the patient’s bedside in the emergency room to establish enrollment in the program and to initiate care coordination and discharge planning. The hospital based care team will hand off the management of the qualified patient to the ambulatory focused care team who will follow-up with the patient, discuss the discharge plan, verify an established follow up visit date, educate patient on further resources, and continue case management responsibilities. The program will fund the care provided by clinicians for a prescribed period of time as well as coordinate additional care services needed for this population. | S61: TRUE | X61: =IFERROR(IF(W61="","",INDEX('Provider List'!$B:$B,MATCH(V61,'Provider List'!$H:$H,0))&" - "&INDEX('Provider List'!$C:$C,MATCH(V61,'Provider List'!$H:$H,0))),"") ->  | AK61: =IF(COUNTIF($D$22:$D$27,$AL61)+COUNTIF($E$23:$E$27,$AL61)+COUNTIF($F$23:$F$27,$AL61)+COUNTIF($G$23:$G$27,$AL61)=0,MAX($AK$1:AK60)+1,0) -> 60 | AL61: Delta | AM61: =IF(ROWS($AL$1:AL61)>MAX($AK$1:$AK$254),"",INDEX($AL$1:$AL$254,MATCH(ROWS($AL$1:AL61),$AK$1:$AK$254,0))) -> Denton
S62: TRUE | X62: =IFERROR(IF(W62="","",INDEX('Provider List'!$B:$B,MATCH(V62,'Provider List'!$H:$H,0))&" - "&INDEX('Provider List'!$C:$C,MATCH(V62,'Provider List'!$H:$H,0))),"") ->  | AK62: =IF(COUNTIF($D$22:$D$27,$AL62)+COUNTIF($E$23:$E$27,$AL62)+COUNTIF($F$23:$F$27,$AL62)+COUNTIF($G$23:$G$27,$AL62)=0,MAX($AK$1:AK61)+1,0) -> 61 | AL62: Denton | AM62: =IF(ROWS($AL$1:AL62)>MAX($AK$1:$AK$254),"",INDEX($AL$1:$AL$254,MATCH(ROWS($AL$1:AL62),$AK$1:$AK$254,0))) -> Dickens
C63: Overall DSRIP Goals: | D63: The ultimate goal of the program is to provide value based care coordination to MLIU patients to receive the appropriate level of care at the right time with primary and outpatient specialty care services, decreasing high cost emergency room and hospital care for the MLIU population. The system and partner providers, through the Accountable Care Organization, will share cost savings, aligning all participants towards value based care. Improved care coordination, care transition and improved primary/specialty outpatient capabilities and the MLIU population will be cared for in a more cost effective manner in the outpatient setting, reducing costs, increasing quality of care, and enhancing the patient’s experience. | S63: TRUE | X63: =IFERROR(IF(W63="","",INDEX('Provider List'!$B:$B,MATCH(V63,'Provider List'!$H:$H,0))&" - "&INDEX('Provider List'!$C:$C,MATCH(V63,'Provider List'!$H:$H,0))),"") ->  | AK63: =IF(COUNTIF($D$22:$D$27,$AL63)+COUNTIF($E$23:$E$27,$AL63)+COUNTIF($F$23:$F$27,$AL63)+COUNTIF($G$23:$G$27,$AL63)=0,MAX($AK$1:AK62)+1,0) -> 62 | AL63: Dickens | AM63: =IF(ROWS($AL$1:AL63)>MAX($AK$1:$AK$254),"",INDEX($AL$1:$AL$254,MATCH(ROWS($AL$1:AL63),$AK$1:$AK$254,0))) -> Dimmit
S64: TRUE | X64: =IFERROR(IF(W64="","",INDEX('Provider List'!$B:$B,MATCH(V64,'Provider List'!$H:$H,0))&" - "&INDEX('Provider List'!$C:$C,MATCH(V64,'Provider List'!$H:$H,0))),"") ->  | AK64: =IF(COUNTIF($D$22:$D$27,$AL64)+COUNTIF($E$23:$E$27,$AL64)+COUNTIF($F$23:$F$27,$AL64)+COUNTIF($G$23:$G$27,$AL64)=0,MAX($AK$1:AK63)+1,0) -> 63 | AL64: Dimmit | AM64: =IF(ROWS($AL$1:AL64)>MAX($AK$1:$AK$254),"",INDEX($AL$1:$AL$254,MATCH(ROWS($AL$1:AL64),$AK$1:$AK$254,0))) -> Donley
C65: Alignment with regional community needs assessment: | D65: • CN.1.5: Limited access to primary care for uninsured residents in Brazos, Burleson, Grimes, Leon, Madison, Robertson, and Washington Counties • CN.1.6 Limited access to primary care and lack of primary care physicians in rural RHP 17 • CN.1.9 Limited coordination of primary care and support services for residents of Brazos, Burleson, Grimes, Leon, Madison, Robertson, and Washington Counties • CN.1.10 Limited access to chronic disease and management programs and services in all RHP 17 counties • CN.4.1 Inconsistency in data management/lack of coordination between programs leading to duplication of services in Brazos County • CN.4.6 Lack of coordinated care for frequent ED users post discharge • CN.4.7 Limited access to coordinated clinical and supportive care services for Brazos Valley residents with end stage chronic conditions. | S65: TRUE | X65: =IFERROR(IF(W65="","",INDEX('Provider List'!$B:$B,MATCH(V65,'Provider List'!$H:$H,0))&" - "&INDEX('Provider List'!$C:$C,MATCH(V65,'Provider List'!$H:$H,0))),"") ->  | AK65: =IF(COUNTIF($D$22:$D$27,$AL65)+COUNTIF($E$23:$E$27,$AL65)+COUNTIF($F$23:$F$27,$AL65)+COUNTIF($G$23:$G$27,$AL65)=0,MAX($AK$1:AK64)+1,0) -> 64 | AL65: Donley | AM65: =IF(ROWS($AL$1:AL65)>MAX($AK$1:$AK$254),"",INDEX($AL$1:$AL$254,MATCH(ROWS($AL$1:AL65),$AK$1:$AK$254,0))) -> Duval
S66: TRUE | X66: =IFERROR(IF(W66="","",INDEX('Provider List'!$B:$B,MATCH(V66,'Provider List'!$H:$H,0))&" - "&INDEX('Provider List'!$C:$C,MATCH(V66,'Provider List'!$H:$H,0))),"") ->  | AK66: =IF(COUNTIF($D$22:$D$27,$AL66)+COUNTIF($E$23:$E$27,$AL66)+COUNTIF($F$23:$F$27,$AL66)+COUNTIF($G$23:$G$27,$AL66)=0,MAX($AK$1:AK65)+1,0) -> 65 | AL66: Duval | AM66: =IF(ROWS($AL$1:AL66)>MAX($AK$1:$AK$254),"",INDEX($AL$1:$AL$254,MATCH(ROWS($AL$1:AL66),$AK$1:$AK$254,0))) -> Eastland
C67: =C10 -> Section 5: DY7-8 DSRIP Total Valuation | S67: =AND($O$5=TRUE,Withdraw=FALSE,$O$7=TRUE) -> TRUE | X67: =IFERROR(IF(W67="","",INDEX('Provider List'!$B:$B,MATCH(V67,'Provider List'!$H:$H,0))&" - "&INDEX('Provider List'!$C:$C,MATCH(V67,'Provider List'!$H:$H,0))),"") ->  | AK67: =IF(COUNTIF($D$22:$D$27,$AL67)+COUNTIF($E$23:$E$27,$AL67)+COUNTIF($F$23:$F$27,$AL67)+COUNTIF($G$23:$G$27,$AL67)=0,MAX($AK$1:AK66)+1,0) -> 66 | AL67: Eastland | AM67: =IF(ROWS($AL$1:AL67)>MAX($AK$1:$AK$254),"",INDEX($AL$1:$AL$254,MATCH(ROWS($AL$1:AL67),$AK$1:$AK$254,0))) -> Ector
S68: TRUE | X68: =IFERROR(IF(W68="","",INDEX('Provider List'!$B:$B,MATCH(V68,'Provider List'!$H:$H,0))&" - "&INDEX('Provider List'!$C:$C,MATCH(V68,'Provider List'!$H:$H,0))),"") ->  | AK68: =IF(COUNTIF($D$22:$D$27,$AL68)+COUNTIF($E$23:$E$27,$AL68)+COUNTIF($F$23:$F$27,$AL68)+COUNTIF($G$23:$G$27,$AL68)=0,MAX($AK$1:AK67)+1,0) -> 67 | AL68: Ector | AM68: =IF(ROWS($AL$1:AL68)>MAX($AK$1:$AK$254),"",INDEX($AL$1:$AL$254,MATCH(ROWS($AL$1:AL68),$AK$1:$AK$254,0))) -> Edwards
D69: DY7-8 DSRIP Valuation Distribution | S69: TRUE | X69: =IFERROR(IF(W69="","",INDEX('Provider List'!$B:$B,MATCH(V69,'Provider List'!$H:$H,0))&" - "&INDEX('Provider List'!$C:$C,MATCH(V69,'Provider List'!$H:$H,0))),"") ->  | AK69: =IF(COUNTIF($D$22:$D$27,$AL69)+COUNTIF($E$23:$E$27,$AL69)+COUNTIF($F$23:$F$27,$AL69)+COUNTIF($G$23:$G$27,$AL69)=0,MAX($AK$1:AK68)+1,0) -> 68 | AL69: Edwards | AM69: =IF(ROWS($AL$1:AL69)>MAX($AK$1:$AK$254),"",INDEX($AL$1:$AL$254,MATCH(ROWS($AL$1:AL69),$AK$1:$AK$254,0))) -> El Paso
D70: Valuation if regional private hospital participation requirement is met | F70: Valuation if regional private hospital participation requirement is not met | S70: TRUE | X70: =IFERROR(IF(W70="","",INDEX('Provider List'!$B:$B,MATCH(V70,'Provider List'!$H:$H,0))&" - "&INDEX('Provider List'!$C:$C,MATCH(V70,'Provider List'!$H:$H,0))),"") ->  | AK70: =IF(COUNTIF($D$22:$D$27,$AL70)+COUNTIF($E$23:$E$27,$AL70)+COUNTIF($F$23:$F$27,$AL70)+COUNTIF($G$23:$G$27,$AL70)=0,MAX($AK$1:AK69)+1,0) -> 69 | AL70: El Paso | AM70: =IF(ROWS($AL$1:AL70)>MAX($AK$1:$AK$254),"",INDEX($AL$1:$AL$254,MATCH(ROWS($AL$1:AL70),$AK$1:$AK$254,0))) -> Ellis
D71: DY7 | E71: DY8 | F71: DY7 | G71: DY8 | S71: TRUE | X71: =IFERROR(IF(W71="","",INDEX('Provider List'!$B:$B,MATCH(V71,'Provider List'!$H:$H,0))&" - "&INDEX('Provider List'!$C:$C,MATCH(V71,'Provider List'!$H:$H,0))),"") ->  | AK71: =IF(COUNTIF($D$22:$D$27,$AL71)+COUNTIF($E$23:$E$27,$AL71)+COUNTIF($F$23:$F$27,$AL71)+COUNTIF($G$23:$G$27,$AL71)=0,MAX($AK$1:AK70)+1,0) -> 70 | AL71: Ellis | AM71: =IF(ROWS($AL$1:AL71)>MAX($AK$1:$AK$254),"",INDEX($AL$1:$AL$254,MATCH(ROWS($AL$1:AL71),$AK$1:$AK$254,0))) -> Erath
C72: RHP Plan Update Submission | D72: =ROUND(D$77*0.2,2) -> 44776.2 | E72: 0 | F72: =ROUND(F$77*0.2,2) -> 44776.2 | G72: 0 | S72: TRUE | X72: =IFERROR(IF(W72="","",INDEX('Provider List'!$B:$B,MATCH(V72,'Provider List'!$H:$H,0))&" - "&INDEX('Provider List'!$C:$C,MATCH(V72,'Provider List'!$H:$H,0))),"") ->  | AK72: =IF(COUNTIF($D$22:$D$27,$AL72)+COUNTIF($E$23:$E$27,$AL72)+COUNTIF($F$23:$F$27,$AL72)+COUNTIF($G$23:$G$27,$AL72)=0,MAX($AK$1:AK71)+1,0) -> 71 | AL72: Erath | AM72: =IF(ROWS($AL$1:AL72)>MAX($AK$1:$AK$254),"",INDEX($AL$1:$AL$254,MATCH(ROWS($AL$1:AL72),$AK$1:$AK$254,0))) -> Falls
C73: Category A | D73: 0 | E73: 0 | F73: 0 | G73: 0 | S73: TRUE | X73: =IFERROR(IF(W73="","",INDEX('Provider List'!$B:$B,MATCH(V73,'Provider List'!$H:$H,0))&" - "&INDEX('Provider List'!$C:$C,MATCH(V73,'Provider List'!$H:$H,0))),"") ->  | AK73: =IF(COUNTIF($D$22:$D$27,$AL73)+COUNTIF($E$23:$E$27,$AL73)+COUNTIF($F$23:$F$27,$AL73)+COUNTIF($G$23:$G$27,$AL73)=0,MAX($AK$1:AK72)+1,0) -> 72 | AL73: Falls | AM73: =IF(ROWS($AL$1:AL73)>MAX($AK$1:$AK$254),"",INDEX($AL$1:$AL$254,MATCH(ROWS($AL$1:AL73),$AK$1:$AK$254,0))) -> Fannin
C74: Category B | D74: =ROUND(D$77*0.1,2) -> 22388.1 | E74: =ROUND(E$77*0.1,2) -> 22388.1 | F74: =ROUND(F$77*0.1,2) -> 22388.1 | G74: =ROUND(G$77*0.1,2) -> 22388.1 | S74: TRUE | X74: =IFERROR(IF(W74="","",INDEX('Provider List'!$B:$B,MATCH(V74,'Provider List'!$H:$H,0))&" - "&INDEX('Provider List'!$C:$C,MATCH(V74,'Provider List'!$H:$H,0))),"") ->  | AK74: =IF(COUNTIF($D$22:$D$27,$AL74)+COUNTIF($E$23:$E$27,$AL74)+COUNTIF($F$23:$F$27,$AL74)+COUNTIF($G$23:$G$27,$AL74)=0,MAX($AK$1:AK73)+1,0) -> 73 | AL74: Fannin | AM74: =IF(ROWS($AL$1:AL74)>MAX($AK$1:$AK$254),"",INDEX($AL$1:$AL$254,MATCH(ROWS($AL$1:AL74),$AK$1:$AK$254,0))) -> Fayette
C75: Category C | D75: =ROUND(D77*0.55,2) -> 123134.55 | E75: =ROUND(E77*0.75,2) -> 167910.75 | F75: =ROUND(F77*0.65,2) -> 145522.65 | G75: =ROUND(G77*0.85,2) -> 190298.85 | S75: TRUE | X75: =IFERROR(IF(W75="","",INDEX('Provider List'!$B:$B,MATCH(V75,'Provider List'!$H:$H,0))&" - "&INDEX('Provider List'!$C:$C,MATCH(V75,'Provider List'!$H:$H,0))),"") ->  | AK75: =IF(COUNTIF($D$22:$D$27,$AL75)+COUNTIF($E$23:$E$27,$AL75)+COUNTIF($F$23:$F$27,$AL75)+COUNTIF($G$23:$G$27,$AL75)=0,MAX($AK$1:AK74)+1,0) -> 74 | AL75: Fayette | AM75: =IF(ROWS($AL$1:AL75)>MAX($AK$1:$AK$254),"",INDEX($AL$1:$AL$254,MATCH(ROWS($AL$1:AL75),$AK$1:$AK$254,0))) -> Fisher
C76: Category D | D76: =D77-SUM(D72:D75) -> 33582.15 | E76: =E77-SUM(E72:E75) -> 33582.15 | F76: =F77-SUM(F72:F75) -> 11194.05 | G76: =G77-SUM(G72:G75) -> 11194.05 | S76: TRUE | X76: =IFERROR(IF(W76="","",INDEX('Provider List'!$B:$B,MATCH(V76,'Provider List'!$H:$H,0))&" - "&INDEX('Provider List'!$C:$C,MATCH(V76,'Provider List'!$H:$H,0))),"") ->  | AK76: =IF(COUNTIF($D$22:$D$27,$AL76)+COUNTIF($E$23:$E$27,$AL76)+COUNTIF($F$23:$F$27,$AL76)+COUNTIF($G$23:$G$27,$AL76)=0,MAX($AK$1:AK75)+1,0) -> 75 | AL76: Fisher | AM76: =IF(ROWS($AL$1:AL76)>MAX($AK$1:$AK$254),"",INDEX($AL$1:$AL$254,MATCH(ROWS($AL$1:AL76),$AK$1:$AK$254,0))) -> Floyd
C77: Total | D77: =INDEX('Provider Valuation and MPTs'!$H$1:$H$10000,MATCH(RHP&"_"&TPI,'Provider Valuation and MPTs'!$L$1:$L$10000,0)) -> 223881 | E77: =INDEX('Provider Valuation and MPTs'!$H$1:$H$10000,MATCH(RHP&"_"&TPI,'Provider Valuation and MPTs'!$L$1:$L$10000,0)) -> 223881 | F77: =INDEX('Provider Valuation and MPTs'!$H$1:$H$10000,MATCH(RHP&"_"&TPI,'Provider Valuation and MPTs'!$L$1:$L$10000,0)) -> 223881 | G77: =INDEX('Provider Valuation and MPTs'!$H$1:$H$10000,MATCH(RHP&"_"&TPI,'Provider Valuation and MPTs'!$L$1:$L$10000,0)) -> 223881 | S77: TRUE | X77: =IFERROR(IF(W77="","",INDEX('Provider List'!$B:$B,MATCH(V77,'Provider List'!$H:$H,0))&" - "&INDEX('Provider List'!$C:$C,MATCH(V77,'Provider List'!$H:$H,0))),"") ->  | AK77: =IF(COUNTIF($D$22:$D$27,$AL77)+COUNTIF($E$23:$E$27,$AL77)+COUNTIF($F$23:$F$27,$AL77)+COUNTIF($G$23:$G$27,$AL77)=0,MAX($AK$1:AK76)+1,0) -> 76 | AL77: Floyd | AM77: =IF(ROWS($AL$1:AL77)>MAX($AK$1:$AK$254),"",INDEX($AL$1:$AL$254,MATCH(ROWS($AL$1:AL77),$AK$1:$AK$254,0))) -> Foard
S78: FALSE | W78: =IF(W77>=$X$4,"",W77+1) ->  | X78: =IFERROR(IF(W78="","",INDEX('Provider List'!$B:$B,MATCH(V78,'Provider List'!$H:$H,0))&" - "&INDEX('Provider List'!$C:$C,MATCH(V78,'Provider List'!$H:$H,0))),"") ->  | AK78: =IF(COUNTIF($D$22:$D$27,$AL78)+COUNTIF($E$23:$E$27,$AL78)+COUNTIF($F$23:$F$27,$AL78)+COUNTIF($G$23:$G$27,$AL78)=0,MAX($AK$1:AK77)+1,0) -> 77 | AL78: Foard | AM78: =IF(ROWS($AL$1:AL78)>MAX($AK$1:$AK$254),"",INDEX($AL$1:$AL$254,MATCH(ROWS($AL$1:AL78),$AK$1:$AK$254,0))) -> Fort Bend
D79: DY7-8 Upper Range of DSRIP Valuation Distribution | S79: FALSE | X79: =IFERROR(IF(W79="","",INDEX('Provider List'!$B:$B,MATCH(V79,'Provider List'!$H:$H,0))&" - "&INDEX('Provider List'!$C:$C,MATCH(V79,'Provider List'!$H:$H,0))),"") ->  | AK79: =IF(COUNTIF($D$22:$D$27,$AL79)+COUNTIF($E$23:$E$27,$AL79)+COUNTIF($F$23:$F$27,$AL79)+COUNTIF($G$23:$G$27,$AL79)=0,MAX($AK$1:AK78)+1,0) -> 78 | AL79: Fort Bend | AM79: =IF(ROWS($AL$1:AL79)>MAX($AK$1:$AK$254),"",INDEX($AL$1:$AL$254,MATCH(ROWS($AL$1:AL79),$AK$1:$AK$254,0))) -> Franklin
D80: Valuation if regional private hospital participation requirement is met | F80: Valuation if regional private hospital participation requirement is not met | S80: FALSE | X80: =IFERROR(IF(W80="","",INDEX('Provider List'!$B:$B,MATCH(V80,'Provider List'!$H:$H,0))&" - "&INDEX('Provider List'!$C:$C,MATCH(V80,'Provider List'!$H:$H,0))),"") ->  | AK80: =IF(COUNTIF($D$22:$D$27,$AL80)+COUNTIF($E$23:$E$27,$AL80)+COUNTIF($F$23:$F$27,$AL80)+COUNTIF($G$23:$G$27,$AL80)=0,MAX($AK$1:AK79)+1,0) -> 79 | AL80: Franklin | AM80: =IF(ROWS($AL$1:AL80)>MAX($AK$1:$AK$254),"",INDEX($AL$1:$AL$254,MATCH(ROWS($AL$1:AL80),$AK$1:$AK$254,0))) -> Freestone
D81: DY7 | E81: DY8 | F81: DY7 | G81: DY8 | S81: FALSE | X81: =IFERROR(IF(W81="","",INDEX('Provider List'!$B:$B,MATCH(V81,'Provider List'!$H:$H,0))&" - "&INDEX('Provider List'!$C:$C,MATCH(V81,'Provider List'!$H:$H,0))),"") ->  | AK81: =IF(COUNTIF($D$22:$D$27,$AL81)+COUNTIF($E$23:$E$27,$AL81)+COUNTIF($F$23:$F$27,$AL81)+COUNTIF($G$23:$G$27,$AL81)=0,MAX($AK$1:AK80)+1,0) -> 80 | AL81: Freestone | AM81: =IF(ROWS($AL$1:AL81)>MAX($AK$1:$AK$254),"",INDEX($AL$1:$AL$254,MATCH(ROWS($AL$1:AL81),$AK$1:$AK$254,0))) -> Frio
C82: RHP Plan Update Submission | S82: FALSE | X82: =IFERROR(IF(W82="","",INDEX('Provider List'!$B:$B,MATCH(V82,'Provider List'!$H:$H,0))&" - "&INDEX('Provider List'!$C:$C,MATCH(V82,'Provider List'!$H:$H,0))),"") ->  | AK82: =IF(COUNTIF($D$22:$D$27,$AL82)+COUNTIF($E$23:$E$27,$AL82)+COUNTIF($F$23:$F$27,$AL82)+COUNTIF($G$23:$G$27,$AL82)=0,MAX($AK$1:AK81)+1,0) -> 81 | AL82: Frio | AM82: =IF(ROWS($AL$1:AL82)>MAX($AK$1:$AK$254),"",INDEX($AL$1:$AL$254,MATCH(ROWS($AL$1:AL82),$AK$1:$AK$254,0))) -> Gaines
C83: Category A | S83: FALSE | X83: =IFERROR(IF(W83="","",INDEX('Provider List'!$B:$B,MATCH(V83,'Provider List'!$H:$H,0))&" - "&INDEX('Provider List'!$C:$C,MATCH(V83,'Provider List'!$H:$H,0))),"") ->  | AK83: =IF(COUNTIF($D$22:$D$27,$AL83)+COUNTIF($E$23:$E$27,$AL83)+COUNTIF($F$23:$F$27,$AL83)+COUNTIF($G$23:$G$27,$AL83)=0,MAX($AK$1:AK82)+1,0) -> 82 | AL83: Gaines | AM83: =IF(ROWS($AL$1:AL83)>MAX($AK$1:$AK$254),"",INDEX($AL$1:$AL$254,MATCH(ROWS($AL$1:AL83),$AK$1:$AK$254,0))) -> Galveston
C84: Category B | S84: FALSE | X84: =IFERROR(IF(W84="","",INDEX('Provider List'!$B:$B,MATCH(V84,'Provider List'!$H:$H,0))&" - "&INDEX('Provider List'!$C:$C,MATCH(V84,'Provider List'!$H:$H,0))),"") ->  | AK84: =IF(COUNTIF($D$22:$D$27,$AL84)+COUNTIF($E$23:$E$27,$AL84)+COUNTIF($F$23:$F$27,$AL84)+COUNTIF($G$23:$G$27,$AL84)=0,MAX($AK$1:AK83)+1,0) -> 83 | AL84: Galveston | AM84: =IF(ROWS($AL$1:AL84)>MAX($AK$1:$AK$254),"",INDEX($AL$1:$AL$254,MATCH(ROWS($AL$1:AL84),$AK$1:$AK$254,0))) -> Garza
C85: Category C | S85: FALSE | X85: =IFERROR(IF(W85="","",INDEX('Provider List'!$B:$B,MATCH(V85,'Provider List'!$H:$H,0))&" - "&INDEX('Provider List'!$C:$C,MATCH(V85,'Provider List'!$H:$H,0))),"") ->  | AK85: =IF(COUNTIF($D$22:$D$27,$AL85)+COUNTIF($E$23:$E$27,$AL85)+COUNTIF($F$23:$F$27,$AL85)+COUNTIF($G$23:$G$27,$AL85)=0,MAX($AK$1:AK84)+1,0) -> 84 | AL85: Garza | AM85: =IF(ROWS($AL$1:AL85)>MAX($AK$1:$AK$254),"",INDEX($AL$1:$AL$254,MATCH(ROWS($AL$1:AL85),$AK$1:$AK$254,0))) -> Gillespie
C86: Category D | S86: FALSE | X86: =IFERROR(IF(W86="","",INDEX('Provider List'!$B:$B,MATCH(V86,'Provider List'!$H:$H,0))&" - "&INDEX('Provider List'!$C:$C,MATCH(V86,'Provider List'!$H:$H,0))),"") ->  | AK86: =IF(COUNTIF($D$22:$D$27,$AL86)+COUNTIF($E$23:$E$27,$AL86)+COUNTIF($F$23:$F$27,$AL86)+COUNTIF($G$23:$G$27,$AL86)=0,MAX($AK$1:AK85)+1,0) -> 85 | AL86: Gillespie | AM86: =IF(ROWS($AL$1:AL86)>MAX($AK$1:$AK$254),"",INDEX($AL$1:$AL$254,MATCH(ROWS($AL$1:AL86),$AK$1:$AK$254,0))) -> Glasscock
C87: Total | S87: FALSE | X87: =IFERROR(IF(W87="","",INDEX('Provider List'!$B:$B,MATCH(V87,'Provider List'!$H:$H,0))&" - "&INDEX('Provider List'!$C:$C,MATCH(V87,'Provider List'!$H:$H,0))),"") ->  | AK87: =IF(COUNTIF($D$22:$D$27,$AL87)+COUNTIF($E$23:$E$27,$AL87)+COUNTIF($F$23:$F$27,$AL87)+COUNTIF($G$23:$G$27,$AL87)=0,MAX($AK$1:AK86)+1,0) -> 86 | AL87: Glasscock | AM87: =IF(ROWS($AL$1:AL87)>MAX($AK$1:$AK$254),"",INDEX($AL$1:$AL$254,MATCH(ROWS($AL$1:AL87),$AK$1:$AK$254,0))) -> Goliad
S88: =AND($O$5=TRUE,Withdraw=FALSE,$O$7=TRUE) -> TRUE | X88: =IFERROR(IF(W88="","",INDEX('Provider List'!$B:$B,MATCH(V88,'Provider List'!$H:$H,0))&" - "&INDEX('Provider List'!$C:$C,MATCH(V88,'Provider List'!$H:$H,0))),"") ->  | AK88: =IF(COUNTIF($D$22:$D$27,$AL88)+COUNTIF($E$23:$E$27,$AL88)+COUNTIF($F$23:$F$27,$AL88)+COUNTIF($G$23:$G$27,$AL88)=0,MAX($AK$1:AK87)+1,0) -> 87 | AL88: Goliad | AM88: =IF(ROWS($AL$1:AL88)>MAX($AK$1:$AK$254),"",INDEX($AL$1:$AL$254,MATCH(ROWS($AL$1:AL88),$AK$1:$AK$254,0))) -> Gonzales
C89: Would you like to decrease the total valuation? | I89: If the provider opts to increase or decrease their valuation, rows 81-91 will appear with the valuations and adjusted MPT corresponding to their increase/decrease selection. | S89: =AND($O$5=TRUE,Withdraw=FALSE,$O$7=TRUE) -> TRUE | X89: =IFERROR(IF(W89="","",INDEX('Provider List'!$B:$B,MATCH(V89,'Provider List'!$H:$H,0))&" - "&INDEX('Provider List'!$C:$C,MATCH(V89,'Provider List'!$H:$H,0))),"") ->  | AK89: =IF(COUNTIF($D$22:$D$27,$AL89)+COUNTIF($E$23:$E$27,$AL89)+COUNTIF($F$23:$F$27,$AL89)+COUNTIF($G$23:$G$27,$AL89)=0,MAX($AK$1:AK88)+1,0) -> 88 | AL89: Gonzales | AM89: =IF(ROWS($AL$1:AL89)>MAX($AK$1:$AK$254),"",INDEX($AL$1:$AL$254,MATCH(ROWS($AL$1:AL89),$AK$1:$AK$254,0))) -> Gray
A90: =IF(IncreaseVal="Yes","No","Yes") -> No | C90: No | S90: =AND($O$5=TRUE,Withdraw=FALSE,$O$7=TRUE) -> TRUE | V90: =IFERROR(IF(W90="","",RHP&"_"&W90),"") ->  | X90: =IFERROR(IF(W90="","",INDEX('Provider List'!$B:$B,MATCH(V90,'Provider List'!$H:$H,0))&" - "&INDEX('Provider List'!$C:$C,MATCH(V90,'Provider List'!$H:$H,0))),"") ->  | AK90: =IF(COUNTIF($D$22:$D$27,$AL90)+COUNTIF($E$23:$E$27,$AL90)+COUNTIF($F$23:$F$27,$AL90)+COUNTIF($G$23:$G$27,$AL90)=0,MAX($AK$1:AK89)+1,0) -> 89 | AL90: Gray | AM90: =IF(ROWS($AL$1:AL90)>MAX($AK$1:$AK$254),"",INDEX($AL$1:$AL$254,MATCH(ROWS($AL$1:AL90),$AK$1:$AK$254,0))) -> Grayson
A91: =IF(IncreaseVal="Yes","","No") ->  | S91: =AND($O$5=TRUE,Withdraw=FALSE,$O$7=TRUE,DecreaseVal="Yes") -> FALSE | AK91: =IF(COUNTIF($D$22:$D$27,$AL91)+COUNTIF($E$23:$E$27,$AL91)+COUNTIF($F$23:$F$27,$AL91)+COUNTIF($G$23:$G$27,$AL91)=0,MAX($AK$1:AK90)+1,0) -> 90 | AL91: Grayson | AM91: =IF(ROWS($AL$1:AL91)>MAX($AK$1:$AK$254),"",INDEX($AL$1:$AL$254,MATCH(ROWS($AL$1:AL91),$AK$1:$AK$254,0))) -> Gregg
C92: Please enter the updated decreased total valuation per DY. | S92: =AND($O$5=TRUE,Withdraw=FALSE,$O$7=TRUE,DecreaseVal="Yes") -> FALSE | AK92: =IF(COUNTIF($D$22:$D$27,$AL92)+COUNTIF($E$23:$E$27,$AL92)+COUNTIF($F$23:$F$27,$AL92)+COUNTIF($G$23:$G$27,$AL92)=0,MAX($AK$1:AK91)+1,0) -> 91 | AL92: Gregg | AM92: =IF(ROWS($AL$1:AL92)>MAX($AK$1:$AK$254),"",INDEX($AL$1:$AL$254,MATCH(ROWS($AL$1:AL92),$AK$1:$AK$254,0))) -> Grimes
S93: =AND($O$5=TRUE,Withdraw=FALSE,$O$7=TRUE,DecreaseVal="Yes") -> FALSE | W93: =IF(W90>=$X$4,"",W90+1) ->  | X93: =IFERROR(IF(W93="","",INDEX('Provider List'!$B:$B,MATCH(V93,'Provider List'!$H:$H,0))&" - "&INDEX('Provider List'!$C:$C,MATCH(V93,'Provider List'!$H:$H,0))),"") ->  | AK93: =IF(COUNTIF($D$22:$D$27,$AL93)+COUNTIF($E$23:$E$27,$AL93)+COUNTIF($F$23:$F$27,$AL93)+COUNTIF($G$23:$G$27,$AL93)=0,MAX($AK$1:AK92)+1,0) -> 92 | AL93: Grimes | AM93: =IF(ROWS($AL$1:AL93)>MAX($AK$1:$AK$254),"",INDEX($AL$1:$AL$254,MATCH(ROWS($AL$1:AL93),$AK$1:$AK$254,0))) -> Guadalupe
S94: =AND($O$5=TRUE,Withdraw=FALSE,$O$7=TRUE,$M$7=TRUE,DecreaseVal="No") -> TRUE | AK94: =IF(COUNTIF($D$22:$D$27,$AL94)+COUNTIF($E$23:$E$27,$AL94)+COUNTIF($F$23:$F$27,$AL94)+COUNTIF($G$23:$G$27,$AL94)=0,MAX($AK$1:AK93)+1,0) -> 93 | AL94: Guadalupe | AM94: =IF(ROWS($AL$1:AL94)>MAX($AK$1:$AK$254),"",INDEX($AL$1:$AL$254,MATCH(ROWS($AL$1:AL94),$AK$1:$AK$254,0))) -> Hale
C95: Based on the RHP's process for distributing additional funds, has the RHP approved increasing your valuation? | S95: =AND($O$5=TRUE,Withdraw=FALSE,$O$7=TRUE,$M$7=TRUE,DecreaseVal="No") -> TRUE | W95: =IF(W93>=$X$4,"",W93+1) ->  | X95: =IFERROR(IF(W95="","",INDEX('Provider List'!$B:$B,MATCH(V95,'Provider List'!$H:$H,0))&" - "&INDEX('Provider List'!$C:$C,MATCH(V95,'Provider List'!$H:$H,0))),"") ->  | AK95: =IF(COUNTIF($D$22:$D$27,$AL95)+COUNTIF($E$23:$E$27,$AL95)+COUNTIF($F$23:$F$27,$AL95)+COUNTIF($G$23:$G$27,$AL95)=0,MAX($AK$1:AK94)+1,0) -> 94 | AL95: Hale | AM95: =IF(ROWS($AL$1:AL95)>MAX($AK$1:$AK$254),"",INDEX($AL$1:$AL$254,MATCH(ROWS($AL$1:AL95),$AK$1:$AK$254,0))) -> Hall
A96: =IF(DecreaseVal="Yes","No","Yes") -> Yes | C96: Yes | S96: =AND($O$5=TRUE,Withdraw=FALSE,$O$7=TRUE,$M$7=TRUE,DecreaseVal="No") -> TRUE | X96: =IFERROR(IF(W96="","",INDEX('Provider List'!$B:$B,MATCH(V96,'Provider List'!$H:$H,0))&" - "&INDEX('Provider List'!$C:$C,MATCH(V96,'Provider List'!$H:$H,0))),"") ->  | AK96: =IF(COUNTIF($D$22:$D$27,$AL96)+COUNTIF($E$23:$E$27,$AL96)+COUNTIF($F$23:$F$27,$AL96)+COUNTIF($G$23:$G$27,$AL96)=0,MAX($AK$1:AK95)+1,0) -> 95 | AL96: Hall | AM96: =IF(ROWS($AL$1:AL96)>MAX($AK$1:$AK$254),"",INDEX($AL$1:$AL$254,MATCH(ROWS($AL$1:AL96),$AK$1:$AK$254,0))) -> Hamilton
A97: =IF(DecreaseVal="Yes","","No") -> No | S97: =AND($O$5=TRUE,Withdraw=FALSE,$O$7=TRUE,$M$7=TRUE,IncreaseVal="Yes") -> TRUE | X97: =IFERROR(IF(W97="","",INDEX('Provider List'!$B:$B,MATCH(V97,'Provider List'!$H:$H,0))&" - "&INDEX('Provider List'!$C:$C,MATCH(V97,'Provider List'!$H:$H,0))),"") ->  | AK97: =IF(COUNTIF($D$22:$D$27,$AL97)+COUNTIF($E$23:$E$27,$AL97)+COUNTIF($F$23:$F$27,$AL97)+COUNTIF($G$23:$G$27,$AL97)=0,MAX($AK$1:AK96)+1,0) -> 96 | AL97: Hamilton | AM97: =IF(ROWS($AL$1:AL97)>MAX($AK$1:$AK$254),"",INDEX($AL$1:$AL$254,MATCH(ROWS($AL$1:AL97),$AK$1:$AK$254,0))) -> Hansford
C98: Please enter the updated increased total valuation per DY. | L98: Data validation | S98: =AND($O$5=TRUE,Withdraw=FALSE,$O$7=TRUE,$M$7=TRUE,IncreaseVal="Yes") -> TRUE | X98: =IFERROR(IF(W98="","",INDEX('Provider List'!$B:$B,MATCH(V98,'Provider List'!$H:$H,0))&" - "&INDEX('Provider List'!$C:$C,MATCH(V98,'Provider List'!$H:$H,0))),"") ->  | AK98: =IF(COUNTIF($D$22:$D$27,$AL98)+COUNTIF($E$23:$E$27,$AL98)+COUNTIF($F$23:$F$27,$AL98)+COUNTIF($G$23:$G$27,$AL98)=0,MAX($AK$1:AK97)+1,0) -> 97 | AL98: Hansford | AM98: =IF(ROWS($AL$1:AL98)>MAX($AK$1:$AK$254),"",INDEX($AL$1:$AL$254,MATCH(ROWS($AL$1:AL98),$AK$1:$AK$254,0))) -> Hardeman
C99: 2438432 | L99: =IFERROR(UnadjValuation,1000000000000) -> 223881 | S99: =AND($O$5=TRUE,Withdraw=FALSE,$O$7=TRUE,$M$7=TRUE,IncreaseVal="Yes") -> TRUE | X99: =IFERROR(IF(W99="","",INDEX('Provider List'!$B:$B,MATCH(V99,'Provider List'!$H:$H,0))&" - "&INDEX('Provider List'!$C:$C,MATCH(V99,'Provider List'!$H:$H,0))),"") ->  | AK99: =IF(COUNTIF($D$22:$D$27,$AL99)+COUNTIF($E$23:$E$27,$AL99)+COUNTIF($F$23:$F$27,$AL99)+COUNTIF($G$23:$G$27,$AL99)=0,MAX($AK$1:AK98)+1,0) -> 98 | AL99: Hardeman | AM99: =IF(ROWS($AL$1:AL99)>MAX($AK$1:$AK$254),"",INDEX($AL$1:$AL$254,MATCH(ROWS($AL$1:AL99),$AK$1:$AK$254,0))) -> Hardin
S100: =AND($O$5=TRUE,Withdraw=FALSE,$O$7=TRUE,OR(AND(DecreaseVal="Yes",$C$93<>""),AND(IncreaseVal="Yes",$C$99<>""))) -> TRUE | X100: =IFERROR(IF(W100="","",INDEX('Provider List'!$B:$B,MATCH(V100,'Provider List'!$H:$H,0))&" - "&INDEX('Provider List'!$C:$C,MATCH(V100,'Provider List'!$H:$H,0))),"") ->  | AK100: =IF(COUNTIF($D$22:$D$27,$AL100)+COUNTIF($E$23:$E$27,$AL100)+COUNTIF($F$23:$F$27,$AL100)+COUNTIF($G$23:$G$27,$AL100)=0,MAX($AK$1:AK99)+1,0) -> 99 | AL100: Hardin | AM100: =IF(ROWS($AL$1:AL100)>MAX($AK$1:$AK$254),"",INDEX($AL$1:$AL$254,MATCH(ROWS($AL$1:AL100),$AK$1:$AK$254,0))) -> Harris
D101: Adjusted DY7-8 DSRIP Valuation Distribution | S101: TRUE | X101: =IFERROR(IF(W101="","",INDEX('Provider List'!$B:$B,MATCH(V101,'Provider List'!$H:$H,0))&" - "&INDEX('Provider List'!$C:$C,MATCH(V101,'Provider List'!$H:$H,0))),"") ->  | AK101: =IF(COUNTIF($D$22:$D$27,$AL101)+COUNTIF($E$23:$E$27,$AL101)+COUNTIF($F$23:$F$27,$AL101)+COUNTIF($G$23:$G$27,$AL101)=0,MAX($AK$1:AK100)+1,0) -> 100 | AL101: Harris | AM101: =IF(ROWS($AL$1:AL101)>MAX($AK$1:$AK$254),"",INDEX($AL$1:$AL$254,MATCH(ROWS($AL$1:AL101),$AK$1:$AK$254,0))) -> Harrison
D102: Valuation if regional private hospital participation requirement is met | F102: Valuation if regional private hospital participation requirement is not met | S102: TRUE | X102: =IFERROR(IF(W102="","",INDEX('Provider List'!$B:$B,MATCH(V102,'Provider List'!$H:$H,0))&" - "&INDEX('Provider List'!$C:$C,MATCH(V102,'Provider List'!$H:$H,0))),"") ->  | AK102: =IF(COUNTIF($D$22:$D$27,$AL102)+COUNTIF($E$23:$E$27,$AL102)+COUNTIF($F$23:$F$27,$AL102)+COUNTIF($G$23:$G$27,$AL102)=0,MAX($AK$1:AK101)+1,0) -> 101 | AL102: Harrison | AM102: =IF(ROWS($AL$1:AL102)>MAX($AK$1:$AK$254),"",INDEX($AL$1:$AL$254,MATCH(ROWS($AL$1:AL102),$AK$1:$AK$254,0))) -> Hartley
D103: DY7 | E103: DY8 | F103: DY7 | G103: DY8 | S103: TRUE | X103: =IFERROR(IF(W103="","",INDEX('Provider List'!$B:$B,MATCH(V103,'Provider List'!$H:$H,0))&" - "&INDEX('Provider List'!$C:$C,MATCH(V103,'Provider List'!$H:$H,0))),"") ->  | AK103: =IF(COUNTIF($D$22:$D$27,$AL103)+COUNTIF($E$23:$E$27,$AL103)+COUNTIF($F$23:$F$27,$AL103)+COUNTIF($G$23:$G$27,$AL103)=0,MAX($AK$1:AK102)+1,0) -> 102 | AL103: Hartley | AM103: =IF(ROWS($AL$1:AL103)>MAX($AK$1:$AK$254),"",INDEX($AL$1:$AL$254,MATCH(ROWS($AL$1:AL103),$AK$1:$AK$254,0))) -> Haskell
C104: RHP Plan Update Submission | D104: =ROUND(D$109*0.2,2) -> 487686.4 | E104: 0 | F104: =ROUND(F$109*0.2,2) -> 487686.4 | G104: 0 | S104: TRUE | X104: =IFERROR(IF(W104="","",INDEX('Provider List'!$B:$B,MATCH(V104,'Provider List'!$H:$H,0))&" - "&INDEX('Provider List'!$C:$C,MATCH(V104,'Provider List'!$H:$H,0))),"") ->  | AK104: =IF(COUNTIF($D$22:$D$27,$AL104)+COUNTIF($E$23:$E$27,$AL104)+COUNTIF($F$23:$F$27,$AL104)+COUNTIF($G$23:$G$27,$AL104)=0,MAX($AK$1:AK103)+1,0) -> 103 | AL104: Haskell | AM104: =IF(ROWS($AL$1:AL104)>MAX($AK$1:$AK$254),"",INDEX($AL$1:$AL$254,MATCH(ROWS($AL$1:AL104),$AK$1:$AK$254,0))) -> Hays
C105: Category A | D105: 0 | E105: 0 | F105: 0 | G105: 0 | S105: TRUE | X105: =IFERROR(IF(W105="","",INDEX('Provider List'!$B:$B,MATCH(V105,'Provider List'!$H:$H,0))&" - "&INDEX('Provider List'!$C:$C,MATCH(V105,'Provider List'!$H:$H,0))),"") ->  | AK105: =IF(COUNTIF($D$22:$D$27,$AL105)+COUNTIF($E$23:$E$27,$AL105)+COUNTIF($F$23:$F$27,$AL105)+COUNTIF($G$23:$G$27,$AL105)=0,MAX($AK$1:AK104)+1,0) -> 104 | AL105: Hays | AM105: =IF(ROWS($AL$1:AL105)>MAX($AK$1:$AK$254),"",INDEX($AL$1:$AL$254,MATCH(ROWS($AL$1:AL105),$AK$1:$AK$254,0))) -> Hemphill
C106: Category B | D106: =ROUND(D$109*0.1,2) -> 243843.2 | E106: =ROUND(E$109*0.1,2) -> 243843.2 | F106: =ROUND(F$109*0.1,2) -> 243843.2 | G106: =ROUND(G$109*0.1,2) -> 243843.2 | S106: TRUE | X106: =IFERROR(IF(W106="","",INDEX('Provider List'!$B:$B,MATCH(V106,'Provider List'!$H:$H,0))&" - "&INDEX('Provider List'!$C:$C,MATCH(V106,'Provider List'!$H:$H,0))),"") ->  | AK106: =IF(COUNTIF($D$22:$D$27,$AL106)+COUNTIF($E$23:$E$27,$AL106)+COUNTIF($F$23:$F$27,$AL106)+COUNTIF($G$23:$G$27,$AL106)=0,MAX($AK$1:AK105)+1,0) -> 105 | AL106: Hemphill | AM106: =IF(ROWS($AL$1:AL106)>MAX($AK$1:$AK$254),"",INDEX($AL$1:$AL$254,MATCH(ROWS($AL$1:AL106),$AK$1:$AK$254,0))) -> Henderson
C107: Category C | D107: =ROUND(D$109*0.55,2) -> 1341137.6 | E107: =ROUND(E$109*0.75,2) -> 1828824 | F107: =ROUND(F$109*0.65,2) -> 1584980.8 | G107: =ROUND(G$109*0.85,2) -> 2072667.2 | S107: TRUE | X107: =IFERROR(IF(W107="","",INDEX('Provider List'!$B:$B,MATCH(V107,'Provider List'!$H:$H,0))&" - "&INDEX('Provider List'!$C:$C,MATCH(V107,'Provider List'!$H:$H,0))),"") ->  | AK107: =IF(COUNTIF($D$22:$D$27,$AL107)+COUNTIF($E$23:$E$27,$AL107)+COUNTIF($F$23:$F$27,$AL107)+COUNTIF($G$23:$G$27,$AL107)=0,MAX($AK$1:AK106)+1,0) -> 106 | AL107: Henderson | AM107: =IF(ROWS($AL$1:AL107)>MAX($AK$1:$AK$254),"",INDEX($AL$1:$AL$254,MATCH(ROWS($AL$1:AL107),$AK$1:$AK$254,0))) -> Hidalgo
C108: Category D | D108: =D109-SUM(D$104:D$107) -> 365764.8 | E108: =E109-SUM(E$104:E$107) -> 365764.8 | F108: =F109-SUM(F$104:F$107) -> 121921.6 | G108: =G109-SUM(G$104:G$107) -> 121921.6 | S108: TRUE | X108: =IFERROR(IF(W108="","",INDEX('Provider List'!$B:$B,MATCH(V108,'Provider List'!$H:$H,0))&" - "&INDEX('Provider List'!$C:$C,MATCH(V108,'Provider List'!$H:$H,0))),"") ->  | AK108: =IF(COUNTIF($D$22:$D$27,$AL108)+COUNTIF($E$23:$E$27,$AL108)+COUNTIF($F$23:$F$27,$AL108)+COUNTIF($G$23:$G$27,$AL108)=0,MAX($AK$1:AK107)+1,0) -> 107 | AL108: Hidalgo | AM108: =IF(ROWS($AL$1:AL108)>MAX($AK$1:$AK$254),"",INDEX($AL$1:$AL$254,MATCH(ROWS($AL$1:AL108),$AK$1:$AK$254,0))) -> Hill
C109: Total | D109: =IF(DecreaseVal="Yes",$C$93,IF(IncreaseVal="Yes",$C$99,0)) -> 2438432 | E109: =IF(DecreaseVal="Yes",$C$93,IF(IncreaseVal="Yes",$C$99,0)) -> 2438432 | F109: =IF(DecreaseVal="Yes",$C$93,IF(IncreaseVal="Yes",$C$99,0)) -> 2438432 | G109: =IF(DecreaseVal="Yes",$C$93,IF(IncreaseVal="Yes",$C$99,0)) -> 2438432 | S109: TRUE | X109: =IFERROR(IF(W109="","",INDEX('Provider List'!$B:$B,MATCH(V109,'Provider List'!$H:$H,0))&" - "&INDEX('Provider List'!$C:$C,MATCH(V109,'Provider List'!$H:$H,0))),"") ->  | AK109: =IF(COUNTIF($D$22:$D$27,$AL109)+COUNTIF($E$23:$E$27,$AL109)+COUNTIF($F$23:$F$27,$AL109)+COUNTIF($G$23:$G$27,$AL109)=0,MAX($AK$1:AK108)+1,0) -> 108 | AL109: Hill | AM109: =IF(ROWS($AL$1:AL109)>MAX($AK$1:$AK$254),"",INDEX($AL$1:$AL$254,MATCH(ROWS($AL$1:AL109),$AK$1:$AK$254,0))) -> Hockley
S110: TRUE | X110: =IFERROR(IF(W110="","",INDEX('Provider List'!$B:$B,MATCH(V110,'Provider List'!$H:$H,0))&" - "&INDEX('Provider List'!$C:$C,MATCH(V110,'Provider List'!$H:$H,0))),"") ->  | AK110: =IF(COUNTIF($D$22:$D$27,$AL110)+COUNTIF($E$23:$E$27,$AL110)+COUNTIF($F$23:$F$27,$AL110)+COUNTIF($G$23:$G$27,$AL110)=0,MAX($AK$1:AK109)+1,0) -> 109 | AL110: Hockley | AM110: =IF(ROWS($AL$1:AL110)>MAX($AK$1:$AK$254),"",INDEX($AL$1:$AL$254,MATCH(ROWS($AL$1:AL110),$AK$1:$AK$254,0))) -> Hood
C111: Original MPT: | D111: =IFERROR(INDEX('Provider Valuation and MPTs'!$A2:$K5000,MATCH(RHP&"_"&TPI,'Provider Valuation and MPTs'!$L2:$L5000,0),9),"") -> 1 | S111: TRUE | X111: =IFERROR(IF(W111="","",INDEX('Provider List'!$B:$B,MATCH(V111,'Provider List'!$H:$H,0))&" - "&INDEX('Provider List'!$C:$C,MATCH(V111,'Provider List'!$H:$H,0))),"") ->  | AK111: =IF(COUNTIF($D$22:$D$27,$AL111)+COUNTIF($E$23:$E$27,$AL111)+COUNTIF($F$23:$F$27,$AL111)+COUNTIF($G$23:$G$27,$AL111)=0,MAX($AK$1:AK110)+1,0) -> 110 | AL111: Hood | AM111: =IF(ROWS($AL$1:AL111)>MAX($AK$1:$AK$254),"",INDEX($AL$1:$AL$254,MATCH(ROWS($AL$1:AL111),$AK$1:$AK$254,0))) -> Hopkins
C112: Adjusted MPT based on updated valuation: | D112: =MAX(1,IFERROR(ROUND(IF(Hospital,$AG$9,IF(PhysicianPractice,$AG$6,IF(CMHC,$AG$7,IF(LHD,$AG$8,"")))),0),0)) -> 5 | S112: TRUE | X112: =IFERROR(IF(W112="","",INDEX('Provider List'!$B:$B,MATCH(V112,'Provider List'!$H:$H,0))&" - "&INDEX('Provider List'!$C:$C,MATCH(V112,'Provider List'!$H:$H,0))),"") ->  | AK112: =IF(COUNTIF($D$22:$D$27,$AL112)+COUNTIF($E$23:$E$27,$AL112)+COUNTIF($F$23:$F$27,$AL112)+COUNTIF($G$23:$G$27,$AL112)=0,MAX($AK$1:AK111)+1,0) -> 111 | AL112: Hopkins | AM112: =IF(ROWS($AL$1:AL112)>MAX($AK$1:$AK$254),"",INDEX($AL$1:$AL$254,MATCH(ROWS($AL$1:AL112),$AK$1:$AK$254,0))) -> Houston
S113: =AND($O$5,Withdraw=FALSE,$O$7) -> TRUE | X113: =IFERROR(IF(W113="","",INDEX('Provider List'!$B:$B,MATCH(V113,'Provider List'!$H:$H,0))&" - "&INDEX('Provider List'!$C:$C,MATCH(V113,'Provider List'!$H:$H,0))),"") ->  | AK113: =IF(COUNTIF($D$22:$D$27,$AL113)+COUNTIF($E$23:$E$27,$AL113)+COUNTIF($F$23:$F$27,$AL113)+COUNTIF($G$23:$G$27,$AL113)=0,MAX($AK$1:AK112)+1,0) -> 112 | AL113: Houston | AM113: =IF(ROWS($AL$1:AL113)>MAX($AK$1:$AK$254),"",INDEX($AL$1:$AL$254,MATCH(ROWS($AL$1:AL113),$AK$1:$AK$254,0))) -> Howard
C114: Have you reviewed and confirmed the valuations listed in the table above and identified available IGT to fund these DSRIP amounts? | S114: TRUE | X114: =IFERROR(IF(W114="","",INDEX('Provider List'!$B:$B,MATCH(V114,'Provider List'!$H:$H,0))&" - "&INDEX('Provider List'!$C:$C,MATCH(V114,'Provider List'!$H:$H,0))),"") ->  | AK114: =IF(COUNTIF($D$22:$D$27,$AL114)+COUNTIF($E$23:$E$27,$AL114)+COUNTIF($F$23:$F$27,$AL114)+COUNTIF($G$23:$G$27,$AL114)=0,MAX($AK$1:AK113)+1,0) -> 113 | AL114: Howard | AM114: =IF(ROWS($AL$1:AL114)>MAX($AK$1:$AK$254),"",INDEX($AL$1:$AL$254,MATCH(ROWS($AL$1:AL114),$AK$1:$AK$254,0))) -> Hudspeth
C115: Yes | S115: TRUE | X115: =IFERROR(IF(W115="","",INDEX('Provider List'!$B:$B,MATCH(V115,'Provider List'!$H:$H,0))&" - "&INDEX('Provider List'!$C:$C,MATCH(V115,'Provider List'!$H:$H,0))),"") ->  | AK115: =IF(COUNTIF($D$22:$D$27,$AL115)+COUNTIF($E$23:$E$27,$AL115)+COUNTIF($F$23:$F$27,$AL115)+COUNTIF($G$23:$G$27,$AL115)=0,MAX($AK$1:AK114)+1,0) -> 114 | AL115: Hudspeth | AM115: =IF(ROWS($AL$1:AL115)>MAX($AK$1:$AK$254),"",INDEX($AL$1:$AL$254,MATCH(ROWS($AL$1:AL115),$AK$1:$AK$254,0))) -> Hunt
S116: TRUE | X116: =IFERROR(IF(W116="","",INDEX('Provider List'!$B:$B,MATCH(V116,'Provider List'!$H:$H,0))&" - "&INDEX('Provider List'!$C:$C,MATCH(V116,'Provider List'!$H:$H,0))),"") ->  | AK116: =IF(COUNTIF($D$22:$D$27,$AL116)+COUNTIF($E$23:$E$27,$AL116)+COUNTIF($F$23:$F$27,$AL116)+COUNTIF($G$23:$G$27,$AL116)=0,MAX($AK$1:AK115)+1,0) -> 115 | AL116: Hunt | AM116: =IF(ROWS($AL$1:AL116)>MAX($AK$1:$AK$254),"",INDEX($AL$1:$AL$254,MATCH(ROWS($AL$1:AL116),$AK$1:$AK$254,0))) -> Hutchinson
S117: TRUE | X117: =IFERROR(IF(W117="","",INDEX('Provider List'!$B:$B,MATCH(V117,'Provider List'!$H:$H,0))&" - "&INDEX('Provider List'!$C:$C,MATCH(V117,'Provider List'!$H:$H,0))),"") ->  | AK117: =IF(COUNTIF($D$22:$D$27,$AL117)+COUNTIF($E$23:$E$27,$AL117)+COUNTIF($F$23:$F$27,$AL117)+COUNTIF($G$23:$G$27,$AL117)=0,MAX($AK$1:AK116)+1,0) -> 116 | AL117: Hutchinson | AM117: =IF(ROWS($AL$1:AL117)>MAX($AK$1:$AK$254),"",INDEX($AL$1:$AL$254,MATCH(ROWS($AL$1:AL117),$AK$1:$AK$254,0))) -> Irion
S118: TRUE | X118: =IFERROR(IF(W118="","",INDEX('Provider List'!$B:$B,MATCH(V118,'Provider List'!$H:$H,0))&" - "&INDEX('Provider List'!$C:$C,MATCH(V118,'Provider List'!$H:$H,0))),"") ->  | AK118: =IF(COUNTIF($D$22:$D$27,$AL118)+COUNTIF($E$23:$E$27,$AL118)+COUNTIF($F$23:$F$27,$AL118)+COUNTIF($G$23:$G$27,$AL118)=0,MAX($AK$1:AK117)+1,0) -> 117 | AL118: Irion | AM118: =IF(ROWS($AL$1:AL118)>MAX($AK$1:$AK$254),"",INDEX($AL$1:$AL$254,MATCH(ROWS($AL$1:AL118),$AK$1:$AK$254,0))) -> Jack
S119: TRUE | X119: =IFERROR(IF(W119="","",INDEX('Provider List'!$B:$B,MATCH(V119,'Provider List'!$H:$H,0))&" - "&INDEX('Provider List'!$C:$C,MATCH(V119,'Provider List'!$H:$H,0))),"") ->  | AK119: =IF(COUNTIF($D$22:$D$27,$AL119)+COUNTIF($E$23:$E$27,$AL119)+COUNTIF($F$23:$F$27,$AL119)+COUNTIF($G$23:$G$27,$AL119)=0,MAX($AK$1:AK118)+1,0) -> 118 | AL119: Jack | AM119: =IF(ROWS($AL$1:AL119)>MAX($AK$1:$AK$254),"",INDEX($AL$1:$AL$254,MATCH(ROWS($AL$1:AL119),$AK$1:$AK$254,0))) -> Jackson
S120: TRUE | X120: =IFERROR(IF(W120="","",INDEX('Provider List'!$B:$B,MATCH(V120,'Provider List'!$H:$H,0))&" - "&INDEX('Provider List'!$C:$C,MATCH(V120,'Provider List'!$H:$H,0))),"") ->  | AK120: =IF(COUNTIF($D$22:$D$27,$AL120)+COUNTIF($E$23:$E$27,$AL120)+COUNTIF($F$23:$F$27,$AL120)+COUNTIF($G$23:$G$27,$AL120)=0,MAX($AK$1:AK119)+1,0) -> 119 | AL120: Jackson | AM120: =IF(ROWS($AL$1:AL120)>MAX($AK$1:$AK$254),"",INDEX($AL$1:$AL$254,MATCH(ROWS($AL$1:AL120),$AK$1:$AK$254,0))) -> Jasper
S121: TRUE | X121: =IFERROR(IF(W121="","",INDEX('Provider List'!$B:$B,MATCH(V121,'Provider List'!$H:$H,0))&" - "&INDEX('Provider List'!$C:$C,MATCH(V121,'Provider List'!$H:$H,0))),"") ->  | AK121: =IF(COUNTIF($D$22:$D$27,$AL121)+COUNTIF($E$23:$E$27,$AL121)+COUNTIF($F$23:$F$27,$AL121)+COUNTIF($G$23:$G$27,$AL121)=0,MAX($AK$1:AK120)+1,0) -> 120 | AL121: Jasper | AM121: =IF(ROWS($AL$1:AL121)>MAX($AK$1:$AK$254),"",INDEX($AL$1:$AL$254,MATCH(ROWS($AL$1:AL121),$AK$1:$AK$254,0))) -> Jeff Davis
S122: =IFERROR(C90="Yes",TRUE) -> FALSE | X122: =IFERROR(IF(W122="","",INDEX('Provider List'!$B:$B,MATCH(V122,'Provider List'!$H:$H,0))&" - "&INDEX('Provider List'!$C:$C,MATCH(V122,'Provider List'!$H:$H,0))),"") ->  | AK122: =IF(COUNTIF($D$22:$D$27,$AL122)+COUNTIF($E$23:$E$27,$AL122)+COUNTIF($F$23:$F$27,$AL122)+COUNTIF($G$23:$G$27,$AL122)=0,MAX($AK$1:AK121)+1,0) -> 121 | AL122: Jeff Davis | AM122: =IF(ROWS($AL$1:AL122)>MAX($AK$1:$AK$254),"",INDEX($AL$1:$AL$254,MATCH(ROWS($AL$1:AL122),$AK$1:$AK$254,0))) -> Jefferson
S123: =IFERROR(C48="Do Not Withdraw from DSRIP",TRUE) -> TRUE | X123: =IFERROR(IF(W123="","",INDEX('Provider List'!$B:$B,MATCH(V123,'Provider List'!$H:$H,0))&" - "&INDEX('Provider List'!$C:$C,MATCH(V123,'Provider List'!$H:$H,0))),"") ->  | AK123: =IF(COUNTIF($D$22:$D$27,$AL123)+COUNTIF($E$23:$E$27,$AL123)+COUNTIF($F$23:$F$27,$AL123)+COUNTIF($G$23:$G$27,$AL123)=0,MAX($AK$1:AK122)+1,0) -> 122 | AL123: Jefferson | AM123: =IF(ROWS($AL$1:AL123)>MAX($AK$1:$AK$254),"",INDEX($AL$1:$AL$254,MATCH(ROWS($AL$1:AL123),$AK$1:$AK$254,0))) -> Jim Hogg
X124: =IFERROR(IF(W124="","",INDEX('Provider List'!$B:$B,MATCH(V124,'Provider List'!$H:$H,0))&" - "&INDEX('Provider List'!$C:$C,MATCH(V124,'Provider List'!$H:$H,0))),"") ->  | AK124: =IF(COUNTIF($D$22:$D$27,$AL124)+COUNTIF($E$23:$E$27,$AL124)+COUNTIF($F$23:$F$27,$AL124)+COUNTIF($G$23:$G$27,$AL124)=0,MAX($AK$1:AK123)+1,0) -> 123 | AL124: Jim Hogg | AM124: =IF(ROWS($AL$1:AL124)>MAX($AK$1:$AK$254),"",INDEX($AL$1:$AL$254,MATCH(ROWS($AL$1:AL124),$AK$1:$AK$254,0))) -> Jim Wells
X125: =IFERROR(IF(W125="","",INDEX('Provider List'!$B:$B,MATCH(V125,'Provider List'!$H:$H,0))&" - "&INDEX('Provider List'!$C:$C,MATCH(V125,'Provider List'!$H:$H,0))),"") ->  | AK125: =IF(COUNTIF($D$22:$D$27,$AL125)+COUNTIF($E$23:$E$27,$AL125)+COUNTIF($F$23:$F$27,$AL125)+COUNTIF($G$23:$G$27,$AL125)=0,MAX($AK$1:AK124)+1,0) -> 124 | AL125: Jim Wells | AM125: =IF(ROWS($AL$1:AL125)>MAX($AK$1:$AK$254),"",INDEX($AL$1:$AL$254,MATCH(ROWS($AL$1:AL125),$AK$1:$AK$254,0))) -> Johnson
X126: =IFERROR(IF(W126="","",INDEX('Provider List'!$B:$B,MATCH(V126,'Provider List'!$H:$H,0))&" - "&INDEX('Provider List'!$C:$C,MATCH(V126,'Provider List'!$H:$H,0))),"") ->  | AK126: =IF(COUNTIF($D$22:$D$27,$AL126)+COUNTIF($E$23:$E$27,$AL126)+COUNTIF($F$23:$F$27,$AL126)+COUNTIF($G$23:$G$27,$AL126)=0,MAX($AK$1:AK125)+1,0) -> 125 | AL126: Johnson | AM126: =IF(ROWS($AL$1:AL126)>MAX($AK$1:$AK$254),"",INDEX($AL$1:$AL$254,MATCH(ROWS($AL$1:AL126),$AK$1:$AK$254,0))) -> Jones
X127: =IFERROR(IF(W127="","",INDEX('Provider List'!$B:$B,MATCH(V127,'Provider List'!$H:$H,0))&" - "&INDEX('Provider List'!$C:$C,MATCH(V127,'Provider List'!$H:$H,0))),"") ->  | AK127: =IF(COUNTIF($D$22:$D$27,$AL127)+COUNTIF($E$23:$E$27,$AL127)+COUNTIF($F$23:$F$27,$AL127)+COUNTIF($G$23:$G$27,$AL127)=0,MAX($AK$1:AK126)+1,0) -> 126 | AL127: Jones | AM127: =IF(ROWS($AL$1:AL127)>MAX($AK$1:$AK$254),"",INDEX($AL$1:$AL$254,MATCH(ROWS($AL$1:AL127),$AK$1:$AK$254,0))) -> Karnes
X128: =IFERROR(IF(W128="","",INDEX('Provider List'!$B:$B,MATCH(V128,'Provider List'!$H:$H,0))&" - "&INDEX('Provider List'!$C:$C,MATCH(V128,'Provider List'!$H:$H,0))),"") ->  | AK128: =IF(COUNTIF($D$22:$D$27,$AL128)+COUNTIF($E$23:$E$27,$AL128)+COUNTIF($F$23:$F$27,$AL128)+COUNTIF($G$23:$G$27,$AL128)=0,MAX($AK$1:AK127)+1,0) -> 127 | AL128: Karnes | AM128: =IF(ROWS($AL$1:AL128)>MAX($AK$1:$AK$254),"",INDEX($AL$1:$AL$254,MATCH(ROWS($AL$1:AL128),$AK$1:$AK$254,0))) -> Kaufman
X129: =IFERROR(IF(W129="","",INDEX('Provider List'!$B:$B,MATCH(V129,'Provider List'!$H:$H,0))&" - "&INDEX('Provider List'!$C:$C,MATCH(V129,'Provider List'!$H:$H,0))),"") ->  | AK129: =IF(COUNTIF($D$22:$D$27,$AL129)+COUNTIF($E$23:$E$27,$AL129)+COUNTIF($F$23:$F$27,$AL129)+COUNTIF($G$23:$G$27,$AL129)=0,MAX($AK$1:AK128)+1,0) -> 128 | AL129: Kaufman | AM129: =IF(ROWS($AL$1:AL129)>MAX($AK$1:$AK$254),"",INDEX($AL$1:$AL$254,MATCH(ROWS($AL$1:AL129),$AK$1:$AK$254,0))) -> Kendall
X130: =IFERROR(IF(W130="","",INDEX('Provider List'!$B:$B,MATCH(V130,'Provider List'!$H:$H,0))&" - "&INDEX('Provider List'!$C:$C,MATCH(V130,'Provider List'!$H:$H,0))),"") ->  | AK130: =IF(COUNTIF($D$22:$D$27,$AL130)+COUNTIF($E$23:$E$27,$AL130)+COUNTIF($F$23:$F$27,$AL130)+COUNTIF($G$23:$G$27,$AL130)=0,MAX($AK$1:AK129)+1,0) -> 129 | AL130: Kendall | AM130: =IF(ROWS($AL$1:AL130)>MAX($AK$1:$AK$254),"",INDEX($AL$1:$AL$254,MATCH(ROWS($AL$1:AL130),$AK$1:$AK$254,0))) -> Kenedy
X131: =IFERROR(IF(W131="","",INDEX('Provider List'!$B:$B,MATCH(V131,'Provider List'!$H:$H,0))&" - "&INDEX('Provider List'!$C:$C,MATCH(V131,'Provider List'!$H:$H,0))),"") ->  | AK131: =IF(COUNTIF($D$22:$D$27,$AL131)+COUNTIF($E$23:$E$27,$AL131)+COUNTIF($F$23:$F$27,$AL131)+COUNTIF($G$23:$G$27,$AL131)=0,MAX($AK$1:AK130)+1,0) -> 130 | AL131: Kenedy | AM131: =IF(ROWS($AL$1:AL131)>MAX($AK$1:$AK$254),"",INDEX($AL$1:$AL$254,MATCH(ROWS($AL$1:AL131),$AK$1:$AK$254,0))) -> Kent
X132: =IFERROR(IF(W132="","",INDEX('Provider List'!$B:$B,MATCH(V132,'Provider List'!$H:$H,0))&" - "&INDEX('Provider List'!$C:$C,MATCH(V132,'Provider List'!$H:$H,0))),"") ->  | AK132: =IF(COUNTIF($D$22:$D$27,$AL132)+COUNTIF($E$23:$E$27,$AL132)+COUNTIF($F$23:$F$27,$AL132)+COUNTIF($G$23:$G$27,$AL132)=0,MAX($AK$1:AK131)+1,0) -> 131 | AL132: Kent | AM132: =IF(ROWS($AL$1:AL132)>MAX($AK$1:$AK$254),"",INDEX($AL$1:$AL$254,MATCH(ROWS($AL$1:AL132),$AK$1:$AK$254,0))) -> Kerr
X133: =IFERROR(IF(W133="","",INDEX('Provider List'!$B:$B,MATCH(V133,'Provider List'!$H:$H,0))&" - "&INDEX('Provider List'!$C:$C,MATCH(V133,'Provider List'!$H:$H,0))),"") ->  | AK133: =IF(COUNTIF($D$22:$D$27,$AL133)+COUNTIF($E$23:$E$27,$AL133)+COUNTIF($F$23:$F$27,$AL133)+COUNTIF($G$23:$G$27,$AL133)=0,MAX($AK$1:AK132)+1,0) -> 132 | AL133: Kerr | AM133: =IF(ROWS($AL$1:AL133)>MAX($AK$1:$AK$254),"",INDEX($AL$1:$AL$254,MATCH(ROWS($AL$1:AL133),$AK$1:$AK$254,0))) -> Kimble
X134: =IFERROR(IF(W134="","",INDEX('Provider List'!$B:$B,MATCH(V134,'Provider List'!$H:$H,0))&" - "&INDEX('Provider List'!$C:$C,MATCH(V134,'Provider List'!$H:$H,0))),"") ->  | AK134: =IF(COUNTIF($D$22:$D$27,$AL134)+COUNTIF($E$23:$E$27,$AL134)+COUNTIF($F$23:$F$27,$AL134)+COUNTIF($G$23:$G$27,$AL134)=0,MAX($AK$1:AK133)+1,0) -> 133 | AL134: Kimble | AM134: =IF(ROWS($AL$1:AL134)>MAX($AK$1:$AK$254),"",INDEX($AL$1:$AL$254,MATCH(ROWS($AL$1:AL134),$AK$1:$AK$254,0))) -> King
X135: =IFERROR(IF(W135="","",INDEX('Provider List'!$B:$B,MATCH(V135,'Provider List'!$H:$H,0))&" - "&INDEX('Provider List'!$C:$C,MATCH(V135,'Provider List'!$H:$H,0))),"") ->  | AK135: =IF(COUNTIF($D$22:$D$27,$AL135)+COUNTIF($E$23:$E$27,$AL135)+COUNTIF($F$23:$F$27,$AL135)+COUNTIF($G$23:$G$27,$AL135)=0,MAX($AK$1:AK134)+1,0) -> 134 | AL135: King | AM135: =IF(ROWS($AL$1:AL135)>MAX($AK$1:$AK$254),"",INDEX($AL$1:$AL$254,MATCH(ROWS($AL$1:AL135),$AK$1:$AK$254,0))) -> Kinney
X136: =IFERROR(IF(W136="","",INDEX('Provider List'!$B:$B,MATCH(V136,'Provider List'!$H:$H,0))&" - "&INDEX('Provider List'!$C:$C,MATCH(V136,'Provider List'!$H:$H,0))),"") ->  | AK136: =IF(COUNTIF($D$22:$D$27,$AL136)+COUNTIF($E$23:$E$27,$AL136)+COUNTIF($F$23:$F$27,$AL136)+COUNTIF($G$23:$G$27,$AL136)=0,MAX($AK$1:AK135)+1,0) -> 135 | AL136: Kinney | AM136: =IF(ROWS($AL$1:AL136)>MAX($AK$1:$AK$254),"",INDEX($AL$1:$AL$254,MATCH(ROWS($AL$1:AL136),$AK$1:$AK$254,0))) -> Kleberg
X137: =IFERROR(IF(W137="","",INDEX('Provider List'!$B:$B,MATCH(V137,'Provider List'!$H:$H,0))&" - "&INDEX('Provider List'!$C:$C,MATCH(V137,'Provider List'!$H:$H,0))),"") ->  | AK137: =IF(COUNTIF($D$22:$D$27,$AL137)+COUNTIF($E$23:$E$27,$AL137)+COUNTIF($F$23:$F$27,$AL137)+COUNTIF($G$23:$G$27,$AL137)=0,MAX($AK$1:AK136)+1,0) -> 136 | AL137: Kleberg | AM137: =IF(ROWS($AL$1:AL137)>MAX($AK$1:$AK$254),"",INDEX($AL$1:$AL$254,MATCH(ROWS($AL$1:AL137),$AK$1:$AK$254,0))) -> Knox
X138: =IFERROR(IF(W138="","",INDEX('Provider List'!$B:$B,MATCH(V138,'Provider List'!$H:$H,0))&" - "&INDEX('Provider List'!$C:$C,MATCH(V138,'Provider List'!$H:$H,0))),"") ->  | AK138: =IF(COUNTIF($D$22:$D$27,$AL138)+COUNTIF($E$23:$E$27,$AL138)+COUNTIF($F$23:$F$27,$AL138)+COUNTIF($G$23:$G$27,$AL138)=0,MAX($AK$1:AK137)+1,0) -> 137 | AL138: Knox | AM138: =IF(ROWS($AL$1:AL138)>MAX($AK$1:$AK$254),"",INDEX($AL$1:$AL$254,MATCH(ROWS($AL$1:AL138),$AK$1:$AK$254,0))) -> La Salle
X139: =IFERROR(IF(W139="","",INDEX('Provider List'!$B:$B,MATCH(V139,'Provider List'!$H:$H,0))&" - "&INDEX('Provider List'!$C:$C,MATCH(V139,'Provider List'!$H:$H,0))),"") ->  | AK139: =IF(COUNTIF($D$22:$D$27,$AL139)+COUNTIF($E$23:$E$27,$AL139)+COUNTIF($F$23:$F$27,$AL139)+COUNTIF($G$23:$G$27,$AL139)=0,MAX($AK$1:AK138)+1,0) -> 138 | AL139: La Salle | AM139: =IF(ROWS($AL$1:AL139)>MAX($AK$1:$AK$254),"",INDEX($AL$1:$AL$254,MATCH(ROWS($AL$1:AL139),$AK$1:$AK$254,0))) -> Lamar
X140: =IFERROR(IF(W140="","",INDEX('Provider List'!$B:$B,MATCH(V140,'Provider List'!$H:$H,0))&" - "&INDEX('Provider List'!$C:$C,MATCH(V140,'Provider List'!$H:$H,0))),"") ->  | AK140: =IF(COUNTIF($D$22:$D$27,$AL140)+COUNTIF($E$23:$E$27,$AL140)+COUNTIF($F$23:$F$27,$AL140)+COUNTIF($G$23:$G$27,$AL140)=0,MAX($AK$1:AK139)+1,0) -> 139 | AL140: Lamar | AM140: =IF(ROWS($AL$1:AL140)>MAX($AK$1:$AK$254),"",INDEX($AL$1:$AL$254,MATCH(ROWS($AL$1:AL140),$AK$1:$AK$254,0))) -> Lamb
X141: =IFERROR(IF(W141="","",INDEX('Provider List'!$B:$B,MATCH(V141,'Provider List'!$H:$H,0))&" - "&INDEX('Provider List'!$C:$C,MATCH(V141,'Provider List'!$H:$H,0))),"") ->  | AK141: =IF(COUNTIF($D$22:$D$27,$AL141)+COUNTIF($E$23:$E$27,$AL141)+COUNTIF($F$23:$F$27,$AL141)+COUNTIF($G$23:$G$27,$AL141)=0,MAX($AK$1:AK140)+1,0) -> 140 | AL141: Lamb | AM141: =IF(ROWS($AL$1:AL141)>MAX($AK$1:$AK$254),"",INDEX($AL$1:$AL$254,MATCH(ROWS($AL$1:AL141),$AK$1:$AK$254,0))) -> Lampasas
X142: =IFERROR(IF(W142="","",INDEX('Provider List'!$B:$B,MATCH(V142,'Provider List'!$H:$H,0))&" - "&INDEX('Provider List'!$C:$C,MATCH(V142,'Provider List'!$H:$H,0))),"") ->  | AK142: =IF(COUNTIF($D$22:$D$27,$AL142)+COUNTIF($E$23:$E$27,$AL142)+COUNTIF($F$23:$F$27,$AL142)+COUNTIF($G$23:$G$27,$AL142)=0,MAX($AK$1:AK141)+1,0) -> 141 | AL142: Lampasas | AM142: =IF(ROWS($AL$1:AL142)>MAX($AK$1:$AK$254),"",INDEX($AL$1:$AL$254,MATCH(ROWS($AL$1:AL142),$AK$1:$AK$254,0))) -> Lavaca
X143: =IFERROR(IF(W143="","",INDEX('Provider List'!$B:$B,MATCH(V143,'Provider List'!$H:$H,0))&" - "&INDEX('Provider List'!$C:$C,MATCH(V143,'Provider List'!$H:$H,0))),"") ->  | AK143: =IF(COUNTIF($D$22:$D$27,$AL143)+COUNTIF($E$23:$E$27,$AL143)+COUNTIF($F$23:$F$27,$AL143)+COUNTIF($G$23:$G$27,$AL143)=0,MAX($AK$1:AK142)+1,0) -> 142 | AL143: Lavaca | AM143: =IF(ROWS($AL$1:AL143)>MAX($AK$1:$AK$254),"",INDEX($AL$1:$AL$254,MATCH(ROWS($AL$1:AL143),$AK$1:$AK$254,0))) -> Lee
X144: =IFERROR(IF(W144="","",INDEX('Provider List'!$B:$B,MATCH(V144,'Provider List'!$H:$H,0))&" - "&INDEX('Provider List'!$C:$C,MATCH(V144,'Provider List'!$H:$H,0))),"") ->  | AK144: =IF(COUNTIF($D$22:$D$27,$AL144)+COUNTIF($E$23:$E$27,$AL144)+COUNTIF($F$23:$F$27,$AL144)+COUNTIF($G$23:$G$27,$AL144)=0,MAX($AK$1:AK143)+1,0) -> 143 | AL144: Lee | AM144: =IF(ROWS($AL$1:AL144)>MAX($AK$1:$AK$254),"",INDEX($AL$1:$AL$254,MATCH(ROWS($AL$1:AL144),$AK$1:$AK$254,0))) -> Leon
W145: =IF(W144>=$X$4,"",W144+1) ->  | X145: =IFERROR(IF(W145="","",INDEX('Provider List'!$B:$B,MATCH(V145,'Provider List'!$H:$H,0))&" - "&INDEX('Provider List'!$C:$C,MATCH(V145,'Provider List'!$H:$H,0))),"") ->  | AK145: =IF(COUNTIF($D$22:$D$27,$AL145)+COUNTIF($E$23:$E$27,$AL145)+COUNTIF($F$23:$F$27,$AL145)+COUNTIF($G$23:$G$27,$AL145)=0,MAX($AK$1:AK144)+1,0) -> 144 | AL145: Leon | AM145: =IF(ROWS($AL$1:AL145)>MAX($AK$1:$AK$254),"",INDEX($AL$1:$AL$254,MATCH(ROWS($AL$1:AL145),$AK$1:$AK$254,0))) -> Liberty
X146: =IFERROR(IF(W146="","",INDEX('Provider List'!$B:$B,MATCH(V146,'Provider List'!$H:$H,0))&" - "&INDEX('Provider List'!$C:$C,MATCH(V146,'Provider List'!$H:$H,0))),"") ->  | AK146: =IF(COUNTIF($D$22:$D$27,$AL146)+COUNTIF($E$23:$E$27,$AL146)+COUNTIF($F$23:$F$27,$AL146)+COUNTIF($G$23:$G$27,$AL146)=0,MAX($AK$1:AK145)+1,0) -> 145 | AL146: Liberty | AM146: =IF(ROWS($AL$1:AL146)>MAX($AK$1:$AK$254),"",INDEX($AL$1:$AL$254,MATCH(ROWS($AL$1:AL146),$AK$1:$AK$254,0))) -> Limestone
X147: =IFERROR(IF(W147="","",INDEX('Provider List'!$B:$B,MATCH(V147,'Provider List'!$H:$H,0))&" - "&INDEX('Provider List'!$C:$C,MATCH(V147,'Provider List'!$H:$H,0))),"") ->  | AK147: =IF(COUNTIF($D$22:$D$27,$AL147)+COUNTIF($E$23:$E$27,$AL147)+COUNTIF($F$23:$F$27,$AL147)+COUNTIF($G$23:$G$27,$AL147)=0,MAX($AK$1:AK146)+1,0) -> 146 | AL147: Limestone | AM147: =IF(ROWS($AL$1:AL147)>MAX($AK$1:$AK$254),"",INDEX($AL$1:$AL$254,MATCH(ROWS($AL$1:AL147),$AK$1:$AK$254,0))) -> Lipscomb
X148: =IFERROR(IF(W148="","",INDEX('Provider List'!$B:$B,MATCH(V148,'Provider List'!$H:$H,0))&" - "&INDEX('Provider List'!$C:$C,MATCH(V148,'Provider List'!$H:$H,0))),"") ->  | AK148: =IF(COUNTIF($D$22:$D$27,$AL148)+COUNTIF($E$23:$E$27,$AL148)+COUNTIF($F$23:$F$27,$AL148)+COUNTIF($G$23:$G$27,$AL148)=0,MAX($AK$1:AK147)+1,0) -> 147 | AL148: Lipscomb | AM148: =IF(ROWS($AL$1:AL148)>MAX($AK$1:$AK$254),"",INDEX($AL$1:$AL$254,MATCH(ROWS($AL$1:AL148),$AK$1:$AK$254,0))) -> Live Oak
X149: =IFERROR(IF(W149="","",INDEX('Provider List'!$B:$B,MATCH(V149,'Provider List'!$H:$H,0))&" - "&INDEX('Provider List'!$C:$C,MATCH(V149,'Provider List'!$H:$H,0))),"") ->  | AK149: =IF(COUNTIF($D$22:$D$27,$AL149)+COUNTIF($E$23:$E$27,$AL149)+COUNTIF($F$23:$F$27,$AL149)+COUNTIF($G$23:$G$27,$AL149)=0,MAX($AK$1:AK148)+1,0) -> 148 | AL149: Live Oak | AM149: =IF(ROWS($AL$1:AL149)>MAX($AK$1:$AK$254),"",INDEX($AL$1:$AL$254,MATCH(ROWS($AL$1:AL149),$AK$1:$AK$254,0))) -> Llano
X150: =IFERROR(IF(W150="","",INDEX('Provider List'!$B:$B,MATCH(V150,'Provider List'!$H:$H,0))&" - "&INDEX('Provider List'!$C:$C,MATCH(V150,'Provider List'!$H:$H,0))),"") ->  | AK150: =IF(COUNTIF($D$22:$D$27,$AL150)+COUNTIF($E$23:$E$27,$AL150)+COUNTIF($F$23:$F$27,$AL150)+COUNTIF($G$23:$G$27,$AL150)=0,MAX($AK$1:AK149)+1,0) -> 149 | AL150: Llano | AM150: =IF(ROWS($AL$1:AL150)>MAX($AK$1:$AK$254),"",INDEX($AL$1:$AL$254,MATCH(ROWS($AL$1:AL150),$AK$1:$AK$254,0))) -> Loving
X151: =IFERROR(IF(W151="","",INDEX('Provider List'!$B:$B,MATCH(V151,'Provider List'!$H:$H,0))&" - "&INDEX('Provider List'!$C:$C,MATCH(V151,'Provider List'!$H:$H,0))),"") ->  | AK151: =IF(COUNTIF($D$22:$D$27,$AL151)+COUNTIF($E$23:$E$27,$AL151)+COUNTIF($F$23:$F$27,$AL151)+COUNTIF($G$23:$G$27,$AL151)=0,MAX($AK$1:AK150)+1,0) -> 150 | AL151: Loving | AM151: =IF(ROWS($AL$1:AL151)>MAX($AK$1:$AK$254),"",INDEX($AL$1:$AL$254,MATCH(ROWS($AL$1:AL151),$AK$1:$AK$254,0))) -> Lubbock
X152: =IFERROR(IF(W152="","",INDEX('Provider List'!$B:$B,MATCH(V152,'Provider List'!$H:$H,0))&" - "&INDEX('Provider List'!$C:$C,MATCH(V152,'Provider List'!$H:$H,0))),"") ->  | AK152: =IF(COUNTIF($D$22:$D$27,$AL152)+COUNTIF($E$23:$E$27,$AL152)+COUNTIF($F$23:$F$27,$AL152)+COUNTIF($G$23:$G$27,$AL152)=0,MAX($AK$1:AK151)+1,0) -> 151 | AL152: Lubbock | AM152: =IF(ROWS($AL$1:AL152)>MAX($AK$1:$AK$254),"",INDEX($AL$1:$AL$254,MATCH(ROWS($AL$1:AL152),$AK$1:$AK$254,0))) -> Lynn
X153: =IFERROR(IF(W153="","",INDEX('Provider List'!$B:$B,MATCH(V153,'Provider List'!$H:$H,0))&" - "&INDEX('Provider List'!$C:$C,MATCH(V153,'Provider List'!$H:$H,0))),"") ->  | AK153: =IF(COUNTIF($D$22:$D$27,$AL153)+COUNTIF($E$23:$E$27,$AL153)+COUNTIF($F$23:$F$27,$AL153)+COUNTIF($G$23:$G$27,$AL153)=0,MAX($AK$1:AK152)+1,0) -> 152 | AL153: Lynn | AM153: =IF(ROWS($AL$1:AL153)>MAX($AK$1:$AK$254),"",INDEX($AL$1:$AL$254,MATCH(ROWS($AL$1:AL153),$AK$1:$AK$254,0))) -> Madison
X154: =IFERROR(IF(W154="","",INDEX('Provider List'!$B:$B,MATCH(V154,'Provider List'!$H:$H,0))&" - "&INDEX('Provider List'!$C:$C,MATCH(V154,'Provider List'!$H:$H,0))),"") ->  | AK154: =IF(COUNTIF($D$22:$D$27,$AL154)+COUNTIF($E$23:$E$27,$AL154)+COUNTIF($F$23:$F$27,$AL154)+COUNTIF($G$23:$G$27,$AL154)=0,MAX($AK$1:AK153)+1,0) -> 153 | AL154: Madison | AM154: =IF(ROWS($AL$1:AL154)>MAX($AK$1:$AK$254),"",INDEX($AL$1:$AL$254,MATCH(ROWS($AL$1:AL154),$AK$1:$AK$254,0))) -> Marion
X155: =IFERROR(IF(W155="","",INDEX('Provider List'!$B:$B,MATCH(V155,'Provider List'!$H:$H,0))&" - "&INDEX('Provider List'!$C:$C,MATCH(V155,'Provider List'!$H:$H,0))),"") ->  | AK155: =IF(COUNTIF($D$22:$D$27,$AL155)+COUNTIF($E$23:$E$27,$AL155)+COUNTIF($F$23:$F$27,$AL155)+COUNTIF($G$23:$G$27,$AL155)=0,MAX($AK$1:AK154)+1,0) -> 154 | AL155: Marion | AM155: =IF(ROWS($AL$1:AL155)>MAX($AK$1:$AK$254),"",INDEX($AL$1:$AL$254,MATCH(ROWS($AL$1:AL155),$AK$1:$AK$254,0))) -> Martin
X156: =IFERROR(IF(W156="","",INDEX('Provider List'!$B:$B,MATCH(V156,'Provider List'!$H:$H,0))&" - "&INDEX('Provider List'!$C:$C,MATCH(V156,'Provider List'!$H:$H,0))),"") ->  | AK156: =IF(COUNTIF($D$22:$D$27,$AL156)+COUNTIF($E$23:$E$27,$AL156)+COUNTIF($F$23:$F$27,$AL156)+COUNTIF($G$23:$G$27,$AL156)=0,MAX($AK$1:AK155)+1,0) -> 155 | AL156: Martin | AM156: =IF(ROWS($AL$1:AL156)>MAX($AK$1:$AK$254),"",INDEX($AL$1:$AL$254,MATCH(ROWS($AL$1:AL156),$AK$1:$AK$254,0))) -> Mason
V157: =IFERROR(IF(W157="","",RHP&"_"&W157),"") ->  | X157: =IFERROR(IF(W157="","",INDEX('Provider List'!$B:$B,MATCH(V157,'Provider List'!$H:$H,0))&" - "&INDEX('Provider List'!$C:$C,MATCH(V157,'Provider List'!$H:$H,0))),"") ->  | AK157: =IF(COUNTIF($D$22:$D$27,$AL157)+COUNTIF($E$23:$E$27,$AL157)+COUNTIF($F$23:$F$27,$AL157)+COUNTIF($G$23:$G$27,$AL157)=0,MAX($AK$1:AK156)+1,0) -> 156 | AL157: Mason | AM157: =IF(ROWS($AL$1:AL157)>MAX($AK$1:$AK$254),"",INDEX($AL$1:$AL$254,MATCH(ROWS($AL$1:AL157),$AK$1:$AK$254,0))) -> Matagorda
X158: =IFERROR(IF(W158="","",INDEX('Provider List'!$B:$B,MATCH(V158,'Provider List'!$H:$H,0))&" - "&INDEX('Provider List'!$C:$C,MATCH(V158,'Provider List'!$H:$H,0))),"") ->  | AK158: =IF(COUNTIF($D$22:$D$27,$AL158)+COUNTIF($E$23:$E$27,$AL158)+COUNTIF($F$23:$F$27,$AL158)+COUNTIF($G$23:$G$27,$AL158)=0,MAX($AK$1:AK157)+1,0) -> 157 | AL158: Matagorda | AM158: =IF(ROWS($AL$1:AL158)>MAX($AK$1:$AK$254),"",INDEX($AL$1:$AL$254,MATCH(ROWS($AL$1:AL158),$AK$1:$AK$254,0))) -> Maverick
X159: =IFERROR(IF(W159="","",INDEX('Provider List'!$B:$B,MATCH(V159,'Provider List'!$H:$H,0))&" - "&INDEX('Provider List'!$C:$C,MATCH(V159,'Provider List'!$H:$H,0))),"") ->  | AK159: =IF(COUNTIF($D$22:$D$27,$AL159)+COUNTIF($E$23:$E$27,$AL159)+COUNTIF($F$23:$F$27,$AL159)+COUNTIF($G$23:$G$27,$AL159)=0,MAX($AK$1:AK158)+1,0) -> 158 | AL159: Maverick | AM159: =IF(ROWS($AL$1:AL159)>MAX($AK$1:$AK$254),"",INDEX($AL$1:$AL$254,MATCH(ROWS($AL$1:AL159),$AK$1:$AK$254,0))) -> McCulloch
X160: =IFERROR(IF(W160="","",INDEX('Provider List'!$B:$B,MATCH(V160,'Provider List'!$H:$H,0))&" - "&INDEX('Provider List'!$C:$C,MATCH(V160,'Provider List'!$H:$H,0))),"") ->  | AK160: =IF(COUNTIF($D$22:$D$27,$AL160)+COUNTIF($E$23:$E$27,$AL160)+COUNTIF($F$23:$F$27,$AL160)+COUNTIF($G$23:$G$27,$AL160)=0,MAX($AK$1:AK159)+1,0) -> 159 | AL160: McCulloch | AM160: =IF(ROWS($AL$1:AL160)>MAX($AK$1:$AK$254),"",INDEX($AL$1:$AL$254,MATCH(ROWS($AL$1:AL160),$AK$1:$AK$254,0))) -> McLennan
X161: =IFERROR(IF(W161="","",INDEX('Provider List'!$B:$B,MATCH(V161,'Provider List'!$H:$H,0))&" - "&INDEX('Provider List'!$C:$C,MATCH(V161,'Provider List'!$H:$H,0))),"") ->  | AK161: =IF(COUNTIF($D$22:$D$27,$AL161)+COUNTIF($E$23:$E$27,$AL161)+COUNTIF($F$23:$F$27,$AL161)+COUNTIF($G$23:$G$27,$AL161)=0,MAX($AK$1:AK160)+1,0) -> 160 | AL161: McLennan | AM161: =IF(ROWS($AL$1:AL161)>MAX($AK$1:$AK$254),"",INDEX($AL$1:$AL$254,MATCH(ROWS($AL$1:AL161),$AK$1:$AK$254,0))) -> McMullen
X162: =IFERROR(IF(W162="","",INDEX('Provider List'!$B:$B,MATCH(V162,'Provider List'!$H:$H,0))&" - "&INDEX('Provider List'!$C:$C,MATCH(V162,'Provider List'!$H:$H,0))),"") ->  | AK162: =IF(COUNTIF($D$22:$D$27,$AL162)+COUNTIF($E$23:$E$27,$AL162)+COUNTIF($F$23:$F$27,$AL162)+COUNTIF($G$23:$G$27,$AL162)=0,MAX($AK$1:AK161)+1,0) -> 161 | AL162: McMullen | AM162: =IF(ROWS($AL$1:AL162)>MAX($AK$1:$AK$254),"",INDEX($AL$1:$AL$254,MATCH(ROWS($AL$1:AL162),$AK$1:$AK$254,0))) -> Medina
X163: =IFERROR(IF(W163="","",INDEX('Provider List'!$B:$B,MATCH(V163,'Provider List'!$H:$H,0))&" - "&INDEX('Provider List'!$C:$C,MATCH(V163,'Provider List'!$H:$H,0))),"") ->  | AK163: =IF(COUNTIF($D$22:$D$27,$AL163)+COUNTIF($E$23:$E$27,$AL163)+COUNTIF($F$23:$F$27,$AL163)+COUNTIF($G$23:$G$27,$AL163)=0,MAX($AK$1:AK162)+1,0) -> 162 | AL163: Medina | AM163: =IF(ROWS($AL$1:AL163)>MAX($AK$1:$AK$254),"",INDEX($AL$1:$AL$254,MATCH(ROWS($AL$1:AL163),$AK$1:$AK$254,0))) -> Menard
X164: =IFERROR(IF(W164="","",INDEX('Provider List'!$B:$B,MATCH(V164,'Provider List'!$H:$H,0))&" - "&INDEX('Provider List'!$C:$C,MATCH(V164,'Provider List'!$H:$H,0))),"") ->  | AK164: =IF(COUNTIF($D$22:$D$27,$AL164)+COUNTIF($E$23:$E$27,$AL164)+COUNTIF($F$23:$F$27,$AL164)+COUNTIF($G$23:$G$27,$AL164)=0,MAX($AK$1:AK163)+1,0) -> 163 | AL164: Menard | AM164: =IF(ROWS($AL$1:AL164)>MAX($AK$1:$AK$254),"",INDEX($AL$1:$AL$254,MATCH(ROWS($AL$1:AL164),$AK$1:$AK$254,0))) -> Midland
X165: =IFERROR(IF(W165="","",INDEX('Provider List'!$B:$B,MATCH(V165,'Provider List'!$H:$H,0))&" - "&INDEX('Provider List'!$C:$C,MATCH(V165,'Provider List'!$H:$H,0))),"") ->  | AK165: =IF(COUNTIF($D$22:$D$27,$AL165)+COUNTIF($E$23:$E$27,$AL165)+COUNTIF($F$23:$F$27,$AL165)+COUNTIF($G$23:$G$27,$AL165)=0,MAX($AK$1:AK164)+1,0) -> 164 | AL165: Midland | AM165: =IF(ROWS($AL$1:AL165)>MAX($AK$1:$AK$254),"",INDEX($AL$1:$AL$254,MATCH(ROWS($AL$1:AL165),$AK$1:$AK$254,0))) -> Milam
X166: =IFERROR(IF(W166="","",INDEX('Provider List'!$B:$B,MATCH(V166,'Provider List'!$H:$H,0))&" - "&INDEX('Provider List'!$C:$C,MATCH(V166,'Provider List'!$H:$H,0))),"") ->  | AK166: =IF(COUNTIF($D$22:$D$27,$AL166)+COUNTIF($E$23:$E$27,$AL166)+COUNTIF($F$23:$F$27,$AL166)+COUNTIF($G$23:$G$27,$AL166)=0,MAX($AK$1:AK165)+1,0) -> 165 | AL166: Milam | AM166: =IF(ROWS($AL$1:AL166)>MAX($AK$1:$AK$254),"",INDEX($AL$1:$AL$254,MATCH(ROWS($AL$1:AL166),$AK$1:$AK$254,0))) -> Mills
X167: =IFERROR(IF(W167="","",INDEX('Provider List'!$B:$B,MATCH(V167,'Provider List'!$H:$H,0))&" - "&INDEX('Provider List'!$C:$C,MATCH(V167,'Provider List'!$H:$H,0))),"") ->  | AK167: =IF(COUNTIF($D$22:$D$27,$AL167)+COUNTIF($E$23:$E$27,$AL167)+COUNTIF($F$23:$F$27,$AL167)+COUNTIF($G$23:$G$27,$AL167)=0,MAX($AK$1:AK166)+1,0) -> 166 | AL167: Mills | AM167: =IF(ROWS($AL$1:AL167)>MAX($AK$1:$AK$254),"",INDEX($AL$1:$AL$254,MATCH(ROWS($AL$1:AL167),$AK$1:$AK$254,0))) -> Mitchell
X168: =IFERROR(IF(W168="","",INDEX('Provider List'!$B:$B,MATCH(V168,'Provider List'!$H:$H,0))&" - "&INDEX('Provider List'!$C:$C,MATCH(V168,'Provider List'!$H:$H,0))),"") ->  | AK168: =IF(COUNTIF($D$22:$D$27,$AL168)+COUNTIF($E$23:$E$27,$AL168)+COUNTIF($F$23:$F$27,$AL168)+COUNTIF($G$23:$G$27,$AL168)=0,MAX($AK$1:AK167)+1,0) -> 167 | AL168: Mitchell | AM168: =IF(ROWS($AL$1:AL168)>MAX($AK$1:$AK$254),"",INDEX($AL$1:$AL$254,MATCH(ROWS($AL$1:AL168),$AK$1:$AK$254,0))) -> Montague
X169: =IFERROR(IF(W169="","",INDEX('Provider List'!$B:$B,MATCH(V169,'Provider List'!$H:$H,0))&" - "&INDEX('Provider List'!$C:$C,MATCH(V169,'Provider List'!$H:$H,0))),"") ->  | AK169: =IF(COUNTIF($D$22:$D$27,$AL169)+COUNTIF($E$23:$E$27,$AL169)+COUNTIF($F$23:$F$27,$AL169)+COUNTIF($G$23:$G$27,$AL169)=0,MAX($AK$1:AK168)+1,0) -> 168 | AL169: Montague | AM169: =IF(ROWS($AL$1:AL169)>MAX($AK$1:$AK$254),"",INDEX($AL$1:$AL$254,MATCH(ROWS($AL$1:AL169),$AK$1:$AK$254,0))) -> Montgomery
X170: =IFERROR(IF(W170="","",INDEX('Provider List'!$B:$B,MATCH(V170,'Provider List'!$H:$H,0))&" - "&INDEX('Provider List'!$C:$C,MATCH(V170,'Provider List'!$H:$H,0))),"") ->  | AK170: =IF(COUNTIF($D$22:$D$27,$AL170)+COUNTIF($E$23:$E$27,$AL170)+COUNTIF($F$23:$F$27,$AL170)+COUNTIF($G$23:$G$27,$AL170)=0,MAX($AK$1:AK169)+1,0) -> 169 | AL170: Montgomery | AM170: =IF(ROWS($AL$1:AL170)>MAX($AK$1:$AK$254),"",INDEX($AL$1:$AL$254,MATCH(ROWS($AL$1:AL170),$AK$1:$AK$254,0))) -> Moore
X171: =IFERROR(IF(W171="","",INDEX('Provider List'!$B:$B,MATCH(V171,'Provider List'!$H:$H,0))&" - "&INDEX('Provider List'!$C:$C,MATCH(V171,'Provider List'!$H:$H,0))),"") ->  | AK171: =IF(COUNTIF($D$22:$D$27,$AL171)+COUNTIF($E$23:$E$27,$AL171)+COUNTIF($F$23:$F$27,$AL171)+COUNTIF($G$23:$G$27,$AL171)=0,MAX($AK$1:AK170)+1,0) -> 170 | AL171: Moore | AM171: =IF(ROWS($AL$1:AL171)>MAX($AK$1:$AK$254),"",INDEX($AL$1:$AL$254,MATCH(ROWS($AL$1:AL171),$AK$1:$AK$254,0))) -> Morris
X172: =IFERROR(IF(W172="","",INDEX('Provider List'!$B:$B,MATCH(V172,'Provider List'!$H:$H,0))&" - "&INDEX('Provider List'!$C:$C,MATCH(V172,'Provider List'!$H:$H,0))),"") ->  | AK172: =IF(COUNTIF($D$22:$D$27,$AL172)+COUNTIF($E$23:$E$27,$AL172)+COUNTIF($F$23:$F$27,$AL172)+COUNTIF($G$23:$G$27,$AL172)=0,MAX($AK$1:AK171)+1,0) -> 171 | AL172: Morris | AM172: =IF(ROWS($AL$1:AL172)>MAX($AK$1:$AK$254),"",INDEX($AL$1:$AL$254,MATCH(ROWS($AL$1:AL172),$AK$1:$AK$254,0))) -> Motley
X173: =IFERROR(IF(W173="","",INDEX('Provider List'!$B:$B,MATCH(V173,'Provider List'!$H:$H,0))&" - "&INDEX('Provider List'!$C:$C,MATCH(V173,'Provider List'!$H:$H,0))),"") ->  | AK173: =IF(COUNTIF($D$22:$D$27,$AL173)+COUNTIF($E$23:$E$27,$AL173)+COUNTIF($F$23:$F$27,$AL173)+COUNTIF($G$23:$G$27,$AL173)=0,MAX($AK$1:AK172)+1,0) -> 172 | AL173: Motley | AM173: =IF(ROWS($AL$1:AL173)>MAX($AK$1:$AK$254),"",INDEX($AL$1:$AL$254,MATCH(ROWS($AL$1:AL173),$AK$1:$AK$254,0))) -> Nacogdoches
X174: =IFERROR(IF(W174="","",INDEX('Provider List'!$B:$B,MATCH(V174,'Provider List'!$H:$H,0))&" - "&INDEX('Provider List'!$C:$C,MATCH(V174,'Provider List'!$H:$H,0))),"") ->  | AK174: =IF(COUNTIF($D$22:$D$27,$AL174)+COUNTIF($E$23:$E$27,$AL174)+COUNTIF($F$23:$F$27,$AL174)+COUNTIF($G$23:$G$27,$AL174)=0,MAX($AK$1:AK173)+1,0) -> 173 | AL174: Nacogdoches | AM174: =IF(ROWS($AL$1:AL174)>MAX($AK$1:$AK$254),"",INDEX($AL$1:$AL$254,MATCH(ROWS($AL$1:AL174),$AK$1:$AK$254,0))) -> Navarro
X175: =IFERROR(IF(W175="","",INDEX('Provider List'!$B:$B,MATCH(V175,'Provider List'!$H:$H,0))&" - "&INDEX('Provider List'!$C:$C,MATCH(V175,'Provider List'!$H:$H,0))),"") ->  | AK175: =IF(COUNTIF($D$22:$D$27,$AL175)+COUNTIF($E$23:$E$27,$AL175)+COUNTIF($F$23:$F$27,$AL175)+COUNTIF($G$23:$G$27,$AL175)=0,MAX($AK$1:AK174)+1,0) -> 174 | AL175: Navarro | AM175: =IF(ROWS($AL$1:AL175)>MAX($AK$1:$AK$254),"",INDEX($AL$1:$AL$254,MATCH(ROWS($AL$1:AL175),$AK$1:$AK$254,0))) -> Newton
X176: =IFERROR(IF(W176="","",INDEX('Provider List'!$B:$B,MATCH(V176,'Provider List'!$H:$H,0))&" - "&INDEX('Provider List'!$C:$C,MATCH(V176,'Provider List'!$H:$H,0))),"") ->  | AK176: =IF(COUNTIF($D$22:$D$27,$AL176)+COUNTIF($E$23:$E$27,$AL176)+COUNTIF($F$23:$F$27,$AL176)+COUNTIF($G$23:$G$27,$AL176)=0,MAX($AK$1:AK175)+1,0) -> 175 | AL176: Newton | AM176: =IF(ROWS($AL$1:AL176)>MAX($AK$1:$AK$254),"",INDEX($AL$1:$AL$254,MATCH(ROWS($AL$1:AL176),$AK$1:$AK$254,0))) -> Nolan
X177: =IFERROR(IF(W177="","",INDEX('Provider List'!$B:$B,MATCH(V177,'Provider List'!$H:$H,0))&" - "&INDEX('Provider List'!$C:$C,MATCH(V177,'Provider List'!$H:$H,0))),"") ->  | AK177: =IF(COUNTIF($D$22:$D$27,$AL177)+COUNTIF($E$23:$E$27,$AL177)+COUNTIF($F$23:$F$27,$AL177)+COUNTIF($G$23:$G$27,$AL177)=0,MAX($AK$1:AK176)+1,0) -> 176 | AL177: Nolan | AM177: =IF(ROWS($AL$1:AL177)>MAX($AK$1:$AK$254),"",INDEX($AL$1:$AL$254,MATCH(ROWS($AL$1:AL177),$AK$1:$AK$254,0))) -> Nueces
X178: =IFERROR(IF(W178="","",INDEX('Provider List'!$B:$B,MATCH(V178,'Provider List'!$H:$H,0))&" - "&INDEX('Provider List'!$C:$C,MATCH(V178,'Provider List'!$H:$H,0))),"") ->  | AK178: =IF(COUNTIF($D$22:$D$27,$AL178)+COUNTIF($E$23:$E$27,$AL178)+COUNTIF($F$23:$F$27,$AL178)+COUNTIF($G$23:$G$27,$AL178)=0,MAX($AK$1:AK177)+1,0) -> 177 | AL178: Nueces | AM178: =IF(ROWS($AL$1:AL178)>MAX($AK$1:$AK$254),"",INDEX($AL$1:$AL$254,MATCH(ROWS($AL$1:AL178),$AK$1:$AK$254,0))) -> Ochiltree
X179: =IFERROR(IF(W179="","",INDEX('Provider List'!$B:$B,MATCH(V179,'Provider List'!$H:$H,0))&" - "&INDEX('Provider List'!$C:$C,MATCH(V179,'Provider List'!$H:$H,0))),"") ->  | AK179: =IF(COUNTIF($D$22:$D$27,$AL179)+COUNTIF($E$23:$E$27,$AL179)+COUNTIF($F$23:$F$27,$AL179)+COUNTIF($G$23:$G$27,$AL179)=0,MAX($AK$1:AK178)+1,0) -> 178 | AL179: Ochiltree | AM179: =IF(ROWS($AL$1:AL179)>MAX($AK$1:$AK$254),"",INDEX($AL$1:$AL$254,MATCH(ROWS($AL$1:AL179),$AK$1:$AK$254,0))) -> Oldham
X180: =IFERROR(IF(W180="","",INDEX('Provider List'!$B:$B,MATCH(V180,'Provider List'!$H:$H,0))&" - "&INDEX('Provider List'!$C:$C,MATCH(V180,'Provider List'!$H:$H,0))),"") ->  | AK180: =IF(COUNTIF($D$22:$D$27,$AL180)+COUNTIF($E$23:$E$27,$AL180)+COUNTIF($F$23:$F$27,$AL180)+COUNTIF($G$23:$G$27,$AL180)=0,MAX($AK$1:AK179)+1,0) -> 179 | AL180: Oldham | AM180: =IF(ROWS($AL$1:AL180)>MAX($AK$1:$AK$254),"",INDEX($AL$1:$AL$254,MATCH(ROWS($AL$1:AL180),$AK$1:$AK$254,0))) -> Orange
X181: =IFERROR(IF(W181="","",INDEX('Provider List'!$B:$B,MATCH(V181,'Provider List'!$H:$H,0))&" - "&INDEX('Provider List'!$C:$C,MATCH(V181,'Provider List'!$H:$H,0))),"") ->  | AK181: =IF(COUNTIF($D$22:$D$27,$AL181)+COUNTIF($E$23:$E$27,$AL181)+COUNTIF($F$23:$F$27,$AL181)+COUNTIF($G$23:$G$27,$AL181)=0,MAX($AK$1:AK180)+1,0) -> 180 | AL181: Orange | AM181: =IF(ROWS($AL$1:AL181)>MAX($AK$1:$AK$254),"",INDEX($AL$1:$AL$254,MATCH(ROWS($AL$1:AL181),$AK$1:$AK$254,0))) -> Palo Pinto
X182: =IFERROR(IF(W182="","",INDEX('Provider List'!$B:$B,MATCH(V182,'Provider List'!$H:$H,0))&" - "&INDEX('Provider List'!$C:$C,MATCH(V182,'Provider List'!$H:$H,0))),"") ->  | AK182: =IF(COUNTIF($D$22:$D$27,$AL182)+COUNTIF($E$23:$E$27,$AL182)+COUNTIF($F$23:$F$27,$AL182)+COUNTIF($G$23:$G$27,$AL182)=0,MAX($AK$1:AK181)+1,0) -> 181 | AL182: Palo Pinto | AM182: =IF(ROWS($AL$1:AL182)>MAX($AK$1:$AK$254),"",INDEX($AL$1:$AL$254,MATCH(ROWS($AL$1:AL182),$AK$1:$AK$254,0))) -> Panola
X183: =IFERROR(IF(W183="","",INDEX('Provider List'!$B:$B,MATCH(V183,'Provider List'!$H:$H,0))&" - "&INDEX('Provider List'!$C:$C,MATCH(V183,'Provider List'!$H:$H,0))),"") ->  | AK183: =IF(COUNTIF($D$22:$D$27,$AL183)+COUNTIF($E$23:$E$27,$AL183)+COUNTIF($F$23:$F$27,$AL183)+COUNTIF($G$23:$G$27,$AL183)=0,MAX($AK$1:AK182)+1,0) -> 182 | AL183: Panola | AM183: =IF(ROWS($AL$1:AL183)>MAX($AK$1:$AK$254),"",INDEX($AL$1:$AL$254,MATCH(ROWS($AL$1:AL183),$AK$1:$AK$254,0))) -> Parker
X184: =IFERROR(IF(W184="","",INDEX('Provider List'!$B:$B,MATCH(V184,'Provider List'!$H:$H,0))&" - "&INDEX('Provider List'!$C:$C,MATCH(V184,'Provider List'!$H:$H,0))),"") ->  | AK184: =IF(COUNTIF($D$22:$D$27,$AL184)+COUNTIF($E$23:$E$27,$AL184)+COUNTIF($F$23:$F$27,$AL184)+COUNTIF($G$23:$G$27,$AL184)=0,MAX($AK$1:AK183)+1,0) -> 183 | AL184: Parker | AM184: =IF(ROWS($AL$1:AL184)>MAX($AK$1:$AK$254),"",INDEX($AL$1:$AL$254,MATCH(ROWS($AL$1:AL184),$AK$1:$AK$254,0))) -> Parmer
X185: =IFERROR(IF(W185="","",INDEX('Provider List'!$B:$B,MATCH(V185,'Provider List'!$H:$H,0))&" - "&INDEX('Provider List'!$C:$C,MATCH(V185,'Provider List'!$H:$H,0))),"") ->  | AK185: =IF(COUNTIF($D$22:$D$27,$AL185)+COUNTIF($E$23:$E$27,$AL185)+COUNTIF($F$23:$F$27,$AL185)+COUNTIF($G$23:$G$27,$AL185)=0,MAX($AK$1:AK184)+1,0) -> 184 | AL185: Parmer | AM185: =IF(ROWS($AL$1:AL185)>MAX($AK$1:$AK$254),"",INDEX($AL$1:$AL$254,MATCH(ROWS($AL$1:AL185),$AK$1:$AK$254,0))) -> Pecos
X186: =IFERROR(IF(W186="","",INDEX('Provider List'!$B:$B,MATCH(V186,'Provider List'!$H:$H,0))&" - "&INDEX('Provider List'!$C:$C,MATCH(V186,'Provider List'!$H:$H,0))),"") ->  | AK186: =IF(COUNTIF($D$22:$D$27,$AL186)+COUNTIF($E$23:$E$27,$AL186)+COUNTIF($F$23:$F$27,$AL186)+COUNTIF($G$23:$G$27,$AL186)=0,MAX($AK$1:AK185)+1,0) -> 185 | AL186: Pecos | AM186: =IF(ROWS($AL$1:AL186)>MAX($AK$1:$AK$254),"",INDEX($AL$1:$AL$254,MATCH(ROWS($AL$1:AL186),$AK$1:$AK$254,0))) -> Polk
X187: =IFERROR(IF(W187="","",INDEX('Provider List'!$B:$B,MATCH(V187,'Provider List'!$H:$H,0))&" - "&INDEX('Provider List'!$C:$C,MATCH(V187,'Provider List'!$H:$H,0))),"") ->  | AK187: =IF(COUNTIF($D$22:$D$27,$AL187)+COUNTIF($E$23:$E$27,$AL187)+COUNTIF($F$23:$F$27,$AL187)+COUNTIF($G$23:$G$27,$AL187)=0,MAX($AK$1:AK186)+1,0) -> 186 | AL187: Polk | AM187: =IF(ROWS($AL$1:AL187)>MAX($AK$1:$AK$254),"",INDEX($AL$1:$AL$254,MATCH(ROWS($AL$1:AL187),$AK$1:$AK$254,0))) -> Potter
X188: =IFERROR(IF(W188="","",INDEX('Provider List'!$B:$B,MATCH(V188,'Provider List'!$H:$H,0))&" - "&INDEX('Provider List'!$C:$C,MATCH(V188,'Provider List'!$H:$H,0))),"") ->  | AK188: =IF(COUNTIF($D$22:$D$27,$AL188)+COUNTIF($E$23:$E$27,$AL188)+COUNTIF($F$23:$F$27,$AL188)+COUNTIF($G$23:$G$27,$AL188)=0,MAX($AK$1:AK187)+1,0) -> 187 | AL188: Potter | AM188: =IF(ROWS($AL$1:AL188)>MAX($AK$1:$AK$254),"",INDEX($AL$1:$AL$254,MATCH(ROWS($AL$1:AL188),$AK$1:$AK$254,0))) -> Presidio
X189: =IFERROR(IF(W189="","",INDEX('Provider List'!$B:$B,MATCH(V189,'Provider List'!$H:$H,0))&" - "&INDEX('Provider List'!$C:$C,MATCH(V189,'Provider List'!$H:$H,0))),"") ->  | AK189: =IF(COUNTIF($D$22:$D$27,$AL189)+COUNTIF($E$23:$E$27,$AL189)+COUNTIF($F$23:$F$27,$AL189)+COUNTIF($G$23:$G$27,$AL189)=0,MAX($AK$1:AK188)+1,0) -> 188 | AL189: Presidio | AM189: =IF(ROWS($AL$1:AL189)>MAX($AK$1:$AK$254),"",INDEX($AL$1:$AL$254,MATCH(ROWS($AL$1:AL189),$AK$1:$AK$254,0))) -> Rains
X190: =IFERROR(IF(W190="","",INDEX('Provider List'!$B:$B,MATCH(V190,'Provider List'!$H:$H,0))&" - "&INDEX('Provider List'!$C:$C,MATCH(V190,'Provider List'!$H:$H,0))),"") ->  | AK190: =IF(COUNTIF($D$22:$D$27,$AL190)+COUNTIF($E$23:$E$27,$AL190)+COUNTIF($F$23:$F$27,$AL190)+COUNTIF($G$23:$G$27,$AL190)=0,MAX($AK$1:AK189)+1,0) -> 189 | AL190: Rains | AM190: =IF(ROWS($AL$1:AL190)>MAX($AK$1:$AK$254),"",INDEX($AL$1:$AL$254,MATCH(ROWS($AL$1:AL190),$AK$1:$AK$254,0))) -> Randall
X191: =IFERROR(IF(W191="","",INDEX('Provider List'!$B:$B,MATCH(V191,'Provider List'!$H:$H,0))&" - "&INDEX('Provider List'!$C:$C,MATCH(V191,'Provider List'!$H:$H,0))),"") ->  | AK191: =IF(COUNTIF($D$22:$D$27,$AL191)+COUNTIF($E$23:$E$27,$AL191)+COUNTIF($F$23:$F$27,$AL191)+COUNTIF($G$23:$G$27,$AL191)=0,MAX($AK$1:AK190)+1,0) -> 190 | AL191: Randall | AM191: =IF(ROWS($AL$1:AL191)>MAX($AK$1:$AK$254),"",INDEX($AL$1:$AL$254,MATCH(ROWS($AL$1:AL191),$AK$1:$AK$254,0))) -> Reagan
X192: =IFERROR(IF(W192="","",INDEX('Provider List'!$B:$B,MATCH(V192,'Provider List'!$H:$H,0))&" - "&INDEX('Provider List'!$C:$C,MATCH(V192,'Provider List'!$H:$H,0))),"") ->  | AK192: =IF(COUNTIF($D$22:$D$27,$AL192)+COUNTIF($E$23:$E$27,$AL192)+COUNTIF($F$23:$F$27,$AL192)+COUNTIF($G$23:$G$27,$AL192)=0,MAX($AK$1:AK191)+1,0) -> 191 | AL192: Reagan | AM192: =IF(ROWS($AL$1:AL192)>MAX($AK$1:$AK$254),"",INDEX($AL$1:$AL$254,MATCH(ROWS($AL$1:AL192),$AK$1:$AK$254,0))) -> Real
X193: =IFERROR(IF(W193="","",INDEX('Provider List'!$B:$B,MATCH(V193,'Provider List'!$H:$H,0))&" - "&INDEX('Provider List'!$C:$C,MATCH(V193,'Provider List'!$H:$H,0))),"") ->  | AK193: =IF(COUNTIF($D$22:$D$27,$AL193)+COUNTIF($E$23:$E$27,$AL193)+COUNTIF($F$23:$F$27,$AL193)+COUNTIF($G$23:$G$27,$AL193)=0,MAX($AK$1:AK192)+1,0) -> 192 | AL193: Real | AM193: =IF(ROWS($AL$1:AL193)>MAX($AK$1:$AK$254),"",INDEX($AL$1:$AL$254,MATCH(ROWS($AL$1:AL193),$AK$1:$AK$254,0))) -> Red River
X194: =IFERROR(IF(W194="","",INDEX('Provider List'!$B:$B,MATCH(V194,'Provider List'!$H:$H,0))&" - "&INDEX('Provider List'!$C:$C,MATCH(V194,'Provider List'!$H:$H,0))),"") ->  | AK194: =IF(COUNTIF($D$22:$D$27,$AL194)+COUNTIF($E$23:$E$27,$AL194)+COUNTIF($F$23:$F$27,$AL194)+COUNTIF($G$23:$G$27,$AL194)=0,MAX($AK$1:AK193)+1,0) -> 193 | AL194: Red River | AM194: =IF(ROWS($AL$1:AL194)>MAX($AK$1:$AK$254),"",INDEX($AL$1:$AL$254,MATCH(ROWS($AL$1:AL194),$AK$1:$AK$254,0))) -> Reeves
X195: =IFERROR(IF(W195="","",INDEX('Provider List'!$B:$B,MATCH(V195,'Provider List'!$H:$H,0))&" - "&INDEX('Provider List'!$C:$C,MATCH(V195,'Provider List'!$H:$H,0))),"") ->  | AK195: =IF(COUNTIF($D$22:$D$27,$AL195)+COUNTIF($E$23:$E$27,$AL195)+COUNTIF($F$23:$F$27,$AL195)+COUNTIF($G$23:$G$27,$AL195)=0,MAX($AK$1:AK194)+1,0) -> 194 | AL195: Reeves | AM195: =IF(ROWS($AL$1:AL195)>MAX($AK$1:$AK$254),"",INDEX($AL$1:$AL$254,MATCH(ROWS($AL$1:AL195),$AK$1:$AK$254,0))) -> Refugio
X196: =IFERROR(IF(W196="","",INDEX('Provider List'!$B:$B,MATCH(V196,'Provider List'!$H:$H,0))&" - "&INDEX('Provider List'!$C:$C,MATCH(V196,'Provider List'!$H:$H,0))),"") ->  | AK196: =IF(COUNTIF($D$22:$D$27,$AL196)+COUNTIF($E$23:$E$27,$AL196)+COUNTIF($F$23:$F$27,$AL196)+COUNTIF($G$23:$G$27,$AL196)=0,MAX($AK$1:AK195)+1,0) -> 195 | AL196: Refugio | AM196: =IF(ROWS($AL$1:AL196)>MAX($AK$1:$AK$254),"",INDEX($AL$1:$AL$254,MATCH(ROWS($AL$1:AL196),$AK$1:$AK$254,0))) -> Roberts
X197: =IFERROR(IF(W197="","",INDEX('Provider List'!$B:$B,MATCH(V197,'Provider List'!$H:$H,0))&" - "&INDEX('Provider List'!$C:$C,MATCH(V197,'Provider List'!$H:$H,0))),"") ->  | AK197: =IF(COUNTIF($D$22:$D$27,$AL197)+COUNTIF($E$23:$E$27,$AL197)+COUNTIF($F$23:$F$27,$AL197)+COUNTIF($G$23:$G$27,$AL197)=0,MAX($AK$1:AK196)+1,0) -> 196 | AL197: Roberts | AM197: =IF(ROWS($AL$1:AL197)>MAX($AK$1:$AK$254),"",INDEX($AL$1:$AL$254,MATCH(ROWS($AL$1:AL197),$AK$1:$AK$254,0))) -> Robertson
X198: =IFERROR(IF(W198="","",INDEX('Provider List'!$B:$B,MATCH(V198,'Provider List'!$H:$H,0))&" - "&INDEX('Provider List'!$C:$C,MATCH(V198,'Provider List'!$H:$H,0))),"") ->  | AK198: =IF(COUNTIF($D$22:$D$27,$AL198)+COUNTIF($E$23:$E$27,$AL198)+COUNTIF($F$23:$F$27,$AL198)+COUNTIF($G$23:$G$27,$AL198)=0,MAX($AK$1:AK197)+1,0) -> 197 | AL198: Robertson | AM198: =IF(ROWS($AL$1:AL198)>MAX($AK$1:$AK$254),"",INDEX($AL$1:$AL$254,MATCH(ROWS($AL$1:AL198),$AK$1:$AK$254,0))) -> Rockwall
X199: =IFERROR(IF(W199="","",INDEX('Provider List'!$B:$B,MATCH(V199,'Provider List'!$H:$H,0))&" - "&INDEX('Provider List'!$C:$C,MATCH(V199,'Provider List'!$H:$H,0))),"") ->  | AK199: =IF(COUNTIF($D$22:$D$27,$AL199)+COUNTIF($E$23:$E$27,$AL199)+COUNTIF($F$23:$F$27,$AL199)+COUNTIF($G$23:$G$27,$AL199)=0,MAX($AK$1:AK198)+1,0) -> 198 | AL199: Rockwall | AM199: =IF(ROWS($AL$1:AL199)>MAX($AK$1:$AK$254),"",INDEX($AL$1:$AL$254,MATCH(ROWS($AL$1:AL199),$AK$1:$AK$254,0))) -> Runnels
X200: =IFERROR(IF(W200="","",INDEX('Provider List'!$B:$B,MATCH(V200,'Provider List'!$H:$H,0))&" - "&INDEX('Provider List'!$C:$C,MATCH(V200,'Provider List'!$H:$H,0))),"") ->  | AK200: =IF(COUNTIF($D$22:$D$27,$AL200)+COUNTIF($E$23:$E$27,$AL200)+COUNTIF($F$23:$F$27,$AL200)+COUNTIF($G$23:$G$27,$AL200)=0,MAX($AK$1:AK199)+1,0) -> 199 | AL200: Runnels | AM200: =IF(ROWS($AL$1:AL200)>MAX($AK$1:$AK$254),"",INDEX($AL$1:$AL$254,MATCH(ROWS($AL$1:AL200),$AK$1:$AK$254,0))) -> Rusk
... 74 more rows

Sheet Provider Entry back-end (hidden)
A1: data_height | B1: 1
A2: RHP organization
A3: RHP | B3: TPI | C3: Name | D3: Performing Provider Type | E3: Ownership | F3: TIN | G3: Contact 1 (placeholder) | H3: Name | I3: Street Address | J3: City | K3: Zip | L3: Email | M3: Phone Number | N3: Phone Ext. | O3: Contact 2 (placeholder) | P3: Name | Q3: Street Address | R3: City | S3: Zip | T3: Email | U3: Phone Number | V3: Phone Ext. | W3: Contact 3 (placeholder) | X3: Name | Y3: Street Address | Z3: City | AA3: Zip | AB3: Email | AC3: Phone Number | AD3: Phone Ext. | AE3: File Name
A4: =RHP -> 17 | B4: =TPI -> 127267603 | C4: =INDEX('Provider List'!$C$2:$C$5000,MATCH(RHP&"_"&TPI,'Provider List'!$I$2:$I$5000,0)) -> St. Joseph Regional Health Center | D4: =ProvType -> Hospital | E4: =Ownership -> Private | F4: 17423795305002 | H4: =IF('Provider Entry'!D32<>"",'Provider Entry'!D32,"") -> Tim Ottinger | I4: =IF('Provider Entry'!D33<>"",'Provider Entry'!D33,"") -> 2801 Franciscan Drive | J4: =IF('Provider Entry'!D34<>"",'Provider Entry'!D34,"") -> Bryan | K4: =IF('Provider Entry'!D35<>"",'Provider Entry'!D35,"") -> 77802 | L4: =IF('Provider Entry'!D36<>"",'Provider Entry'!D36,"") -> tottinger@st-joseph.org | M4: =IF('Provider Entry'!D37<>"",'Provider Entry'!D37,"") -> 979-776-3777 | N4: =IF('Provider Entry'!D38<>"",'Provider Entry'!D38,"") ->  | P4: =IF('Provider Entry'!E32<>"",'Provider Entry'!E32,"") -> Reyann Davis | Q4: =IF('Provider Entry'!E33<>"",'Provider Entry'!E33,"") -> 2801 Franciscan Drive | R4: =IF('Provider Entry'!E34<>"",'Provider Entry'!E34,"") -> Bryan | S4: =IF('Provider Entry'!E35<>"",'Provider Entry'!E35,"") -> 77802 | T4: =IF('Provider Entry'!E36<>"",'Provider Entry'!E36,"") -> rdavis@st-joseph.org | U4: =IF('Provider Entry'!E37<>"",'Provider Entry'!E37,"") -> 9797742114 | V4: =IF('Provider Entry'!E38<>"",'Provider Entry'!E38,"") ->  | X4: =IF('Provider Entry'!F32<>"",'Provider Entry'!F32,"") -> Casey Hilbun | Y4: =IF('Provider Entry'!F33<>"",'Provider Entry'!F33,"") -> 2801 Franciscan Drive | Z4: =IF('Provider Entry'!F34<>"",'Provider Entry'!F34,"") -> Bryan | AA4: =IF('Provider Entry'!F35<>"",'Provider Entry'!F35,"") -> 77802 | AB4: =IF('Provider Entry'!F36<>"",'Provider Entry'!F36,"") -> CHilbun@st-joseph.org | AC4: =IF('Provider Entry'!F37<>"",'Provider Entry'!F37,"") -> 9797742101 | AD4: =IF('Provider Entry'!F38<>"",'Provider Entry'!F38,"") ->  | AE4: =MID(CELL("filename",A1),SEARCH("[",CELL("filename",A1))+1,SEARCH(".",CELL("filename",A1))-1-SEARCH("[",CELL("filename",A1))) -> 

Sheet Category B
I1: HIDE | M1: # rows between each component: | N1: 8 | R1: TRUE = Unhide, FALSE = Hide | S1: =CELL("address",S$4)&":"&CELL("address",S$747) -> $S$4:$S$747 | W1: Hospital Status Check | X1: $X$23:$X$106 | Z1: Section 1 Complete? | AA1: =OR(AND(Hospital,SUM(INDIRECT(X1))=N2),AND(PhysicianPractice,SUM(INDIRECT(X2))=N3),AND(CMHC,SUM(INDIRECT(X3))=N4),AND(LHD,SUM(INDIRECT(X4))=N5)) -> TRUE | AC1: MLIU Checkbox Links | AH1: HIDE
C2: DY7-8 Provider RHP Plan Update Template - Category B | M2: # Total Hospital Components: | N2: =COUNTIF('Cat B Data'!A:A,"Hospitals") -> 11 | R2: HIDDEN NOW:-----> | S2: =COUNTIF($S$4:$S$747,TRUE) -> 114 | T2: # Rows for Hospitals: | U2: =N2*$N$1+106 -> 194 | W2: PhysPract Status Check | X2: $X$217:$X$276 | Z2: Section 2 PPP Entered | AA2: =AND(D727<>"",D728<>"",E727<>"",E728<>"") -> TRUE | AC2: Medicaid | AD2: TRUE | AE2: Uninsured | AF2: TRUE
M3: # Total Phys Practice Components: | N3: =COUNTIF('Cat B Data'!A:A,"Physician Practices") -> 8 | R3: HIDDEN BEFORE:-----> | S3: 114 | T3: Cumulative # Rows for Phys Practice: | U3: =U2+(N3*$N$1+106) -> 364 | W3: CMHC Status Check | X3: $X$387:$X$478 | Z3: MLIU PPP Population Selected? | AA3: =IF(AF5,AF6,OR(AD2,AD3,AD4,AD5,AD6,AF2,AF3,AF4)) -> TRUE | AC3: Low-Income | AD3: FALSE | AE3: Local Coverage Option | AF3: FALSE
C4: Progress Tracker | I4: Deloitte Comments: | M4: # Total CMHC Components | N4: =COUNTIF('Cat B Data'!A:A,"Community Mental Health Centers") -> 12 | S4: TRUE | T4: Cumulative # Rows for CMHCs: | U4: =U3+(N4*$N$1+106) -> 566 | W4: LHD Status Check | X4: $X$589:$X$616 | AC4: Dual Eligible | AD4: TRUE | AE4: Insured on the Exchange | AF4: FALSE
M5: # Total LHD Components | N5: =COUNTIF('Cat B Data'!A:A,"Local Health Departments") -> 4 | S5: TRUE | T5: Cumulative # Rows for LHDs: | U5: =U4+(N5*$N$1+106) -> 704 | AC5: Self-Pay | AD5: TRUE | AE5: Other | AF5: FALSE
C6: Section 1: System Definition | F6: =IF('Provider Entry'!M9,"Complete",IF(AA1,"Complete","Incomplete")) -> Complete | M6: # rows between each "Other" selection | N6: 7 | S6: TRUE | T6: # of "Other" optional components included | U6: 15 | AC6: CHIP | AD6: TRUE | AE6: Other AND Explanation | AF6: =AND(AF5,F733<>"") -> FALSE
C7: Section 2: Medicaid Low-income Uninsured (MLIU) Patient Population by Provider (PPP) | F7: =IF('Provider Entry'!M9,"Complete",IF(AND($AA$2,$AA$3,OR($D$740="No",AND($D$740="Yes - DY5 Only",$C$745<>""),AND($D$740="Yes - DY6 Only",$C$745<>""))),"Complete","Incomplete")) -> Complete | S7: TRUE | X7: Section 1 Status Indicator Check | Y7: "Other" Component Desciption Indicator
O8: "Other" component entered? | R8: "Other" component counter | S8: TRUE | T8: Business Component Row Indicator | U8: Provider Type Counter | V8: Provider Section Type | W8: Component Selection | Z8: "Other" Component Status Check
C9: Performing Provider Information | S9: TRUE
S10: TRUE
C11: RHP: | D11: =RHP -> 17 | S11: TRUE
C12: TPI and Performing Provider Name: | D12: ='Provider Entry'!D15:E15 -> 127267603 - St. Joseph Regional Health Center | S12: TRUE
C13: Performing Provider Type: | D13: =ProvType -> Hospital | S13: TRUE
C14: Ownership: | D14: =Ownership -> Private | S14: TRUE
C15: Category B valuation in DY7: | D15: =IF(OR(DecreaseVal="Yes",IncreaseVal="Yes"),'Provider Entry'!$D$106,'Provider Entry'!$D$74) -> 243843.2 | S15: TRUE
C16: Category B valuation in DY8: | D16: =IF(OR(DecreaseVal="Yes",IncreaseVal="Yes"),'Provider Entry'!$E$106,'Provider Entry'!$E$74) -> 243843.2 | S16: TRUE
S17: TRUE
C18: =C6 -> Section 1: System Definition | S18: TRUE
S19: TRUE | U19: 1 | V19: =IF(U19<=$U$2,"Hospital",IF(U19<=$U$3,"Physician Practice",IF(U19<=$U$4,"Community Mental Health Center (CMHC)",IF(U19<=$U$5,"Local Health Department (LHD)","")))) -> Hospital
C20: Hospitals - Required Components | I20: This section will only display the rows corresponding to the provider type, all other rows for other provider types will be hidden. The "Business Component?" field will default to show "Business Component of the Organization" as shown, and providers will be required to enter a description. If "Not a Business Component" is selected, the description field will be hidden for that System Component. | S20: =Hospital=TRUE -> TRUE | U20: =U19+1 -> 2 | V20: =IF(U20<=$U$2,"Hospital",IF(U20<=$U$3,"Physician Practice",IF(U20<=$U$4,"Community Mental Health Center (CMHC)",IF(U20<=$U$5,"Local Health Department (LHD)","")))) -> Hospital
S21: =Hospital=TRUE -> TRUE | U21: =U20+1 -> 3 | V21: Hospital
C22: Required System Component | D22: Business Component? | S22: =Hospital=TRUE -> TRUE | U22: 4 | V22: Hospital
A23: 0 | C23: Inpatient Services | D23: Business Component of the Organization | S23: =AND(Hospital=TRUE,IF(T23=1,TRUE,IF(OFFSET($D$23,A23*$N$1,0)="Business Component of the Organization",TRUE,FALSE))) -> TRUE | T23: =IF(OR(C24="Required System Component",C24="Optional System Component",C23="Required System Component",C23="Optional System Component",C22="Required System Component",C22="Optional System Component"),1,0) -> 1 | U23: 5 | V23: Hospital | W23: =IF(OR(D23="Business Component of the Organization",D23="Yes"),TRUE,IF(OR(D23="Not a Business Component of the Organization",D23="No"),FALSE,"")) -> TRUE | X23: =IF(W23="","",IF(OR(AND(W23=TRUE,C26<>""),W23=FALSE),1,0)) -> 1 | Y23: =C22=$C$110 -> FALSE | Z23: =IFERROR(IF(AND(Y23,OR(AND(C23="",C21=""),AND(C23<>"",C21<>""))),1,""),"") -> 
A24: =IFERROR(IF(C23<>"Required System Component",A23,A23+1),"") -> 0 | S24: TRUE | T24: =IF(OR(C25="Required System Component",C25="Optional System Component",C24="Required System Component",C24="Optional System Component",C23="Required System Component",C23="Optional System Component"),1,0) -> 0 | U24: 6 | V24: Hospital | W24: =IF(OR(D24="Business Component of the Organization",D24="Yes"),TRUE,IF(OR(D24="Not a Business Component of the Organization",D24="No"),FALSE,"")) ->  | X24: =IF(W24="","",IF(OR(AND(W24=TRUE,C27<>""),W24=FALSE),1,0)) ->  | Y24: =C23=$C$110 -> FALSE | Z24: =IFERROR(IF(AND(Y24,OR(AND(C24="",C22=""),AND(C24<>"",C22<>""))),1,""),"") -> 
A25: =IFERROR(IF(C24<>"Required System Component",A24,A24+1),"") -> 0 | C25: Please enter a description of this System Component. | S25: TRUE | T25: 0 | U25: 7 | V25: Hospital | W25: =IF(OR(D25="Business Component of the Organization",D25="Yes"),TRUE,IF(OR(D25="Not a Business Component of the Organization",D25="No"),FALSE,"")) ->  | Y25: FALSE
A26: 0 | C26: CHI St. Joseph Regional Health -all services in all units to which a patient may be admitted to the hospital | S26: TRUE | T26: 0 | U26: 8 | V26: Hospital | Y26: FALSE
A27: 0 | S27: TRUE | T27: 0 | U27: 9 | V27: Hospital | Y27: FALSE
A28: 0 | S28: TRUE | T28: 0 | U28: 10 | V28: Hospital | Y28: FALSE
A29: 0 | S29: TRUE | T29: 1 | U29: 11 | V29: Hospital | Y29: FALSE
A30: 0 | C30: Required System Component | D30: Business Component? | S30: TRUE | T30: 1 | U30: 12 | V30: Hospital | Y30: FALSE
A31: 1 | C31: Emergency Department | D31: Business Component of the Organization | S31: TRUE | T31: 1 | U31: 13 | V31: Hospital | W31: TRUE | X31: 1 | Y31: FALSE
A32: 1 | S32: TRUE | T32: 0 | U32: 14 | V32: Hospital | Y32: FALSE
A33: 1 | C33: Please enter a description of this System Component. | S33: TRUE | T33: 0 | U33: 15 | V33: Hospital | Y33: FALSE
A34: 1 | C34: All services in the ER to which a patient may have an encounter at Emergency and Trauma Center at Regional Hospital (Bryan) and College Station Emergency Center. | S34: TRUE | T34: 0 | U34: 16 | V34: Hospital | Y34: FALSE
A35: 1 | S35: TRUE | T35: 0 | U35: 17 | V35: Hospital | Y35: FALSE
A36: 1 | S36: TRUE | T36: 0 | U36: 18 | V36: Hospital | Y36: FALSE
A37: 1 | S37: TRUE | T37: 1 | U37: 19 | V37: Hospital | Y37: FALSE
A38: 1 | C38: Required System Component | D38: Business Component? | I38: All dropdown fills are blue (optional) since the provider does not have to change from the default of "Business Component of the Organization." If they do change, they are not required to fill out the description field below. | S38: TRUE | T38: 1 | U38: 20 | V38: Hospital | Y38: FALSE
A39: 2 | C39: Owned or Operated Outpatient Clinics | D39: Business Component of the Organization | S39: TRUE | T39: 1 | U39: 21 | V39: Hospital | W39: TRUE | X39: 1 | Y39: FALSE
A40: 2 | S40: TRUE | T40: 0 | U40: 22 | V40: Hospital | Y40: FALSE
A41: 2 | C41: Please enter a description of this System Component. | S41: TRUE | T41: 0 | U41: 23 | V41: Hospital | Y41: FALSE
A42: 2 | C42: all services in the owned or operated outpatient clinics that are included in joint commission survey - 19 total clinics | S42: TRUE | T42: 0 | U42: 24 | V42: Hospital | Y42: FALSE
A43: 2 | S43: TRUE | T43: 0 | U43: 25 | V43: Hospital | Y43: FALSE
A44: 2 | S44: TRUE | T44: 0 | U44: 26 | V44: Hospital | Y44: FALSE
A45: 2 | S45: TRUE | T45: 1 | U45: 27 | V45: Hospital | Y45: FALSE
A46: 2 | C46: Required System Component | D46: Business Component? | S46: TRUE | T46: 1 | U46: 28 | V46: Hospital | Y46: FALSE
A47: 3 | C47: Maternal Department | D47: Business Component of the Organization | S47: TRUE | T47: 1 | U47: 29 | V47: Hospital | W47: TRUE | X47: 1 | Y47: FALSE
A48: 3 | S48: TRUE | T48: 0 | U48: 30 | V48: Hospital | Y48: FALSE
A49: 3 | C49: Please enter a description of this System Component. | S49: TRUE | T49: 0 | U49: 31 | V49: Hospital | Y49: FALSE
A50: 3 | C50: all services in the maternal inpatient department | S50: TRUE | T50: 0 | U50: 32 | V50: Hospital | Y50: FALSE
A51: 3 | S51: TRUE | T51: 0 | U51: 33 | V51: Hospital | Y51: FALSE
A52: 3 | S52: TRUE | T52: 0 | U52: 34 | V52: Hospital | Y52: FALSE
A53: 3 | S53: TRUE | T53: 1 | U53: 35 | V53: Hospital | Y53: FALSE
A54: 3 | C54: Required System Component | D54: Business Component? | S54: TRUE | T54: 1 | U54: 36 | V54: Hospital | Y54: FALSE
A55: 4 | C55: Owned or Operated Urgent Care Clinics | D55: Not a Business Component of the Organization | S55: TRUE | T55: 1 | U55: 37 | V55: Hospital | W55: FALSE | X55: 1 | Y55: FALSE
A56: 4 | S56: FALSE | T56: 0 | U56: 38 | V56: Hospital | Y56: FALSE
A57: 4 | C57: Please enter a description of this System Component. | S57: FALSE | T57: 0 | U57: 39 | V57: Hospital | Y57: FALSE
A58: 4 | S58: FALSE | T58: 0 | U58: 40 | V58: Hospital | Y58: FALSE
A59: 4 | S59: FALSE | T59: 0 | U59: 41 | V59: Hospital | Y59: FALSE
A60: 4 | S60: FALSE | T60: 0 | U60: 42 | V60: Hospital | Y60: FALSE
A61: 4 | S61: =Hospital=TRUE -> TRUE | T61: 0 | U61: 43 | V61: Hospital | Y61: FALSE
S62: =Hospital=TRUE -> TRUE | T62: 0 | U62: 44 | V62: Hospital | Y62: FALSE
C63: Hospitals - Optional Components | I63: For all "Optional Components" sections, only a list of all optional System Components for that provider type will display at first (rows 68-74 and all similar rows will be hidden). If the provider selects "Yes" (in the dropdown in Column D) that they would like to select that component, then the description field below will unhide. | S63: =Hospital=TRUE -> TRUE | T63: 0 | U63: 45 | V63: Hospital | Y63: FALSE
S64: =Hospital=TRUE -> TRUE | T64: 1 | U64: 46 | V64: Hospital | Y64: FALSE
C65: Optional System Component | D65: Would you like to select this component? | S65: =Hospital=TRUE -> TRUE | T65: 1 | U65: 47 | V65: Hospital | Y65: FALSE
A66: 0 | C66: Contracted Specialty Clinics | D66: No | S66: =AND(Hospital=TRUE,IF(T66=1,TRUE,IF(OFFSET($D$66,A66*$N$1,0)="Yes",TRUE,FALSE))) -> TRUE | T66: 1 | U66: 48 | V66: Hospital | W66: FALSE | X66: 1 | Y66: FALSE
A67: =IFERROR(IF(C66<>"Optional System Component",A66,A66+1),"") -> 0 | S67: FALSE | T67: 0 | U67: 49 | V67: Hospital | Y67: FALSE
A68: =IFERROR(IF(C67<>"Optional System Component",A67,A67+1),"") -> 0 | C68: Please enter a description of this System Component. | S68: FALSE | T68: 0 | U68: 50 | V68: Hospital | Y68: FALSE
A69: 0 | S69: FALSE | T69: 0 | U69: 51 | V69: Hospital | Y69: FALSE
A70: 0 | S70: FALSE | T70: 0 | U70: 52 | V70: Hospital | Y70: FALSE
A71: 0 | S71: FALSE | T71: 0 | U71: 53 | V71: Hospital | Y71: FALSE
A72: 0 | S72: TRUE | T72: 1 | U72: 54 | V72: Hospital | Y72: FALSE
A73: 0 | C73: Optional System Component | D73: Would you like to select this component? | S73: TRUE | T73: 1 | U73: 55 | V73: Hospital | Y73: FALSE
A74: 1 | C74: Contracted Primary Care Clinics | D74: No | S74: TRUE | T74: 1 | U74: 56 | V74: Hospital | W74: FALSE | X74: 1 | Y74: FALSE
A75: 1 | S75: FALSE | T75: 0 | U75: 57 | V75: Hospital | Y75: FALSE
A76: 1 | C76: Please enter a description of this System Component. | S76: FALSE | T76: 0 | U76: 58 | V76: Hospital | Y76: FALSE
A77: 1 | S77: FALSE | T77: 0 | U77: 59 | V77: Hospital | Y77: FALSE
A78: 1 | S78: FALSE | T78: 0 | U78: 60 | V78: Hospital | Y78: FALSE
A79: 1 | S79: FALSE | T79: 0 | U79: 61 | V79: Hospital | Y79: FALSE
A80: 1 | S80: TRUE | T80: 1 | U80: 62 | V80: Hospital | Y80: FALSE
A81: 1 | C81: Optional System Component | D81: Would you like to select this component? | S81: TRUE | T81: 1 | U81: 63 | V81: Hospital | Y81: FALSE
A82: 2 | C82: School-based Clinics | D82: No | S82: TRUE | T82: 1 | U82: 64 | V82: Hospital | W82: FALSE | X82: 1 | Y82: FALSE
A83: 2 | S83: FALSE | T83: 0 | U83: 65 | V83: Hospital | Y83: FALSE
A84: 2 | C84: Please enter a description of this System Component. | S84: FALSE | T84: 0 | U84: 66 | V84: =IF(U84<=$U$2,"Hospital",IF(U84<=$U$3,"Physician Practice",IF(U84<=$U$4,"Community Mental Health Center (CMHC)",IF(U84<=$U$5,"Local Health Department (LHD)","")))) -> Hospital | Y84: FALSE
A85: 2 | S85: FALSE | T85: 0 | U85: =U84+1 -> 67 | V85: Hospital | Y85: FALSE
A86: 2 | S86: FALSE | T86: 0 | U86: 68 | V86: Hospital | Y86: FALSE
A87: 2 | S87: FALSE | T87: 0 | U87: 69 | V87: Hospital | Y87: FALSE
A88: 2 | S88: TRUE | T88: =IF(OR(C89="Required System Component",C89="Optional System Component",C88="Required System Component",C88="Optional System Component",C87="Required System Component",C87="Optional System Component"),1,0) -> 1 | U88: 70 | V88: Hospital | X88: =IF(W88="","",IF(OR(AND(W88=TRUE,C91<>""),W88=FALSE),1,0)) ->  | Y88: =C87=$C$110 -> FALSE | Z88: =IFERROR(IF(AND(Y88,OR(AND(C88="",C86=""),AND(C88<>"",C86<>""))),1,""),"") -> 
A89: 2 | C89: Optional System Component | D89: Would you like to select this component? | S89: TRUE | T89: 1 | U89: 71 | V89: Hospital | W89: =IF(OR(D89="Business Component of the Organization",D89="Yes"),TRUE,IF(OR(D89="Not a Business Component of the Organization",D89="No"),FALSE,"")) ->  | Y89: FALSE
A90: 3 | C90: Contracted Palliative Care Programs | D90: No | S90: TRUE | T90: 1 | U90: 72 | V90: Hospital | W90: FALSE | X90: 1 | Y90: FALSE
A91: 3 | S91: FALSE | T91: 0 | U91: 73 | V91: Hospital | Y91: FALSE
A92: 3 | C92: Please enter a description of this System Component. | S92: FALSE | T92: 0 | U92: 74 | V92: Hospital | Y92: FALSE
A93: 3 | S93: FALSE | T93: 0 | U93: 75 | V93: Hospital | Y93: FALSE
A94: 3 | S94: FALSE | T94: 0 | U94: 76 | V94: Hospital | Y94: FALSE
A95: 3 | S95: FALSE | T95: 0 | U95: 77 | V95: Hospital | Y95: FALSE
A96: 3 | S96: TRUE | T96: 1 | U96: 78 | V96: Hospital | Y96: FALSE
A97: 3 | C97: Optional System Component | D97: Would you like to select this component? | S97: TRUE | T97: 1 | U97: 79 | V97: Hospital | Y97: FALSE
A98: 4 | C98: Contracted Mobile Health Programs | D98: No | S98: =AND(Hospital=TRUE,IF(T98=1,TRUE,IF(OFFSET($D$66,A98*$N$1,0)="Yes",TRUE,FALSE))) -> TRUE | T98: 1 | U98: 80 | V98: Hospital | W98: FALSE | X98: 1 | Y98: FALSE
A99: 4 | S99: FALSE | T99: 0 | U99: 81 | V99: Hospital | Y99: FALSE
A100: 4 | C100: Please enter a description of this System Component. | S100: FALSE | T100: 0 | U100: 82 | V100: Hospital | Y100: FALSE
A101: 4 | S101: FALSE | T101: 0 | U101: 83 | V101: Hospital | Y101: FALSE
A102: 4 | S102: FALSE | T102: 0 | U102: 84 | V102: Hospital | Y102: FALSE
A103: 4 | S103: FALSE | T103: 0 | U103: 85 | V103: Hospital | Y103: FALSE
A104: 4 | S104: TRUE | T104: 1 | U104: 86 | V104: Hospital | Y104: FALSE
A105: 4 | C105: Optional System Component | D105: Would you like to select this component? | I105: For all "Other" system component areas, the entries for listing the "Other" system component and the description fields will only appear if the provider selects "Yes." We will default to display 5 possible "Other" system components the provider could list, and more will display if needed up to a maximum of 15 "Other" system components. | S105: TRUE | T105: 1 | U105: 87 | V105: Hospital | Y105: FALSE
A106: 5 | C106: Other | D106: Yes | S106: TRUE | T106: 1 | U106: 88 | V106: Hospital | W106: TRUE | X106: =IF(W106="","",IF(OR(AND(W106=TRUE,C109<>"",C111<>"",SUM($Z$106:$Z$211)=$U$6),W106=FALSE),1,0)) -> 1 | Y106: FALSE
A107: 5 | Q107: =IF(AND(OFFSET($C$109,R107*$N$6,0)<>"",OFFSET($C$111,R107*$N$6,0)<>"")=TRUE,1,0) -> 1 | R107: 0 | S107: TRUE | T107: 0 | U107: 89 | V107: Hospital | Y107: FALSE
A108: 5 | C108: Please list your "Other" system component. | Q108: =IF(AND(OFFSET($C$109,R108*$N$6,0)<>"",OFFSET($C$111,R108*$N$6,0)<>"")=TRUE,1,0) -> 1 | R108: =IF(NOT(LEFT(C109,11)="Please list"),R107,R107+1) -> 0 | S108: TRUE | T108: 0 | U108: 90 | V108: Hospital | Y108: FALSE
A109: 5 | C109: Observation Unit | Q109: 1 | R109: =IF(NOT(LEFT(C110,11)="Please list"),R108,R108+1) -> 0 | S109: TRUE | T109: 0 | U109: 91 | V109: Hospital | Y109: FALSE
A110: 5 | C110: Please enter a description for this "Other" system component. | Q110: 1 | R110: 0 | S110: TRUE | T110: 0 | U110: 92 | V110: Hospital | Y110: FALSE
A111: 5 | C111: All services in the observation unit of the CHI St Joseph Regional Hospital | Q111: 1 | R111: 0 | S111: TRUE | T111: 0 | U111: 93 | V111: Hospital | Y111: TRUE | Z111: 1
A112: 5 | Q112: 1 | R112: 0 | S112: TRUE | T112: 0 | U112: 94 | V112: Hospital | Y112: FALSE
A113: 5 | Q113: 1 | R113: 0 | S113: TRUE | T113: 0 | U113: 95 | V113: Hospital | Y113: FALSE
A114: 5 | Q114: 1 | R114: 1 | S114: TRUE | T114: 0 | U114: 96 | V114: Hospital | Y114: FALSE
A115: 5 | C115: Please list your "Other" system component. | Q115: 1 | R115: 1 | S115: TRUE | T115: 0 | U115: 97 | V115: Hospital | Y115: FALSE
A116: 5 | C116: Surgical Day Care | Q116: 1 | R116: 1 | S116: TRUE | T116: 0 | U116: 98 | V116: Hospital | Y116: FALSE
A117: 5 | C117: Please enter a description for this "Other" system component. | Q117: 1 | R117: 1 | S117: TRUE | T117: 0 | U117: 99 | V117: Hospital | Y117: FALSE
A118: 5 | C118: All services in the CHI St. Joseph Regional Hospital in the Surgical Day Care unit | I118: Should the blue "Other" component selection areas that are unused by the provider default to display "N/A"? Or should the provider be required to select "N/A"? | Q118: 1 | R118: 1 | S118: TRUE | T118: 0 | U118: 100 | V118: Hospital | Y118: TRUE | Z118: 1
A119: 5 | Q119: 1 | R119: 1 | S119: TRUE | T119: 0 | U119: 101 | V119: Hospital | Y119: FALSE
A120: 5 | Q120: 1 | R120: 1 | S120: TRUE | T120: 0 | U120: 102 | V120: Hospital | Y120: FALSE
A121: 5 | Q121: 0 | R121: 2 | S121: =AND(Hospital=TRUE,OFFSET($D$66,A121*$N$1,0)="Yes",SUM(OFFSET($Q$107,0,0,R121*$N$6))=R121*$N$6) -> TRUE | T121: 0 | U121: 103 | V121: Hospital | Y121: FALSE
A122: 5 | C122: Please list your "Other" system component. | Q122: 0 | R122: 2 | S122: TRUE | T122: 0 | U122: 104 | V122: Hospital | Y122: FALSE
A123: 5 | Q123: 0 | R123: 2 | S123: TRUE | T123: 0 | U123: 105 | V123: Hospital | Y123: FALSE
A124: 5 | C124: Please enter a description for this "Other" system component. | Q124: 0 | R124: 2 | S124: TRUE | T124: 0 | U124: 106 | V124: Hospital | Y124: FALSE
A125: 5 | Q125: 0 | R125: 2 | S125: TRUE | T125: 0 | U125: 107 | V125: Hospital | Y125: TRUE | Z125: 1
A126: 5 | Q126: 0 | R126: 2 | S126: TRUE | T126: 0 | U126: 108 | V126: Hospital | Y126: FALSE
A127: 5 | Q127: 0 | R127: 2 | S127: TRUE | T127: 0 | U127: 109 | V127: Hospital | Y127: FALSE
A128: 5 | Q128: 0 | R128: 3 | S128: FALSE | T128: 0 | U128: 110 | V128: Hospital | Y128: FALSE
A129: 5 | C129: Please list your "Other" system component. | Q129: 0 | R129: 3 | S129: FALSE | T129: 0 | U129: 111 | V129: Hospital | Y129: FALSE
A130: 5 | Q130: 0 | R130: 3 | S130: FALSE | T130: 0 | U130: 112 | V130: Hospital | Y130: FALSE
A131: 5 | C131: Please enter a description for this "Other" system component. | Q131: 0 | R131: 3 | S131: FALSE | T131: 0 | U131: 113 | V131: Hospital | Y131: FALSE
A132: =IFERROR(IF(C131<>"Optional System Component",A131,A131+1),"") -> 5 | Q132: 0 | R132: 3 | S132: FALSE | T132: 0 | U132: 114 | V132: Hospital | Y132: TRUE | Z132: 1
A133: 5 | Q133: 0 | R133: 3 | S133: FALSE | T133: 0 | U133: 115 | V133: Hospital | Y133: FALSE
A134: 5 | Q134: 0 | R134: 3 | S134: FALSE | T134: 0 | U134: 116 | V134: Hospital | Y134: FALSE
A135: 5 | Q135: 0 | R135: 4 | S135: FALSE | T135: 0 | U135: 117 | V135: Hospital | Y135: FALSE
A136: 5 | C136: Please list your "Other" system component. | Q136: 0 | R136: 4 | S136: FALSE | T136: 0 | U136: 118 | V136: Hospital | Y136: FALSE
A137: 5 | Q137: 0 | R137: 4 | S137: FALSE | T137: 0 | U137: 119 | V137: Hospital | Y137: FALSE
A138: 5 | C138: Please enter a description for this "Other" system component. | Q138: 0 | R138: 4 | S138: FALSE | T138: 0 | U138: 120 | V138: Hospital | Y138: FALSE
A139: 5 | Q139: 0 | R139: 4 | S139: FALSE | T139: 0 | U139: 121 | V139: Hospital | Y139: TRUE | Z139: 1
A140: 5 | Q140: 0 | R140: 4 | S140: FALSE | T140: 0 | U140: 122 | V140: Hospital | Y140: FALSE
A141: 5 | Q141: 0 | R141: 4 | S141: FALSE | T141: 0 | U141: 123 | V141: Hospital | Y141: FALSE
A142: 5 | Q142: 0 | R142: 5 | S142: FALSE | T142: 0 | U142: 124 | V142: Hospital | Y142: FALSE
A143: 5 | C143: Please list your "Other" system component. | Q143: 0 | R143: 5 | S143: FALSE | T143: 0 | U143: 125 | V143: Hospital | Y143: FALSE
A144: 5 | Q144: 0 | R144: 5 | S144: FALSE | T144: 0 | U144: 126 | V144: Hospital | Y144: FALSE
A145: 5 | C145: Please enter a description for this "Other" system component. | Q145: 0 | R145: 5 | S145: FALSE | T145: 0 | U145: 127 | V145: Hospital | Y145: FALSE
A146: 5 | Q146: 0 | R146: 5 | S146: FALSE | T146: 0 | U146: 128 | V146: Hospital | Y146: TRUE | Z146: 1
A147: 5 | Q147: 0 | R147: 5 | S147: FALSE | T147: 0 | U147: 129 | V147: Hospital | Y147: FALSE
A148: 5 | Q148: 0 | R148: 5 | S148: FALSE | T148: 0 | U148: 130 | V148: =IF(U148<=$U$2,"Hospital",IF(U148<=$U$3,"Physician Practice",IF(U148<=$U$4,"Community Mental Health Center (CMHC)",IF(U148<=$U$5,"Local Health Department (LHD)","")))) -> Hospital | Y148: FALSE
A149: 5 | Q149: 0 | R149: 6 | S149: FALSE | T149: 0 | U149: =U148+1 -> 131 | V149: Hospital | Y149: FALSE
A150: 5 | C150: Please list your "Other" system component. | Q150: 0 | R150: 6 | S150: FALSE | T150: 0 | U150: 132 | V150: Hospital | Y150: FALSE
A151: 5 | Q151: 0 | R151: 6 | S151: FALSE | T151: 0 | U151: 133 | V151: Hospital | Y151: FALSE
A152: 5 | C152: Please enter a description for this "Other" system component. | Q152: 0 | R152: 6 | S152: FALSE | T152: =IF(OR(C153="Required System Component",C153="Optional System Component",C152="Required System Component",C152="Optional System Component",C151="Required System Component",C151="Optional System Component"),1,0) -> 0 | U152: 134 | V152: Hospital | Y152: =C151=$C$110 -> FALSE | Z152: =IFERROR(IF(AND(Y152,OR(AND(C152="",C150=""),AND(C152<>"",C150<>""))),1,""),"") -> 
A153: 5 | Q153: 0 | R153: 6 | S153: =AND(Hospital=TRUE,OFFSET($D$66,A153*$N$1,0)="Yes",SUM(OFFSET($Q$107,0,0,R153*$N$6))=R153*$N$6) -> FALSE | T153: 0 | U153: 135 | V153: Hospital | W153: =IF(OR(D153="Business Component of the Organization",D153="Yes"),TRUE,IF(OR(D153="Not a Business Component of the Organization",D153="No"),FALSE,"")) ->  | Y153: TRUE | Z153: 1
A154: 5 | Q154: 0 | R154: 6 | S154: FALSE | T154: 0 | U154: 136 | V154: Hospital | Y154: FALSE
A155: 5 | Q155: 0 | R155: 6 | S155: FALSE | T155: 0 | U155: 137 | V155: Hospital | Y155: FALSE
A156: 5 | Q156: 0 | R156: 7 | S156: FALSE | T156: 0 | U156: 138 | V156: Hospital | Y156: FALSE
A157: 5 | C157: Please list your "Other" system component. | Q157: 0 | R157: 7 | S157: FALSE | T157: 0 | U157: 139 | V157: Hospital | Y157: FALSE
A158: 5 | Q158: 0 | R158: 7 | S158: FALSE | T158: 0 | U158: 140 | V158: Hospital | Y158: FALSE
A159: 5 | C159: Please enter a description for this "Other" system component. | Q159: 0 | R159: 7 | S159: FALSE | T159: 0 | U159: 141 | V159: Hospital | Y159: FALSE
A160: 5 | Q160: 0 | R160: 7 | S160: FALSE | T160: 0 | U160: 142 | V160: Hospital | Y160: TRUE | Z160: 1
A161: 5 | Q161: 0 | R161: 7 | S161: FALSE | T161: 0 | U161: 143 | V161: Hospital | Y161: FALSE
A162: 5 | Q162: 0 | R162: 7 | S162: FALSE | T162: 0 | U162: 144 | V162: Hospital | Y162: FALSE
A163: 5 | Q163: 0 | R163: 8 | S163: FALSE | T163: 0 | U163: 145 | V163: Hospital | Y163: FALSE
A164: 5 | C164: Please list your "Other" system component. | Q164: 0 | R164: 8 | S164: FALSE | T164: 0 | U164: 146 | V164: Hospital | Y164: FALSE
A165: 5 | Q165: 0 | R165: 8 | S165: FALSE | T165: 0 | U165: 147 | V165: Hospital | Y165: FALSE
A166: 5 | C166: Please enter a description for this "Other" system component. | Q166: 0 | R166: 8 | S166: FALSE | T166: 0 | U166: 148 | V166: Hospital | Y166: FALSE
A167: 5 | Q167: 0 | R167: 8 | S167: FALSE | T167: 0 | U167: 149 | V167: Hospital | Y167: TRUE | Z167: 1
A168: 5 | Q168: 0 | R168: 8 | S168: FALSE | T168: 0 | U168: 150 | V168: Hospital | Y168: FALSE
A169: 5 | Q169: 0 | R169: 8 | S169: FALSE | T169: 0 | U169: 151 | V169: Hospital | Y169: FALSE
A170: 5 | Q170: 0 | R170: 9 | S170: FALSE | T170: 0 | U170: 152 | V170: Hospital | Y170: FALSE
A171: 5 | C171: Please list your "Other" system component. | Q171: 0 | R171: 9 | S171: FALSE | T171: 0 | U171: 153 | V171: Hospital | Y171: FALSE
A172: 5 | Q172: =IF(AND(OFFSET($C$109,R172*$N$6,0)<>"",OFFSET($C$111,R172*$N$6,0)<>"")=TRUE,1,0) -> 0 | R172: 9 | S172: FALSE | T172: 0 | U172: 154 | V172: Hospital | Y172: FALSE
A173: 5 | C173: Please enter a description for this "Other" system component. | Q173: 0 | R173: =IF(NOT(LEFT(C174,11)="Please list"),R172,R172+1) -> 9 | S173: FALSE | T173: 0 | U173: 155 | V173: Hospital | Y173: FALSE
A174: 5 | Q174: 0 | R174: 9 | S174: FALSE | T174: 0 | U174: 156 | V174: Hospital | Y174: TRUE | Z174: 1
A175: 5 | Q175: 0 | R175: 9 | S175: FALSE | T175: 0 | U175: 157 | V175: Hospital | Y175: FALSE
A176: 5 | Q176: 0 | R176: 9 | S176: FALSE | T176: 0 | U176: 158 | V176: Hospital | Y176: FALSE
A177: 5 | Q177: 0 | R177: 10 | S177: FALSE | T177: 0 | U177: 159 | V177: Hospital | Y177: FALSE
A178: 5 | C178: Please list your "Other" system component. | Q178: 0 | R178: 10 | S178: FALSE | T178: 0 | U178: 160 | V178: Hospital | Y178: FALSE
A179: 5 | Q179: 0 | R179: 10 | S179: FALSE | T179: 0 | U179: 161 | V179: Hospital | Y179: FALSE
A180: 5 | C180: Please enter a description for this "Other" system component. | Q180: 0 | R180: 10 | S180: FALSE | T180: 0 | U180: 162 | V180: Hospital | Y180: FALSE
A181: 5 | Q181: 0 | R181: 10 | S181: FALSE | T181: 0 | U181: 163 | V181: Hospital | Y181: TRUE | Z181: 1
A182: 5 | Q182: 0 | R182: 10 | S182: FALSE | T182: 0 | U182: 164 | V182: Hospital | Y182: FALSE
A183: 5 | Q183: 0 | R183: 10 | S183: FALSE | T183: 0 | U183: 165 | V183: Hospital | Y183: FALSE
A184: 5 | Q184: 0 | R184: 11 | S184: FALSE | T184: 0 | U184: 166 | V184: Hospital | Y184: FALSE
A185: 5 | C185: Please list your "Other" system component. | Q185: 0 | R185: 11 | S185: =AND(Hospital=TRUE,OFFSET($D$66,A185*$N$1,0)="Yes",SUM(OFFSET($Q$107,0,0,R185*$N$6))=R185*$N$6) -> FALSE | T185: 0 | U185: 167 | V185: Hospital | Y185: FALSE
A186: 5 | Q186: 0 | R186: 11 | S186: FALSE | T186: 0 | U186: 168 | V186: Hospital | Y186: FALSE
A187: 5 | C187: Please enter a description for this "Other" system component. | Q187: 0 | R187: 11 | S187: FALSE | T187: 0 | U187: 169 | V187: Hospital | Y187: FALSE
A188: 5 | Q188: 0 | R188: 11 | S188: FALSE | T188: 0 | U188: 170 | V188: Hospital | Y188: TRUE | Z188: 1
A189: 5 | Q189: 0 | R189: 11 | S189: FALSE | T189: 0 | U189: 171 | V189: Hospital | Y189: FALSE
A190: 5 | Q190: 0 | R190: 11 | S190: FALSE | T190: 0 | U190: 172 | V190: Hospital | Y190: FALSE
A191: 5 | Q191: 0 | R191: 12 | S191: FALSE | T191: 0 | U191: 173 | V191: Hospital | Y191: FALSE
A192: 5 | C192: Please list your "Other" system component. | Q192: 0 | R192: 12 | S192: FALSE | T192: 0 | U192: 174 | V192: Hospital | Y192: FALSE
A193: 5 | Q193: 0 | R193: 12 | S193: FALSE | T193: 0 | U193: 175 | V193: Hospital | Y193: FALSE
A194: 5 | C194: Please enter a description for this "Other" system component. | Q194: 0 | R194: 12 | S194: FALSE | T194: 0 | U194: 176 | V194: Hospital | Y194: FALSE
A195: 5 | Q195: 0 | R195: 12 | S195: FALSE | T195: 0 | U195: 177 | V195: Hospital | Y195: TRUE | Z195: 1
A196: =IFERROR(IF(C195<>"Optional System Component",A195,A195+1),"") -> 5 | Q196: 0 | R196: 12 | S196: FALSE | T196: 0 | U196: 178 | V196: Hospital | Y196: FALSE
A197: 5 | Q197: 0 | R197: 12 | S197: FALSE | T197: 0 | U197: 179 | V197: Hospital | Y197: FALSE
A198: 5 | Q198: 0 | R198: 13 | S198: FALSE | T198: 0 | U198: 180 | V198: Hospital | Y198: FALSE
A199: 5 | C199: Please list your "Other" system component. | Q199: 0 | R199: 13 | S199: FALSE | T199: 0 | U199: 181 | V199: Hospital | Y199: FALSE
A200: 5 | Q200: 0 | R200: 13 | S200: FALSE | T200: 0 | U200: 182 | V200: Hospital | Y200: FALSE
... 362 more rows

Sheet Cat B back-end (hidden)
A2: data_height | B2: =IF(Hospital,1,0) -> 1 | C2: Table2 | Q2: data_height | R2: =IF(PhysicianPractice,1,0) -> 0 | S2: Table3 | AD2: data_height | AE2: =IF(CMHC,1,0) -> 0 | AF2: Table4 | AU2: data_height | AV2: =IF(LHD,1,0) -> 0 | AW2: Table5 | BD2: data_height | BE2: 1 | BF2: Table6
A3: Regional Category B | E3: Hospital | U3: Physician Practice | AH3: CMHC | AY3: LHD
E4: Required System Components | J4: Optional System Components | U4: Required System Components | Y4: Optional System Components | AH4: Required | AJ4: Optional System Components | AY4: Required | BA4: Optional | BH4: MLIU PPP Goals
A5: Provider Type | B5: RHP | C5: TPI | D5: Performing Provider Name | E5: Inpatient Services | F5: Emergency Department | G5: Owned or Operated Outpatient Clinics | H5: Maternal Department | I5: Owned or Operated Urgent Care Clinics | J5: Contracted Specialty Clinics | K5: Contracted Primary Care Clinics | L5: School-based Clinics | M5: Contracted Palliative Care Programs | N5: Contracted Mobile Health Programs | O5: Other | Q5: Provider Type | R5: RHP | S5: TPI | T5: Performing Provider Name | U5: Owned or Operated Primary Clinics | V5: Owned or Operated Specialty Care Clinics | W5: Owned or Operated Hospital | X5: Owned or Operated Urgent Care Clinics | Y5: Contracted Specialty Clinics | Z5: Contracted Primary Care Clinics | AA5: Contracted Community-based Programs | AB5: Other | AD5: Provider Type | AE5: RHP | AF5: TPI | AG5: Performing Provider Name | AH5: Home-based services | AI5: Office/Clinic | AJ5: Hospital | AK5: Contracted Clinic | AL5: School-based Clinic | AM5: Contracted Inpatient Beds | AN5: State-funded Community Hospital | AO5: Community Institution for Mental Disease (IMD) | AP5: General Medical Hospital | AQ5: State Mental Health Facility | AR5: State Mental Retardation Facility | AS5: Other | AU5: Provider Type | AV5: RHP | AW5: TPI | AX5: Performing Provider Name | AY5: Clinics | AZ5: Immunization Locations | BA5: Mobile Outreach | BB5: Other | BD5: RHP | BE5: TPI | BF5: Performing Provider Name | BG5: Performing Provider Type | BH5: DY7 | BI5: DY8 | BJ5: Average Total PPP | BK5: MLIU Percentage of Total PPP
A6: =IF(Hospital,ProvType,"") -> Hospital | B6: =IF(Hospital,RHP,"") -> 17 | C6: =IF(Hospital,TPI,"") -> 127267603 | D6: =IF(Hospital,INDEX('Provider List'!$C$2:$C$5000,MATCH(RHP&"_"&TPI,'Provider List'!$I$2:$I$5000,0)),"") -> St. Joseph Regional Health Center | E6: =IF(Hospital,IF(LEFT('Category B'!D23,4)="Busi","Y",""),"") -> Y | F6: =IF(Hospital,IF(LEFT('Category B'!$D31,4)="Busi","Y",""),"") -> Y | G6: =IF(Hospital,IF(LEFT('Category B'!$D39,4)="Busi","Y",""),"") -> Y | H6: =IF(Hospital,IF(LEFT('Category B'!$D47,4)="Busi","Y",""),"") -> Y | I6: =IF(Hospital,IF(LEFT('Category B'!$D55,4)="Busi","Y",""),"") ->  | J6: =IF(Hospital,IF('Category B'!$D66="Yes","Y",""),"") ->  | K6: =IF(Hospital,IF('Category B'!$D74="Yes","Y",""),"") ->  | L6: =IF(Hospital,IF('Category B'!$D82="Yes","Y",""),"") ->  | M6: =IF(Hospital,IF('Category B'!$D90="Yes","Y",""),"") ->  | N6: =IF(Hospital,IF('Category B'!$D98="Yes","Y",""),"") ->  | O6: =IF(Hospital,IF('Category B'!$D106="Yes","Y",""),"") -> Y | Q6: =IF(PhysicianPractice,"Physician Practice","") ->  | R6: =IF(PhysicianPractice,RHP,"") ->  | S6: =IF(PhysicianPractice,TPI,"") ->  | T6: =IF(PhysicianPractice,INDEX('Provider List'!$C$2:$C$5000,MATCH(RHP&"_"&TPI,'Provider List'!$I$2:$I$5000,0)),"") ->  | U6: =IF(PhysicianPractice,IF(LEFT('Category B'!D217,4)="Busi","Y",""),"") ->  | V6: =IF(PhysicianPractice,IF(LEFT('Category B'!D225,4)="Busi","Y",""),"") ->  | W6: =IF(PhysicianPractice,IF(LEFT('Category B'!D233,4)="Busi","Y",""),"") ->  | X6: =IF(PhysicianPractice,IF(LEFT('Category B'!D241,4)="Busi","Y",""),"") ->  | Y6: =IF(PhysicianPractice,IF('Category B'!D252="Yes","Y",""),"") ->  | Z6: =IF(PhysicianPractice,IF('Category B'!D260="Yes","Y",""),"") ->  | AA6: =IF(PhysicianPractice,IF('Category B'!D268="Yes","Y",""),"") ->  | AB6: =IF(PhysicianPractice,IF('Category B'!D276="Yes","Y",""),"") ->  | AD6: =IF(CMHC,ProvType,"") ->  | AE6: =IF(CMHC,RHP,"") ->  | AF6: =IF(CMHC,TPI,"") ->  | AG6: =IF(CMHC,INDEX('Provider List'!$C$2:$C$5000,MATCH(RHP&"_"&TPI,'Provider List'!$I$2:$I$5000,0)),"") ->  | AH6: =IF(CMHC,IF(LEFT('Category B'!D387,4)="Busi","Y",""),"") ->  | AI6: =IF(CMHC,IF(LEFT('Category B'!D395,4)="Busi","Y",""),"") ->  | AJ6: =IF(CMHC,IF('Category B'!D406="Yes","Y",""),"") ->  | AK6: =IF(CMHC,IF('Category B'!D414="Yes","Y",""),"") ->  | AL6: =IF(CMHC,IF('Category B'!D422="Yes","Y",""),"") ->  | AM6: =IF(CMHC,IF('Category B'!D430="Yes","Y",""),"") ->  | AN6: =IF(CMHC,IF('Category B'!D438="Yes","Y",""),"") ->  | AO6: =IF(CMHC,IF('Category B'!D446="Yes","Y",""),"") ->  | AP6: =IF(CMHC,IF('Category B'!D454="Yes","Y",""),"") ->  | AQ6: =IF(CMHC,IF('Category B'!D462="Yes","Y",""),"") ->  | AR6: =IF(CMHC,IF('Category B'!D470="Yes","Y",""),"") ->  | AS6: =IF(CMHC,IF('Category B'!D478="Yes","Y",""),"") ->  | AU6: =IF(LHD,ProvType,"") ->  | AV6: =IF(LHD,RHP,"") ->  | AW6: =IF(LHD,TPI,"") ->  | AX6: =IF(LHD,INDEX('Provider List'!$C$2:$C$5000,MATCH(RHP&"_"&TPI,'Provider List'!$I$2:$I$5000,0)),"") ->  | AY6: =IF(LHD,IF(LEFT('Category B'!D589,4)="Busi","Y",""),"") ->  | AZ6: =IF(LHD,IF(LEFT('Category B'!D597,4)="Busi","Y",""),"") ->  | BA6: =IF(LHD,IF('Category B'!D608="Yes","Y",""),"") ->  | BB6: =IF(LHD,IF('Category B'!D616="Yes","Y",""),"") ->  | BD6: =RHP -> 17 | BE6: =TPI -> 127267603 | BF6: =INDEX('Provider List'!$C$2:$C$5000,MATCH(RHP&"_"&TPI,'Provider List'!$I$2:$I$5000,0)) -> St. Joseph Regional Health Center | BG6: =ProvType -> Hospital | BH6: ='Category B'!D735 -> 35422.5 | BI6: ='Category B'!D735 -> 35422.5 | BJ6: ='Category B'!D736 -> 112975 | BK6: ='Category B'!D737 -> 0.3135428192
A8: =COLUMNS(A6:O6) -> 15
Q9: =COLUMNS(Q6:AB6) -> 12

Sheet Category C Selection
A1: MLIU denominator with significant volume | L1: HIDE | O1: TRUE = Unhide, FALSE = Hide | P1: =CELL("address",P$4)&":"&CELL("address",P$2031) -> $P$4:$P$2031 | AF1: LHD met min req? | AG1: =OR(AND($AJ$5,$AJ$3,$AJ$1>1),AND($AJ$7,$AJ$1>1)) -> FALSE | AI1: LHD # Measures Selected | AJ1: =COUNTIFS($D$1619:$D$1718,"Yes",$F$1619:$F$1718,"<>"&"No measures found")+COUNTIF($D$1728:$D$1822,"Yes") -> 0 | AK1: A2, C1, K1 all selected? | AL1: =AND(INDEX($X$11:$X$48,MATCH("C1",$S$11:$S$48,0)),INDEX($X$11:$X$48,MATCH("K1",$S$11:$S$48)),INDEX($X$11:$X$48,MATCH("A2",$S$11:$S$48,0))) -> FALSE | AP1: Cannot select these bundles if K1 is selected: | AQ1: Cannot select this measure if K1 is selected | AS1: Hosp/PP Progress Reference: | AT1: =CELL("address",AV$53)&":"&CELL("address",AV$1594) -> $AV$53:$AV$1594 | AU1: Hosp/PP Progress Count: | AV1: =COUNTIF(INDIRECT(AT1),FALSE)+IF(OR(P1609=FALSE,AND(P1609,D1609="Yes")),0,1)+IF(OR(P1612=FALSE,AND(P1612,D1612="Yes")),0,1)+IF($AQ$5,0,1) -> 0 | AX1: Bundles that PBCO is required for all prov (data val. Index 9) | BC1: =SUBSTITUTE(ADDRESS(1,COLUMN($D$1),4),"1","") -> D | BE1: =SUBSTITUTE(ADDRESS(1,COLUMN($F$1),4),"1","") -> F | BF1: =SUBSTITUTE(ADDRESS(1,COLUMN($H$1),4),"1","") -> H | BI1: =SUBSTITUTE(ADDRESS(1,COLUMN($E$1),4),"1","") -> E | BL1: Index ---> | BM1: 1 | BN1: 2 | BO1: 3 | BP1: 4 | BQ1: 5 | BR1: 6 | BS1: 7 | BT1: 8 | BU1: 9 | BV1: Threshold | BZ1: HIDE
A2: Requesting to use all-payer denominator with significant volume | D2: DY7-8 Provider RHP Plan Update Template - Category C Selection | L2: Measures G1-505 and G1-507 are slightly different (rows 830-833)… also data validation for PBCO measures in D4 & D5 | M2: Hosp/Phys Pract w/ val. > $2.5M? | N2: =IFERROR(IF(OR(DecreaseVal="Yes",IncreaseVal="Yes"),AND(OR(Hospital,PhysicianPractice),AdjValuation>2500000),AND(OR(Hospital,PhysicianPractice),UnadjValuation>2500000)),FALSE) -> FALSE | O2: HIDDEN NOW:-----> | P2: =COUNTIF(INDIRECT(P1),TRUE) -> 81 | Q2: Select Measure Bundle? (Yes/No) | S2: Total # Hospital/Phys Bundles: | T2: =SUMIF('Cat C Measures Data'!AG:AG,"Hospitals and Physician Practices",'Cat C Measures Data'!AO:AO) -> 24 | V2: # measure rows per bundle: | W2: 40 | Y2: Hosp/phys min selection req. met? | Z2: =IF($N$3,TRUE,IF($N$2,IF($K$5<75,SUM($Z$11:$Z$48)>0,SUM($AA$11:$AA$48)>0),FALSE)) -> TRUE | AA2: Both Bundles H3 and B1 selected? | AB2: =AND(INDEX($X$11:$X$48,MATCH("H3",$S$11:$S$48,0)),INDEX($X$11:$X$48,MATCH("B1",$S$11:$S$48))) -> FALSE | AC2: Count(# Bundles w/ required 3-pt. measures selected) | AD2: =COUNTIFS($W$11:$W$48,TRUE,$X$11:$X$48,TRUE) -> 1 | AF2: CMHC met min req? | AG2: =OR(AND($AJ$6,$AJ$4,$AJ$2>1),AND($AJ$8,$AJ$2>1)) -> FALSE | AI2: CMHC # Measures Selected | AJ2: =COUNTIFS($D$1848:$D$1987,"Yes",$F$1848:$F$1987,"<>"&"No measures found") -> 0 | AK2: C1 and K1, but not A2? | AL2: =AND(INDEX($X$11:$X$48,MATCH("C1",$S$11:$S$48,0)),INDEX($X$11:$X$48,MATCH("K1",$S$11:$S$48)),INDEX($X$11:$X$48,MATCH("A2",$S$11:$S$48,0))=FALSE) -> FALSE | AM2: B2 must select one of: | AN2: H2 must select one of: | AO2: CMHC Depression Response Measures | AP2: A1 | AQ2: K2-285 | AS2: LHD Progress Reference: | AT2: =CELL("address",AV$1619)&":"&CELL("address",AV$1822) -> $AV$1619:$AV$1822 | AU2: LHD Progress Count: | AV2: =COUNTIF(INDIRECT(AT2),FALSE)+IF(OR(P1838=FALSE,AND(P1838,D1838="Yes")),0,1)+IF(OR(P1841=FALSE,AND(P1841,D1841="Yes")),0,1) -> 0 | AX2: D4 | BC2: Select Bundle Cell Possibilities | BF2: Required/Optional Cell Possibilites | BH2: Index | BI2: Select Denom Opt Value Possibilities | BJ2: Sig Ind | BL2: Number/Height ---> | BM2: 6 | BN2: 4 | BO2: 3 | BP2: 1 | BQ2: 3 | BR2: 1 | BS2: 3 | BT2: 1 | BU2: 3 | BV2: 0.5
A3: Requesting to use Medicaid-only denominator with significant volume | M3: Hosp/Phys Pract w/ val. <= $2.5M? | N3: =IFERROR(IF(OR(DecreaseVal="Yes",IncreaseVal="Yes"),AND(OR(Hospital,PhysicianPractice),AdjValuation<=2500000),AND(OR(Hospital,PhysicianPractice),UnadjValuation<=2500000)),FALSE) -> TRUE | O3: HIDDEN BEFORE:-----> | P3: 81 | Q3: Select Optional Measure (Yes/No) | S3: Total # Hospital/Phys Measures: | T3: =COUNTIF('Cat C Measures Data'!AG:AG,"Hospitals and Physician Practices") -> 126 | V3: # rows between bundle & measure selection | W3: 8 | Y3: Hosp/Phys: MPT met? | Z3: =SUM($AG$11:$AG$48)>=MPT -> TRUE | AA3: Both Bundles H3 and K2 selected? | AB3: =AND(INDEX($X$11:$X$48,MATCH("H3",$S$11:$S$48,0)),INDEX($X$11:$X$48,MATCH("K2",$S$11:$S$48))) -> FALSE | AC3: Hosp. can select Bundles + CMHC/LHD? | AD3: =IFERROR(INDEX('Category C Exceptions'!$J$2:$J$5000,MATCH(RHP&"_"&TPI,'Category C Exceptions'!$L$2:$L$5000,0))="Y",FALSE) -> FALSE | AF3: LHD >=MPT? | AG3: =$E$1826>=MPT -> FALSE | AI3: LHD Selected at least one 3-pt. measure? | AJ3: =(COUNTIFS($D$1619:$D$1718,"Yes",$I$1619:$I$1718,3)+COUNTIFS($D$1728:$D$1822,"Yes",$I$1728:$I$1822,3))>0 -> FALSE | AK3: C1 and A2, but not K1? | AL3: =AND(INDEX($X$11:$X$48,MATCH("C1",$S$11:$S$48,0)),INDEX($X$11:$X$48,MATCH("K1",$S$11:$S$48))=FALSE,INDEX($X$11:$X$48,MATCH("A2",$S$11:$S$48,0))) -> FALSE | AM3: B2-242 | AN3: H2-160 | AO3: M1-165 | AP3: A2 | AS3: CMHC Progress Reference: | AT3: =CELL("address",AV$1848)&":"&CELL("address",AV$1987) -> $AV$1848:$AV$1987 | AU3: CMHC Progress Count: | AV3: =COUNTIF(INDIRECT(AT3),FALSE)+IF(OR(P2001=FALSE,AND(P2001,D2001="Yes")),0,1)+IF(OR(P2004=FALSE,AND(P2004,D2004="Yes")),0,1) -> 0 | AX3: D5 | BC3: Yes | BF3: Required | BH3: 1 | BI3: MLIU denominator with significant volume | BJ3: Y | BM3: MLIU denominator with significant volume | BN3: MLIU denominator with significant volume | BO3: All-payer denominator with significant volume | BP3: All-payer denominator with significant volume | BQ3: Medicaid-only denominator with significant volume | BR3: Medicaid-only denominator with significant volume | BS3: Reporting attributed population as P4P | BT3: MLIU denominator with significant volume | BU3: MLIU denominator with significant volume
A4: Requesting to use LIU-only denominator with significant volume | D4: Progress Tracker | M4: Hospital w/ val. <= $2.5M? | N4: =IFERROR(IF(OR(DecreaseVal="Yes",IncreaseVal="Yes"),AND(Hospital,AdjValuation<=2500000),AND(Hospital,UnadjValuation<=2500000)),FALSE) -> TRUE | O4: Rows that can be filled down, Hosp/PP: | P4: TRUE | Q4: Select Measure (Yes/No) | S4: Total # Standard LHD Measures: | T4: =COUNTIF('Cat C Measures Data'!AG:AG,"Local Health Departments") -> 32 | V4: # columns between measure selection and points | W4: 7 | Y4: Exception hosp. min selection req. met? | Z4: =IF($AD$4,OR($Z$2,COUNTIFS('Measure Selection Data'!$D$2:$D$500,TRUE,'Measure Selection Data'!$L$2:$L$500,3,'Measure Selection Data'!$W$2:$W$500,TRUE)>0),IF($AD$3,OR($Z$2,COUNTIFS('Measure Selection Data'!$D$2:$D$500,TRUE,'Measure Selection Data'!$L$2:$L$500,3,'Measure Selection Data'!$W$2:$W$500,TRUE)>0),FALSE)) -> FALSE | AA4: Both Bundles B1 and K2 selected? | AB4: =AND(INDEX($X$11:$X$48,MATCH("B1",$S$11:$S$48,0)),INDEX($X$11:$X$48,MATCH("K2",$S$11:$S$48))) -> FALSE | AC4: Hosp. can select Bundles + Unbundled measures + CMHC/LHD? | AD4: =IFERROR(INDEX('Category C Exceptions'!$K$2:$K$5000,MATCH(RHP&"_"&TPI,'Category C Exceptions'!$L$2:$L$5000,0))="Y",FALSE) -> FALSE | AF4: CMHC >=MPT? | AG4: =$E$1989>=MPT -> FALSE | AI4: CMHC Selected at least one 3-pt. measure? | AJ4: =COUNTIFS($D$1848:$D$1987,"Yes",$I$1848:$I$1987,3)>0 -> FALSE | AK4: A2 and K1, but not C1? | AL4: =AND(INDEX($X$11:$X$48,MATCH("C1",$S$11:$S$48,0))=FALSE,INDEX($X$11:$X$48,MATCH("K1",$S$11:$S$48)),INDEX($X$11:$X$48,MATCH("A2",$S$11:$S$48,0))) -> FALSE | AM4: B2-387 | AN4: H2-216 | AO4: M1-181 | AP4: B1 | AQ4: <^ Are all of these measures/bundles not selected if K1 is? | AT4: PBCO measure language in data | AU4: Exception Progress Count: | AV4: =SUM(AV1:AV3)+IF(OR(P2018=FALSE,AND(P2018,D2018="Yes")),0,1)+IF(OR(P2021=FALSE,AND(P2021,D2021="Yes")),0,1)+IF($AQ$5,0,1) -> 0 | BC4: No | BF4: Optional | BH4: 2 | BI4: Requesting to use all-payer denominator with significant volume | BJ4: Y | BM4: Requesting to use all-payer denominator with significant volume | BN4: Requesting to use all-payer denominator with significant volume | BO4: Insignificant volume for denominator | BQ4: Insignificant volume for denominator | BS4: Requesting to report as P4R | BU4: Requesting to report as P4R
A5: Insignificant volume for denominator | H5: Note: you must confirm selections at the bottom of the page to finish. | I5: MPT | K5: =IFERROR(IF(OR(DecreaseVal="Yes",IncreaseVal="Yes"),AdjMPT,INDEX('Provider Valuation and MPTs'!$A2:$K5000,MATCH(RHP&"_"&TPI,'Provider Valuation and MPTs'!$L2:$L5000,0),9)),1) -> 5 | M5: Total selected points | N5: =IF(OR(AND(Hospital,$AD$3=FALSE,$AD$4=FALSE),PhysicianPractice),$E$1597,IF(LHD,$E$1826,IF(CMHC,$E$1989,IF(AND(Hospital,OR($AD$3,$AD$4)),$E$2006,0)))) -> 6 | O5: 46:968 | P5: TRUE | S5: Total # Grandfathered LHD Measures: | Y5: Exception hosp. MPT met? | Z5: =E2006>=MPT -> TRUE | AA5: Both Bundles C1 and K1 selected? | AB5: =AND(INDEX($X$11:$X$48,MATCH("C1",$S$11:$S$48,0)),INDEX($X$11:$X$48,MATCH("K1",$S$11:$S$48))) -> FALSE | AI5: LHD w/ val. > $2.5M? | AJ5: =IF(LHD,IF(OR(IncreaseVal="Yes",DecreaseVal="Yes"),AdjValuation>2500000,UnadjValuation>2500000),FALSE) -> FALSE | AK5: D1 and D5 selected? | AL5: =AND(INDEX($X$11:$X$48,MATCH("D1",$S$11:$S$48)),INDEX($X$11:$X$48,MATCH("D5",$S$11:$S$48,0))) -> FALSE | AN5: H2-510 | AO5: M1-286 | AP5: C1 | AQ5: =OR($X$33=FALSE,AND($X$33,INDEX($D$48:$D$2008,MATCH(AP2,$E$48:$E$2008,0))="No",INDEX($D$48:$D$2008,MATCH(AP3,$E$48:$E$2008,0))="No",INDEX($D$48:$D$2008,MATCH(AP4,$E$48:$E$2008,0))="No",INDEX($D$48:$D$2008,MATCH(AP5,$E$48:$E$2008,0))="No",INDEX($D$48:$D$2008,MATCH(AP6,$E$48:$E$2008,0))="No",INDEX($D$48:$D$2008,MATCH(AP7,$E$48:$E$2008,0))="No",INDEX($D$48:$D$2008,MATCH(AP8,$E$48:$E$2008,0))="No",INDEX($D$48:$D$2008,MATCH(AQ2,$F$48:$F$2008,0))="No")) -> TRUE | AT5: Y - Required as P4P for MPT of 75, optional as P4P with additional points for MPT below 75 or P4R for any provider with greater than 0 numerator volume | BH5: 3 | BI5: Requesting to use Medicaid-only denominator with significant volume | BJ5: Y | BM5: Requesting to use Medicaid-only denominator with significant volume | BN5: Requesting to use Medicaid-only denominator with significant volume | BO5: No volume for denominator | BQ5: No volume for denominator | BS5: No numerator volume | BU5: No numerator volume | BV5: At least half the measures in the bundle must have significant volume for the denominator. Either change your denominator selections to meet the requirement or change your selection of this bundle to "No".
A6: No volume for denominator | D6: Section 2: Selection Overview (CMHCs and LHDs only) | G6: =IF('Provider Entry'!M9,"Complete",IF(D43<>"","Complete","Incomplete")) -> Incomplete | I6: Points Selected | K6: =IF(OR(AND(Hospital,$AD$3=FALSE,$AD$4=FALSE),PhysicianPractice),$E$1597,IF(LHD,$E$1826,IF(CMHC,$E$1989,$E$2006))) -> 6 | L6: MD Anderson TPI | M6: Selection Overview complete? | N6: =OR(Hospital,PhysicianPractice,AND(OR(CMHC,LHD),'Category C Selection'!D43<>"")) -> TRUE | O6: 974:1576 | P6: TRUE | S6: Total # CMHC Measures: | T6: =COUNTIF('Cat C Measures Data'!AG:AG,"Community Mental Health Centers") -> 48 | AF6: # LHD Grandfathered Measures for this Provider | AG6: =COUNTIF($E$1728:$E$1822,TPI) -> 0 | AI6: CMHC w/ val. > $2.5M? | AJ6: =IF(CMHC,IF(OR(IncreaseVal="Yes",DecreaseVal="Yes"),AdjValuation>2500000,UnadjValuation>2500000),FALSE) -> FALSE | AK6: D3 and J1 selected? | AL6: =AND(INDEX($D$48:$D$2008,MATCH("D3",$E$48:$E$2008,0))="Yes",INDEX($D$48:$D$2008,MATCH("J1",$E$48:$E$2008,0))="Yes") -> FALSE | AM6: B2-393 | AO6: # Depression Reponse Measures Selected | AP6: D1 | AU6: All Payer Only Rate --> | AV6: D3-330 | AW6: D3-331 | AX6: D3-333 | AY6: D3-334 | AZ6: D3-335 | BA6: J1-218 | BB6: J1-219 | BC6: J1-220 | BD6: J1-221 | BE6: J1-506 | BF6: M1-205 | BG6: L1-205 | BH6: 4 | BI6: Requesting to use LIU-only denominator with significant volume | BJ6: Y | BM6: Requesting to use LIU-only denominator with significant volume | BN6: Requesting to use LIU-only denominator with significant volume | BU6: You cannot select this measure if you have insignificant or no volume for the denominator.
A7: Please enter an explanation of why the alternative denominator is being requested. | D7: =IF(OR(Hospital,PhysicianPractice),"Section 2: Selection of Measure Bundles for Hospitals and Physician Practices",IF(LHD,"Section 3: Selection of Measures for Local Health Departments",IF(CMHC,"Section 3: Selection of Measures for Community Mental Health Centers","No provider selected"))) -> Section 2: Selection of Measure Bundles for Hospitals and Physician Practices | G7: =IF('Provider Entry'!M9,"Complete",IF(AND(G8="Yes",IF(OR(PhysicianPractice,AND(Hospital,$AD$3=FALSE,$AD$4=FALSE)),IF($AV$1>0,"Incomplete","Complete"),IF(LHD,IF($AV$2>0,"Incomplete","Complete"),IF(CMHC,IF($AV$3>0,"Incomplete","Complete"),IF(OR($AD$3,$AD$4),IF($AV$4>0,"Incomplete","Complete")))))="Complete"),"Complete","Incomplete")) -> Complete | I7: =IF(OR(Hospital,PhysicianPractice),"Bundles Selected","Measures Selected") -> Bundles Selected | K7: =IF(OR(Hospital,PhysicianPractice),COUNTIF($X$11:$X$48,TRUE),IF(LHD,COUNTIF($D$1619:$D$1717,"Yes")+COUNTIF($D$1728:$D$1822,"Yes"),COUNTIF($D$1848:$D$1986,"Yes"))) -> 1 | L7: 3_112672402 | M7: MPT Met? (accounts for all provider types) | N7: =IFERROR(OR(AND(OR(PhysicianPractice,AND($AD$3=FALSE,$AD$4=FALSE,Hospital)),Z3),AND(CMHC,AG4),AND(LHD,AG3),AND(Hospital,OR($AD$3,$AD$4),Z5)),FALSE) -> TRUE | P7: TRUE | S7: # extra rows for each measure section (other than measure rows): | T7: 11 | AI7: LHD w/ val. <= $2.5M | AJ7: =IF(LHD,IF(OR(IncreaseVal="Yes",DecreaseVal="Yes"),AdjValuation<=2500000,UnadjValuation<=2500000),FALSE) -> FALSE | AK7: Note: if you also select bundle K1, you are not eligible to select this bundle. If you would like to select K1, please change your selection of this bundle to "No." | AO7: =COUNTIFS($D$1848:$D$1987,"Yes",$F$1848:$F$1987,AO3)+COUNTIFS($D$1848:$D$1987,"Yes",$F$1848:$F$1987,AO4)+COUNTIFS($D$1848:$D$1987,"Yes",$F$1848:$F$1987,AO5) -> 0 | AP7: E1 | AU7: Medicaid Only Rate ---> | AV7: E1-232 | BH7: 5 | BI7: Insignificant volume for denominator | BJ7: N | BM7: Insignificant volume for denominator | BS7: All Payer Only | BU7: Please enter an explanation for the PBCO reporting request including estimated numerator and denominator volume and/or justification for no numerator volume | BW7: TO DATA VAL
A8: Please enter an explanation of why the volume is less than significant. | D8: Minimum Selection Requirements Met | G8: =IF('Provider Entry'!M9,"Yes",IF(AND(LHD,$AG$1),"Yes",IF(AND(CMHC,$AG$2),"Yes",IF(AND(OR(AND(Hospital,$AD$3=FALSE,$AD$4=FALSE),PhysicianPractice),$Z$2),"Yes",IF(AND(OR($AD$3,$AD$4),$Z$4),"Yes","No"))))) -> Yes | I8: Clinical Outcome Selected | K8: =IF(AND(OR(PhysicianPractice,AND(Hospital,$AD$3=FALSE,$AD$4=FALSE)),SUM($Z$11:$Z$48)>0),"Y",IF(AND(CMHC,$AJ$4),"Y",IF(AND(LHD,$AJ$3),"Y",IF(AND(OR($AD$3,$AD$4),OR($AJ$4,$AJ$3,COUNTIFS('Measure Selection Data'!$S$2:$S$1000,TRUE,'Measure Selection Data'!$L$2:$L$1000,3)>0)),"Y","N")))) -> Y | M8: Valuation | N8: =IFERROR(IF(OR(DecreaseVal="Yes",IncreaseVal="Yes"),AdjValuation,UnadjValuation),0) -> 2438432 | P8: TRUE | S8: Hospitals/Physician Practice Measure Bundle Calculations/Checks | AI8: CHMC w/ val. <= $2.5M | AJ8: =IF(CMHC,IF(OR(IncreaseVal="Yes",DecreaseVal="Yes"),AdjValuation<=2500000,UnadjValuation<=2500000),FALSE) -> FALSE | AK8: Note: if you also select bundle K1, you are not eligible to select optional measure "K2-285" within this bundle, but you may select the bundle. | AP8: H1 | AQ8: Shows up if select I1 Bundle | AS8: Hide/Unhide for Hospitals that can't select unbundled measures | AT8: Hide/Unhide for Hospitals that can select unbundled measures | AU8: Bundle Explanation Offset Helper | AV8: Progress Tracker Helper | BH8: 6 | BI8: No volume for denominator | BJ8: N | BM8: No volume for denominator | BS8: Mediciad Only
D9: MPT Met | G9: =IF('Provider Entry'!M9,"Yes",IF($K$6>=$K$5,"Yes","No")) -> Yes | I9: At least 2 measures selected | K9: =IF(AND(OR(LHD,CMHC),$K$7>1),"Y","N") -> N | P9: TRUE | W9: At least 1 required 3 pt measure? | X9: Selected bundle? | Y9: Selected optional 3-pt. measure? | Z9: Min. Selection Requirement Flag | AA9: # selected PBCO measures (w/ signif. Volum) | AB9: # Required Measures w/ Insign./No Volume | AC9: % Required Measures w/ Insign./No Volume | AD9: Bundle Base Points | AF9: Selected Optional Points | AK9: Note: by selecting this bundle, you are not allowed to select bundles A1, A2, B1, C1, D1, E1, or H1. You also may not select optional measure K2-285 (but you may select K2). If you have already selected one or more of these bundles, please change your selection of these bundles to "No." The Progress Tracker above will not update unless you do so. | AO9: Always false | AY9: Bundle | AZ9: Measure by | BA9: Bundle_ | BB9: Select Bundle | BC9: Select Bundle | BD9: Req v Opt | BE9: Measure | BF9: Req v Opt | BH9: Select Denom | BI9: Select Denom | BJ9: Value | BK9: Select Bundle | BL9: All Payer or | BN9: Bun_Req_ | BO9: Percent Incl Current Cell | BP9: Warning All Payer | BQ9: Warning Medicaid | BR9: Warning | BS9: Warning | BU9: Height | BV9: PBCO
I10: Measure Bundle with PBCO selected | K10: =IF($K$5=75,IF(SUM($AA$11:$AA$34)>0,"Y","N"),"N/A") -> N/A | L10: Bundle Selection offset helper | M10: Bundle Indicator | O10: Measure Selection Data Val | P10: TRUE | Q10: Bundle Selection Row Indicator | R10: Bundle Counter | S10: Bundle ID | T10: # Measures | U10: # Required | V10: # Optional | AD10: Bundle Base Points | AE10: Max Points | AF10: Selected Optional Points | AG10: Total Selected Points | AH10: # PBCO | AI10: Cumulative Rows | AJ10: Measure Selection Row Indicator | AK10: Bundle Descr. Section | AL10: Measure header | AM10: Row Between Bundle Sections | AN10: Volume Explanation Row | AO10: No bundle found? | AP10: No Measures found? | AQ10: Type of specialty entry | AY10: Index | AZ10: Bundle Index | BA10: Measure | BB10: Indicator | BC10: Value | BD10: Indicator | BE10: Bundle ID | BF10: Value | BH10: Opt Value | BI10: Opt Index | BJ10: = 5 or 6 | BK10: Value | BL10: Medicaid Only | BM10: Bun_Req | BN10: 5 or 6 | BO10: =5 or 6 | BP10: Only | BQ10: Only | BR10: Optional | BS10: Percentage | BT10: Index | BU10: Offset | BV10: Measure? | BY10: Auto-expand D35
D11: Performing Provider Information | P11: TRUE | R11: 1 | S11: =IFERROR(INDEX('Cat C Measures Data'!$AH$2:$AH$249,MATCH($R11,'Cat C Measures Data'!$AQ$2:$AQ$249,)),"No bundle found") -> A1 | T11: =IFERROR(INDEX('Cat C Bundles Data'!$F$2:$S$50,MATCH(S11,'Cat C Bundles Data'!$F$2:$F$50,0),3),"") -> 6 | U11: =COUNTIFS('Measure Selection Data'!$F$2:$F$5000,$S11,'Measure Selection Data'!$B$2:$B$5000,TRUE) -> 5 | V11: =T11-U11 -> 1 | W11: =(COUNTIF('Cat C Measures Data'!$AJ:$AJ,S11&"_Y_3")+COUNTIF('Cat C Measures Data'!$AJ:$AJ,S11&"_Y_4"))>0 -> TRUE | X11: =INDEX(D:D,MATCH($S11,E:E,0))="Yes" -> FALSE | Y11: N/A | Z11: =IF(OR(AND(W11=TRUE,COUNTIFS($M$48:$M$1594,$S11,$H$48:$H$1594,"Required",$J$48:$J$1594,"Clinical Outcome",$E$48:$E$1594,"<>Insignificant volume for denominator",$E$48:$E$1594,"<>No volume for denominator")>0,X11=TRUE,AC11<=0.5),AND(X11=TRUE,Y11=TRUE,AC11<=0.5)),1,0) -> 0 | AA11: =IF($X11,COUNTIFS($D$48:$D$1594,"Yes",$BV$48:$BV$1594,TRUE,$M$48:$M$1594,$S11,$E$48:$E$1594,"<>Requesting to report as P4R",$E$48:$E$1594,"<>No numerator volume")+COUNTIFS($D$48:$D$1594,"N/A - Required",$BV$48:$BV$1594,TRUE,$M$48:$M$1594,$S11,$E$48:$E$1594,"<>Requesting to report as P4R",$E$48:$E$1594,"<>No numerator volume"),IF($AD$4,COUNTIFS($D$48:$D$1594,"Yes",$BV$48:$BV$1594,TRUE,$M$48:$M$1594,$S11,$E$48:$E$1594,"<>Requesting to report as P4R",$E$48:$E$1594,"<>No numerator volume"),0)) -> 0 | AB11: =COUNTIFS($H$2:$H$1998,$BF$3,$M$2:$M$1998,$S11,$E$2:$E$1998,$BI$8)+COUNTIFS($H$2:$H$1998,$BF$3,$M$2:$M$1998,$S11,$E$2:$E$1998,$BI$7) -> 0 | AC11: =IFERROR($AB11/($U11-$AH11),0) -> 0 | AD11: =INDEX('Category C Selection'!$H:$H,MATCH(S11,'Category C Selection'!$E:$E,0)) -> 11 | AE11: =INDEX('Cat C Bundles Data'!$R$2:$R$50,MATCH(S11,'Cat C Bundles Data'!$F$2:$F$50,0)) -> 20 | AF11: =SUMIF(OFFSET(INDEX(D:D,MATCH($S11,E:E,0)),$W$3,0,$W$2,1),"Yes",OFFSET(INDEX(D:D,MATCH($S11,E:E,0)),$W$3,$W$4,$W$2,1))+SUMIFS(OFFSET(INDEX(D:D,MATCH($S11,E:E,0)),$W$3,$W$4,$W$2,1),OFFSET(INDEX(D:D,MATCH($S11,E:E,0)),$W$3,0,$W$2,1),"N/A - Required",OFFSET(INDEX(D:D,MATCH($S11,E:E,0)),$W$3,1,$W$2,1),"<>Requesting to report as P4R",OFFSET(INDEX(D:D,MATCH($S11,E:E,0)),$W$3,1,$W$2,1),"<>No numerator volume") -> 8 | AG11: =IF($AC11>0.5,0,IF($X11,MIN($AE11,SUM($AD11+$AF11)),IF($AD$4,MIN($AE11,$AF11),0))) -> 0 | AH11: =COUNTIFS('Measure Selection Data'!$F$2:$F$5000,$S11,'Measure Selection Data'!$X$2:$X$5000,"Population Based Clinical Outcome") -> 2 | AY11: 0
P12: TRUE | R12: =R11+1 -> 2 | S12: =IFERROR(INDEX('Cat C Measures Data'!$AH$2:$AH$249,MATCH($R12,'Cat C Measures Data'!$AQ$2:$AQ$249,)),"No bundle found") -> A2 | T12: =IFERROR(INDEX('Cat C Bundles Data'!$F$2:$S$50,MATCH(S12,'Cat C Bundles Data'!$F$2:$F$50,0),3),"") -> 6 | U12: =COUNTIFS('Measure Selection Data'!$F$2:$F$5000,$S12,'Measure Selection Data'!$B$2:$B$5000,TRUE) -> 5 | V12: 1 | W12: =(COUNTIF('Cat C Measures Data'!$AJ:$AJ,S12&"_Y_3")+COUNTIF('Cat C Measures Data'!$AJ:$AJ,S12&"_Y_4"))>0 -> TRUE | X12: =INDEX(D:D,MATCH($S12,E:E,0))="Yes" -> FALSE | Y12: =IFERROR(INDEX($D$48:$D$2008,MATCH("A2-384",$F$48:$F$2008,0))="Yes","N/A") -> FALSE | Z12: 0 | AA12: 0 | AB12: 0 | AC12: =IFERROR($AB12/($U12-$AH12),0) -> 0 | AD12: =INDEX('Category C Selection'!$H:$H,MATCH(S12,'Category C Selection'!$E:$E,0)) -> 8 | AE12: =INDEX('Cat C Bundles Data'!$R$2:$R$50,MATCH(S12,'Cat C Bundles Data'!$F$2:$F$50,0)) -> 19 | AF12: =SUMIF(OFFSET(INDEX(D:D,MATCH($S12,E:E,0)),$W$3,0,$W$2,1),"Yes",OFFSET(INDEX(D:D,MATCH($S12,E:E,0)),$W$3,$W$4,$W$2,1))+SUMIFS(OFFSET(INDEX(D:D,MATCH($S12,E:E,0)),$W$3,$W$4,$W$2,1),OFFSET(INDEX(D:D,MATCH($S12,E:E,0)),$W$3,0,$W$2,1),"N/A - Required",OFFSET(INDEX(D:D,MATCH($S12,E:E,0)),$W$3,1,$W$2,1),"<>Requesting to report as P4R",OFFSET(INDEX(D:D,MATCH($S12,E:E,0)),$W$3,1,$W$2,1),"<>No numerator volume") -> 8 | AG12: =IF($AC12>0.5,0,IF($X12,MIN($AE12,SUM($AD12+$AF12)),IF($AD$4,MIN($AE12,$AF12),0))) -> 0 | AH12: =COUNTIFS('Measure Selection Data'!$F$2:$F$5000,$S12,'Measure Selection Data'!$X$2:$X$5000,"Population Based Clinical Outcome") -> 2 | AY12: 0
D13: RHP: | E13: =RHP -> 17 | P13: TRUE | R13: =R12+1 -> 3 | S13: =IFERROR(INDEX('Cat C Measures Data'!$AH$2:$AH$249,MATCH($R13,'Cat C Measures Data'!$AQ$2:$AQ$249,)),"No bundle found") -> B1 | T13: =IFERROR(INDEX('Cat C Bundles Data'!$F$2:$S$50,MATCH(S13,'Cat C Bundles Data'!$F$2:$F$50,0),3),"") -> 7 | U13: =COUNTIFS('Measure Selection Data'!$F$2:$F$5000,$S13,'Measure Selection Data'!$B$2:$B$5000,TRUE) -> 7 | V13: 0 | W13: =(COUNTIF('Cat C Measures Data'!$AJ:$AJ,S13&"_Y_3")+COUNTIF('Cat C Measures Data'!$AJ:$AJ,S13&"_Y_4"))>0 -> TRUE | X13: =INDEX(D:D,MATCH($S13,E:E,0))="Yes" -> FALSE | Y13: N/A | Z13: 0 | AA13: 0 | AB13: 0 | AC13: 0 | AD13: =INDEX('Category C Selection'!$H:$H,MATCH(S13,'Category C Selection'!$E:$E,0)) -> 11 | AE13: =INDEX('Cat C Bundles Data'!$R$2:$R$50,MATCH(S13,'Cat C Bundles Data'!$F$2:$F$50,0)) -> 11 | AF13: =SUMIF(OFFSET(INDEX(D:D,MATCH($S13,E:E,0)),$W$3,0,$W$2,1),"Yes",OFFSET(INDEX(D:D,MATCH($S13,E:E,0)),$W$3,$W$4,$W$2,1)) -> 0 | AG13: 0 | AH13: =COUNTIFS('Measure Selection Data'!$F$2:$F$5000,$S13,'Measure Selection Data'!$X$2:$X$5000,"Population Based Clinical Outcome") -> 0 | AY13: 0
D14: TPI and Performing Provider Name: | E14: ='Provider Entry'!$D$15 -> 127267603 - St. Joseph Regional Health Center | P14: TRUE | R14: 4 | S14: =IFERROR(INDEX('Cat C Measures Data'!$AH$2:$AH$249,MATCH($R14,'Cat C Measures Data'!$AQ$2:$AQ$249,)),"No bundle found") -> B2 | T14: =IFERROR(INDEX('Cat C Bundles Data'!$F$2:$S$50,MATCH(S14,'Cat C Bundles Data'!$F$2:$F$50,0),3),"") -> 4 | U14: =COUNTIFS('Measure Selection Data'!$F$2:$F$5000,$S14,'Measure Selection Data'!$B$2:$B$5000,TRUE) -> 1 | V14: 3 | W14: =(COUNTIF('Cat C Measures Data'!$AJ:$AJ,S14&"_Y_3")+COUNTIF('Cat C Measures Data'!$AJ:$AJ,S14&"_Y_4"))>0 -> TRUE | X14: =AND(INDEX(D48:D1594,MATCH($S14,E48:E1594,0))="Yes",OR(INDEX(D48:D1594,MATCH(AM3,F48:F1594,0))="Yes",INDEX(D48:D1594,MATCH(AM4,F48:F1594,0))="Yes",INDEX(D48:D1594,MATCH(AM6,F48:F1594,0))="Yes")) -> TRUE | Y14: N/A | Z14: 1 | AA14: 0 | AB14: 0 | AC14: 0 | AD14: =INDEX('Category C Selection'!$H:$H,MATCH(S14,'Category C Selection'!$E:$E,0)) -> 3 | AE14: =INDEX('Cat C Bundles Data'!$R$2:$R$50,MATCH(S14,'Cat C Bundles Data'!$F$2:$F$50,0)) -> 12 | AF14: 3 | AG14: =IF($AC14>0.5,0,IF($X14,MIN($AE14,SUM($AD14+$AF14)),IF($AD$4,MIN($AE14,$AF14),0))) -> 6 | AH14: =COUNTIFS('Measure Selection Data'!$F$2:$F$5000,$S14,'Measure Selection Data'!$X$2:$X$5000,"Population Based Clinical Outcome") -> 0 | AY14: 0
D15: Performing Provider Type: | E15: =ProvType -> Hospital | P15: TRUE | R15: 5 | S15: =IFERROR(INDEX('Cat C Measures Data'!$AH$2:$AH$249,MATCH($R15,'Cat C Measures Data'!$AQ$2:$AQ$249,)),"No bundle found") -> C1 | T15: =IFERROR(INDEX('Cat C Bundles Data'!$F$2:$S$50,MATCH(S15,'Cat C Bundles Data'!$F$2:$F$50,0),3),"") -> 9 | U15: =COUNTIFS('Measure Selection Data'!$F$2:$F$5000,$S15,'Measure Selection Data'!$B$2:$B$5000,TRUE) -> 9 | V15: 0 | W15: =(COUNTIF('Cat C Measures Data'!$AJ:$AJ,S15&"_Y_3")+COUNTIF('Cat C Measures Data'!$AJ:$AJ,S15&"_Y_4"))>0 -> FALSE | X15: =INDEX(D:D,MATCH($S15,E:E,0))="Yes" -> FALSE | Y15: =IF(K5=75,"N/A",INDEX($D$48:$D$2008,MATCH("C1-502",$F$48:$F$2008,0))="Yes") -> FALSE | Z15: 0 | AA15: 0 | AB15: 0 | AC15: 0 | AD15: =INDEX('Category C Selection'!$H:$H,MATCH(S15,'Category C Selection'!$E:$E,0)) -> 12 | AE15: =INDEX('Cat C Bundles Data'!$R$2:$R$50,MATCH(S15,'Cat C Bundles Data'!$F$2:$F$50,0)) -> 16 | AF15: =SUMIF(OFFSET(INDEX(D:D,MATCH($S15,E:E,0)),$W$3,0,$W$2,1),"Yes",OFFSET(INDEX(D:D,MATCH($S15,E:E,0)),$W$3,$W$4,$W$2,1))+SUMIFS(OFFSET(INDEX(D:D,MATCH($S15,E:E,0)),$W$3,$W$4,$W$2,1),OFFSET(INDEX(D:D,MATCH($S15,E:E,0)),$W$3,0,$W$2,1),"N/A - Required",OFFSET(INDEX(D:D,MATCH($S15,E:E,0)),$W$3,1,$W$2,1),"<>Requesting to report as P4R",OFFSET(INDEX(D:D,MATCH($S15,E:E,0)),$W$3,1,$W$2,1),"<>No numerator volume") -> 4 | AG15: =IF($AC15>0.5,0,IF($X15,MIN($AE15,SUM($AD15+$AF15)),IF($AD$4,MIN($AE15,$AF15),0))) -> 0 | AH15: =COUNTIFS('Measure Selection Data'!$F$2:$F$5000,$S15,'Measure Selection Data'!$X$2:$X$5000,"Population Based Clinical Outcome") -> 1 | AY15: 0
D16: Ownership: | E16: =Ownership -> Private | P16: TRUE | R16: 6 | S16: =IFERROR(INDEX('Cat C Measures Data'!$AH$2:$AH$249,MATCH($R16,'Cat C Measures Data'!$AQ$2:$AQ$249,)),"No bundle found") -> C2 | T16: =IFERROR(INDEX('Cat C Bundles Data'!$F$2:$S$50,MATCH(S16,'Cat C Bundles Data'!$F$2:$F$50,0),3),"") -> 3 | U16: =COUNTIFS('Measure Selection Data'!$F$2:$F$5000,$S16,'Measure Selection Data'!$B$2:$B$5000,TRUE) -> 3 | V16: 0 | W16: =(COUNTIF('Cat C Measures Data'!$AJ:$AJ,S16&"_Y_3")+COUNTIF('Cat C Measures Data'!$AJ:$AJ,S16&"_Y_4"))>0 -> FALSE | X16: FALSE | Y16: N/A | Z16: 0 | AA16: 0 | AB16: 0 | AC16: 0 | AD16: =INDEX('Category C Selection'!$H:$H,MATCH(S16,'Category C Selection'!$E:$E,0)) -> 6 | AE16: =INDEX('Cat C Bundles Data'!$R$2:$R$50,MATCH(S16,'Cat C Bundles Data'!$F$2:$F$50,0)) -> 6 | AF16: 0 | AG16: 0 | AH16: =COUNTIFS('Measure Selection Data'!$F$2:$F$5000,$S16,'Measure Selection Data'!$X$2:$X$5000,"Population Based Clinical Outcome") -> 0 | AY16: 0
P17: TRUE | R17: 7 | S17: =IFERROR(INDEX('Cat C Measures Data'!$AH$2:$AH$249,MATCH($R17,'Cat C Measures Data'!$AQ$2:$AQ$249,)),"No bundle found") -> C3 | T17: =IFERROR(INDEX('Cat C Bundles Data'!$F$2:$S$50,MATCH(S17,'Cat C Bundles Data'!$F$2:$F$50,0),3),"") -> 4 | U17: =COUNTIFS('Measure Selection Data'!$F$2:$F$5000,$S17,'Measure Selection Data'!$B$2:$B$5000,TRUE) -> 4 | V17: 0 | W17: =(COUNTIF('Cat C Measures Data'!$AJ:$AJ,S17&"_Y_3")+COUNTIF('Cat C Measures Data'!$AJ:$AJ,S17&"_Y_4"))>0 -> FALSE | X17: FALSE | Y17: N/A | Z17: 0 | AA17: 0 | AB17: 0 | AC17: 0 | AD17: =INDEX('Category C Selection'!$H:$H,MATCH(S17,'Category C Selection'!$E:$E,0)) -> 4 | AE17: =INDEX('Cat C Bundles Data'!$R$2:$R$50,MATCH(S17,'Cat C Bundles Data'!$F$2:$F$50,0)) -> 4 | AF17: 0 | AG17: 0 | AH17: =COUNTIFS('Measure Selection Data'!$F$2:$F$5000,$S17,'Measure Selection Data'!$X$2:$X$5000,"Population Based Clinical Outcome") -> 0 | AY17: 0
D18: If regional private hospital participation requirement is met | E18: Category C valuation in DY7: | G18: =IF(OR(IncreaseVal="Yes",DecreaseVal="Yes"),'Provider Entry'!D107,'Provider Entry'!D75) -> 1341137.6 | P18: TRUE | R18: 8 | S18: =IFERROR(INDEX('Cat C Measures Data'!$AH$2:$AH$249,MATCH($R18,'Cat C Measures Data'!$AQ$2:$AQ$249,)),"No bundle found") -> D1 | T18: =IFERROR(INDEX('Cat C Bundles Data'!$F$2:$S$50,MATCH(S18,'Cat C Bundles Data'!$F$2:$F$50,0),3),"") -> 11 | U18: =COUNTIFS('Measure Selection Data'!$F$2:$F$5000,$S18,'Measure Selection Data'!$B$2:$B$5000,TRUE) -> 8 | V18: 3 | W18: =(COUNTIF('Cat C Measures Data'!$AJ:$AJ,S18&"_Y_3")+COUNTIF('Cat C Measures Data'!$AJ:$AJ,S18&"_Y_4"))>0 -> TRUE | X18: FALSE | Y18: N/A | Z18: 0 | AA18: 0 | AB18: 0 | AC18: 0 | AD18: =INDEX('Category C Selection'!$H:$H,MATCH(S18,'Category C Selection'!$E:$E,0)) -> 14 | AE18: =INDEX('Cat C Bundles Data'!$R$2:$R$50,MATCH(S18,'Cat C Bundles Data'!$F$2:$F$50,0)) -> 20 | AF18: =SUMIF(OFFSET(INDEX(D:D,MATCH($S18,E:E,0)),$W$3,0,$W$2,1),"Yes",OFFSET(INDEX(D:D,MATCH($S18,E:E,0)),$W$3,$W$4,$W$2,1))+SUMIFS(OFFSET(INDEX(D:D,MATCH($S18,E:E,0)),$W$3,$W$4,$W$2,1),OFFSET(INDEX(D:D,MATCH($S18,E:E,0)),$W$3,0,$W$2,1),"N/A - Required",OFFSET(INDEX(D:D,MATCH($S18,E:E,0)),$W$3,1,$W$2,1),"<>Requesting to report as P4R",OFFSET(INDEX(D:D,MATCH($S18,E:E,0)),$W$3,1,$W$2,1),"<>No numerator volume") -> 4 | AG18: 0 | AH18: =COUNTIFS('Measure Selection Data'!$F$2:$F$5000,$S18,'Measure Selection Data'!$X$2:$X$5000,"Population Based Clinical Outcome") -> 1 | AY18: 0
E19: Category C valuation in DY8: | G19: =IF(OR(IncreaseVal="Yes",DecreaseVal="Yes"),'Provider Entry'!E107,'Provider Entry'!E75) -> 1828824 | P19: TRUE | R19: 9 | S19: =IFERROR(INDEX('Cat C Measures Data'!$AH$2:$AH$249,MATCH($R19,'Cat C Measures Data'!$AQ$2:$AQ$249,)),"No bundle found") -> D3 | T19: =IFERROR(INDEX('Cat C Bundles Data'!$F$2:$S$50,MATCH(S19,'Cat C Bundles Data'!$F$2:$F$50,0),3),"") -> 5 | U19: =COUNTIFS('Measure Selection Data'!$F$2:$F$5000,$S19,'Measure Selection Data'!$B$2:$B$5000,TRUE) -> 5 | V19: 0 | W19: =(COUNTIF('Cat C Measures Data'!$AJ:$AJ,S19&"_Y_3")+COUNTIF('Cat C Measures Data'!$AJ:$AJ,S19&"_Y_4"))>0 -> FALSE | X19: FALSE | Y19: N/A | Z19: 0 | AA19: 0 | AB19: 0 | AC19: 0 | AD19: =INDEX('Category C Selection'!$H:$H,MATCH(S19,'Category C Selection'!$E:$E,0)) -> 10 | AE19: =INDEX('Cat C Bundles Data'!$R$2:$R$50,MATCH(S19,'Cat C Bundles Data'!$F$2:$F$50,0)) -> 10 | AF19: 0 | AG19: =IF(AC19>0.5,0,IF(X19,IF(AL6,AD19/2,AD19),0)) -> 0 | AH19: =COUNTIFS('Measure Selection Data'!$F$2:$F$5000,$S19,'Measure Selection Data'!$X$2:$X$5000,"Population Based Clinical Outcome") -> 0 | AY19: 0
D20: If regional private hospital participation requirement is not met | E20: Category C valuation in DY7: | G20: =IF(OR(IncreaseVal="Yes",DecreaseVal="Yes"),'Provider Entry'!F107,'Provider Entry'!F75) -> 1584980.8 | P20: TRUE | R20: 10 | S20: =IFERROR(INDEX('Cat C Measures Data'!$AH$2:$AH$249,MATCH($R20,'Cat C Measures Data'!$AQ$2:$AQ$249,)),"No bundle found") -> D4 | T20: =IFERROR(INDEX('Cat C Bundles Data'!$F$2:$S$50,MATCH(S20,'Cat C Bundles Data'!$F$2:$F$50,0),3),"") -> 3 | U20: =COUNTIFS('Measure Selection Data'!$F$2:$F$5000,$S20,'Measure Selection Data'!$B$2:$B$5000,TRUE) -> 3 | V20: 0 | W20: =(COUNTIF('Cat C Measures Data'!$AJ:$AJ,S20&"_Y_3")+COUNTIF('Cat C Measures Data'!$AJ:$AJ,S20&"_Y_4"))>0 -> TRUE | X20: FALSE | Y20: N/A | Z20: 0 | AA20: 0 | AB20: 0 | AC20: 0 | AD20: =INDEX('Category C Selection'!$H:$H,MATCH(S20,'Category C Selection'!$E:$E,0)) -> 9 | AE20: =INDEX('Cat C Bundles Data'!$R$2:$R$50,MATCH(S20,'Cat C Bundles Data'!$F$2:$F$50,0)) -> 9 | AF20: 0 | AG20: 0 | AH20: =COUNTIFS('Measure Selection Data'!$F$2:$F$5000,$S20,'Measure Selection Data'!$X$2:$X$5000,"Population Based Clinical Outcome") -> 1 | AY20: 0
E21: Category C valuation in DY8: | G21: =IF(OR(IncreaseVal="Yes",DecreaseVal="Yes"),'Provider Entry'!G107,'Provider Entry'!G75) -> 2072667.2 | P21: TRUE | R21: 11 | S21: =IFERROR(INDEX('Cat C Measures Data'!$AH$2:$AH$249,MATCH($R21,'Cat C Measures Data'!$AQ$2:$AQ$249,)),"No bundle found") -> D5 | T21: =IFERROR(INDEX('Cat C Bundles Data'!$F$2:$S$50,MATCH(S21,'Cat C Bundles Data'!$F$2:$F$50,0),3),"") -> 3 | U21: =COUNTIFS('Measure Selection Data'!$F$2:$F$5000,$S21,'Measure Selection Data'!$B$2:$B$5000,TRUE) -> 2 | V21: 1 | W21: =(COUNTIF('Cat C Measures Data'!$AJ:$AJ,S21&"_Y_3")+COUNTIF('Cat C Measures Data'!$AJ:$AJ,S21&"_Y_4"))>0 -> TRUE | X21: FALSE | Y21: N/A | Z21: 0 | AA21: 0 | AB21: 0 | AC21: 0 | AD21: =INDEX('Category C Selection'!$H:$H,MATCH(S21,'Category C Selection'!$E:$E,0)) -> 8 | AE21: =INDEX('Cat C Bundles Data'!$R$2:$R$50,MATCH(S21,'Cat C Bundles Data'!$F$2:$F$50,0)) -> 8 | AF21: 0 | AG21: 0 | AH21: =COUNTIFS('Measure Selection Data'!$F$2:$F$5000,$S21,'Measure Selection Data'!$X$2:$X$5000,"Population Based Clinical Outcome") -> 1 | AY21: 0
P22: FALSE | R22: 12 | S22: =IFERROR(INDEX('Cat C Measures Data'!$AH$2:$AH$249,MATCH($R22,'Cat C Measures Data'!$AQ$2:$AQ$249,)),"No bundle found") -> E1 | T22: =IFERROR(INDEX('Cat C Bundles Data'!$F$2:$S$50,MATCH(S22,'Cat C Bundles Data'!$F$2:$F$50,0),3),"") -> 4 | U22: =COUNTIFS('Measure Selection Data'!$F$2:$F$5000,$S22,'Measure Selection Data'!$B$2:$B$5000,TRUE) -> 3 | V22: 1 | W22: =(COUNTIF('Cat C Measures Data'!$AJ:$AJ,S22&"_Y_3")+COUNTIF('Cat C Measures Data'!$AJ:$AJ,S22&"_Y_4"))>0 -> TRUE | X22: FALSE | Y22: N/A | Z22: 0 | AA22: 0 | AB22: 0 | AC22: 0 | AD22: =INDEX('Category C Selection'!$H:$H,MATCH(S22,'Category C Selection'!$E:$E,0)) -> 10 | AE22: =INDEX('Cat C Bundles Data'!$R$2:$R$50,MATCH(S22,'Cat C Bundles Data'!$F$2:$F$50,0)) -> 11 | AF22: 0 | AG22: 0 | AH22: =COUNTIFS('Measure Selection Data'!$F$2:$F$5000,$S22,'Measure Selection Data'!$X$2:$X$5000,"Population Based Clinical Outcome") -> 0 | AY22: 0
D23: If regional private hospital participation requirement is met | E23: Upper range of Category C valuation in DY7: | G23: 0 | P23: FALSE | R23: 13 | S23: =IFERROR(INDEX('Cat C Measures Data'!$AH$2:$AH$249,MATCH($R23,'Cat C Measures Data'!$AQ$2:$AQ$249,)),"No bundle found") -> E2 | T23: =IFERROR(INDEX('Cat C Bundles Data'!$F$2:$S$50,MATCH(S23,'Cat C Bundles Data'!$F$2:$F$50,0),3),"") -> 3 | U23: =COUNTIFS('Measure Selection Data'!$F$2:$F$5000,$S23,'Measure Selection Data'!$B$2:$B$5000,TRUE) -> 3 | V23: 0 | W23: =(COUNTIF('Cat C Measures Data'!$AJ:$AJ,S23&"_Y_3")+COUNTIF('Cat C Measures Data'!$AJ:$AJ,S23&"_Y_4"))>0 -> TRUE | X23: FALSE | Y23: N/A | Z23: 0 | AA23: 0 | AB23: 0 | AC23: 0 | AD23: =INDEX('Category C Selection'!$H:$H,MATCH(S23,'Category C Selection'!$E:$E,0)) -> 8 | AE23: =INDEX('Cat C Bundles Data'!$R$2:$R$50,MATCH(S23,'Cat C Bundles Data'!$F$2:$F$50,0)) -> 8 | AF23: 0 | AG23: 0 | AH23: =COUNTIFS('Measure Selection Data'!$F$2:$F$5000,$S23,'Measure Selection Data'!$X$2:$X$5000,"Population Based Clinical Outcome") -> 0 | AY23: 0
E24: Upper range of Category C valuation in DY8: | G24: 0 | P24: FALSE | R24: 14 | S24: =IFERROR(INDEX('Cat C Measures Data'!$AH$2:$AH$249,MATCH($R24,'Cat C Measures Data'!$AQ$2:$AQ$249,)),"No bundle found") -> F1 | T24: =IFERROR(INDEX('Cat C Bundles Data'!$F$2:$S$50,MATCH(S24,'Cat C Bundles Data'!$F$2:$F$50,0),3),"") -> 4 | U24: =COUNTIFS('Measure Selection Data'!$F$2:$F$5000,$S24,'Measure Selection Data'!$B$2:$B$5000,TRUE) -> 3 | V24: 1 | W24: =(COUNTIF('Cat C Measures Data'!$AJ:$AJ,S24&"_Y_3")+COUNTIF('Cat C Measures Data'!$AJ:$AJ,S24&"_Y_4"))>0 -> TRUE | X24: FALSE | Y24: N/A | Z24: 0 | AA24: 0 | AB24: 0 | AC24: 0 | AD24: =INDEX('Category C Selection'!$H:$H,MATCH(S24,'Category C Selection'!$E:$E,0)) -> 7 | AE24: =INDEX('Cat C Bundles Data'!$R$2:$R$50,MATCH(S24,'Cat C Bundles Data'!$F$2:$F$50,0)) -> 7 | AF24: 0 | AG24: 0 | AH24: =COUNTIFS('Measure Selection Data'!$F$2:$F$5000,$S24,'Measure Selection Data'!$X$2:$X$5000,"Population Based Clinical Outcome") -> 0 | AY24: 0
D25: If regional private hospital participation requirement is not met | E25: Upper range of Category C valuation in DY7: | G25: 0 | P25: FALSE | R25: 15 | S25: =IFERROR(INDEX('Cat C Measures Data'!$AH$2:$AH$249,MATCH($R25,'Cat C Measures Data'!$AQ$2:$AQ$249,)),"No bundle found") -> F2 | T25: =IFERROR(INDEX('Cat C Bundles Data'!$F$2:$S$50,MATCH(S25,'Cat C Bundles Data'!$F$2:$F$50,0),3),"") -> 2 | U25: =COUNTIFS('Measure Selection Data'!$F$2:$F$5000,$S25,'Measure Selection Data'!$B$2:$B$5000,TRUE) -> 2 | V25: 0 | W25: =(COUNTIF('Cat C Measures Data'!$AJ:$AJ,S25&"_Y_3")+COUNTIF('Cat C Measures Data'!$AJ:$AJ,S25&"_Y_4"))>0 -> FALSE | X25: FALSE | Y25: N/A | Z25: 0 | AA25: 0 | AB25: 0 | AC25: 0 | AD25: =INDEX('Category C Selection'!$H:$H,MATCH(S25,'Category C Selection'!$E:$E,0)) -> 2 | AE25: =INDEX('Cat C Bundles Data'!$R$2:$R$50,MATCH(S25,'Cat C Bundles Data'!$F$2:$F$50,0)) -> 2 | AF25: 0 | AG25: 0 | AH25: =COUNTIFS('Measure Selection Data'!$F$2:$F$5000,$S25,'Measure Selection Data'!$X$2:$X$5000,"Population Based Clinical Outcome") -> 0 | AY25: 0
E26: Upper range of Category C valuation in DY8: | G26: 0 | P26: FALSE | R26: 16 | S26: =IFERROR(INDEX('Cat C Measures Data'!$AH$2:$AH$249,MATCH($R26,'Cat C Measures Data'!$AQ$2:$AQ$249,)),"No bundle found") -> G1 | T26: =IFERROR(INDEX('Cat C Bundles Data'!$F$2:$S$50,MATCH(S26,'Cat C Bundles Data'!$F$2:$F$50,0),3),"") -> 8 | U26: =COUNTIFS('Measure Selection Data'!$F$2:$F$5000,$S26,'Measure Selection Data'!$B$2:$B$5000,TRUE) -> 6 | V26: 2 | W26: =(COUNTIF('Cat C Measures Data'!$AJ:$AJ,S26&"_Y_3")+COUNTIF('Cat C Measures Data'!$AJ:$AJ,S26&"_Y_4"))>0 -> FALSE | X26: FALSE | Y26: =IF(TPI<>"112672402","N/A",OR(INDEX($D$48:$D$2008,MATCH("G1-505",$F$48:$F$2008,0))="Yes",INDEX($D$48:$D$2008,MATCH("G1-507",$F$48:$F$2008,0))="Yes")) -> N/A | Z26: 0 | AA26: 0 | AB26: 0 | AC26: 0 | AD26: =INDEX('Category C Selection'!$H:$H,MATCH(S26,'Category C Selection'!$E:$E,0)) -> 6 | AE26: =INDEX('Cat C Bundles Data'!$R$2:$R$50,MATCH(S26,'Cat C Bundles Data'!$F$2:$F$50,0)) -> 12 | AF26: 0 | AG26: 0 | AH26: =COUNTIFS('Measure Selection Data'!$F$2:$F$5000,$S26,'Measure Selection Data'!$X$2:$X$5000,"Population Based Clinical Outcome") -> 0 | AY26: 0
P27: TRUE | R27: 17 | S27: =IFERROR(INDEX('Cat C Measures Data'!$AH$2:$AH$249,MATCH($R27,'Cat C Measures Data'!$AQ$2:$AQ$249,)),"No bundle found") -> H1 | T27: =IFERROR(INDEX('Cat C Bundles Data'!$F$2:$S$50,MATCH(S27,'Cat C Bundles Data'!$F$2:$F$50,0),3),"") -> 5 | U27: =COUNTIFS('Measure Selection Data'!$F$2:$F$5000,$S27,'Measure Selection Data'!$B$2:$B$5000,TRUE) -> 4 | V27: 1 | W27: =(COUNTIF('Cat C Measures Data'!$AJ:$AJ,S27&"_Y_3")+COUNTIF('Cat C Measures Data'!$AJ:$AJ,S27&"_Y_4"))>0 -> TRUE | X27: FALSE | Y27: N/A | Z27: 0 | AA27: 0 | AB27: 0 | AC27: 0 | AD27: =INDEX('Category C Selection'!$H:$H,MATCH(S27,'Category C Selection'!$E:$E,0)) -> 12 | AE27: =INDEX('Cat C Bundles Data'!$R$2:$R$50,MATCH(S27,'Cat C Bundles Data'!$F$2:$F$50,0)) -> 12 | AF27: 0 | AG27: 0 | AH27: =COUNTIFS('Measure Selection Data'!$F$2:$F$5000,$S27,'Measure Selection Data'!$X$2:$X$5000,"Population Based Clinical Outcome") -> 0 | AY27: 0
D28: MINIMUM POINT THRESHOLD (MPT): | F28: =IF(OR(DecreaseVal="Yes",IncreaseVal="Yes"),AdjMPT,INDEX('Provider Valuation and MPTs'!$A2:$K5000,MATCH(RHP&"_"&TPI,'Provider Valuation and MPTs'!$L2:$L5000,0),9)) -> 5 | P28: TRUE | R28: 18 | S28: =IFERROR(INDEX('Cat C Measures Data'!$AH$2:$AH$249,MATCH($R28,'Cat C Measures Data'!$AQ$2:$AQ$249,)),"No bundle found") -> H2 | T28: =IFERROR(INDEX('Cat C Bundles Data'!$F$2:$S$50,MATCH(S28,'Cat C Bundles Data'!$F$2:$F$50,0),3),"") -> 9 | U28: =COUNTIFS('Measure Selection Data'!$F$2:$F$5000,$S28,'Measure Selection Data'!$B$2:$B$5000,TRUE) -> 6 | V28: 3 | W28: TRUE | X28: =AND(D920="Yes",OR(D938="Yes",D940="Yes",AND(E944<>"Requesting to report as P4R",E944<>"No numerator volume"))) -> FALSE | Y28: =OR(D938="Yes",D940="Yes",AND(E944<>"Requesting to report as P4R",E944<>"No numerator volume")) -> TRUE | Z28: 0 | AA28: 0 | AB28: 0 | AC28: 0 | AD28: =INDEX('Category C Selection'!$H:$H,MATCH(S28,'Category C Selection'!$E:$E,0)) -> 8 | AE28: =INDEX('Cat C Bundles Data'!$R$2:$R$50,MATCH(S28,'Cat C Bundles Data'!$F$2:$F$50,0)) -> 19 | AF28: =SUMIF(OFFSET(INDEX(D:D,MATCH($S28,E:E,0)),$W$3,0,$W$2,1),"Yes",OFFSET(INDEX(D:D,MATCH($S28,E:E,0)),$W$3,$W$4,$W$2,1))+SUMIFS(OFFSET(INDEX(D:D,MATCH($S28,E:E,0)),$W$3,$W$4,$W$2,1),OFFSET(INDEX(D:D,MATCH($S28,E:E,0)),$W$3,0,$W$2,1),"N/A - Required",OFFSET(INDEX(D:D,MATCH($S28,E:E,0)),$W$3,1,$W$2,1),"<>Requesting to report as P4R",OFFSET(INDEX(D:D,MATCH($S28,E:E,0)),$W$3,1,$W$2,1),"<>No numerator volume") -> 4 | AG28: 0 | AH28: =COUNTIFS('Measure Selection Data'!$F$2:$F$5000,$S28,'Measure Selection Data'!$X$2:$X$5000,"Population Based Clinical Outcome") -> 1 | AY28: 0
D29: ALTERNATIVE MINIMUM POINT THRESHOLD (MPT): | P29: FALSE | R29: 19 | S29: =IFERROR(INDEX('Cat C Measures Data'!$AH$2:$AH$249,MATCH($R29,'Cat C Measures Data'!$AQ$2:$AQ$249,)),"No bundle found") -> H3 | T29: =IFERROR(INDEX('Cat C Bundles Data'!$F$2:$S$50,MATCH(S29,'Cat C Bundles Data'!$F$2:$F$50,0),3),"") -> 7 | U29: =COUNTIFS('Measure Selection Data'!$F$2:$F$5000,$S29,'Measure Selection Data'!$B$2:$B$5000,TRUE) -> 5 | V29: 2 | W29: =(COUNTIF('Cat C Measures Data'!$AJ:$AJ,S29&"_Y_3")+COUNTIF('Cat C Measures Data'!$AJ:$AJ,S29&"_Y_4"))>0 -> FALSE | X29: =INDEX(D:D,MATCH($S29,E:E,0))="Yes" -> FALSE | Y29: N/A | Z29: 0 | AA29: 0 | AB29: 0 | AC29: 0 | AD29: =INDEX('Category C Selection'!$H:$H,MATCH(S29,'Category C Selection'!$E:$E,0)) -> 10 | AE29: =INDEX('Cat C Bundles Data'!$R$2:$R$50,MATCH(S29,'Cat C Bundles Data'!$F$2:$F$50,0)) -> 10 | AF29: 0 | AG29: 0 | AH29: =COUNTIFS('Measure Selection Data'!$F$2:$F$5000,$S29,'Measure Selection Data'!$X$2:$X$5000,"Population Based Clinical Outcome") -> 0 | AY29: 0
D30: Each Performing Provider must select Measure Bundles/measures to meet or exceed their MPT to maintain their valuation that was confirmed on the Provider Entry tab | P30: TRUE | R30: 20 | S30: =IFERROR(INDEX('Cat C Measures Data'!$AH$2:$AH$249,MATCH($R30,'Cat C Measures Data'!$AQ$2:$AQ$249,)),"No bundle found") -> H4 | T30: =IFERROR(INDEX('Cat C Bundles Data'!$F$2:$S$50,MATCH(S30,'Cat C Bundles Data'!$F$2:$F$50,0),3),"") -> 3 | U30: =COUNTIFS('Measure Selection Data'!$F$2:$F$5000,$S30,'Measure Selection Data'!$B$2:$B$5000,TRUE) -> 3 | V30: 0 | W30: =(COUNTIF('Cat C Measures Data'!$AJ:$AJ,S30&"_Y_3")+COUNTIF('Cat C Measures Data'!$AJ:$AJ,S30&"_Y_4"))>0 -> FALSE | X30: FALSE | Y30: N/A | Z30: 0 | AA30: 0 | AB30: 0 | AC30: 0 | AD30: =INDEX('Category C Selection'!$H:$H,MATCH(S30,'Category C Selection'!$E:$E,0)) -> 5 | AE30: =INDEX('Cat C Bundles Data'!$R$2:$R$50,MATCH(S30,'Cat C Bundles Data'!$F$2:$F$50,0)) -> 5 | AF30: =SUMIF(OFFSET(INDEX(D:D,MATCH($S30,E:E,0)),$W$3+5,0,$W$2,1),"Yes",OFFSET(INDEX(D:D,MATCH($S30,E:E,0)),$W$3+5,$W$4,$W$2,1)) -> 0 | AG30: 0 | AH30: =COUNTIFS('Measure Selection Data'!$F$2:$F$5000,$S30,'Measure Selection Data'!$X$2:$X$5000,"Population Based Clinical Outcome") -> 0 | AY30: 0
P31: TRUE | R31: 21 | S31: =IFERROR(INDEX('Cat C Measures Data'!$AH$2:$AH$249,MATCH($R31,'Cat C Measures Data'!$AQ$2:$AQ$249,)),"No bundle found") -> I1 | T31: =IFERROR(INDEX('Cat C Bundles Data'!$F$2:$S$50,MATCH(S31,'Cat C Bundles Data'!$F$2:$F$50,0),3),"") -> 2 | U31: =COUNTIFS('Measure Selection Data'!$F$2:$F$5000,$S31,'Measure Selection Data'!$B$2:$B$5000,TRUE) -> 2 | V31: 0 | W31: =(COUNTIF('Cat C Measures Data'!$AJ:$AJ,S31&"_Y_3")+COUNTIF('Cat C Measures Data'!$AJ:$AJ,S31&"_Y_4"))>0 -> FALSE | X31: FALSE | Y31: N/A | Z31: 0 | AA31: 0 | AB31: 0 | AC31: 0 | AD31: =INDEX('Category C Selection'!$H:$H,MATCH(S31,'Category C Selection'!$E:$E,0)) -> 2 | AE31: =INDEX('Cat C Bundles Data'!$R$2:$R$50,MATCH(S31,'Cat C Bundles Data'!$F$2:$F$50,0)) -> 2 | AF31: =SUMIF(OFFSET(INDEX(D:D,MATCH($S31,E:E,0)),$W$3+5,0,$W$2,1),"Yes",OFFSET(INDEX(D:D,MATCH($S31,E:E,0)),$W$3+5,$W$4,$W$2,1)) -> 0 | AG31: 0 | AH31: =COUNTIFS('Measure Selection Data'!$F$2:$F$5000,$S31,'Measure Selection Data'!$X$2:$X$5000,"Population Based Clinical Outcome") -> 0 | AY31: 0
D32: Section 1: Attributed Population | P32: TRUE | R32: 22 | S32: =IFERROR(INDEX('Cat C Measures Data'!$AH$2:$AH$249,MATCH($R32,'Cat C Measures Data'!$AQ$2:$AQ$249,)),"No bundle found") -> J1 | T32: =IFERROR(INDEX('Cat C Bundles Data'!$F$2:$S$50,MATCH(S32,'Cat C Bundles Data'!$F$2:$F$50,0),3),"") -> 5 | U32: =COUNTIFS('Measure Selection Data'!$F$2:$F$5000,$S32,'Measure Selection Data'!$B$2:$B$5000,TRUE) -> 5 | V32: 0 | W32: =(COUNTIF('Cat C Measures Data'!$AJ:$AJ,S32&"_Y_3")+COUNTIF('Cat C Measures Data'!$AJ:$AJ,S32&"_Y_4"))>0 -> FALSE | X32: FALSE | Y32: N/A | Z32: 0 | AA32: 0 | AB32: 0 | AC32: 0 | AD32: =INDEX('Category C Selection'!$H:$H,MATCH(S32,'Category C Selection'!$E:$E,0)) -> 10 | AE32: =INDEX('Cat C Bundles Data'!$R$2:$R$50,MATCH(S32,'Cat C Bundles Data'!$F$2:$F$50,0)) -> 10 | AF32: =SUMIF(OFFSET(INDEX(D:D,MATCH($S32,E:E,0)),$W$3+5,0,$W$2,1),"Yes",OFFSET(INDEX(D:D,MATCH($S32,E:E,0)),$W$3+5,$W$4,$W$2,1)) -> 0 | AG32: =IF(AC32>0.5,0,IF(X32,IF(AL6,AD32/2,AD32),0)) -> 0 | AH32: =COUNTIFS('Measure Selection Data'!$F$2:$F$5000,$S32,'Measure Selection Data'!$X$2:$X$5000,"Population Based Clinical Outcome") -> 0 | AY32: 0
P33: TRUE | R33: 23 | S33: =IFERROR(INDEX('Cat C Measures Data'!$AH$2:$AH$249,MATCH($R33,'Cat C Measures Data'!$AQ$2:$AQ$249,)),"No bundle found") -> K1 | T33: =IFERROR(INDEX('Cat C Bundles Data'!$F$2:$S$50,MATCH(S33,'Cat C Bundles Data'!$F$2:$F$50,0),3),"") -> 9 | U33: =COUNTIFS('Measure Selection Data'!$F$2:$F$5000,$S33,'Measure Selection Data'!$B$2:$B$5000,TRUE) -> 3 | V33: =T33-U33 -> 6 | W33: =(COUNTIF('Cat C Measures Data'!$AJ:$AJ,S33&"_Y_3")+COUNTIF('Cat C Measures Data'!$AJ:$AJ,S33&"_Y_4"))>0 -> FALSE | X33: FALSE | Y33: =OR(INDEX('Category C Selection'!$D$48:$D$2008,MATCH("K1-103",'Category C Selection'!$F$48:$F$2008,0))="Yes",INDEX('Category C Selection'!$D$48:$D$2008,MATCH("K1-115",'Category C Selection'!$F$48:$F$2008,0))="Yes") -> FALSE | Z33: 0 | AA33: 0 | AB33: 0 | AC33: 0 | AD33: =INDEX('Category C Selection'!$H:$H,MATCH(S33,'Category C Selection'!$E:$E,0)) -> 3 | AE33: =INDEX('Cat C Bundles Data'!$R$2:$R$50,MATCH(S33,'Cat C Bundles Data'!$F$2:$F$50,0)) -> 13 | AF33: =SUMIF(OFFSET(INDEX(D:D,MATCH($S33,E:E,0)),$W$3,0,$W$2,1),"Yes",OFFSET(INDEX(D:D,MATCH($S33,E:E,0)),$W$3,$W$4,$W$2,1)) -> 0 | AG33: 0 | AH33: =COUNTIFS('Measure Selection Data'!$F$2:$F$5000,$S33,'Measure Selection Data'!$X$2:$X$5000,"Population Based Clinical Outcome") -> 0 | AY33: 0
D34: ="Attributed Population for "&ProvType -> Attributed Population for Hospital | P34: TRUE | R34: =R33+1 -> 24 | S34: =IFERROR(INDEX('Cat C Measures Data'!$AH$2:$AH$249,MATCH($R34,'Cat C Measures Data'!$AQ$2:$AQ$249,)),"No bundle found") -> K2 | T34: =IFERROR(INDEX('Cat C Bundles Data'!$F$2:$S$50,MATCH(S34,'Cat C Bundles Data'!$F$2:$F$50,0),3),"") -> 4 | U34: =COUNTIFS('Measure Selection Data'!$F$2:$F$5000,$S34,'Measure Selection Data'!$B$2:$B$5000,TRUE) -> 3 | V34: 1 | W34: =(COUNTIF('Cat C Measures Data'!$AJ:$AJ,S34&"_Y_3")+COUNTIF('Cat C Measures Data'!$AJ:$AJ,S34&"_Y_4"))>0 -> FALSE | X34: FALSE | Y34: N/A | Z34: 0 | AA34: 0 | AB34: 0 | AC34: 0 | AD34: =INDEX('Category C Selection'!$H:$H,MATCH(S34,'Category C Selection'!$E:$E,0)) -> 3 | AE34: =INDEX('Cat C Bundles Data'!$R$2:$R$50,MATCH(S34,'Cat C Bundles Data'!$F$2:$F$50,0)) -> 4 | AF34: =SUMIF(OFFSET(INDEX(D:D,MATCH($S34,E:E,0)),$W$3,0,$W$2,1),"Yes",OFFSET(INDEX(D:D,MATCH($S34,E:E,0)),$W$3,$W$4,$W$2,1)) -> 0 | AG34: 0 | AH34: =COUNTIFS('Measure Selection Data'!$F$2:$F$5000,$S34,'Measure Selection Data'!$X$2:$X$5000,"Population Based Clinical Outcome") -> 0 | AY34: 0
D35: =IF(Hospital,'Attributed Population'!$B$2,IF(PhysicianPractice,'Attributed Population'!$B$2,IF(CMHC,'Attributed Population'!$B$3,IF(LHD,'Attributed Population'!$B$4,"")))) -> For Hospital organizations and Physician Practices, the DSRIP attributed population includes individuals from the DSRIP system defined in Category B that meet at least one of the criteria below. Individuals do not need to meet all or multiple criteria to be included. a. Medicaid beneficiary attributed to the Performing Provider during the measurement period as determined by assignment to a primary care provider (PCP), medical home, or clinic in the performing providers DSRIP defined system OR b. Individuals enrolled in a local coverage program (for example, a county-based indigent care program) assigned to a PCP, medical home, or clinic in the performing providers DSRIP defined system OR c. One preventive service provided during the measurement period (Includes value sets of visit type codes for annual wellness visit, preventive care services - initial office visit, preventive care services - established office visit, preventive care individual counseling) OR d. One ambulatory encounter during the measurement year and one ambulatory encounter during the year prior to the measurement year OR e. Two ambulatory encounters during the measurement year OR f. Other populations managed with chronic disease in specialty care clinics in the performing providers DSRIP defined system g. One emergency department visit during the measurement year OR h. One admission for inpatient or observation status during the measurement year OR i. One prenatal or postnatal visit during the measurement year OR j. One delivery during the measurement year OR k. One dental encounter during the measurement year OR l. Enrolled in a palliative care or hospice program during the measurement year | P35: TRUE | BY35: =D35 -> For Hospital organizations and Physician Practices, the DSRIP attributed population includes individuals from the DSRIP system defined in Category B that meet at least one of the criteria below. Individuals do not need to meet all or multiple criteria to be included. a. Medicaid beneficiary attributed to the Performing Provider during the measurement period as determined by assignment to a primary care provider (PCP), medical home, or clinic in the performing providers DSRIP defined system OR b. Individuals enrolled in a local coverage program (for example, a county-based indigent care program) assigned to a PCP, medical home, or clinic in the performing providers DSRIP defined system OR c. One preventive service provided during the measurement period (Includes value sets of visit type codes for annual wellness visit, preventive care services - initial office visit, preventive care services - established office visit, preventive care individual counseling) OR d. One ambulatory encounter during the measurement year and one ambulatory encounter during the year prior to the measurement year OR e. Two ambulatory encounters during the measurement year OR f. Other populations managed with chronic disease in specialty care clinics in the performing providers DSRIP defined system g. One emergency department visit during the measurement year OR h. One admission for inpatient or observation status during the measurement year OR i. One prenatal or postnatal visit during the measurement year OR j. One delivery during the measurement year OR k. One dental encounter during the measurement year OR l. Enrolled in a palliative care or hospice program during the measurement year
P36: TRUE
D37: Please describe any other attributed population (optional). | P37: TRUE
D38: n/a | P38: TRUE
P39: TRUE
D40: Section 2: Selection Overview | P40: =OR(CMHC,LHD) -> FALSE
P41: FALSE
D42: Please describe your rationale for the selected measures, and describe the primary system components (clinics, facilities) that will be used to report on and drive improvement in selected measures. | P42: FALSE
P43: FALSE | R43: =R34+1 -> 25 | S43: =IFERROR(INDEX('Cat C Measures Data'!$AH$2:$AH$249,MATCH($R43,'Cat C Measures Data'!$AQ$2:$AQ$249,)),"No bundle found") -> No bundle found | T43: =IFERROR(INDEX('Cat C Bundles Data'!$F$2:$S$50,MATCH(S43,'Cat C Bundles Data'!$F$2:$F$50,0),3),"") ->  | Z43: =IF(OR(AND(W43=TRUE,COUNTIFS($M$48:$M$1594,$S43,$H$48:$H$1594,"Required",$J$48:$J$1594,"Clinical Outcome",$E$48:$E$1594,"<>Insignificant volume for denominator",$E$48:$E$1594,"<>No volume for denominator")>0,X43=TRUE,AC43<=0.5),AND(X43=TRUE,Y43=TRUE,AC43<=0.5)),1,0) -> 0 | AA43: =IF($X43,COUNTIFS($D$48:$D$1594,"Yes",$BV$48:$BV$1594,TRUE,$M$48:$M$1594,$S43,$E$48:$E$1594,"<>Requesting to report as P4R",$E$48:$E$1594,"<>No numerator volume")+COUNTIFS($D$48:$D$1594,"N/A - Required",$BV$48:$BV$1594,TRUE,$M$48:$M$1594,$S43,$E$48:$E$1594,"<>Requesting to report as P4R",$E$48:$E$1594,"<>No numerator volume"),IF($AD$4,COUNTIFS($D$48:$D$1594,"Yes",$BV$48:$BV$1594,TRUE,$M$48:$M$1594,$S43,$E$48:$E$1594,"<>Requesting to report as P4R",$E$48:$E$1594,"<>No numerator volume"),0)) -> 0 | AB43: =COUNTIFS($H$2:$H$1998,$BF$3,$M$2:$M$1998,$S43,$E$2:$E$1998,$BI$8)+COUNTIFS($H$2:$H$1998,$BF$3,$M$2:$M$1998,$S43,$E$2:$E$1998,$BI$7) -> 0 | AC43: =IFERROR($AB43/$U43,0) -> 0 | AY43: 0
P44: FALSE | R44: 26 | S44: =IFERROR(INDEX('Cat C Measures Data'!$AH$2:$AH$249,MATCH($R44,'Cat C Measures Data'!$AQ$2:$AQ$249,)),"No bundle found") -> No bundle found | T44: =IFERROR(INDEX('Cat C Bundles Data'!$F$2:$S$50,MATCH(S44,'Cat C Bundles Data'!$F$2:$F$50,0),3),"") ->  | Z44: 0 | AA44: 0 | AB44: 0 | AC44: 0 | AY44: 0
P45: FALSE | R45: 27 | S45: =IFERROR(INDEX('Cat C Measures Data'!$AH$2:$AH$249,MATCH($R45,'Cat C Measures Data'!$AQ$2:$AQ$249,)),"No bundle found") -> No bundle found | T45: =IFERROR(INDEX('Cat C Bundles Data'!$F$2:$S$50,MATCH(S45,'Cat C Bundles Data'!$F$2:$F$50,0),3),"") ->  | Z45: 0 | AA45: 0 | AB45: 0 | AC45: 0 | AY45: 0
P46: FALSE | R46: 28 | S46: =IFERROR(INDEX('Cat C Measures Data'!$AH$2:$AH$249,MATCH($R46,'Cat C Measures Data'!$AQ$2:$AQ$249,)),"No bundle found") -> No bundle found | T46: =IFERROR(INDEX('Cat C Bundles Data'!$F$2:$S$50,MATCH(S46,'Cat C Bundles Data'!$F$2:$F$50,0),3),"") ->  | Z46: 0 | AA46: 0 | AB46: 0 | AC46: 0 | AY46: 0
P47: =OR(Hospital,PhysicianPractice) -> TRUE | R47: 29 | S47: =IFERROR(INDEX('Cat C Measures Data'!$AH$2:$AH$249,MATCH($R47,'Cat C Measures Data'!$AQ$2:$AQ$249,)),"No bundle found") -> No bundle found | T47: =IFERROR(INDEX('Cat C Bundles Data'!$F$2:$S$50,MATCH(S47,'Cat C Bundles Data'!$F$2:$F$50,0),3),"") ->  | Z47: 0 | AA47: 0 | AB47: 0 | AC47: 0 | AY47: 0
D48: Section 2: Selection of Measure Bundles for Hospitals and Physician Practices | P48: TRUE | R48: 30 | S48: =IFERROR(INDEX('Cat C Measures Data'!$AH$2:$AH$249,MATCH($R48,'Cat C Measures Data'!$AQ$2:$AQ$249,)),"No bundle found") -> No bundle found | T48: =IFERROR(INDEX('Cat C Bundles Data'!$F$2:$S$50,MATCH(S48,'Cat C Bundles Data'!$F$2:$F$50,0),3),"") ->  | Z48: 0 | AA48: 0 | AB48: 0 | AC48: 0 | AY48: 0 | AZ48: 0 | BD48: ="" ->  | BF48: ="" -> 
P49: TRUE | AY49: 0 | AZ49: 0 | BD49: ="" ->  | BF49: ="" -> 
D50: Measure Bundles for Hospitals & Physician Practices | P50: TRUE | AY50: 0 | AZ50: 0 | BD50: ="" ->  | BF50: ="" -> 
L51: 49 | M51: =IF($L51=54,OFFSET($E51,2,0),IF($L51=55,OFFSET($E51,1,0),IF($L51=49,IF(LEFT($M50,1)<>"I",OFFSET($E51,2,0),$M50),IF($L51=50,IF(LEFT($M50,1)<>"I",OFFSET($E51,1,0),$M50),OFFSET($E51,$L51*-1,0))))) -> A1 | P51: TRUE | Q51: =$D50=$Q$2 -> FALSE | AJ51: =OR($H51="Required",$H51="Optional") -> FALSE | AK51: =OR(RIGHT($D52,3)="le.",RIGHT($D51,3)="le.",RIGHT($D50,3)="le.",RIGHT($D49,3)="le.",RIGHT($D48,3)="le.") -> FALSE | AL51: =OR($D51=$Q$3,$D52=$Q$3) -> FALSE | AM51: =OR($D53=$Q$2,$D52=$Q$2,$D51=$Q$2) -> TRUE | AN51: =IF($AJ50,TRUE,FALSE) -> FALSE | AO51: =OR($F46="No bundle found",$F47="No bundle found",$F48="No bundle found",$F49="No bundle found",$F50="No bundle found",$F51="No bundle found",$F52="No bundle found") -> FALSE | AP51: =OR($F50="No measures found",$F51="No measures found") -> FALSE | AQ51: =OR(RIGHT($D48,4)="lty.",RIGHT($D49,4)="lty.",RIGHT($D50,4)="lty.",RIGHT($D51,4)="lty.",RIGHT($D52,4)="lty.") -> FALSE | AY51: 0 | AZ51: 0 | BD51: ="" ->  | BF51: ="" -> 
D52: =$Q$2 -> Select Measure Bundle? (Yes/No) | E52: Measure Bundle ID | F52: Measure Bundle Name | H52: Measure Bundle Base Points | L52: 50 | M52: =IF($L52=54,OFFSET($E52,2,0),IF($L52=55,OFFSET($E52,1,0),IF($L52=49,IF(LEFT($M51,1)<>"I",OFFSET($E52,2,0),$M51),IF($L52=50,IF(LEFT($M51,1)<>"I",OFFSET($E52,1,0),$M51),OFFSET($E52,$L52*-1,0))))) -> A1 | P52: TRUE | Q52: FALSE | AJ52: FALSE | AK52: FALSE | AL52: FALSE | AM52: TRUE | AN52: =IF($AJ51,TRUE,FALSE) -> FALSE | AO52: FALSE | AP52: FALSE | AQ52: FALSE | AY52: 0 | AZ52: 0 | BD52: ="" ->  | BF52: ="" -> 
A53: 1 | D53: No | E53: =IFERROR(INDEX('Cat C Measures Data'!$AH$2:$AH$249,MATCH($A53,'Cat C Measures Data'!$AQ$2:$AQ$249,)),"No bundle found") -> A1 | F53: =IFERROR(INDEX('Cat C Measures Data'!$AS$2:$AS$249,MATCH($A53,'Cat C Measures Data'!$AQ$2:$AQ$249,)),"No bundle found") -> Improved Chronic Disease Management: Diabetes Care | H53: =INDEX('Cat C Bundles Data'!$L$2:$L$50,MATCH(E53,'Cat C Bundles Data'!$F$2:$F$50,0)) -> 11 | I53: =IF(COUNTIFS($BM$53:$BM$1594,$A53&"_Required",$BS$53:$BS$1594,TRUE)>0,$BV$5,"") ->  | L53: =IF($D52=$Q$2,0,$L52+1) -> 0 | M53: A1 | P53: TRUE | Q53: TRUE | AJ53: FALSE | AK53: FALSE | AL53: FALSE | AM53: FALSE | AN53: FALSE | AO53: FALSE | AP53: FALSE | AQ53: FALSE | AU53: =IF($AK53,IF($AK53<>$AK52,2,$AU52-1),IF($AQ53,IF($AQ53<>$AQ52,2,$AU52-1),"")) ->  | AV53: =IF(OR($P53=FALSE,$AL53,$AM53),TRUE,IF($AJ53,AND($D53<>"",$E53<>""),IF($AN53,$F53<>"",IF($Q53,$D53<>"",IF(OR($AK53,$AQ53),OFFSET($D53,$AU53,0)<>"",FALSE))))) -> TRUE | AY53: =IF($E52="Measure Bundle ID",$A53,$AY52) -> 1 | AZ53: =IF($B53="",0,$B53) -> 0 | BA53: =AY53&"_"&AZ53 -> 1_0 | BB53: =IF(AY52<>AY53,"Y","") -> Y | BC53: =IF(BB53="Y",INDIRECT(""&BC$1&ROW()),"") -> No | BD53: =IF(AND(AZ53=AZ54,AZ53<>AZ52,AZ53<>0),"Yes","") ->  | BE53: =IF($BD53="Yes",INDIRECT(""&BE$1&ROW()),"") ->  | BF53: =IF($BD53="Yes",INDIRECT(""&BF$1&ROW()),"") ->  | BH53: =IF($BD53="Yes",INDIRECT(""&BI$1&ROW()),"") ->  | BI53: =IF($BH53="","",IFERROR(INDEX($BH$3:$BH$8,MATCH($BH53,$BI$3:$BI$8,0)),0)) ->  | BJ53: =IF($BI53="","",IFERROR(IF(OR($BI53=5,$BI53=6),"Y","N"),"N")) ->  | BK53: =IF($BH53<>"",INDEX($BC$53:$BC$1594,MATCH($AY53,$AY$53:$AY$1594,0)),"") ->  | BL53: =IF($BE53<>"",IF(ISNUMBER(MATCH($BE53,$AV$6:$BG$6,0)),$BS$7,IF($BE53=$AV$7,$BS$8,"")),"") ->  | BM53: =IF($BD53="Yes",$AY53&"_"&$BF53,"") ->  | BN53: =IF($BD53="Yes",$BM53&"_"&$BJ53,"") ->  | BO53: =IF(AND($BK53=$BC$3,$BF53=$BF$3),INDEX($AC$11:$AC$48,MATCH($M53,$S$11:$S$48,0)),"") ->  | BP53: =IF($BD53="Yes",$BL53=$BS$7,"") ->  | BQ53: =IF($BD53="Yes",$BL53=$BS$8,"") ->  | BR53: =IF($BD53="Yes",OR(BK53<>"Yes",$BF53<>"Required"),"") ->  | BS53: =IF($BD53="Yes",IF(AND($BK53=$BC$3,$BF53=$BF$3),IFERROR($BO53>$BV$2,FALSE),FALSE),"") ->  | BT53: =IF($BD53="Yes",IF($BV53,IF(OR($M53=$AX$2,$M53=$AX$3),9,IF($K$5=75,8,7)),IF($BP53,IF($BR53,4,3),IF($BQ53,IF($BR53,6,5),IF($BR53,2,1)))),"") ->  | BU53: =IF($BD53="Yes",INDEX($BM$2:$BU$2,MATCH($BT53,$BM$1:$BU$1,0)),"") ->  | BV53: =IF($BD53="Yes",IFERROR($J53="Population Based Clinical Outcome",FALSE),"") -> 
L54: 1 | M54: A1 | P54: =IF(OR($M54="No bundle found",AND(OR($M54="K1",$M54="K2"),$N$2)),FALSE,IF($AD$4,$AT54,$AS54)) -> FALSE | Q54: FALSE | AJ54: FALSE | AK54: TRUE | AL54: FALSE | AM54: FALSE | AN54: FALSE | AO54: FALSE | AP54: FALSE | AQ54: FALSE | AS54: =IF($Q54,AND($AO54=FALSE,OR(Hospital,PhysicianPractice)),IF(OR($AJ54,$AK54,$AL54,$AM54),AND($AP54=FALSE,OR(Hospital,PhysicianPractice),OFFSET($D54,$L54*-1,0)="Yes"),IF($AN54,AND($AP54=FALSE,OR(Hospital,PhysicianPractice),OR($E53=$BM$4,$E53=$BM$5,$E53=$BM$6,$E53=$BM$7,$E53=$BM$8,$E53=$BS$4,$E53=$BS$5,$E53=$BU$5),OFFSET($D54,$L54*-1,0)="Yes"),FALSE))) -> FALSE | AT54: =IF(OR($Q54,$AJ54,$AL54,$AM54),AND($AO54=FALSE,$AP54=FALSE,OR(Hospital,PhysicianPractice)),IF($AK54,AND($AO54=FALSE,$AP54=FALSE,OR(Hospital,PhysicianPractice),OFFSET($D54,$L54*-1,0)="Yes"),IF($AN54,AND($AO54=FALSE,$AP54=FALSE,OR(Hospital,PhysicianPractice),OR($E53=$BM$4,$E53=$BM$5,$E53=$BM$6,$E53=$BM$7,$E53=$BM$8,$E53=$BS$4,$E53=$BS$5,$E53=$BU$5)),FALSE))) -> FALSE | AU54: =IF($AK54,IF($AK54<>$AK53,2,$AU53-1),IF($AQ54,IF($AQ54<>$AQ53,2,$AU53-1),"")) -> 2 | AV54: =IF(OR($P54=FALSE,$AL54,$AM54),TRUE,IF($AJ54,AND($D54<>"",$E54<>""),IF($AN54,$F54<>"",IF($Q54,$D54<>"",IF(OR($AK54,$AQ54),OFFSET($D54,$AU54,0)<>"",FALSE))))) -> TRUE | AY54: 1 | AZ54: 0 | BA54: =AY54&"_"&AZ54 -> 1_0 | BB54: =IF(AY53<>AY54,"Y","") ->  | BC54: =IF(BB54="Y",INDIRECT(""&BC$1&ROW()),"") ->  | BD54: =IF(AND(AZ54=AZ55,AZ54<>AZ53,AZ54<>0),"Yes","") ->  | BE54: =IF($BD54="Yes",INDIRECT(""&BE$1&ROW()),"") ->  | BH54: =IF($BD54="Yes",INDIRECT(""&BI$1&ROW()),"") ->  | BJ54: =IF($BI54="","",IFERROR(IF(OR($BI54=5,$BI54=6),"Y","N"),"N")) ->  | BR54: =IF($BD54="Yes",OR(BK54<>"Yes",$BF54<>"Required"),"") ->  | BT54: =IF($BD54="Yes",IF($BV54,IF(OR($M54=$AX$2,$M54=$AX$3),9,IF($K$5=75,8,7)),IF($BP54,IF($BR54,4,3),IF($BQ54,IF($BR54,6,5),IF($BR54,2,1)))),"") ->  | BU54: =IF($BD54="Yes",INDEX($BM$2:$BU$2,MATCH($BT54,$BM$1:$BU$1,0)),"") ->  | BV54: =IF($BD54="Yes",IFERROR($J54="Population Based Clinical Outcome",FALSE),"") -> 
D55: Please describe your rationale for selecting this Measure Bundle, and describe the primary system components (clinics, facilities) that will be used to report on and drive improvement in this Measure Bundle. | L55: 2 | M55: A1 | P55: =IF(OR($M55="No bundle found",AND(OR($M55="K1",$M55="K2"),$N$2)),FALSE,IF($AD$4,$AT55,$AS55)) -> FALSE | Q55: FALSE | AJ55: FALSE | AK55: TRUE | AL55: FALSE | AM55: FALSE | AN55: FALSE | AO55: FALSE | AP55: FALSE | AQ55: FALSE | AS55: FALSE | AT55: FALSE | AU55: 1 | AV55: TRUE | AY55: 1 | AZ55: 0 | BA55: 1_0
L56: 3 | M56: A1 | P56: FALSE | Q56: FALSE | AJ56: FALSE | AK56: TRUE | AL56: FALSE | AM56: FALSE | AN56: FALSE | AO56: FALSE | AP56: FALSE | AQ56: FALSE | AS56: FALSE | AT56: FALSE | AU56: 0 | AV56: TRUE | AY56: 1 | AZ56: 0 | BA56: 1_0
L57: 4 | M57: A1 | P57: FALSE | Q57: FALSE | AJ57: FALSE | AK57: TRUE | AL57: FALSE | AM57: FALSE | AN57: FALSE | AO57: FALSE | AP57: FALSE | AQ57: FALSE | AS57: FALSE | AT57: FALSE | AU57: -1 | AV57: TRUE | AY57: 1 | AZ57: 0 | BA57: 1_0
L58: 5 | M58: A1 | P58: FALSE | Q58: FALSE | AJ58: FALSE | AK58: TRUE | AL58: FALSE | AM58: FALSE | AN58: FALSE | AO58: FALSE | AP58: FALSE | AQ58: FALSE | AS58: FALSE | AT58: FALSE | AU58: -2 | AV58: TRUE | AY58: 1 | AZ58: 0 | BA58: 1_0
L59: 6 | M59: A1 | P59: FALSE | Q59: FALSE | AJ59: FALSE | AK59: FALSE | AL59: TRUE | AM59: FALSE | AN59: FALSE | AO59: FALSE | AP59: FALSE | AQ59: FALSE | AS59: FALSE | AT59: TRUE | AV59: TRUE | AY59: 1 | AZ59: 0 | BA59: 1_0
D60: =$Q$3 -> Select Optional Measure (Yes/No) | E60: Measure Volume Options for Goal Setting and Achievement | F60: Bundle-Measure ID | G60: Measure Name | H60: Required vs. Optional | I60: P4P vs. P4R | J60: Measure Category | K60: Additional Points | L60: 7 | M60: A1 | P60: FALSE | Q60: FALSE | AJ60: FALSE | AK60: FALSE | AL60: TRUE | AM60: FALSE | AN60: FALSE | AO60: FALSE | AP60: FALSE | AQ60: FALSE | AS60: FALSE | AT60: TRUE | AV60: TRUE | AY60: 1 | AZ60: 0 | BA60: 1_0
B61: 1 | D61: =IF($H61="Required","N/A - Required",IF($H61="Optional","No","No measures found")) -> N/A - Required | E61: =IF($BL61=$BS$7,$BO$3,IF($BL61=$BS$8,$BQ$3,IF(AND($BV61,$BF61="Optional"),$BS$3,$BM$3))) -> MLIU denominator with significant volume | F61: =IFERROR(INDEX('Cat C Measures Data'!$A$2:$A$973,MATCH(OFFSET($E61,$L61*-1,0)&"_"&$B61,'Cat C Measures Data'!$AU$2:$AU$973,0)),"No measures found") -> A1-112 | G61: =IFERROR(INDEX('Cat C Measures Data'!$C$2:$C$973,MATCH(OFFSET($E61,$L61*-1,0)&"_"&$B61,'Cat C Measures Data'!$AU$2:$AU$973,0)),"No measures found") -> Comprehensive Diabetes Care: Foot Exam | H61: =IFERROR(IF(OR(AND($AD$4,OFFSET($D61,$L61*-1,0)="Yes"),$AD$4=FALSE),IF(OR(INDEX('Cat C Measures Data'!$U$2:$U$973,MATCH(OFFSET($E61,$L61*-1,0)&"_"&$B61,'Cat C Measures Data'!$AU$2:$AU$973,0))="Y",INDEX('Cat C Measures Data'!$U$2:$U$207,MATCH(F61,'Cat C Measures Data'!$A$2:$A$207,0))=$AT$5),"Required","Optional"),"Optional"),"No measures found") -> Required | I61: =IFERROR(INDEX('Cat C Measures Data'!$AD$2:$AD$973,MATCH(OFFSET($E61,$L61*-1,0)&"_"&$B61,'Cat C Measures Data'!$AU$2:$AU$973,0)),"No measures found") -> P4P | J61: =IFERROR(INDEX('Cat C Measures Data'!$AC$2:$AC$973,MATCH(OFFSET($E61,$L61*-1,0)&"_"&$B61,'Cat C Measures Data'!$AU$2:$AU$973,0)),"No measures found") -> Process | K61: =IFERROR(IF(OR(AND($AD$4,OFFSET($D61,$L61*-1,0)="Yes",$H61="Required"),AND($AD$4=FALSE,$H61="Required")),"N/A",IF(AND($AD$4,OFFSET($D61,$L61*-1,0)<>"Yes"),INDEX('Cat C Measures Data'!$AV$2:$AV$973,MATCH($F61,'Cat C Measures Data'!$A$2:$A$973,0)),INDEX('Cat C Measures Data'!$V$2:$V$973,MATCH($F61,'Cat C Measures Data'!$A$2:$A$973,0)))),"No measures found") -> N/A | L61: 8 | M61: A1 | O61: =IF($H61="Required","N/A - Required","No") -> N/A - Required | P61: FALSE | Q61: FALSE | AJ61: TRUE | AK61: FALSE | AL61: FALSE | AM61: FALSE | AN61: FALSE | AO61: FALSE | AP61: FALSE | AQ61: FALSE | AS61: FALSE | AT61: TRUE | AV61: TRUE | AY61: =IF($E60="Measure Bundle ID",$B61,$AY60) -> 1 | AZ61: =IF($B61="",0,$B61) -> 1 | BA61: 1_1 | BD61: Yes | BE61: A1-112 | BF61: Required | BH61: MLIU denominator with significant volume | BI61: 1 | BJ61: N | BK61: No | BM61: 1_Required | BN61: 1_Required_N | BP61: FALSE | BQ61: FALSE | BR61: TRUE | BS61: FALSE | BT61: 2 | BU61: 4 | BV61: FALSE
B62: 1 | E62: =IF(OR($E61=$BM$4,$E61=$BM$5,$E61=$BM$6),AltDenLanguage,IF(OR($E61=$BM$7,$E61=$BM$8),NoSignifVolLanguage,IF(OR($E61=$BS$4,$E61=$BS$5,$E61=$BU$5),$BU$7,""))) ->  | L62: 9 | M62: A1 | O62: =IF($H61="Required","","Yes") ->  | P62: FALSE | Q62: FALSE | AJ62: FALSE | AK62: FALSE | AL62: FALSE | AM62: FALSE | AN62: TRUE | AO62: FALSE | AP62: FALSE | AQ62: FALSE | AS62: FALSE | AT62: FALSE | AV62: TRUE | AY62: 1 | AZ62: =IF($B62="",0,$B62) -> 1 | BA62: 1_1
B63: =B61+1 -> 2 | D63: =IF($H63="Required","N/A - Required",IF($H63="Optional","No","No measures found")) -> N/A - Required | E63: =IF($BL63=$BS$7,$BO$3,IF($BL63=$BS$8,$BQ$3,IF(AND($BV63,$BF63="Optional"),$BS$3,$BM$3))) -> MLIU denominator with significant volume | F63: =IFERROR(INDEX('Cat C Measures Data'!$A$2:$A$973,MATCH(OFFSET($E63,$L63*-1,0)&"_"&$B63,'Cat C Measures Data'!$AU$2:$AU$973,0)),"No measures found") -> A1-115 | G63: =IFERROR(INDEX('Cat C Measures Data'!$C$2:$C$973,MATCH(OFFSET($E63,$L63*-1,0)&"_"&$B63,'Cat C Measures Data'!$AU$2:$AU$973,0)),"No measures found") -> Comprehensive Diabetes Care: Hemoglobin A1c (HbA1c) Poor Control (>9.0%) | H63: =IFERROR(IF(OR(AND($AD$4,OFFSET($D63,$L63*-1,0)="Yes"),$AD$4=FALSE),IF(OR(INDEX('Cat C Measures Data'!$U$2:$U$973,MATCH(OFFSET($E63,$L63*-1,0)&"_"&$B63,'Cat C Measures Data'!$AU$2:$AU$973,0))="Y",INDEX('Cat C Measures Data'!$U$2:$U$207,MATCH(F63,'Cat C Measures Data'!$A$2:$A$207,0))=$AT$5),"Required","Optional"),"Optional"),"No measures found") -> Required | I63: =IFERROR(INDEX('Cat C Measures Data'!$AD$2:$AD$973,MATCH(OFFSET($E63,$L63*-1,0)&"_"&$B63,'Cat C Measures Data'!$AU$2:$AU$973,0)),"No measures found") -> P4P | J63: =IFERROR(INDEX('Cat C Measures Data'!$AC$2:$AC$973,MATCH(OFFSET($E63,$L63*-1,0)&"_"&$B63,'Cat C Measures Data'!$AU$2:$AU$973,0)),"No measures found") -> Clinical Outcome | K63: =IFERROR(IF(OR(AND($AD$4,OFFSET($D63,$L63*-1,0)="Yes",$H63="Required"),AND($AD$4=FALSE,$H63="Required")),"N/A",IF(AND($AD$4,OFFSET($D63,$L63*-1,0)<>"Yes"),INDEX('Cat C Measures Data'!$AV$2:$AV$973,MATCH($F63,'Cat C Measures Data'!$A$2:$A$973,0)),INDEX('Cat C Measures Data'!$V$2:$V$973,MATCH($F63,'Cat C Measures Data'!$A$2:$A$973,0)))),"No measures found") -> N/A | L63: 10 | M63: A1 | O63: =IF($H63="Required","N/A - Required","No") -> N/A - Required | P63: FALSE | Q63: FALSE | AJ63: TRUE | AK63: FALSE | AL63: FALSE | AM63: FALSE | AN63: FALSE | AO63: FALSE | AP63: FALSE | AQ63: FALSE | AS63: FALSE | AT63: TRUE | AV63: TRUE | AY63: 1 | AZ63: 2 | BA63: 1_2 | BD63: Yes | BE63: A1-115 | BF63: Required | BH63: MLIU denominator with significant volume | BI63: 1 | BJ63: N | BK63: No | BM63: 1_Required | BN63: 1_Required_N | BP63: FALSE | BQ63: FALSE | BR63: TRUE | BS63: FALSE | BT63: 2 | BU63: 4 | BV63: FALSE
B64: 2 | E64: =IF(OR($E63=$BM$4,$E63=$BM$5,$E63=$BM$6),AltDenLanguage,IF(OR($E63=$BM$7,$E63=$BM$8),NoSignifVolLanguage,IF(OR($E63=$BS$4,$E63=$BS$5,$E63=$BU$5),$BU$7,""))) ->  | L64: 11 | M64: A1 | O64: =IF($H63="Required","","Yes") ->  | P64: FALSE | Q64: FALSE | AJ64: FALSE | AK64: FALSE | AL64: FALSE | AM64: FALSE | AN64: TRUE | AO64: FALSE | AP64: FALSE | AQ64: FALSE | AS64: FALSE | AT64: FALSE | AV64: TRUE | AY64: 1 | AZ64: 2 | BA64: 1_2
B65: 3 | D65: =IF($H65="Required","N/A - Required",IF($H65="Optional","No","No measures found")) -> N/A - Required | E65: =IF($BL65=$BS$7,$BO$3,IF($BL65=$BS$8,$BQ$3,IF(AND($BV65,$BF65="Optional"),$BS$3,$BM$3))) -> MLIU denominator with significant volume | F65: =IFERROR(INDEX('Cat C Measures Data'!$A$2:$A$973,MATCH(OFFSET($E65,$L65*-1,0)&"_"&$B65,'Cat C Measures Data'!$AU$2:$AU$973,0)),"No measures found") -> A1-207 | G65: =IFERROR(INDEX('Cat C Measures Data'!$C$2:$C$973,MATCH(OFFSET($E65,$L65*-1,0)&"_"&$B65,'Cat C Measures Data'!$AU$2:$AU$973,0)),"No measures found") -> Diabetes care: BP control (<140/90mm Hg) | H65: =IFERROR(IF(OR(AND($AD$4,OFFSET($D65,$L65*-1,0)="Yes"),$AD$4=FALSE),IF(OR(INDEX('Cat C Measures Data'!$U$2:$U$973,MATCH(OFFSET($E65,$L65*-1,0)&"_"&$B65,'Cat C Measures Data'!$AU$2:$AU$973,0))="Y",INDEX('Cat C Measures Data'!$U$2:$U$207,MATCH(F65,'Cat C Measures Data'!$A$2:$A$207,0))=$AT$5),"Required","Optional"),"Optional"),"No measures found") -> Required | I65: =IFERROR(INDEX('Cat C Measures Data'!$AD$2:$AD$973,MATCH(OFFSET($E65,$L65*-1,0)&"_"&$B65,'Cat C Measures Data'!$AU$2:$AU$973,0)),"No measures found") -> P4P | J65: =IFERROR(INDEX('Cat C Measures Data'!$AC$2:$AC$973,MATCH(OFFSET($E65,$L65*-1,0)&"_"&$B65,'Cat C Measures Data'!$AU$2:$AU$973,0)),"No measures found") -> Clinical Outcome | K65: =IFERROR(IF(OR(AND($AD$4,OFFSET($D65,$L65*-1,0)="Yes",$H65="Required"),AND($AD$4=FALSE,$H65="Required")),"N/A",IF(AND($AD$4,OFFSET($D65,$L65*-1,0)<>"Yes"),INDEX('Cat C Measures Data'!$AV$2:$AV$973,MATCH($F65,'Cat C Measures Data'!$A$2:$A$973,0)),INDEX('Cat C Measures Data'!$V$2:$V$973,MATCH($F65,'Cat C Measures Data'!$A$2:$A$973,0)))),"No measures found") -> N/A | L65: 12 | M65: A1 | O65: =IF($H65="Required","N/A - Required","No") -> N/A - Required | P65: FALSE | Q65: FALSE | AJ65: TRUE | AK65: FALSE | AL65: FALSE | AM65: FALSE | AN65: FALSE | AO65: FALSE | AP65: FALSE | AQ65: FALSE | AS65: FALSE | AT65: TRUE | AV65: TRUE | AY65: 1 | AZ65: 3 | BA65: 1_3 | BD65: Yes | BE65: A1-207 | BF65: Required | BH65: MLIU denominator with significant volume | BI65: 1 | BJ65: N | BK65: No | BM65: 1_Required | BN65: 1_Required_N | BP65: FALSE | BQ65: FALSE | BR65: TRUE | BS65: FALSE | BT65: 2 | BU65: 4 | BV65: FALSE
B66: 3 | E66: =IF(OR($E65=$BM$4,$E65=$BM$5,$E65=$BM$6),AltDenLanguage,IF(OR($E65=$BM$7,$E65=$BM$8),NoSignifVolLanguage,IF(OR($E65=$BS$4,$E65=$BS$5,$E65=$BU$5),$BU$7,""))) ->  | L66: 13 | M66: A1 | O66: =IF($H65="Required","","Yes") ->  | P66: FALSE | Q66: FALSE | AJ66: FALSE | AK66: FALSE | AL66: FALSE | AM66: FALSE | AN66: TRUE | AO66: FALSE | AP66: FALSE | AQ66: FALSE | AS66: FALSE | AT66: FALSE | AV66: TRUE | AY66: 1 | AZ66: 3 | BA66: 1_3
B67: 4 | D67: =IF($H67="Required","N/A - Required",IF($H67="Optional","No","No measures found")) -> No | E67: =IF($BL67=$BS$7,$BO$3,IF($BL67=$BS$8,$BQ$3,IF(AND($BV67,$BF67="Optional"),$BS$3,$BM$3))) -> MLIU denominator with significant volume | F67: =IFERROR(INDEX('Cat C Measures Data'!$A$2:$A$973,MATCH(OFFSET($E67,$L67*-1,0)&"_"&$B67,'Cat C Measures Data'!$AU$2:$AU$973,0)),"No measures found") -> A1-111 | G67: =IFERROR(INDEX('Cat C Measures Data'!$C$2:$C$973,MATCH(OFFSET($E67,$L67*-1,0)&"_"&$B67,'Cat C Measures Data'!$AU$2:$AU$973,0)),"No measures found") -> Comprehensive Diabetes Care: Eye Exam (retinal) performed | H67: =IFERROR(IF(OR(AND($AD$4,OFFSET($D67,$L67*-1,0)="Yes"),$AD$4=FALSE),IF(OR(INDEX('Cat C Measures Data'!$U$2:$U$973,MATCH(OFFSET($E67,$L67*-1,0)&"_"&$B67,'Cat C Measures Data'!$AU$2:$AU$973,0))="Y",INDEX('Cat C Measures Data'!$U$2:$U$207,MATCH(F67,'Cat C Measures Data'!$A$2:$A$207,0))=$AT$5),"Required","Optional"),"Optional"),"No measures found") -> Optional | I67: =IFERROR(INDEX('Cat C Measures Data'!$AD$2:$AD$973,MATCH(OFFSET($E67,$L67*-1,0)&"_"&$B67,'Cat C Measures Data'!$AU$2:$AU$973,0)),"No measures found") -> P4P | J67: =IFERROR(INDEX('Cat C Measures Data'!$AC$2:$AC$973,MATCH(OFFSET($E67,$L67*-1,0)&"_"&$B67,'Cat C Measures Data'!$AU$2:$AU$973,0)),"No measures found") -> Process | K67: =IFERROR(IF(OR(AND($AD$4,OFFSET($D67,$L67*-1,0)="Yes",$H67="Required"),AND($AD$4=FALSE,$H67="Required")),"N/A",IF(AND($AD$4,OFFSET($D67,$L67*-1,0)<>"Yes"),INDEX('Cat C Measures Data'!$AV$2:$AV$973,MATCH($F67,'Cat C Measures Data'!$A$2:$A$973,0)),INDEX('Cat C Measures Data'!$V$2:$V$973,MATCH($F67,'Cat C Measures Data'!$A$2:$A$973,0)))),"No measures found") -> 1 | L67: 14 | M67: A1 | O67: =IF($H67="Required","N/A - Required","No") -> No | P67: FALSE | Q67: FALSE | AJ67: TRUE | AK67: FALSE | AL67: FALSE | AM67: FALSE | AN67: FALSE | AO67: FALSE | AP67: FALSE | AQ67: FALSE | AS67: FALSE | AT67: TRUE | AV67: TRUE | AY67: 1 | AZ67: 4 | BA67: 1_4 | BD67: Yes | BE67: A1-111 | BF67: Optional | BH67: MLIU denominator with significant volume | BI67: 1 | BJ67: N | BK67: No | BM67: 1_Optional | BN67: 1_Optional_N | BP67: FALSE | BQ67: FALSE | BR67: TRUE | BS67: FALSE | BT67: 2 | BU67: 4 | BV67: FALSE
B68: 4 | E68: =IF(OR($E67=$BM$4,$E67=$BM$5,$E67=$BM$6),AltDenLanguage,IF(OR($E67=$BM$7,$E67=$BM$8),NoSignifVolLanguage,IF(OR($E67=$BS$4,$E67=$BS$5,$E67=$BU$5),$BU$7,""))) ->  | L68: 15 | M68: A1 | O68: =IF($H67="Required","","Yes") -> Yes | P68: FALSE | Q68: FALSE | AJ68: FALSE | AK68: FALSE | AL68: FALSE | AM68: FALSE | AN68: TRUE | AO68: FALSE | AP68: FALSE | AQ68: FALSE | AS68: FALSE | AT68: FALSE | AV68: TRUE | AY68: 1 | AZ68: 4 | BA68: 1_4
B69: 5 | D69: =IF($H69="Required","N/A - Required",IF($H69="Optional","No","No measures found")) -> N/A - Required | E69: =IF($K$5=75,$BM$3,$BS$3) -> Reporting attributed population as P4P | F69: =IFERROR(INDEX('Cat C Measures Data'!$A$2:$A$973,MATCH(OFFSET($E69,$L69*-1,0)&"_"&$B69,'Cat C Measures Data'!$AU$2:$AU$973,0)),"No measures found") -> A1-500 | G69: =IFERROR(INDEX('Cat C Measures Data'!$C$2:$C$973,MATCH(OFFSET($E69,$L69*-1,0)&"_"&$B69,'Cat C Measures Data'!$AU$2:$AU$973,0)),"No measures found") -> PQI 93 Diabetes Composite (Adult short-term complications, long-term complications, uncontrolled diabetes, lower-extremity amputation admission rates) | H69: =IFERROR(IF(OR(AND($AD$4,OFFSET($D69,$L69*-1,0)="Yes"),$AD$4=FALSE),IF(OR(INDEX('Cat C Measures Data'!$U$2:$U$973,MATCH(OFFSET($E69,$L69*-1,0)&"_"&$B69,'Cat C Measures Data'!$AU$2:$AU$973,0))="Y",INDEX('Cat C Measures Data'!$U$2:$U$207,MATCH(F69,'Cat C Measures Data'!$A$2:$A$207,0))=$AT$5),"Required","Optional"),"Optional"),"No measures found") -> Required | I69: =IFERROR(INDEX('Cat C Measures Data'!$AD$2:$AD$973,MATCH(OFFSET($E69,$L69*-1,0)&"_"&$B69,'Cat C Measures Data'!$AU$2:$AU$973,0)),"No measures found") -> P4P | J69: =IFERROR(INDEX('Cat C Measures Data'!$AC$2:$AC$973,MATCH(OFFSET($E69,$L69*-1,0)&"_"&$B69,'Cat C Measures Data'!$AU$2:$AU$973,0)),"No measures found") -> Population Based Clinical Outcome | K69: 4 | L69: 16 | M69: A1 | O69: =IF($H69="Required","N/A - Required","No") -> N/A - Required | P69: FALSE | Q69: FALSE | AJ69: TRUE | AK69: FALSE | AL69: FALSE | AM69: FALSE | AN69: FALSE | AO69: FALSE | AP69: FALSE | AQ69: FALSE | AS69: FALSE | AT69: TRUE | AV69: TRUE | AY69: 1 | AZ69: 5 | BA69: 1_5 | BD69: Yes | BE69: A1-500 | BF69: Required | BH69: Reporting attributed population as P4P | BI69: 0 | BJ69: N | BK69: No | BM69: 1_Required | BN69: 1_Required_N | BP69: FALSE | BQ69: FALSE | BR69: TRUE | BS69: FALSE | BT69: 7 | BU69: 3 | BV69: TRUE
B70: 5 | E70: =IF(OR($E69=$BM$4,$E69=$BM$5,$E69=$BM$6),AltDenLanguage,IF(OR($E69=$BM$7,$E69=$BM$8),NoSignifVolLanguage,IF(OR($E69=$BS$4,$E69=$BS$5,$E69=$BU$5),$BU$7,""))) ->  | L70: 17 | M70: A1 | O70: =IF($H69="Required","","Yes") ->  | P70: FALSE | Q70: FALSE | AJ70: FALSE | AK70: FALSE | AL70: FALSE | AM70: FALSE | AN70: TRUE | AO70: FALSE | AP70: FALSE | AQ70: FALSE | AS70: FALSE | AT70: FALSE | AV70: TRUE | AY70: 1 | AZ70: 5 | BA70: 1_5
B71: 6 | D71: =IF($H71="Required","N/A - Required",IF($H71="Optional","No","No measures found")) -> N/A - Required | E71: =IF($K$5=75,$BM$3,$BS$3) -> Reporting attributed population as P4P | F71: =IFERROR(INDEX('Cat C Measures Data'!$A$2:$A$973,MATCH(OFFSET($E71,$L71*-1,0)&"_"&$B71,'Cat C Measures Data'!$AU$2:$AU$973,0)),"No measures found") -> A1-508 | G71: =IFERROR(INDEX('Cat C Measures Data'!$C$2:$C$973,MATCH(OFFSET($E71,$L71*-1,0)&"_"&$B71,'Cat C Measures Data'!$AU$2:$AU$973,0)),"No measures found") -> Reduce Rate of Emergency Department visits for Diabetes | H71: =IFERROR(IF(OR(AND($AD$4,OFFSET($D71,$L71*-1,0)="Yes"),$AD$4=FALSE),IF(OR(INDEX('Cat C Measures Data'!$U$2:$U$973,MATCH(OFFSET($E71,$L71*-1,0)&"_"&$B71,'Cat C Measures Data'!$AU$2:$AU$973,0))="Y",INDEX('Cat C Measures Data'!$U$2:$U$207,MATCH(F71,'Cat C Measures Data'!$A$2:$A$207,0))=$AT$5),"Required","Optional"),"Optional"),"No measures found") -> Required | I71: =IFERROR(INDEX('Cat C Measures Data'!$AD$2:$AD$973,MATCH(OFFSET($E71,$L71*-1,0)&"_"&$B71,'Cat C Measures Data'!$AU$2:$AU$973,0)),"No measures found") -> P4P | J71: =IFERROR(INDEX('Cat C Measures Data'!$AC$2:$AC$973,MATCH(OFFSET($E71,$L71*-1,0)&"_"&$B71,'Cat C Measures Data'!$AU$2:$AU$973,0)),"No measures found") -> Population Based Clinical Outcome | K71: 4 | L71: 18 | M71: A1 | O71: =IF($H71="Required","N/A - Required","No") -> N/A - Required | P71: FALSE | Q71: FALSE | AJ71: TRUE | AK71: FALSE | AL71: FALSE | AM71: FALSE | AN71: FALSE | AO71: FALSE | AP71: FALSE | AQ71: FALSE | AS71: FALSE | AT71: TRUE | AV71: TRUE | AY71: 1 | AZ71: 6 | BA71: 1_6 | BD71: Yes | BE71: A1-508 | BF71: Required | BH71: Reporting attributed population as P4P | BI71: 0 | BJ71: N | BK71: No | BM71: 1_Required | BN71: 1_Required_N | BP71: FALSE | BQ71: FALSE | BR71: TRUE | BS71: FALSE | BT71: 7 | BU71: 3 | BV71: TRUE
B72: 6 | E72: =IF(OR($E71=$BM$4,$E71=$BM$5,$E71=$BM$6),AltDenLanguage,IF(OR($E71=$BM$7,$E71=$BM$8),NoSignifVolLanguage,IF(OR($E71=$BS$4,$E71=$BS$5,$E71=$BU$5),$BU$7,""))) ->  | L72: 19 | M72: A1 | O72: =IF($H71="Required","","Yes") ->  | P72: FALSE | Q72: FALSE | AJ72: FALSE | AK72: FALSE | AL72: FALSE | AM72: FALSE | AN72: TRUE | AO72: FALSE | AP72: FALSE | AQ72: FALSE | AS72: FALSE | AT72: FALSE | AV72: TRUE | AY72: 1 | AZ72: 6 | BA72: 1_6
B73: 7 | D73: =IF($H73="Required","N/A - Required",IF($H73="Optional","No","No measures found")) -> No measures found | E73: =IF($BL73=$BS$7,$BO$3,IF($BL73=$BS$8,$BQ$3,IF(AND($BV73,$BF73="Optional"),$BS$3,$BM$3))) -> MLIU denominator with significant volume | F73: =IFERROR(INDEX('Cat C Measures Data'!$A$2:$A$973,MATCH(OFFSET($E73,$L73*-1,0)&"_"&$B73,'Cat C Measures Data'!$AU$2:$AU$973,0)),"No measures found") -> No measures found | G73: =IFERROR(INDEX('Cat C Measures Data'!$C$2:$C$973,MATCH(OFFSET($E73,$L73*-1,0)&"_"&$B73,'Cat C Measures Data'!$AU$2:$AU$973,0)),"No measures found") -> No measures found | H73: =IFERROR(IF(OR(AND($AD$4,OFFSET($D73,$L73*-1,0)="Yes"),$AD$4=FALSE),IF(OR(INDEX('Cat C Measures Data'!$U$2:$U$973,MATCH(OFFSET($E73,$L73*-1,0)&"_"&$B73,'Cat C Measures Data'!$AU$2:$AU$973,0))="Y",INDEX('Cat C Measures Data'!$U$2:$U$207,MATCH(F73,'Cat C Measures Data'!$A$2:$A$207,0))=$AT$5),"Required","Optional"),"Optional"),"No measures found") -> No measures found | I73: =IFERROR(INDEX('Cat C Measures Data'!$AD$2:$AD$973,MATCH(OFFSET($E73,$L73*-1,0)&"_"&$B73,'Cat C Measures Data'!$AU$2:$AU$973,0)),"No measures found") -> No measures found | J73: =IFERROR(INDEX('Cat C Measures Data'!$AC$2:$AC$973,MATCH(OFFSET($E73,$L73*-1,0)&"_"&$B73,'Cat C Measures Data'!$AU$2:$AU$973,0)),"No measures found") -> No measures found | K73: =IFERROR(IF(OR(AND($AD$4,OFFSET($D73,$L73*-1,0)="Yes",$H73="Required"),AND($AD$4=FALSE,$H73="Required")),"N/A",IF(AND($AD$4,OFFSET($D73,$L73*-1,0)<>"Yes"),INDEX('Cat C Measures Data'!$AV$2:$AV$973,MATCH($F73,'Cat C Measures Data'!$A$2:$A$973,0)),INDEX('Cat C Measures Data'!$V$2:$V$973,MATCH($F73,'Cat C Measures Data'!$A$2:$A$973,0)))),"No measures found") -> No measures found | L73: 20 | M73: A1 | O73: =IF($H73="Required","N/A - Required","No") -> No | P73: FALSE | Q73: FALSE | AJ73: FALSE | AK73: FALSE | AL73: FALSE | AM73: FALSE | AN73: FALSE | AO73: FALSE | AP73: TRUE | AQ73: FALSE | AS73: FALSE | AT73: FALSE | AV73: TRUE | AY73: 1 | AZ73: 7 | BA73: 1_7 | BD73: Yes | BE73: No measures found | BF73: No measures found | BH73: MLIU denominator with significant volume | BI73: 1 | BJ73: N | BK73: No | BM73: 1_No measures found | BN73: 1_No measures found_N | BP73: FALSE | BQ73: FALSE | BR73: TRUE | BS73: FALSE | BT73: 2 | BU73: 4 | BV73: FALSE
B74: 7 | E74: =IF(OR($E73=$BM$4,$E73=$BM$5,$E73=$BM$6),AltDenLanguage,IF(OR($E73=$BM$7,$E73=$BM$8),NoSignifVolLanguage,IF(OR($E73=$BS$4,$E73=$BS$5,$E73=$BU$5),$BU$7,""))) ->  | L74: 21 | M74: A1 | O74: =IF($H73="Required","","Yes") -> Yes | P74: FALSE | Q74: FALSE | AJ74: FALSE | AK74: FALSE | AL74: FALSE | AM74: FALSE | AN74: FALSE | AO74: FALSE | AP74: TRUE | AQ74: FALSE | AS74: FALSE | AT74: FALSE | AV74: TRUE | AY74: 1 | AZ74: 7 | BA74: 1_7
B75: 8 | D75: =IF($H75="Required","N/A - Required",IF($H75="Optional","No","No measures found")) -> No measures found | E75: =IF($BL75=$BS$7,$BO$3,IF($BL75=$BS$8,$BQ$3,IF(AND($BV75,$BF75="Optional"),$BS$3,$BM$3))) -> MLIU denominator with significant volume | F75: =IFERROR(INDEX('Cat C Measures Data'!$A$2:$A$973,MATCH(OFFSET($E75,$L75*-1,0)&"_"&$B75,'Cat C Measures Data'!$AU$2:$AU$973,0)),"No measures found") -> No measures found | G75: =IFERROR(INDEX('Cat C Measures Data'!$C$2:$C$973,MATCH(OFFSET($E75,$L75*-1,0)&"_"&$B75,'Cat C Measures Data'!$AU$2:$AU$973,0)),"No measures found") -> No measures found | H75: =IFERROR(IF(OR(AND($AD$4,OFFSET($D75,$L75*-1,0)="Yes"),$AD$4=FALSE),IF(OR(INDEX('Cat C Measures Data'!$U$2:$U$973,MATCH(OFFSET($E75,$L75*-1,0)&"_"&$B75,'Cat C Measures Data'!$AU$2:$AU$973,0))="Y",INDEX('Cat C Measures Data'!$U$2:$U$207,MATCH(F75,'Cat C Measures Data'!$A$2:$A$207,0))=$AT$5),"Required","Optional"),"Optional"),"No measures found") -> No measures found | I75: =IFERROR(INDEX('Cat C Measures Data'!$AD$2:$AD$973,MATCH(OFFSET($E75,$L75*-1,0)&"_"&$B75,'Cat C Measures Data'!$AU$2:$AU$973,0)),"No measures found") -> No measures found | J75: =IFERROR(INDEX('Cat C Measures Data'!$AC$2:$AC$973,MATCH(OFFSET($E75,$L75*-1,0)&"_"&$B75,'Cat C Measures Data'!$AU$2:$AU$973,0)),"No measures found") -> No measures found | K75: =IFERROR(IF(OR(AND($AD$4,OFFSET($D75,$L75*-1,0)="Yes",$H75="Required"),AND($AD$4=FALSE,$H75="Required")),"N/A",IF(AND($AD$4,OFFSET($D75,$L75*-1,0)<>"Yes"),INDEX('Cat C Measures Data'!$AV$2:$AV$973,MATCH($F75,'Cat C Measures Data'!$A$2:$A$973,0)),INDEX('Cat C Measures Data'!$V$2:$V$973,MATCH($F75,'Cat C Measures Data'!$A$2:$A$973,0)))),"No measures found") -> No measures found | L75: 22 | M75: A1 | O75: =IF($H75="Required","N/A - Required","No") -> No | P75: FALSE | Q75: FALSE | AJ75: FALSE | AK75: FALSE | AL75: FALSE | AM75: FALSE | AN75: FALSE | AO75: FALSE | AP75: TRUE | AQ75: FALSE | AS75: FALSE | AT75: FALSE | AV75: TRUE | AY75: 1 | AZ75: 8 | BA75: 1_8 | BD75: Yes | BE75: No measures found | BF75: No measures found | BH75: MLIU denominator with significant volume | BI75: 1 | BJ75: N | BK75: No | BM75: 1_No measures found | BN75: 1_No measures found_N | BP75: FALSE | BQ75: FALSE | BR75: TRUE | BS75: FALSE | BT75: 2 | BU75: 4 | BV75: FALSE
B76: 8 | E76: =IF(OR($E75=$BM$4,$E75=$BM$5,$E75=$BM$6),AltDenLanguage,IF(OR($E75=$BM$7,$E75=$BM$8),NoSignifVolLanguage,IF(OR($E75=$BS$4,$E75=$BS$5,$E75=$BU$5),$BU$7,""))) ->  | L76: 23 | M76: A1 | O76: =IF($H75="Required","","Yes") -> Yes | P76: FALSE | Q76: FALSE | AJ76: FALSE | AK76: FALSE | AL76: FALSE | AM76: FALSE | AN76: FALSE | AO76: FALSE | AP76: TRUE | AQ76: FALSE | AS76: FALSE | AT76: FALSE | AV76: TRUE | AY76: 1 | AZ76: 8 | BA76: 1_8
B77: 9 | D77: =IF($H77="Required","N/A - Required",IF($H77="Optional","No","No measures found")) -> No measures found | E77: =IF($BL77=$BS$7,$BO$3,IF($BL77=$BS$8,$BQ$3,IF(AND($BV77,$BF77="Optional"),$BS$3,$BM$3))) -> MLIU denominator with significant volume | F77: =IFERROR(INDEX('Cat C Measures Data'!$A$2:$A$973,MATCH(OFFSET($E77,$L77*-1,0)&"_"&$B77,'Cat C Measures Data'!$AU$2:$AU$973,0)),"No measures found") -> No measures found | G77: =IFERROR(INDEX('Cat C Measures Data'!$C$2:$C$973,MATCH(OFFSET($E77,$L77*-1,0)&"_"&$B77,'Cat C Measures Data'!$AU$2:$AU$973,0)),"No measures found") -> No measures found | H77: =IFERROR(IF(OR(AND($AD$4,OFFSET($D77,$L77*-1,0)="Yes"),$AD$4=FALSE),IF(OR(INDEX('Cat C Measures Data'!$U$2:$U$973,MATCH(OFFSET($E77,$L77*-1,0)&"_"&$B77,'Cat C Measures Data'!$AU$2:$AU$973,0))="Y",INDEX('Cat C Measures Data'!$U$2:$U$207,MATCH(F77,'Cat C Measures Data'!$A$2:$A$207,0))=$AT$5),"Required","Optional"),"Optional"),"No measures found") -> No measures found | I77: =IFERROR(INDEX('Cat C Measures Data'!$AD$2:$AD$973,MATCH(OFFSET($E77,$L77*-1,0)&"_"&$B77,'Cat C Measures Data'!$AU$2:$AU$973,0)),"No measures found") -> No measures found | J77: =IFERROR(INDEX('Cat C Measures Data'!$AC$2:$AC$973,MATCH(OFFSET($E77,$L77*-1,0)&"_"&$B77,'Cat C Measures Data'!$AU$2:$AU$973,0)),"No measures found") -> No measures found | K77: =IFERROR(IF(OR(AND($AD$4,OFFSET($D77,$L77*-1,0)="Yes",$H77="Required"),AND($AD$4=FALSE,$H77="Required")),"N/A",IF(AND($AD$4,OFFSET($D77,$L77*-1,0)<>"Yes"),INDEX('Cat C Measures Data'!$AV$2:$AV$973,MATCH($F77,'Cat C Measures Data'!$A$2:$A$973,0)),INDEX('Cat C Measures Data'!$V$2:$V$973,MATCH($F77,'Cat C Measures Data'!$A$2:$A$973,0)))),"No measures found") -> No measures found | L77: 24 | M77: A1 | O77: =IF($H77="Required","N/A - Required","No") -> No | P77: FALSE | Q77: FALSE | AJ77: FALSE | AK77: FALSE | AL77: FALSE | AM77: FALSE | AN77: FALSE | AO77: FALSE | AP77: TRUE | AQ77: FALSE | AS77: FALSE | AT77: FALSE | AV77: TRUE | AY77: 1 | AZ77: 9 | BA77: 1_9 | BD77: Yes | BE77: No measures found | BF77: No measures found | BH77: MLIU denominator with significant volume | BI77: 1 | BJ77: N | BK77: No | BM77: 1_No measures found | BN77: 1_No measures found_N | BP77: FALSE | BQ77: FALSE | BR77: TRUE | BS77: FALSE | BT77: 2 | BU77: 4 | BV77: FALSE
B78: 9 | E78: =IF(OR($E77=$BM$4,$E77=$BM$5,$E77=$BM$6),AltDenLanguage,IF(OR($E77=$BM$7,$E77=$BM$8),NoSignifVolLanguage,IF(OR($E77=$BS$4,$E77=$BS$5,$E77=$BU$5),$BU$7,""))) ->  | L78: 25 | M78: A1 | O78: =IF($H77="Required","","Yes") -> Yes | P78: FALSE | Q78: FALSE | AJ78: FALSE | AK78: FALSE | AL78: FALSE | AM78: FALSE | AN78: FALSE | AO78: FALSE | AP78: TRUE | AQ78: FALSE | AS78: FALSE | AT78: FALSE | AV78: TRUE | AY78: 1 | AZ78: 9 | BA78: 1_9
B79: 10 | D79: =IF($H79="Required","N/A - Required",IF($H79="Optional","No","No measures found")) -> No measures found | E79: =IF($BL79=$BS$7,$BO$3,IF($BL79=$BS$8,$BQ$3,IF(AND($BV79,$BF79="Optional"),$BS$3,$BM$3))) -> MLIU denominator with significant volume | F79: =IFERROR(INDEX('Cat C Measures Data'!$A$2:$A$973,MATCH(OFFSET($E79,$L79*-1,0)&"_"&$B79,'Cat C Measures Data'!$AU$2:$AU$973,0)),"No measures found") -> No measures found | G79: =IFERROR(INDEX('Cat C Measures Data'!$C$2:$C$973,MATCH(OFFSET($E79,$L79*-1,0)&"_"&$B79,'Cat C Measures Data'!$AU$2:$AU$973,0)),"No measures found") -> No measures found | H79: =IFERROR(IF(OR(AND($AD$4,OFFSET($D79,$L79*-1,0)="Yes"),$AD$4=FALSE),IF(OR(INDEX('Cat C Measures Data'!$U$2:$U$973,MATCH(OFFSET($E79,$L79*-1,0)&"_"&$B79,'Cat C Measures Data'!$AU$2:$AU$973,0))="Y",INDEX('Cat C Measures Data'!$U$2:$U$207,MATCH(F79,'Cat C Measures Data'!$A$2:$A$207,0))=$AT$5),"Required","Optional"),"Optional"),"No measures found") -> No measures found | I79: =IFERROR(INDEX('Cat C Measures Data'!$AD$2:$AD$973,MATCH(OFFSET($E79,$L79*-1,0)&"_"&$B79,'Cat C Measures Data'!$AU$2:$AU$973,0)),"No measures found") -> No measures found | J79: =IFERROR(INDEX('Cat C Measures Data'!$AC$2:$AC$973,MATCH(OFFSET($E79,$L79*-1,0)&"_"&$B79,'Cat C Measures Data'!$AU$2:$AU$973,0)),"No measures found") -> No measures found | K79: =IFERROR(IF(OR(AND($AD$4,OFFSET($D79,$L79*-1,0)="Yes",$H79="Required"),AND($AD$4=FALSE,$H79="Required")),"N/A",IF(AND($AD$4,OFFSET($D79,$L79*-1,0)<>"Yes"),INDEX('Cat C Measures Data'!$AV$2:$AV$973,MATCH($F79,'Cat C Measures Data'!$A$2:$A$973,0)),INDEX('Cat C Measures Data'!$V$2:$V$973,MATCH($F79,'Cat C Measures Data'!$A$2:$A$973,0)))),"No measures found") -> No measures found | L79: 26 | M79: A1 | O79: =IF($H79="Required","N/A - Required","No") -> No | P79: FALSE | Q79: FALSE | AJ79: FALSE | AK79: FALSE | AL79: FALSE | AM79: FALSE | AN79: FALSE | AO79: FALSE | AP79: TRUE | AQ79: FALSE | AS79: FALSE | AT79: FALSE | AV79: TRUE | AY79: 1 | AZ79: 10 | BA79: 1_10 | BD79: Yes | BE79: No measures found | BF79: No measures found | BH79: MLIU denominator with significant volume | BI79: 1 | BJ79: N | BK79: No | BM79: 1_No measures found | BN79: 1_No measures found_N | BP79: FALSE | BQ79: FALSE | BR79: TRUE | BS79: FALSE | BT79: 2 | BU79: 4 | BV79: FALSE
B80: 10 | E80: =IF(OR($E79=$BM$4,$E79=$BM$5,$E79=$BM$6),AltDenLanguage,IF(OR($E79=$BM$7,$E79=$BM$8),NoSignifVolLanguage,IF(OR($E79=$BS$4,$E79=$BS$5,$E79=$BU$5),$BU$7,""))) ->  | L80: 27 | M80: A1 | O80: =IF($H79="Required","","Yes") -> Yes | P80: FALSE | Q80: FALSE | AJ80: FALSE | AK80: FALSE | AL80: FALSE | AM80: FALSE | AN80: FALSE | AO80: FALSE | AP80: TRUE | AQ80: FALSE | AS80: FALSE | AT80: FALSE | AV80: TRUE | AY80: 1 | AZ80: 10 | BA80: 1_10
B81: 11 | D81: =IF($H81="Required","N/A - Required",IF($H81="Optional","No","No measures found")) -> No measures found | E81: =IF($BL81=$BS$7,$BO$3,IF($BL81=$BS$8,$BQ$3,IF(AND($BV81,$BF81="Optional"),$BS$3,$BM$3))) -> MLIU denominator with significant volume | F81: =IFERROR(INDEX('Cat C Measures Data'!$A$2:$A$973,MATCH(OFFSET($E81,$L81*-1,0)&"_"&$B81,'Cat C Measures Data'!$AU$2:$AU$973,0)),"No measures found") -> No measures found | G81: =IFERROR(INDEX('Cat C Measures Data'!$C$2:$C$973,MATCH(OFFSET($E81,$L81*-1,0)&"_"&$B81,'Cat C Measures Data'!$AU$2:$AU$973,0)),"No measures found") -> No measures found | H81: =IFERROR(IF(OR(AND($AD$4,OFFSET($D81,$L81*-1,0)="Yes"),$AD$4=FALSE),IF(OR(INDEX('Cat C Measures Data'!$U$2:$U$973,MATCH(OFFSET($E81,$L81*-1,0)&"_"&$B81,'Cat C Measures Data'!$AU$2:$AU$973,0))="Y",INDEX('Cat C Measures Data'!$U$2:$U$207,MATCH(F81,'Cat C Measures Data'!$A$2:$A$207,0))=$AT$5),"Required","Optional"),"Optional"),"No measures found") -> No measures found | I81: =IFERROR(INDEX('Cat C Measures Data'!$AD$2:$AD$973,MATCH(OFFSET($E81,$L81*-1,0)&"_"&$B81,'Cat C Measures Data'!$AU$2:$AU$973,0)),"No measures found") -> No measures found | J81: =IFERROR(INDEX('Cat C Measures Data'!$AC$2:$AC$973,MATCH(OFFSET($E81,$L81*-1,0)&"_"&$B81,'Cat C Measures Data'!$AU$2:$AU$973,0)),"No measures found") -> No measures found | K81: =IFERROR(IF(OR(AND($AD$4,OFFSET($D81,$L81*-1,0)="Yes",$H81="Required"),AND($AD$4=FALSE,$H81="Required")),"N/A",IF(AND($AD$4,OFFSET($D81,$L81*-1,0)<>"Yes"),INDEX('Cat C Measures Data'!$AV$2:$AV$973,MATCH($F81,'Cat C Measures Data'!$A$2:$A$973,0)),INDEX('Cat C Measures Data'!$V$2:$V$973,MATCH($F81,'Cat C Measures Data'!$A$2:$A$973,0)))),"No measures found") -> No measures found | L81: 28 | M81: A1 | O81: =IF($H81="Required","N/A - Required","No") -> No | P81: FALSE | Q81: FALSE | AJ81: FALSE | AK81: FALSE | AL81: FALSE | AM81: FALSE | AN81: FALSE | AO81: FALSE | AP81: TRUE | AQ81: FALSE | AS81: FALSE | AT81: FALSE | AV81: TRUE | AY81: 1 | AZ81: 11 | BA81: 1_11 | BD81: Yes | BE81: No measures found | BF81: No measures found | BH81: MLIU denominator with significant volume | BI81: 1 | BJ81: N | BK81: No | BM81: 1_No measures found | BN81: 1_No measures found_N | BP81: FALSE | BQ81: FALSE | BR81: TRUE | BS81: FALSE | BT81: 2 | BU81: 4 | BV81: FALSE
B82: 11 | E82: =IF(OR($E81=$BM$4,$E81=$BM$5,$E81=$BM$6),AltDenLanguage,IF(OR($E81=$BM$7,$E81=$BM$8),NoSignifVolLanguage,IF(OR($E81=$BS$4,$E81=$BS$5,$E81=$BU$5),$BU$7,""))) ->  | L82: 29 | M82: A1 | O82: =IF($H81="Required","","Yes") -> Yes | P82: FALSE | Q82: FALSE | AJ82: FALSE | AK82: FALSE | AL82: FALSE | AM82: FALSE | AN82: FALSE | AO82: FALSE | AP82: TRUE | AQ82: FALSE | AS82: FALSE | AT82: FALSE | AV82: TRUE | AY82: 1 | AZ82: 11 | BA82: 1_11
B83: 12 | D83: =IF($H83="Required","N/A - Required",IF($H83="Optional","No","No measures found")) -> No measures found | E83: =IF($BL83=$BS$7,$BO$3,IF($BL83=$BS$8,$BQ$3,IF(AND($BV83,$BF83="Optional"),$BS$3,$BM$3))) -> MLIU denominator with significant volume | F83: =IFERROR(INDEX('Cat C Measures Data'!$A$2:$A$973,MATCH(OFFSET($E83,$L83*-1,0)&"_"&$B83,'Cat C Measures Data'!$AU$2:$AU$973,0)),"No measures found") -> No measures found | G83: =IFERROR(INDEX('Cat C Measures Data'!$C$2:$C$973,MATCH(OFFSET($E83,$L83*-1,0)&"_"&$B83,'Cat C Measures Data'!$AU$2:$AU$973,0)),"No measures found") -> No measures found | H83: =IFERROR(IF(OR(AND($AD$4,OFFSET($D83,$L83*-1,0)="Yes"),$AD$4=FALSE),IF(OR(INDEX('Cat C Measures Data'!$U$2:$U$973,MATCH(OFFSET($E83,$L83*-1,0)&"_"&$B83,'Cat C Measures Data'!$AU$2:$AU$973,0))="Y",INDEX('Cat C Measures Data'!$U$2:$U$207,MATCH(F83,'Cat C Measures Data'!$A$2:$A$207,0))=$AT$5),"Required","Optional"),"Optional"),"No measures found") -> No measures found | I83: =IFERROR(INDEX('Cat C Measures Data'!$AD$2:$AD$973,MATCH(OFFSET($E83,$L83*-1,0)&"_"&$B83,'Cat C Measures Data'!$AU$2:$AU$973,0)),"No measures found") -> No measures found | J83: =IFERROR(INDEX('Cat C Measures Data'!$AC$2:$AC$973,MATCH(OFFSET($E83,$L83*-1,0)&"_"&$B83,'Cat C Measures Data'!$AU$2:$AU$973,0)),"No measures found") -> No measures found | K83: =IFERROR(IF(OR(AND($AD$4,OFFSET($D83,$L83*-1,0)="Yes",$H83="Required"),AND($AD$4=FALSE,$H83="Required")),"N/A",IF(AND($AD$4,OFFSET($D83,$L83*-1,0)<>"Yes"),INDEX('Cat C Measures Data'!$AV$2:$AV$973,MATCH($F83,'Cat C Measures Data'!$A$2:$A$973,0)),INDEX('Cat C Measures Data'!$V$2:$V$973,MATCH($F83,'Cat C Measures Data'!$A$2:$A$973,0)))),"No measures found") -> No measures found | L83: 30 | M83: A1 | O83: =IF($H83="Required","N/A - Required","No") -> No | P83: FALSE | Q83: FALSE | AJ83: FALSE | AK83: FALSE | AL83: FALSE | AM83: FALSE | AN83: FALSE | AO83: FALSE | AP83: TRUE | AQ83: FALSE | AS83: FALSE | AT83: FALSE | AV83: TRUE | AY83: 1 | AZ83: 12 | BA83: 1_12 | BD83: Yes | BE83: No measures found | BF83: No measures found | BH83: MLIU denominator with significant volume | BI83: 1 | BJ83: N | BK83: No | BM83: 1_No measures found | BN83: 1_No measures found_N | BP83: FALSE | BQ83: FALSE | BR83: TRUE | BS83: FALSE | BT83: 2 | BU83: 4 | BV83: FALSE
B84: 12 | E84: =IF(OR($E83=$BM$4,$E83=$BM$5,$E83=$BM$6),AltDenLanguage,IF(OR($E83=$BM$7,$E83=$BM$8),NoSignifVolLanguage,IF(OR($E83=$BS$4,$E83=$BS$5,$E83=$BU$5),$BU$7,""))) ->  | L84: 31 | M84: A1 | O84: =IF($H83="Required","","Yes") -> Yes | P84: FALSE | Q84: FALSE | AJ84: FALSE | AK84: FALSE | AL84: FALSE | AM84: FALSE | AN84: FALSE | AO84: FALSE | AP84: TRUE | AQ84: FALSE | AS84: FALSE | AT84: FALSE | AV84: TRUE | AY84: 1 | AZ84: 12 | BA84: 1_12
B85: 13 | D85: =IF($H85="Required","N/A - Required",IF($H85="Optional","No","No measures found")) -> No measures found | E85: =IF($BL85=$BS$7,$BO$3,IF($BL85=$BS$8,$BQ$3,IF(AND($BV85,$BF85="Optional"),$BS$3,$BM$3))) -> MLIU denominator with significant volume | F85: =IFERROR(INDEX('Cat C Measures Data'!$A$2:$A$973,MATCH(OFFSET($E85,$L85*-1,0)&"_"&$B85,'Cat C Measures Data'!$AU$2:$AU$973,0)),"No measures found") -> No measures found | G85: =IFERROR(INDEX('Cat C Measures Data'!$C$2:$C$973,MATCH(OFFSET($E85,$L85*-1,0)&"_"&$B85,'Cat C Measures Data'!$AU$2:$AU$973,0)),"No measures found") -> No measures found | H85: =IFERROR(IF(OR(AND($AD$4,OFFSET($D85,$L85*-1,0)="Yes"),$AD$4=FALSE),IF(OR(INDEX('Cat C Measures Data'!$U$2:$U$973,MATCH(OFFSET($E85,$L85*-1,0)&"_"&$B85,'Cat C Measures Data'!$AU$2:$AU$973,0))="Y",INDEX('Cat C Measures Data'!$U$2:$U$207,MATCH(F85,'Cat C Measures Data'!$A$2:$A$207,0))=$AT$5),"Required","Optional"),"Optional"),"No measures found") -> No measures found | I85: =IFERROR(INDEX('Cat C Measures Data'!$AD$2:$AD$973,MATCH(OFFSET($E85,$L85*-1,0)&"_"&$B85,'Cat C Measures Data'!$AU$2:$AU$973,0)),"No measures found") -> No measures found | J85: =IFERROR(INDEX('Cat C Measures Data'!$AC$2:$AC$973,MATCH(OFFSET($E85,$L85*-1,0)&"_"&$B85,'Cat C Measures Data'!$AU$2:$AU$973,0)),"No measures found") -> No measures found | K85: =IFERROR(IF(OR(AND($AD$4,OFFSET($D85,$L85*-1,0)="Yes",$H85="Required"),AND($AD$4=FALSE,$H85="Required")),"N/A",IF(AND($AD$4,OFFSET($D85,$L85*-1,0)<>"Yes"),INDEX('Cat C Measures Data'!$AV$2:$AV$973,MATCH($F85,'Cat C Measures Data'!$A$2:$A$973,0)),INDEX('Cat C Measures Data'!$V$2:$V$973,MATCH($F85,'Cat C Measures Data'!$A$2:$A$973,0)))),"No measures found") -> No measures found | L85: 32 | M85: A1 | O85: =IF($H85="Required","N/A - Required","No") -> No | P85: FALSE | Q85: FALSE | AJ85: FALSE | AK85: FALSE | AL85: FALSE | AM85: FALSE | AN85: FALSE | AO85: FALSE | AP85: TRUE | AQ85: FALSE | AS85: FALSE | AT85: FALSE | AV85: TRUE | AY85: 1 | AZ85: 13 | BA85: 1_13 | BD85: Yes | BE85: No measures found | BF85: No measures found | BH85: MLIU denominator with significant volume | BI85: 1 | BJ85: N | BK85: No | BM85: 1_No measures found | BN85: 1_No measures found_N | BP85: FALSE | BQ85: FALSE | BR85: TRUE | BS85: FALSE | BT85: 2 | BU85: 4 | BV85: FALSE
B86: 13 | E86: =IF(OR($E85=$BM$4,$E85=$BM$5,$E85=$BM$6),AltDenLanguage,IF(OR($E85=$BM$7,$E85=$BM$8),NoSignifVolLanguage,IF(OR($E85=$BS$4,$E85=$BS$5,$E85=$BU$5),$BU$7,""))) ->  | L86: 33 | M86: A1 | O86: =IF($H85="Required","","Yes") -> Yes | P86: FALSE | Q86: FALSE | AJ86: FALSE | AK86: FALSE | AL86: FALSE | AM86: FALSE | AN86: FALSE | AO86: FALSE | AP86: TRUE | AQ86: FALSE | AS86: FALSE | AT86: FALSE | AV86: TRUE | AY86: 1 | AZ86: 13 | BA86: 1_13
B87: 14 | D87: =IF($H87="Required","N/A - Required",IF($H87="Optional","No","No measures found")) -> No measures found | E87: =IF($BL87=$BS$7,$BO$3,IF($BL87=$BS$8,$BQ$3,IF(AND($BV87,$BF87="Optional"),$BS$3,$BM$3))) -> MLIU denominator with significant volume | F87: =IFERROR(INDEX('Cat C Measures Data'!$A$2:$A$973,MATCH(OFFSET($E87,$L87*-1,0)&"_"&$B87,'Cat C Measures Data'!$AU$2:$AU$973,0)),"No measures found") -> No measures found | G87: =IFERROR(INDEX('Cat C Measures Data'!$C$2:$C$973,MATCH(OFFSET($E87,$L87*-1,0)&"_"&$B87,'Cat C Measures Data'!$AU$2:$AU$973,0)),"No measures found") -> No measures found | H87: =IFERROR(IF(OR(AND($AD$4,OFFSET($D87,$L87*-1,0)="Yes"),$AD$4=FALSE),IF(OR(INDEX('Cat C Measures Data'!$U$2:$U$973,MATCH(OFFSET($E87,$L87*-1,0)&"_"&$B87,'Cat C Measures Data'!$AU$2:$AU$973,0))="Y",INDEX('Cat C Measures Data'!$U$2:$U$207,MATCH(F87,'Cat C Measures Data'!$A$2:$A$207,0))=$AT$5),"Required","Optional"),"Optional"),"No measures found") -> No measures found | I87: =IFERROR(INDEX('Cat C Measures Data'!$AD$2:$AD$973,MATCH(OFFSET($E87,$L87*-1,0)&"_"&$B87,'Cat C Measures Data'!$AU$2:$AU$973,0)),"No measures found") -> No measures found | J87: =IFERROR(INDEX('Cat C Measures Data'!$AC$2:$AC$973,MATCH(OFFSET($E87,$L87*-1,0)&"_"&$B87,'Cat C Measures Data'!$AU$2:$AU$973,0)),"No measures found") -> No measures found | K87: =IFERROR(IF(OR(AND($AD$4,OFFSET($D87,$L87*-1,0)="Yes",$H87="Required"),AND($AD$4=FALSE,$H87="Required")),"N/A",IF(AND($AD$4,OFFSET($D87,$L87*-1,0)<>"Yes"),INDEX('Cat C Measures Data'!$AV$2:$AV$973,MATCH($F87,'Cat C Measures Data'!$A$2:$A$973,0)),INDEX('Cat C Measures Data'!$V$2:$V$973,MATCH($F87,'Cat C Measures Data'!$A$2:$A$973,0)))),"No measures found") -> No measures found | L87: 34 | M87: A1 | O87: =IF($H87="Required","N/A - Required","No") -> No | P87: FALSE | Q87: FALSE | AJ87: FALSE | AK87: FALSE | AL87: FALSE | AM87: FALSE | AN87: FALSE | AO87: FALSE | AP87: TRUE | AQ87: FALSE | AS87: FALSE | AT87: FALSE | AV87: TRUE | AY87: 1 | AZ87: 14 | BA87: 1_14 | BD87: Yes | BE87: No measures found | BF87: No measures found | BH87: MLIU denominator with significant volume | BI87: 1 | BJ87: N | BK87: No | BM87: 1_No measures found | BN87: 1_No measures found_N | BP87: FALSE | BQ87: FALSE | BR87: TRUE | BS87: FALSE | BT87: 2 | BU87: 4 | BV87: FALSE
B88: 14 | E88: =IF(OR($E87=$BM$4,$E87=$BM$5,$E87=$BM$6),AltDenLanguage,IF(OR($E87=$BM$7,$E87=$BM$8),NoSignifVolLanguage,IF(OR($E87=$BS$4,$E87=$BS$5,$E87=$BU$5),$BU$7,""))) ->  | L88: 35 | M88: A1 | O88: =IF($H87="Required","","Yes") -> Yes | P88: FALSE | Q88: FALSE | AJ88: FALSE | AK88: FALSE | AL88: FALSE | AM88: FALSE | AN88: FALSE | AO88: FALSE | AP88: TRUE | AQ88: FALSE | AS88: FALSE | AT88: FALSE | AV88: TRUE | AY88: 1 | AZ88: 14 | BA88: 1_14
B89: 15 | D89: =IF($H89="Required","N/A - Required",IF($H89="Optional","No","No measures found")) -> No measures found | E89: =IF($BL89=$BS$7,$BO$3,IF($BL89=$BS$8,$BQ$3,IF(AND($BV89,$BF89="Optional"),$BS$3,$BM$3))) -> MLIU denominator with significant volume | F89: =IFERROR(INDEX('Cat C Measures Data'!$A$2:$A$973,MATCH(OFFSET($E89,$L89*-1,0)&"_"&$B89,'Cat C Measures Data'!$AU$2:$AU$973,0)),"No measures found") -> No measures found | G89: =IFERROR(INDEX('Cat C Measures Data'!$C$2:$C$973,MATCH(OFFSET($E89,$L89*-1,0)&"_"&$B89,'Cat C Measures Data'!$AU$2:$AU$973,0)),"No measures found") -> No measures found | H89: =IFERROR(IF(OR(AND($AD$4,OFFSET($D89,$L89*-1,0)="Yes"),$AD$4=FALSE),IF(OR(INDEX('Cat C Measures Data'!$U$2:$U$973,MATCH(OFFSET($E89,$L89*-1,0)&"_"&$B89,'Cat C Measures Data'!$AU$2:$AU$973,0))="Y",INDEX('Cat C Measures Data'!$U$2:$U$207,MATCH(F89,'Cat C Measures Data'!$A$2:$A$207,0))=$AT$5),"Required","Optional"),"Optional"),"No measures found") -> No measures found | I89: =IFERROR(INDEX('Cat C Measures Data'!$AD$2:$AD$973,MATCH(OFFSET($E89,$L89*-1,0)&"_"&$B89,'Cat C Measures Data'!$AU$2:$AU$973,0)),"No measures found") -> No measures found | J89: =IFERROR(INDEX('Cat C Measures Data'!$AC$2:$AC$973,MATCH(OFFSET($E89,$L89*-1,0)&"_"&$B89,'Cat C Measures Data'!$AU$2:$AU$973,0)),"No measures found") -> No measures found | K89: =IFERROR(IF(OR(AND($AD$4,OFFSET($D89,$L89*-1,0)="Yes",$H89="Required"),AND($AD$4=FALSE,$H89="Required")),"N/A",IF(AND($AD$4,OFFSET($D89,$L89*-1,0)<>"Yes"),INDEX('Cat C Measures Data'!$AV$2:$AV$973,MATCH($F89,'Cat C Measures Data'!$A$2:$A$973,0)),INDEX('Cat C Measures Data'!$V$2:$V$973,MATCH($F89,'Cat C Measures Data'!$A$2:$A$973,0)))),"No measures found") -> No measures found | L89: 36 | M89: A1 | O89: =IF($H89="Required","N/A - Required","No") -> No | P89: FALSE | Q89: FALSE | AJ89: FALSE | AK89: FALSE | AL89: FALSE | AM89: FALSE | AN89: FALSE | AO89: FALSE | AP89: TRUE | AQ89: FALSE | AS89: FALSE | AT89: FALSE | AV89: TRUE | AY89: 1 | AZ89: 15 | BA89: 1_15 | BD89: Yes | BE89: No measures found | BF89: No measures found | BH89: MLIU denominator with significant volume | BI89: 1 | BJ89: N | BK89: No | BM89: 1_No measures found | BN89: 1_No measures found_N | BP89: FALSE | BQ89: FALSE | BR89: TRUE | BS89: FALSE | BT89: 2 | BU89: 4 | BV89: FALSE
B90: 15 | E90: =IF(OR($E89=$BM$4,$E89=$BM$5,$E89=$BM$6),AltDenLanguage,IF(OR($E89=$BM$7,$E89=$BM$8),NoSignifVolLanguage,IF(OR($E89=$BS$4,$E89=$BS$5,$E89=$BU$5),$BU$7,""))) ->  | L90: 37 | M90: A1 | O90: =IF($H89="Required","","Yes") -> Yes | P90: FALSE | Q90: FALSE | AJ90: FALSE | AK90: FALSE | AL90: FALSE | AM90: FALSE | AN90: FALSE | AO90: FALSE | AP90: TRUE | AQ90: FALSE | AS90: FALSE | AT90: FALSE | AV90: TRUE | AY90: 1 | AZ90: 15 | BA90: 1_15
B91: 16 | D91: =IF($H91="Required","N/A - Required",IF($H91="Optional","No","No measures found")) -> No measures found | E91: =IF($BL91=$BS$7,$BO$3,IF($BL91=$BS$8,$BQ$3,IF(AND($BV91,$BF91="Optional"),$BS$3,$BM$3))) -> MLIU denominator with significant volume | F91: =IFERROR(INDEX('Cat C Measures Data'!$A$2:$A$973,MATCH(OFFSET($E91,$L91*-1,0)&"_"&$B91,'Cat C Measures Data'!$AU$2:$AU$973,0)),"No measures found") -> No measures found | G91: =IFERROR(INDEX('Cat C Measures Data'!$C$2:$C$973,MATCH(OFFSET($E91,$L91*-1,0)&"_"&$B91,'Cat C Measures Data'!$AU$2:$AU$973,0)),"No measures found") -> No measures found | H91: =IFERROR(IF(OR(AND($AD$4,OFFSET($D91,$L91*-1,0)="Yes"),$AD$4=FALSE),IF(OR(INDEX('Cat C Measures Data'!$U$2:$U$973,MATCH(OFFSET($E91,$L91*-1,0)&"_"&$B91,'Cat C Measures Data'!$AU$2:$AU$973,0))="Y",INDEX('Cat C Measures Data'!$U$2:$U$207,MATCH(F91,'Cat C Measures Data'!$A$2:$A$207,0))=$AT$5),"Required","Optional"),"Optional"),"No measures found") -> No measures found | I91: =IFERROR(INDEX('Cat C Measures Data'!$AD$2:$AD$973,MATCH(OFFSET($E91,$L91*-1,0)&"_"&$B91,'Cat C Measures Data'!$AU$2:$AU$973,0)),"No measures found") -> No measures found | J91: =IFERROR(INDEX('Cat C Measures Data'!$AC$2:$AC$973,MATCH(OFFSET($E91,$L91*-1,0)&"_"&$B91,'Cat C Measures Data'!$AU$2:$AU$973,0)),"No measures found") -> No measures found | K91: =IFERROR(IF(OR(AND($AD$4,OFFSET($D91,$L91*-1,0)="Yes",$H91="Required"),AND($AD$4=FALSE,$H91="Required")),"N/A",IF(AND($AD$4,OFFSET($D91,$L91*-1,0)<>"Yes"),INDEX('Cat C Measures Data'!$AV$2:$AV$973,MATCH($F91,'Cat C Measures Data'!$A$2:$A$973,0)),INDEX('Cat C Measures Data'!$V$2:$V$973,MATCH($F91,'Cat C Measures Data'!$A$2:$A$973,0)))),"No measures found") -> No measures found | L91: 38 | M91: A1 | O91: =IF($H91="Required","N/A - Required","No") -> No | P91: FALSE | Q91: FALSE | AJ91: FALSE | AK91: FALSE | AL91: FALSE | AM91: FALSE | AN91: FALSE | AO91: FALSE | AP91: TRUE | AQ91: FALSE | AS91: FALSE | AT91: FALSE | AV91: TRUE | AY91: 1 | AZ91: 16 | BA91: 1_16 | BD91: Yes | BE91: No measures found | BF91: No measures found | BH91: MLIU denominator with significant volume | BI91: 1 | BJ91: N | BK91: No | BM91: 1_No measures found | BN91: 1_No measures found_N | BP91: FALSE | BQ91: FALSE | BR91: TRUE | BS91: FALSE | BT91: 2 | BU91: 4 | BV91: FALSE
B92: 16 | E92: =IF(OR($E91=$BM$4,$E91=$BM$5,$E91=$BM$6),AltDenLanguage,IF(OR($E91=$BM$7,$E91=$BM$8),NoSignifVolLanguage,IF(OR($E91=$BS$4,$E91=$BS$5,$E91=$BU$5),$BU$7,""))) ->  | L92: 39 | M92: A1 | O92: =IF($H91="Required","","Yes") -> Yes | P92: FALSE | Q92: FALSE | AJ92: FALSE | AK92: FALSE | AL92: FALSE | AM92: FALSE | AN92: FALSE | AO92: FALSE | AP92: TRUE | AQ92: FALSE | AS92: FALSE | AT92: FALSE | AV92: TRUE | AY92: 1 | AZ92: 16 | BA92: 1_16
B93: 17 | D93: =IF($H93="Required","N/A - Required",IF($H93="Optional","No","No measures found")) -> No measures found | E93: =IF($BL93=$BS$7,$BO$3,IF($BL93=$BS$8,$BQ$3,IF(AND($BV93,$BF93="Optional"),$BS$3,$BM$3))) -> MLIU denominator with significant volume | F93: =IFERROR(INDEX('Cat C Measures Data'!$A$2:$A$973,MATCH(OFFSET($E93,$L93*-1,0)&"_"&$B93,'Cat C Measures Data'!$AU$2:$AU$973,0)),"No measures found") -> No measures found | G93: =IFERROR(INDEX('Cat C Measures Data'!$C$2:$C$973,MATCH(OFFSET($E93,$L93*-1,0)&"_"&$B93,'Cat C Measures Data'!$AU$2:$AU$973,0)),"No measures found") -> No measures found | H93: =IFERROR(IF(OR(AND($AD$4,OFFSET($D93,$L93*-1,0)="Yes"),$AD$4=FALSE),IF(OR(INDEX('Cat C Measures Data'!$U$2:$U$973,MATCH(OFFSET($E93,$L93*-1,0)&"_"&$B93,'Cat C Measures Data'!$AU$2:$AU$973,0))="Y",INDEX('Cat C Measures Data'!$U$2:$U$207,MATCH(F93,'Cat C Measures Data'!$A$2:$A$207,0))=$AT$5),"Required","Optional"),"Optional"),"No measures found") -> No measures found | I93: =IFERROR(INDEX('Cat C Measures Data'!$AD$2:$AD$973,MATCH(OFFSET($E93,$L93*-1,0)&"_"&$B93,'Cat C Measures Data'!$AU$2:$AU$973,0)),"No measures found") -> No measures found | J93: =IFERROR(INDEX('Cat C Measures Data'!$AC$2:$AC$973,MATCH(OFFSET($E93,$L93*-1,0)&"_"&$B93,'Cat C Measures Data'!$AU$2:$AU$973,0)),"No measures found") -> No measures found | K93: =IFERROR(IF(OR(AND($AD$4,OFFSET($D93,$L93*-1,0)="Yes",$H93="Required"),AND($AD$4=FALSE,$H93="Required")),"N/A",IF(AND($AD$4,OFFSET($D93,$L93*-1,0)<>"Yes"),INDEX('Cat C Measures Data'!$AV$2:$AV$973,MATCH($F93,'Cat C Measures Data'!$A$2:$A$973,0)),INDEX('Cat C Measures Data'!$V$2:$V$973,MATCH($F93,'Cat C Measures Data'!$A$2:$A$973,0)))),"No measures found") -> No measures found | L93: 40 | M93: A1 | O93: =IF($H93="Required","N/A - Required","No") -> No | P93: FALSE | Q93: FALSE | AJ93: FALSE | AK93: FALSE | AL93: FALSE | AM93: FALSE | AN93: FALSE | AO93: FALSE | AP93: TRUE | AQ93: FALSE | AS93: FALSE | AT93: FALSE | AV93: TRUE | AY93: 1 | AZ93: 17 | BA93: 1_17 | BD93: Yes | BE93: No measures found | BF93: No measures found | BH93: MLIU denominator with significant volume | BI93: 1 | BJ93: N | BK93: No | BM93: 1_No measures found | BN93: 1_No measures found_N | BP93: FALSE | BQ93: FALSE | BR93: TRUE | BS93: FALSE | BT93: 2 | BU93: 4 | BV93: FALSE
B94: 17 | E94: =IF(OR($E93=$BM$4,$E93=$BM$5,$E93=$BM$6),AltDenLanguage,IF(OR($E93=$BM$7,$E93=$BM$8),NoSignifVolLanguage,IF(OR($E93=$BS$4,$E93=$BS$5,$E93=$BU$5),$BU$7,""))) ->  | L94: 41 | M94: A1 | O94: =IF($H93="Required","","Yes") -> Yes | P94: FALSE | Q94: FALSE | AJ94: FALSE | AK94: FALSE | AL94: FALSE | AM94: FALSE | AN94: FALSE | AO94: FALSE | AP94: TRUE | AQ94: FALSE | AS94: FALSE | AT94: FALSE | AV94: TRUE | AY94: 1 | AZ94: 17 | BA94: 1_17
B95: 18 | D95: =IF($H95="Required","N/A - Required",IF($H95="Optional","No","No measures found")) -> No measures found | E95: =IF($BL95=$BS$7,$BO$3,IF($BL95=$BS$8,$BQ$3,IF(AND($BV95,$BF95="Optional"),$BS$3,$BM$3))) -> MLIU denominator with significant volume | F95: =IFERROR(INDEX('Cat C Measures Data'!$A$2:$A$973,MATCH(OFFSET($E95,$L95*-1,0)&"_"&$B95,'Cat C Measures Data'!$AU$2:$AU$973,0)),"No measures found") -> No measures found | G95: =IFERROR(INDEX('Cat C Measures Data'!$C$2:$C$973,MATCH(OFFSET($E95,$L95*-1,0)&"_"&$B95,'Cat C Measures Data'!$AU$2:$AU$973,0)),"No measures found") -> No measures found | H95: =IFERROR(IF(OR(AND($AD$4,OFFSET($D95,$L95*-1,0)="Yes"),$AD$4=FALSE),IF(OR(INDEX('Cat C Measures Data'!$U$2:$U$973,MATCH(OFFSET($E95,$L95*-1,0)&"_"&$B95,'Cat C Measures Data'!$AU$2:$AU$973,0))="Y",INDEX('Cat C Measures Data'!$U$2:$U$207,MATCH(F95,'Cat C Measures Data'!$A$2:$A$207,0))=$AT$5),"Required","Optional"),"Optional"),"No measures found") -> No measures found | I95: =IFERROR(INDEX('Cat C Measures Data'!$AD$2:$AD$973,MATCH(OFFSET($E95,$L95*-1,0)&"_"&$B95,'Cat C Measures Data'!$AU$2:$AU$973,0)),"No measures found") -> No measures found | J95: =IFERROR(INDEX('Cat C Measures Data'!$AC$2:$AC$973,MATCH(OFFSET($E95,$L95*-1,0)&"_"&$B95,'Cat C Measures Data'!$AU$2:$AU$973,0)),"No measures found") -> No measures found | K95: =IFERROR(IF(OR(AND($AD$4,OFFSET($D95,$L95*-1,0)="Yes",$H95="Required"),AND($AD$4=FALSE,$H95="Required")),"N/A",IF(AND($AD$4,OFFSET($D95,$L95*-1,0)<>"Yes"),INDEX('Cat C Measures Data'!$AV$2:$AV$973,MATCH($F95,'Cat C Measures Data'!$A$2:$A$973,0)),INDEX('Cat C Measures Data'!$V$2:$V$973,MATCH($F95,'Cat C Measures Data'!$A$2:$A$973,0)))),"No measures found") -> No measures found | L95: 42 | M95: A1 | O95: =IF($H95="Required","N/A - Required","No") -> No | P95: FALSE | Q95: FALSE | AJ95: FALSE | AK95: FALSE | AL95: FALSE | AM95: FALSE | AN95: FALSE | AO95: FALSE | AP95: TRUE | AQ95: FALSE | AS95: FALSE | AT95: FALSE | AV95: TRUE | AY95: 1 | AZ95: 18 | BA95: 1_18 | BD95: Yes | BE95: No measures found | BF95: No measures found | BH95: MLIU denominator with significant volume | BI95: 1 | BJ95: N | BK95: No | BM95: 1_No measures found | BN95: 1_No measures found_N | BP95: FALSE | BQ95: FALSE | BR95: TRUE | BS95: FALSE | BT95: 2 | BU95: 4 | BV95: FALSE
B96: 18 | E96: =IF(OR($E95=$BM$4,$E95=$BM$5,$E95=$BM$6),AltDenLanguage,IF(OR($E95=$BM$7,$E95=$BM$8),NoSignifVolLanguage,IF(OR($E95=$BS$4,$E95=$BS$5,$E95=$BU$5),$BU$7,""))) ->  | L96: 43 | M96: A1 | O96: =IF($H95="Required","","Yes") -> Yes | P96: FALSE | Q96: FALSE | AJ96: FALSE | AK96: FALSE | AL96: FALSE | AM96: FALSE | AN96: FALSE | AO96: FALSE | AP96: TRUE | AQ96: FALSE | AS96: FALSE | AT96: FALSE | AV96: TRUE | AY96: 1 | AZ96: 18 | BA96: 1_18
B97: 19 | D97: =IF($H97="Required","N/A - Required",IF($H97="Optional","No","No measures found")) -> No measures found | E97: =IF($BL97=$BS$7,$BO$3,IF($BL97=$BS$8,$BQ$3,IF(AND($BV97,$BF97="Optional"),$BS$3,$BM$3))) -> MLIU denominator with significant volume | F97: =IFERROR(INDEX('Cat C Measures Data'!$A$2:$A$973,MATCH(OFFSET($E97,$L97*-1,0)&"_"&$B97,'Cat C Measures Data'!$AU$2:$AU$973,0)),"No measures found") -> No measures found | G97: =IFERROR(INDEX('Cat C Measures Data'!$C$2:$C$973,MATCH(OFFSET($E97,$L97*-1,0)&"_"&$B97,'Cat C Measures Data'!$AU$2:$AU$973,0)),"No measures found") -> No measures found | H97: =IFERROR(IF(OR(AND($AD$4,OFFSET($D97,$L97*-1,0)="Yes"),$AD$4=FALSE),IF(OR(INDEX('Cat C Measures Data'!$U$2:$U$973,MATCH(OFFSET($E97,$L97*-1,0)&"_"&$B97,'Cat C Measures Data'!$AU$2:$AU$973,0))="Y",INDEX('Cat C Measures Data'!$U$2:$U$207,MATCH(F97,'Cat C Measures Data'!$A$2:$A$207,0))=$AT$5),"Required","Optional"),"Optional"),"No measures found") -> No measures found | I97: =IFERROR(INDEX('Cat C Measures Data'!$AD$2:$AD$973,MATCH(OFFSET($E97,$L97*-1,0)&"_"&$B97,'Cat C Measures Data'!$AU$2:$AU$973,0)),"No measures found") -> No measures found | J97: =IFERROR(INDEX('Cat C Measures Data'!$AC$2:$AC$973,MATCH(OFFSET($E97,$L97*-1,0)&"_"&$B97,'Cat C Measures Data'!$AU$2:$AU$973,0)),"No measures found") -> No measures found | K97: =IFERROR(IF(OR(AND($AD$4,OFFSET($D97,$L97*-1,0)="Yes",$H97="Required"),AND($AD$4=FALSE,$H97="Required")),"N/A",IF(AND($AD$4,OFFSET($D97,$L97*-1,0)<>"Yes"),INDEX('Cat C Measures Data'!$AV$2:$AV$973,MATCH($F97,'Cat C Measures Data'!$A$2:$A$973,0)),INDEX('Cat C Measures Data'!$V$2:$V$973,MATCH($F97,'Cat C Measures Data'!$A$2:$A$973,0)))),"No measures found") -> No measures found | L97: 44 | M97: A1 | O97: =IF($H97="Required","N/A - Required","No") -> No | P97: FALSE | Q97: FALSE | AJ97: FALSE | AK97: FALSE | AL97: FALSE | AM97: FALSE | AN97: FALSE | AO97: FALSE | AP97: TRUE | AQ97: FALSE | AS97: FALSE | AT97: FALSE | AV97: TRUE | AY97: 1 | AZ97: 19 | BA97: 1_19 | BD97: Yes | BE97: No measures found | BF97: No measures found | BH97: MLIU denominator with significant volume | BI97: 1 | BJ97: N | BK97: No | BM97: 1_No measures found | BN97: 1_No measures found_N | BP97: FALSE | BQ97: FALSE | BR97: TRUE | BS97: FALSE | BT97: 2 | BU97: 4 | BV97: FALSE
B98: 19 | E98: =IF(OR($E97=$BM$4,$E97=$BM$5,$E97=$BM$6),AltDenLanguage,IF(OR($E97=$BM$7,$E97=$BM$8),NoSignifVolLanguage,IF(OR($E97=$BS$4,$E97=$BS$5,$E97=$BU$5),$BU$7,""))) ->  | L98: 45 | M98: A1 | O98: =IF($H97="Required","","Yes") -> Yes | P98: FALSE | Q98: FALSE | AJ98: FALSE | AK98: FALSE | AL98: FALSE | AM98: FALSE | AN98: FALSE | AO98: FALSE | AP98: TRUE | AQ98: FALSE | AS98: FALSE | AT98: FALSE | AV98: TRUE | AY98: 1 | AZ98: 19 | BA98: 1_19
B99: 20 | D99: =IF($H99="Required","N/A - Required",IF($H99="Optional","No","No measures found")) -> No measures found | E99: =IF($BL99=$BS$7,$BO$3,IF($BL99=$BS$8,$BQ$3,IF(AND($BV99,$BF99="Optional"),$BS$3,$BM$3))) -> MLIU denominator with significant volume | F99: =IFERROR(INDEX('Cat C Measures Data'!$A$2:$A$973,MATCH(OFFSET($E99,$L99*-1,0)&"_"&$B99,'Cat C Measures Data'!$AU$2:$AU$973,0)),"No measures found") -> No measures found | G99: =IFERROR(INDEX('Cat C Measures Data'!$C$2:$C$973,MATCH(OFFSET($E99,$L99*-1,0)&"_"&$B99,'Cat C Measures Data'!$AU$2:$AU$973,0)),"No measures found") -> No measures found | H99: =IFERROR(IF(OR(AND($AD$4,OFFSET($D99,$L99*-1,0)="Yes"),$AD$4=FALSE),IF(OR(INDEX('Cat C Measures Data'!$U$2:$U$973,MATCH(OFFSET($E99,$L99*-1,0)&"_"&$B99,'Cat C Measures Data'!$AU$2:$AU$973,0))="Y",INDEX('Cat C Measures Data'!$U$2:$U$207,MATCH(F99,'Cat C Measures Data'!$A$2:$A$207,0))=$AT$5),"Required","Optional"),"Optional"),"No measures found") -> No measures found | I99: =IFERROR(INDEX('Cat C Measures Data'!$AD$2:$AD$973,MATCH(OFFSET($E99,$L99*-1,0)&"_"&$B99,'Cat C Measures Data'!$AU$2:$AU$973,0)),"No measures found") -> No measures found | J99: =IFERROR(INDEX('Cat C Measures Data'!$AC$2:$AC$973,MATCH(OFFSET($E99,$L99*-1,0)&"_"&$B99,'Cat C Measures Data'!$AU$2:$AU$973,0)),"No measures found") -> No measures found | K99: =IFERROR(IF(OR(AND($AD$4,OFFSET($D99,$L99*-1,0)="Yes",$H99="Required"),AND($AD$4=FALSE,$H99="Required")),"N/A",IF(AND($AD$4,OFFSET($D99,$L99*-1,0)<>"Yes"),INDEX('Cat C Measures Data'!$AV$2:$AV$973,MATCH($F99,'Cat C Measures Data'!$A$2:$A$973,0)),INDEX('Cat C Measures Data'!$V$2:$V$973,MATCH($F99,'Cat C Measures Data'!$A$2:$A$973,0)))),"No measures found") -> No measures found | L99: 46 | M99: A1 | O99: =IF($H99="Required","N/A - Required","No") -> No | P99: FALSE | Q99: FALSE | AJ99: FALSE | AK99: FALSE | AL99: FALSE | AM99: FALSE | AN99: FALSE | AO99: FALSE | AP99: TRUE | AQ99: FALSE | AS99: FALSE | AT99: FALSE | AV99: TRUE | AY99: 1 | AZ99: 20 | BA99: 1_20 | BD99: Yes | BE99: No measures found | BF99: No measures found | BH99: MLIU denominator with significant volume | BI99: 1 | BJ99: N | BK99: No | BM99: 1_No measures found | BN99: 1_No measures found_N | BP99: FALSE | BQ99: FALSE | BR99: TRUE | BS99: FALSE | BT99: 2 | BU99: 4 | BV99: FALSE
B100: 20 | E100: =IF(OR($E99=$BM$4,$E99=$BM$5,$E99=$BM$6),AltDenLanguage,IF(OR($E99=$BM$7,$E99=$BM$8),NoSignifVolLanguage,IF(OR($E99=$BS$4,$E99=$BS$5,$E99=$BU$5),$BU$7,""))) ->  | L100: 47 | M100: A1 | O100: =IF($H99="Required","","Yes") -> Yes | P100: FALSE | Q100: FALSE | AJ100: FALSE | AK100: FALSE | AL100: FALSE | AM100: FALSE | AN100: FALSE | AO100: FALSE | AP100: TRUE | AQ100: FALSE | AS100: FALSE | AT100: FALSE | AV100: TRUE | AY100: 1 | AZ100: 20 | BA100: 1_20
L101: 48 | M101: A1 | P101: FALSE | Q101: FALSE | AJ101: FALSE | AK101: FALSE | AL101: FALSE | AM101: TRUE | AN101: FALSE | AO101: FALSE | AP101: FALSE | AQ101: FALSE | AS101: FALSE | AT101: TRUE | AV101: TRUE | AY101: =IF($E100="Measure Bundle ID",$A101,$AY100) -> 1 | AZ101: 0 | BA101: 1_0
L102: 49 | M102: A2 | P102: FALSE | Q102: FALSE | AJ102: FALSE | AK102: FALSE | AL102: FALSE | AM102: TRUE | AN102: FALSE | AO102: FALSE | AP102: FALSE | AQ102: FALSE | AS102: FALSE | AT102: TRUE | AV102: TRUE | AY102: 1 | AZ102: 0 | BA102: 1_0
D103: =$Q$2 -> Select Measure Bundle? (Yes/No) | E103: Measure Bundle ID | F103: Measure Bundle Name | H103: Measure Bundle Base Points | L103: 50 | M103: A2 | P103: FALSE | Q103: FALSE | AJ103: FALSE | AK103: FALSE | AL103: FALSE | AM103: TRUE | AN103: FALSE | AO103: FALSE | AP103: FALSE | AQ103: FALSE | AS103: FALSE | AT103: TRUE | AV103: TRUE | AY103: 1 | AZ103: 0 | BA103: 1_0
A104: =$A53+1 -> 2 | D104: No | E104: =IFERROR(INDEX('Cat C Measures Data'!$AH$2:$AH$249,MATCH($A104,'Cat C Measures Data'!$AQ$2:$AQ$249,)),"No bundle found") -> A2 | F104: =IFERROR(INDEX('Cat C Measures Data'!$AS$2:$AS$249,MATCH($A104,'Cat C Measures Data'!$AQ$2:$AQ$249,)),"No bundle found") -> Improved Chronic Disease Management: Heart Disease | H104: =INDEX('Cat C Bundles Data'!$L$2:$L$50,MATCH(E104,'Cat C Bundles Data'!$F$2:$F$50,0)) -> 8 | I104: =IF(COUNTIFS($BM$53:$BM$1594,$A104&"_Required",$BS$53:$BS$1594,TRUE)>0,$BV$5,"") ->  | L104: 0 | M104: A2 | P104: TRUE | Q104: TRUE | AJ104: FALSE | AK104: FALSE | AL104: FALSE | AM104: FALSE | AN104: FALSE | AO104: FALSE | AP104: FALSE | AQ104: FALSE | AS104: TRUE | AT104: TRUE | AV104: TRUE | AY104: 2 | AZ104: 0 | BA104: 2_0 | BB104: Y | BC104: No
L105: 1 | M105: A2 | P105: FALSE | Q105: FALSE | AJ105: FALSE | AK105: TRUE | AL105: FALSE | AM105: FALSE | AN105: FALSE | AO105: FALSE | AP105: FALSE | AQ105: FALSE | AS105: FALSE | AT105: FALSE | AU105: 2 | AV105: TRUE | AY105: 2 | AZ105: 0 | BA105: 2_0
D106: Please describe your rationale for selecting this Measure Bundle, and describe the primary system components (clinics, facilities) that will be used to report on and drive improvement in this Measure Bundle. | L106: 2 | M106: A2 | P106: FALSE | Q106: FALSE | AJ106: FALSE | AK106: TRUE | AL106: FALSE | AM106: FALSE | AN106: FALSE | AO106: FALSE | AP106: FALSE | AQ106: FALSE | AS106: FALSE | AT106: FALSE | AU106: 1 | AV106: TRUE | AY106: 2 | AZ106: 0 | BA106: 2_0
L107: 3 | M107: A2 | P107: FALSE | Q107: FALSE | AJ107: FALSE | AK107: TRUE | AL107: FALSE | AM107: FALSE | AN107: FALSE | AO107: FALSE | AP107: FALSE | AQ107: FALSE | AS107: FALSE | AT107: FALSE | AU107: 0 | AV107: TRUE | AY107: 2 | AZ107: 0 | BA107: 2_0
L108: 4 | M108: A2 | P108: FALSE | Q108: FALSE | AJ108: FALSE | AK108: TRUE | AL108: FALSE | AM108: FALSE | AN108: FALSE | AO108: FALSE | AP108: FALSE | AQ108: FALSE | AS108: FALSE | AT108: FALSE | AU108: -1 | AV108: TRUE | AY108: 2 | AZ108: 0 | BA108: 2_0
L109: 5 | M109: A2 | P109: FALSE | Q109: FALSE | AJ109: FALSE | AK109: TRUE | AL109: FALSE | AM109: FALSE | AN109: FALSE | AO109: FALSE | AP109: FALSE | AQ109: FALSE | AS109: FALSE | AT109: FALSE | AU109: -2 | AV109: TRUE | AY109: 2 | AZ109: 0 | BA109: 2_0
L110: 6 | M110: A2 | P110: FALSE | Q110: FALSE | AJ110: FALSE | AK110: FALSE | AL110: TRUE | AM110: FALSE | AN110: FALSE | AO110: FALSE | AP110: FALSE | AQ110: FALSE | AS110: FALSE | AT110: TRUE | AV110: TRUE | AY110: 2 | AZ110: 0 | BA110: 2_0
D111: =$Q$3 -> Select Optional Measure (Yes/No) | E111: Measure Volume Options for Goal Setting and Achievement | F111: Bundle-Measure ID | G111: Measure Name | H111: Required vs. Optional | I111: P4P vs. P4R | J111: Measure Category | K111: Additional Points | L111: 7 | M111: A2 | P111: FALSE | Q111: FALSE | AJ111: FALSE | AK111: FALSE | AL111: TRUE | AM111: FALSE | AN111: FALSE | AO111: FALSE | AP111: FALSE | AQ111: FALSE | AS111: FALSE | AT111: TRUE | AV111: TRUE | AY111: 2 | AZ111: 0 | BA111: 2_0
B112: 1 | D112: =IF($H112="Required","N/A - Required",IF($H112="Optional","No","No measures found")) -> N/A - Required | E112: =IF($BL112=$BS$7,$BO$3,IF($BL112=$BS$8,$BQ$3,IF(AND($BV112,$BF112="Optional"),$BS$3,$BM$3))) -> MLIU denominator with significant volume | F112: =IFERROR(INDEX('Cat C Measures Data'!$A$2:$A$973,MATCH(OFFSET($E112,$L112*-1,0)&"_"&$B112,'Cat C Measures Data'!$AU$2:$AU$973,0)),"No measures found") -> A2-103 | G112: =IFERROR(INDEX('Cat C Measures Data'!$C$2:$C$973,MATCH(OFFSET($E112,$L112*-1,0)&"_"&$B112,'Cat C Measures Data'!$AU$2:$AU$973,0)),"No measures found") -> Controlling High Blood Pressure | H112: =IFERROR(IF(OR(AND($AD$4,OFFSET($D112,$L112*-1,0)="Yes"),$AD$4=FALSE),IF(OR(INDEX('Cat C Measures Data'!$U$2:$U$973,MATCH(OFFSET($E112,$L112*-1,0)&"_"&$B112,'Cat C Measures Data'!$AU$2:$AU$973,0))="Y",INDEX('Cat C Measures Data'!$U$2:$U$207,MATCH(F112,'Cat C Measures Data'!$A$2:$A$207,0))=$AT$5),"Required","Optional"),"Optional"),"No measures found") -> Required | I112: =IFERROR(INDEX('Cat C Measures Data'!$AD$2:$AD$973,MATCH(OFFSET($E112,$L112*-1,0)&"_"&$B112,'Cat C Measures Data'!$AU$2:$AU$973,0)),"No measures found") -> P4P | J112: =IFERROR(INDEX('Cat C Measures Data'!$AC$2:$AC$973,MATCH(OFFSET($E112,$L112*-1,0)&"_"&$B112,'Cat C Measures Data'!$AU$2:$AU$973,0)),"No measures found") -> Clinical Outcome | K112: =IFERROR(IF(OR(AND($AD$4,OFFSET($D112,$L112*-1,0)="Yes",$H112="Required"),AND($AD$4=FALSE,$H112="Required")),"N/A",IF(AND($AD$4,OFFSET($D112,$L112*-1,0)<>"Yes"),INDEX('Cat C Measures Data'!$AV$2:$AV$973,MATCH($F112,'Cat C Measures Data'!$A$2:$A$973,0)),INDEX('Cat C Measures Data'!$V$2:$V$973,MATCH($F112,'Cat C Measures Data'!$A$2:$A$973,0)))),"No measures found") -> N/A | L112: 8 | M112: A2 | O112: =IF($H112="Required","N/A - Required","No") -> N/A - Required | P112: FALSE | Q112: FALSE | AJ112: TRUE | AK112: FALSE | AL112: FALSE | AM112: FALSE | AN112: FALSE | AO112: FALSE | AP112: FALSE | AQ112: FALSE | AS112: FALSE | AT112: TRUE | AV112: TRUE | AY112: 2 | AZ112: 1 | BA112: 2_1 | BD112: Yes | BE112: A2-103 | BF112: Required | BH112: MLIU denominator with significant volume | BI112: 1 | BJ112: N | BK112: No | BM112: 2_Required | BN112: 2_Required_N | BP112: FALSE | BQ112: FALSE | BR112: TRUE | BS112: FALSE | BT112: 2 | BU112: 4 | BV112: FALSE
B113: 1 | E113: =IF(OR($E112=$BM$4,$E112=$BM$5,$E112=$BM$6),AltDenLanguage,IF(OR($E112=$BM$7,$E112=$BM$8),NoSignifVolLanguage,IF(OR($E112=$BS$4,$E112=$BS$5,$E112=$BU$5),$BU$7,""))) ->  | L113: 9 | M113: A2 | O113: =IF($H112="Required","","Yes") ->  | P113: FALSE | Q113: FALSE | AJ113: FALSE | AK113: FALSE | AL113: FALSE | AM113: FALSE | AN113: TRUE | AO113: FALSE | AP113: FALSE | AQ113: FALSE | AS113: FALSE | AT113: FALSE | AV113: TRUE | AY113: 2 | AZ113: 1 | BA113: 2_1
B114: =B112+1 -> 2 | D114: =IF($H114="Required","N/A - Required",IF($H114="Optional","No","No measures found")) -> N/A - Required | E114: =IF($BL114=$BS$7,$BO$3,IF($BL114=$BS$8,$BQ$3,IF(AND($BV114,$BF114="Optional"),$BS$3,$BM$3))) -> MLIU denominator with significant volume | F114: =IFERROR(INDEX('Cat C Measures Data'!$A$2:$A$973,MATCH(OFFSET($E114,$L114*-1,0)&"_"&$B114,'Cat C Measures Data'!$AU$2:$AU$973,0)),"No measures found") -> A2-210 | G114: =IFERROR(INDEX('Cat C Measures Data'!$C$2:$C$973,MATCH(OFFSET($E114,$L114*-1,0)&"_"&$B114,'Cat C Measures Data'!$AU$2:$AU$973,0)),"No measures found") -> Preventive Care and Screening: Screening for High Blood Pressure and Follow-Up Documented | H114: =IFERROR(IF(OR(AND($AD$4,OFFSET($D114,$L114*-1,0)="Yes"),$AD$4=FALSE),IF(OR(INDEX('Cat C Measures Data'!$U$2:$U$973,MATCH(OFFSET($E114,$L114*-1,0)&"_"&$B114,'Cat C Measures Data'!$AU$2:$AU$973,0))="Y",INDEX('Cat C Measures Data'!$U$2:$U$207,MATCH(F114,'Cat C Measures Data'!$A$2:$A$207,0))=$AT$5),"Required","Optional"),"Optional"),"No measures found") -> Required | I114: =IFERROR(INDEX('Cat C Measures Data'!$AD$2:$AD$973,MATCH(OFFSET($E114,$L114*-1,0)&"_"&$B114,'Cat C Measures Data'!$AU$2:$AU$973,0)),"No measures found") -> P4P | J114: =IFERROR(INDEX('Cat C Measures Data'!$AC$2:$AC$973,MATCH(OFFSET($E114,$L114*-1,0)&"_"&$B114,'Cat C Measures Data'!$AU$2:$AU$973,0)),"No measures found") -> Process | K114: =IFERROR(IF(OR(AND($AD$4,OFFSET($D114,$L114*-1,0)="Yes",$H114="Required"),AND($AD$4=FALSE,$H114="Required")),"N/A",IF(AND($AD$4,OFFSET($D114,$L114*-1,0)<>"Yes"),INDEX('Cat C Measures Data'!$AV$2:$AV$973,MATCH($F114,'Cat C Measures Data'!$A$2:$A$973,0)),INDEX('Cat C Measures Data'!$V$2:$V$973,MATCH($F114,'Cat C Measures Data'!$A$2:$A$973,0)))),"No measures found") -> N/A | L114: 10 | M114: A2 | O114: =IF($H114="Required","N/A - Required","No") -> N/A - Required | P114: FALSE | Q114: FALSE | AJ114: TRUE | AK114: FALSE | AL114: FALSE | AM114: FALSE | AN114: FALSE | AO114: FALSE | AP114: FALSE | AQ114: FALSE | AS114: FALSE | AT114: TRUE | AV114: TRUE | AY114: 2 | AZ114: 2 | BA114: 2_2 | BD114: Yes | BE114: A2-210 | BF114: Required | BH114: MLIU denominator with significant volume | BI114: 1 | BJ114: N | BK114: No | BM114: 2_Required | BN114: 2_Required_N | BP114: FALSE | BQ114: FALSE | BR114: TRUE | BS114: FALSE | BT114: 2 | BU114: 4 | BV114: FALSE
B115: 2 | E115: =IF(OR($E114=$BM$4,$E114=$BM$5,$E114=$BM$6),AltDenLanguage,IF(OR($E114=$BM$7,$E114=$BM$8),NoSignifVolLanguage,IF(OR($E114=$BS$4,$E114=$BS$5,$E114=$BU$5),$BU$7,""))) ->  | L115: 11 | M115: A2 | O115: =IF($H114="Required","","Yes") ->  | P115: FALSE | Q115: =$D114=$Q$2 -> FALSE | AJ115: =OR($H115="Required",$H115="Optional") -> FALSE | AK115: =OR(RIGHT($D116,3)="le.",RIGHT($D115,3)="le.",RIGHT($D114,3)="le.",RIGHT($D113,3)="le.",RIGHT($D112,3)="le.") -> FALSE | AL115: =OR($D115=$Q$3,$D116=$Q$3) -> FALSE | AM115: =OR($D117=$Q$2,$D116=$Q$2,$D115=$Q$2) -> FALSE | AN115: TRUE | AO115: =OR($F110="No bundle found",$F111="No bundle found",$F112="No bundle found",$F113="No bundle found",$F114="No bundle found",$F115="No bundle found",$F116="No bundle found") -> FALSE | AP115: =OR($F114="No measures found",$F115="No measures found") -> FALSE | AQ115: =OR(RIGHT($D112,4)="lty.",RIGHT($D113,4)="lty.",RIGHT($D114,4)="lty.",RIGHT($D115,4)="lty.",RIGHT($D116,4)="lty.") -> FALSE | AS115: FALSE | AT115: FALSE | AV115: TRUE | AY115: 2 | AZ115: 2 | BA115: 2_2
B116: 3 | D116: =IF($H116="Required","N/A - Required",IF($H116="Optional","No","No measures found")) -> N/A - Required | E116: =IF($BL116=$BS$7,$BO$3,IF($BL116=$BS$8,$BQ$3,IF(AND($BV116,$BF116="Optional"),$BS$3,$BM$3))) -> MLIU denominator with significant volume | F116: =IFERROR(INDEX('Cat C Measures Data'!$A$2:$A$973,MATCH(OFFSET($E116,$L116*-1,0)&"_"&$B116,'Cat C Measures Data'!$AU$2:$AU$973,0)),"No measures found") -> A2-404 | G116: =IFERROR(INDEX('Cat C Measures Data'!$C$2:$C$973,MATCH(OFFSET($E116,$L116*-1,0)&"_"&$B116,'Cat C Measures Data'!$AU$2:$AU$973,0)),"No measures found") -> Statin Therapy for the Prevention and Treatment of Cardiovascular Disease | H116: =IFERROR(IF(OR(AND($AD$4,OFFSET($D116,$L116*-1,0)="Yes"),$AD$4=FALSE),IF(OR(INDEX('Cat C Measures Data'!$U$2:$U$973,MATCH(OFFSET($E116,$L116*-1,0)&"_"&$B116,'Cat C Measures Data'!$AU$2:$AU$973,0))="Y",INDEX('Cat C Measures Data'!$U$2:$U$207,MATCH(F116,'Cat C Measures Data'!$A$2:$A$207,0))=$AT$5),"Required","Optional"),"Optional"),"No measures found") -> Required | I116: =IFERROR(INDEX('Cat C Measures Data'!$AD$2:$AD$973,MATCH(OFFSET($E116,$L116*-1,0)&"_"&$B116,'Cat C Measures Data'!$AU$2:$AU$973,0)),"No measures found") -> P4P | J116: =IFERROR(INDEX('Cat C Measures Data'!$AC$2:$AC$973,MATCH(OFFSET($E116,$L116*-1,0)&"_"&$B116,'Cat C Measures Data'!$AU$2:$AU$973,0)),"No measures found") -> Process | K116: =IFERROR(IF(OR(AND($AD$4,OFFSET($D116,$L116*-1,0)="Yes",$H116="Required"),AND($AD$4=FALSE,$H116="Required")),"N/A",IF(AND($AD$4,OFFSET($D116,$L116*-1,0)<>"Yes"),INDEX('Cat C Measures Data'!$AV$2:$AV$973,MATCH($F116,'Cat C Measures Data'!$A$2:$A$973,0)),INDEX('Cat C Measures Data'!$V$2:$V$973,MATCH($F116,'Cat C Measures Data'!$A$2:$A$973,0)))),"No measures found") -> N/A | L116: 12 | M116: =IF($L116=54,OFFSET($E116,2,0),IF($L116=55,OFFSET($E116,1,0),IF($L116=49,IF(LEFT($M115,1)<>"I",OFFSET($E116,2,0),$M115),IF($L116=50,IF(LEFT($M115,1)<>"I",OFFSET($E116,1,0),$M115),OFFSET($E116,$L116*-1,0))))) -> A2 | O116: =IF($H116="Required","N/A - Required","No") -> N/A - Required | P116: FALSE | Q116: FALSE | AJ116: TRUE | AK116: FALSE | AL116: FALSE | AM116: FALSE | AN116: =IF($AJ115,TRUE,FALSE) -> FALSE | AO116: FALSE | AP116: FALSE | AQ116: FALSE | AS116: FALSE | AT116: TRUE | AV116: TRUE | AY116: 2 | AZ116: 3 | BA116: 2_3 | BD116: Yes | BE116: A2-404 | BF116: Required | BH116: MLIU denominator with significant volume | BI116: 1 | BJ116: N | BK116: No | BM116: 2_Required | BN116: 2_Required_N | BP116: FALSE | BQ116: FALSE | BR116: TRUE | BS116: FALSE | BT116: 2 | BU116: 4 | BV116: FALSE
B117: 3 | E117: =IF(OR($E116=$BM$4,$E116=$BM$5,$E116=$BM$6),AltDenLanguage,IF(OR($E116=$BM$7,$E116=$BM$8),NoSignifVolLanguage,IF(OR($E116=$BS$4,$E116=$BS$5,$E116=$BU$5),$BU$7,""))) ->  | L117: =IF($D116=$Q$2,0,$L116+1) -> 13 | M117: A2 | O117: =IF($H116="Required","","Yes") ->  | P117: FALSE | Q117: FALSE | AJ117: FALSE | AK117: FALSE | AL117: FALSE | AM117: FALSE | AN117: TRUE | AO117: FALSE | AP117: FALSE | AQ117: FALSE | AS117: FALSE | AT117: FALSE | AV117: TRUE | AY117: 2 | AZ117: 3 | BA117: 2_3 | BI117: =IF($BH117="","",IFERROR(INDEX($BH$3:$BH$8,MATCH($BH117,$BI$3:$BI$8,0)),0)) ->  | BK117: =IF($BH117<>"",INDEX($BC$53:$BC$1594,MATCH($AY117,$AY$53:$AY$1594,0)),"") ->  | BL117: =IF($BE117<>"",IF(ISNUMBER(MATCH($BE117,$AV$6:$BG$6,0)),$BS$7,IF($BE117=$AV$7,$BS$8,"")),"") ->  | BM117: =IF($BD117="Yes",$AY117&"_"&$BF117,"") ->  | BN117: =IF($BD117="Yes",$BM117&"_"&$BJ117,"") ->  | BO117: =IF(AND($BK117=$BC$3,$BF117=$BF$3),INDEX($AC$11:$AC$48,MATCH($M117,$S$11:$S$48,0)),"") ->  | BP117: =IF($BD117="Yes",$BL117=$BS$7,"") ->  | BQ117: =IF($BD117="Yes",$BL117=$BS$8,"") ->  | BS117: =IF($BD117="Yes",IF(AND($BK117=$BC$3,$BF117=$BF$3),IFERROR($BO117>$BV$2,FALSE),FALSE),"") -> 
B118: 4 | D118: =IF($H118="Required","N/A - Required",IF($H118="Optional","No","No measures found")) -> No | E118: =IF($BL118=$BS$7,$BO$3,IF($BL118=$BS$8,$BQ$3,IF(AND($BV118,$BF118="Optional"),$BS$3,$BM$3))) -> MLIU denominator with significant volume | F118: =IFERROR(INDEX('Cat C Measures Data'!$A$2:$A$973,MATCH(OFFSET($E118,$L118*-1,0)&"_"&$B118,'Cat C Measures Data'!$AU$2:$AU$973,0)),"No measures found") -> A2-384 | G118: =IFERROR(INDEX('Cat C Measures Data'!$C$2:$C$973,MATCH(OFFSET($E118,$L118*-1,0)&"_"&$B118,'Cat C Measures Data'!$AU$2:$AU$973,0)),"No measures found") -> Risk Adjusted CHF 30-Day Readmission Rate | H118: =IFERROR(IF(OR(AND($AD$4,OFFSET($D118,$L118*-1,0)="Yes"),$AD$4=FALSE),IF(OR(INDEX('Cat C Measures Data'!$U$2:$U$973,MATCH(OFFSET($E118,$L118*-1,0)&"_"&$B118,'Cat C Measures Data'!$AU$2:$AU$973,0))="Y",INDEX('Cat C Measures Data'!$U$2:$U$207,MATCH(F118,'Cat C Measures Data'!$A$2:$A$207,0))=$AT$5),"Required","Optional"),"Optional"),"No measures found") -> Optional | I118: =IFERROR(INDEX('Cat C Measures Data'!$AD$2:$AD$973,MATCH(OFFSET($E118,$L118*-1,0)&"_"&$B118,'Cat C Measures Data'!$AU$2:$AU$973,0)),"No measures found") -> P4P | J118: =IFERROR(INDEX('Cat C Measures Data'!$AC$2:$AC$973,MATCH(OFFSET($E118,$L118*-1,0)&"_"&$B118,'Cat C Measures Data'!$AU$2:$AU$973,0)),"No measures found") -> Clinical Outcome | K118: =IFERROR(IF(OR(AND($AD$4,OFFSET($D118,$L118*-1,0)="Yes",$H118="Required"),AND($AD$4=FALSE,$H118="Required")),"N/A",IF(AND($AD$4,OFFSET($D118,$L118*-1,0)<>"Yes"),INDEX('Cat C Measures Data'!$AV$2:$AV$973,MATCH($F118,'Cat C Measures Data'!$A$2:$A$973,0)),INDEX('Cat C Measures Data'!$V$2:$V$973,MATCH($F118,'Cat C Measures Data'!$A$2:$A$973,0)))),"No measures found") -> 3 | L118: 14 | M118: A2 | O118: =IF($H118="Required","N/A - Required","No") -> No | P118: FALSE | Q118: FALSE | AJ118: TRUE | AK118: FALSE | AL118: FALSE | AM118: FALSE | AN118: FALSE | AO118: FALSE | AP118: FALSE | AQ118: FALSE | AS118: =IF($Q118,AND($AO118=FALSE,OR(Hospital,PhysicianPractice)),IF(OR($AJ118,$AK118,$AL118,$AM118),AND($AP118=FALSE,OR(Hospital,PhysicianPractice),OFFSET($D118,$L118*-1,0)="Yes"),IF($AN118,AND($AP118=FALSE,OR(Hospital,PhysicianPractice),OR($E117=$BM$4,$E117=$BM$5,$E117=$BM$6,$E117=$BM$7,$E117=$BM$8,$E117=$BS$4,$E117=$BS$5,$E117=$BU$5),OFFSET($D118,$L118*-1,0)="Yes"),FALSE))) -> FALSE | AT118: =IF(OR($Q118,$AJ118,$AL118,$AM118),AND($AO118=FALSE,$AP118=FALSE,OR(Hospital,PhysicianPractice)),IF($AK118,AND($AO118=FALSE,$AP118=FALSE,OR(Hospital,PhysicianPractice),OFFSET($D118,$L118*-1,0)="Yes"),IF($AN118,AND($AO118=FALSE,$AP118=FALSE,OR(Hospital,PhysicianPractice),OR($E117=$BM$4,$E117=$BM$5,$E117=$BM$6,$E117=$BM$7,$E117=$BM$8,$E117=$BS$4,$E117=$BS$5,$E117=$BU$5)),FALSE))) -> TRUE | AU118: =IF($AK118,IF($AK118<>$AK117,2,$AU117-1),IF($AQ118,IF($AQ118<>$AQ117,2,$AU117-1),"")) ->  | AV118: =IF(OR($P118=FALSE,$AL118,$AM118),TRUE,IF($AJ118,AND($D118<>"",$E118<>""),IF($AN118,$F118<>"",IF($Q118,$D118<>"",IF(OR($AK118,$AQ118),OFFSET($D118,$AU118,0)<>"",FALSE))))) -> TRUE | AY118: 2 | AZ118: 4 | BA118: =AY118&"_"&AZ118 -> 2_4 | BB118: =IF(AY117<>AY118,"Y","") ->  | BC118: =IF(BB118="Y",INDIRECT(""&BC$1&ROW()),"") ->  | BD118: =IF(AND(AZ118=AZ119,AZ118<>AZ117,AZ118<>0),"Yes","") -> Yes | BE118: =IF($BD118="Yes",INDIRECT(""&BE$1&ROW()),"") -> A2-384 | BF118: Optional | BH118: =IF($BD118="Yes",INDIRECT(""&BI$1&ROW()),"") -> MLIU denominator with significant volume | BI118: 1 | BJ118: =IF($BI118="","",IFERROR(IF(OR($BI118=5,$BI118=6),"Y","N"),"N")) -> N | BK118: No | BM118: 2_Optional | BN118: 2_Optional_N | BP118: FALSE | BQ118: FALSE | BR118: =IF($BD118="Yes",OR(BK118<>"Yes",$BF118<>"Required"),"") -> TRUE | BS118: FALSE | BT118: =IF($BD118="Yes",IF($BV118,IF(OR($M118=$AX$2,$M118=$AX$3),9,IF($K$5=75,8,7)),IF($BP118,IF($BR118,4,3),IF($BQ118,IF($BR118,6,5),IF($BR118,2,1)))),"") -> 2 | BU118: =IF($BD118="Yes",INDEX($BM$2:$BU$2,MATCH($BT118,$BM$1:$BU$1,0)),"") -> 4 | BV118: =IF($BD118="Yes",IFERROR($J118="Population Based Clinical Outcome",FALSE),"") -> FALSE
B119: 4 | E119: =IF(OR($E118=$BM$4,$E118=$BM$5,$E118=$BM$6),AltDenLanguage,IF(OR($E118=$BM$7,$E118=$BM$8),NoSignifVolLanguage,IF(OR($E118=$BS$4,$E118=$BS$5,$E118=$BU$5),$BU$7,""))) ->  | L119: 15 | M119: A2 | O119: =IF($H118="Required","","Yes") -> Yes | P119: =IF(OR($M119="No bundle found",AND(OR($M119="K1",$M119="K2"),$N$2)),FALSE,IF($AD$4,$AT119,$AS119)) -> FALSE | Q119: FALSE | AJ119: FALSE | AK119: FALSE | AL119: FALSE | AM119: FALSE | AN119: TRUE | AO119: FALSE | AP119: FALSE | AQ119: FALSE | AS119: FALSE | AT119: FALSE | AV119: TRUE | AY119: 2 | AZ119: 4 | BA119: 2_4
B120: 5 | D120: =IF($H120="Required","N/A - Required",IF($H120="Optional","No","No measures found")) -> N/A - Required | E120: =IF($K$5=75,$BM$3,$BS$3) -> Reporting attributed population as P4P | F120: =IFERROR(INDEX('Cat C Measures Data'!$A$2:$A$973,MATCH(OFFSET($E120,$L120*-1,0)&"_"&$B120,'Cat C Measures Data'!$AU$2:$AU$973,0)),"No measures found") -> A2-501 | G120: =IFERROR(INDEX('Cat C Measures Data'!$C$2:$C$973,MATCH(OFFSET($E120,$L120*-1,0)&"_"&$B120,'Cat C Measures Data'!$AU$2:$AU$973,0)),"No measures found") -> PQI 08 Heart Failure Admission Rate (Adult) | H120: =IFERROR(IF(OR(AND($AD$4,OFFSET($D120,$L120*-1,0)="Yes"),$AD$4=FALSE),IF(OR(INDEX('Cat C Measures Data'!$U$2:$U$973,MATCH(OFFSET($E120,$L120*-1,0)&"_"&$B120,'Cat C Measures Data'!$AU$2:$AU$973,0))="Y",INDEX('Cat C Measures Data'!$U$2:$U$207,MATCH(F120,'Cat C Measures Data'!$A$2:$A$207,0))=$AT$5),"Required","Optional"),"Optional"),"No measures found") -> Required | I120: =IFERROR(INDEX('Cat C Measures Data'!$AD$2:$AD$973,MATCH(OFFSET($E120,$L120*-1,0)&"_"&$B120,'Cat C Measures Data'!$AU$2:$AU$973,0)),"No measures found") -> P4P | J120: =IFERROR(INDEX('Cat C Measures Data'!$AC$2:$AC$973,MATCH(OFFSET($E120,$L120*-1,0)&"_"&$B120,'Cat C Measures Data'!$AU$2:$AU$973,0)),"No measures found") -> Population Based Clinical Outcome | K120: 4 | L120: 16 | M120: A2 | O120: =IF($H120="Required","N/A - Required","No") -> N/A - Required | P120: FALSE | Q120: FALSE | AJ120: TRUE | AK120: FALSE | AL120: FALSE | AM120: FALSE | AN120: FALSE | AO120: FALSE | AP120: FALSE | AQ120: FALSE | AS120: FALSE | AT120: TRUE | AV120: TRUE | AY120: 2 | AZ120: 5 | BA120: 2_5 | BD120: Yes | BE120: A2-501 | BF120: Required | BH120: Reporting attributed population as P4P | BI120: 0 | BJ120: N | BK120: No | BM120: 2_Required | BN120: 2_Required_N | BP120: FALSE | BQ120: FALSE | BR120: TRUE | BS120: FALSE | BT120: 7 | BU120: 3 | BV120: TRUE
B121: 5 | E121: =IF(OR($E120=$BM$4,$E120=$BM$5,$E120=$BM$6),AltDenLanguage,IF(OR($E120=$BM$7,$E120=$BM$8),NoSignifVolLanguage,IF(OR($E120=$BS$4,$E120=$BS$5,$E120=$BU$5),$BU$7,""))) ->  | L121: 17 | M121: A2 | O121: =IF($H120="Required","","Yes") ->  | P121: FALSE | Q121: FALSE | AJ121: FALSE | AK121: FALSE | AL121: FALSE | AM121: FALSE | AN121: TRUE | AO121: FALSE | AP121: FALSE | AQ121: FALSE | AS121: FALSE | AT121: FALSE | AV121: TRUE | AY121: 2 | AZ121: 5 | BA121: 2_5
B122: 6 | D122: =IF($H122="Required","N/A - Required",IF($H122="Optional","No","No measures found")) -> N/A - Required | E122: =IF($K$5=75,$BM$3,$BS$3) -> Reporting attributed population as P4P | F122: =IFERROR(INDEX('Cat C Measures Data'!$A$2:$A$973,MATCH(OFFSET($E122,$L122*-1,0)&"_"&$B122,'Cat C Measures Data'!$AU$2:$AU$973,0)),"No measures found") -> A2-509 | G122: =IFERROR(INDEX('Cat C Measures Data'!$C$2:$C$973,MATCH(OFFSET($E122,$L122*-1,0)&"_"&$B122,'Cat C Measures Data'!$AU$2:$AU$973,0)),"No measures found") -> Reduce Rate of Emergency Department visits for CHF, Angina, and Hypertension | H122: =IFERROR(IF(OR(AND($AD$4,OFFSET($D122,$L122*-1,0)="Yes"),$AD$4=FALSE),IF(OR(INDEX('Cat C Measures Data'!$U$2:$U$973,MATCH(OFFSET($E122,$L122*-1,0)&"_"&$B122,'Cat C Measures Data'!$AU$2:$AU$973,0))="Y",INDEX('Cat C Measures Data'!$U$2:$U$207,MATCH(F122,'Cat C Measures Data'!$A$2:$A$207,0))=$AT$5),"Required","Optional"),"Optional"),"No measures found") -> Required | I122: =IFERROR(INDEX('Cat C Measures Data'!$AD$2:$AD$973,MATCH(OFFSET($E122,$L122*-1,0)&"_"&$B122,'Cat C Measures Data'!$AU$2:$AU$973,0)),"No measures found") -> P4P | J122: =IFERROR(INDEX('Cat C Measures Data'!$AC$2:$AC$973,MATCH(OFFSET($E122,$L122*-1,0)&"_"&$B122,'Cat C Measures Data'!$AU$2:$AU$973,0)),"No measures found") -> Population Based Clinical Outcome | K122: 4 | L122: 18 | M122: A2 | O122: =IF($H122="Required","N/A - Required","No") -> N/A - Required | P122: FALSE | Q122: FALSE | AJ122: TRUE | AK122: FALSE | AL122: FALSE | AM122: FALSE | AN122: FALSE | AO122: FALSE | AP122: FALSE | AQ122: FALSE | AS122: FALSE | AT122: TRUE | AV122: TRUE | AY122: 2 | AZ122: 6 | BA122: 2_6 | BD122: Yes | BE122: A2-509 | BF122: Required | BH122: Reporting attributed population as P4P | BI122: 0 | BJ122: N | BK122: No | BM122: 2_Required | BN122: 2_Required_N | BP122: FALSE | BQ122: FALSE | BR122: TRUE | BS122: FALSE | BT122: 7 | BU122: 3 | BV122: TRUE
B123: 6 | E123: =IF(OR($E122=$BM$4,$E122=$BM$5,$E122=$BM$6),AltDenLanguage,IF(OR($E122=$BM$7,$E122=$BM$8),NoSignifVolLanguage,IF(OR($E122=$BS$4,$E122=$BS$5,$E122=$BU$5),$BU$7,""))) ->  | L123: 19 | M123: A2 | O123: =IF($H122="Required","","Yes") ->  | P123: FALSE | Q123: FALSE | AJ123: FALSE | AK123: FALSE | AL123: FALSE | AM123: FALSE | AN123: TRUE | AO123: FALSE | AP123: FALSE | AQ123: FALSE | AS123: FALSE | AT123: FALSE | AV123: TRUE | AY123: 2 | AZ123: 6 | BA123: 2_6
